Workbook

Sheet notes (hidden)
A1: FY23 Chapter 70
A3: Tabs | B3: What happens on this sheet | C3: Data source (if any) | D3: Notes
A4: Parameters | B4: Allows the user to adjust all of the policy levers in Chapter 70, except for changes to foundation. Foundation budget scenarios can be changed, but they must 1st be run separately and dropped into localcont (all the way to the right). Up to 11 alternatives can be included.
A5: Index | B5: Controls the district being viewed for all reports except regional dist members | C5: Dropdown box reads LEAs
A6: Rates | B6: CY and PY foundation budget rates Used to calculate foundation budget report | C6: Copied in from found file | D6: Copied in FY23 rates
A7: Foundation Budget | B7: 1 district report showing build-up of foundation budget | C7: Rates, dist435
A8: Municipal Contribution | B8: 1 city/town report showing build-up of required local contribution (municipal level) | C8: townwide contributions
A9: Regional Allocation | B9: 1 city/town report showing allocation of total municipal required local contribution based on proportion of foundation budget at each district to which it belongs | C9: localcont
A10: Summary | B10: 1 district report summarizing C70 calculation and comparison to PY | C10: aid436, disthist
A11: Regional Dist Members | B11: 1 regional district report summarizing enrollment and local contribution for each member town Changed in FY18 to vlookup on localcont | C11: localcont, leas
A12: LocalCont | B12: Results from distfrac get copied into the far right (up to 11 versions of foundation budget can be entered). Toggle is on parameters sheet. Data is organized in 5 row format for each city/town (municipality and its districts, blanks are 998 and total is 999). Used to calculate each municipal-district combination's RLC. | C12: found file, distfrac (allocate sheet) | D12: Copied in FY23 foundation budget, %s, RLCs and enro.
A14: Comparison to FY19 | B14: 2 year comparison for operating districts | C14: aid436, disthist, localcont
A15: Townwide Contributions | B15: Calculates municipal required local contributions | C15: DOR (EQV, Income, MRGFs), PY file (RLCs), parameters | D15: Copied FY23 RLCs into PY RLC column
A16: Aid436 | B16: Calculates district Ch 70 aid | C16: disthist, localcont, frac, parameters Starting w/ LEA 406, in col J (target aid %), formula changes to pull from frac tab. | D16: Minimum aid adjustment amounts copied from c70fy23minaidadj.xlsm; min aid adjustment only applied to operating districts
A17: Frac | B17: Calculates target aid percentage for regional districts | D17: Copied from distfrac23
A18: DistHist | B18: ***Don't forget to copy in target aid %s from PY Historical C70 data used in summary report, and other places | D18: Copied in FY23 FB, RLC and Aid Copied in target aid %s from FY23
A19: Dist435 | B19: Data source for foundation budget report, shows detailed enrollment and budget columns | C19: found23prelim
A21: Data | B21: Source | C21: Year | D21: Notes
A22: Inflation | B22: BEA website | C22: Q3 2020 to Q3 2021 | D22: Table 1.1.9. Implicit Price Deflators for Gross Domestic Product
A23: Wage Adjustment Factor Inputs | B23: EOLWD | C23: Calendar Year 2020 | D23: wagesense23
A24: EQV | B24: DOR | C24: 2020 EQV | D24: DOR file Dec. 2020
A25: Income | B25: DOR | C25: 2019 Income | D25: DOR file Dec. 2021
A26: Enrollment incl. Postgrads | B26: DESE | C26: October 2021 | D26: found23prelim
A27: MRGFs | B27: DOR/ANF | C27: FY23 | D27: DOR 1/12/22

Sheet parameters (hidden)
A1: Cyr | B1: FY23 | C1: 23
A2: Pyr | B2: FY22 | C2: 22
A3: As of | B3: 2022-01-26
A5: Parameters | D5: Base | K5: Analysis of Aggregate Wealth Model Implementation
B6: Which version of foundation budget? | C6: 1 | D6: 1 | G6: FY22 C70 including Devens | H6: 5503268225
B7: Effort reduction | C7: 1 | D7: 0 | K7: Progress Towards Target Local Share
B8: Pct downpayment on target aid share | C8: 0 | D8: 0 | G8: FY22 foundation aid increase | H8: ='Aid436'!L448 -> 475998886
D9: 0 | L9: FY07 | M9: FY08 | N9: FY09 | O9: FY10 | P9: FY11 | Q9: FY12 | R9: FY13 | S9: FY14 | T9: FY15 | U9: FY16 | V9: FY17 | W9: FY18 | X9: FY19 | Y9: FY20 | Z9: FY21 | AA9: FY22 | AB9: =CYr -> FY23
G10: Minimum per pupil aid increase | H10: ='Aid436'!R448 -> 9180653 | K10: excess effort before effort reduction | L10: 621.084157 | M10: 494.058912 | N10: 372.382091 | O10: 228.110232 | P10: 366 | Q10: 293.3 | R10: 229.8 | S10: 234.5 | T10: 307.903014 | U10: 235.358789 | V10: 299.86437 | W10: 151.670894 | X10: 68.664221 | Y10: 21.435137 | Z10: 104.649236 | AA10: 93.814687 | AB10: ='Townwide Contributions'!V361/1000000 -> 3.87058
G11: Min aid adjustment increase | H11: ='Aid436'!U448 -> 111576 | K11: effort reduction | L11: 124.2168314 | M11: 123.514728 | N11: 122.88609 | O11: 34.216535 | P11: 109.8 | Q11: 58.7 | R11: 34.5 | S11: 35.2 | T11: 153.951507 | U11: 117.6793945 | V11: 254.8847145 | W11: 128.9202599 | X11: 68.664221 | Y11: 21.435137 | Z11: 104.649236 | AA11: 93.814687 | AB11: ='Townwide Contributions'!V361/1000000 -> 3.87058
G12: Non-op reduction | H12: ='Aid436'!W448 -> 38974 | K12: net excess after effort reduction | L12: 496.8673256 | M12: 370.544184 | N12: 249.496001 | O12: 193.893697 | P12: 256.2 | Q12: =Q10-Q11 -> 234.6 | R12: =R10-R11 -> 195.3 | S12: 199.3 | T12: 152.0806983 | U12: 117.4829132 | V12: 44.97879348 | W12: 22.74921402 | X12: 0 | Y12: 0 | Z12: 0 | AA12: 0 | AB12: ='Townwide Contributions'!AC361/1000000 -> 0
G13: FY22 Chapter 70 | H13: ='Aid436'!Y448 -> 5988211808 | K13: shortfall below target before increment | L13: -321.452322 | M13: -352.174875 | N13: -359.193563 | O13: -427.2 | P13: -228 | Q13: -211 | R13: -200 | S13: -180.2 | T13: -162.972215 | U13: -132.627218 | V13: -96.928091 | W13: -103.17317 | X13: -117.254713 | Y13: -207.485209 | Z13: -163.71 | AA13: -228.999327 | AB13: ='Townwide Contributions'!AA361/1000000 -> -494.818496
B14: Per pupil guaranteed increase | C14: 30 | D14: 0 | G14: Devens | H14: =308558 -> 308558 | K14: additional increments toward target | L14: 0 | M14: -19.739149 | N14: -21.387588 | O14: -121.2 | P14: -10.6 | Q14: -10 | R14: -4.2 | S14: -3.9 | T14: -7.563093 | U14: -5.848739 | V14: -2.474215 | W14: -3.628178 | X14: -5.320349 | Y14: -19.253945 | Z14: -9.378217 | AA14: -20.199768 | AB14: =('Townwide Contributions'!T361/1000000*-1)+('Townwide Contributions'!W361/1000000*-1) -> -56.264627
B15: Which version of mrgf? | C15: 1 | D15: 1 | K15: net shortfall below target after increment | L15: -321.452322 | M15: -332.435726 | N15: -337.805975 | O15: -306 | P15: -217.4 | Q15: -200.9 | R15: -195.7 | S15: -176.3 | T15: -155.409122 | U15: -126.778479 | V15: -94.453876 | W15: -99.544992 | X15: -111.934364 | Y15: -188.231264 | Z15: -154.331783 | AA15: -208.799559 | AB15: ='Townwide Contributions'!AB361/1000000 -> -438.553869
B16: Below effort threshold 1 | C16: 2.5 | D16: 2.5 | G16: Change in C70 Appropriation | H16: =H13+H14-H6 -> 485252141 | K16: n of municipalities with effort too high | L16: 232 | M16: 218 | N16: 214 | O16: 193 | P16: 282 | Q16: 257 | R16: 249 | S16: 255 | T16: 279 | U16: 278 | V16: 303 | W16: 291 | X16: 0 | Y16: 0 | Z16: 0 | AA16: 0 | AB16: ='Townwide Contributions'!AC364 -> 0
B17: Below effort threshold 2 | C17: 7.5 | D17: 7.5 | G17: Percent Change | H17: =H16/H6 -> 0.08817526626
B18: Below effort contribution increment, 5-10% under | C18: 0.01 | D18: 0.01
B19: Below effort contribution increment, >10% under | C19: 0.02 | D19: 0.02 | G19: N of Foundation Aid Districts | H19: ='Aid436'!P448 -> 188
B20: Maximum local contribution pct of foundation | C20: 0.825 | D20: 0.825 | G20: N of Operating Districts with an Aid Increase | H20: ='Comparison to FY22'!N331 -> 318
B21: Statewide target for local contribution % of foundation | C21: 0.59 | D21: 0.59 | G21: Total C70 Including Devens | H21: =H13+H14 -> 5988520366
B22: Cap contributions at fixed percentage of foundation | C22: 0.9 | D22: 0.9
D23: 0
A24: Eqv/income percentages
B26: Target effort | C26: =C21*localcont!K1765 -> 7605298170
B27: Effort based upon following percentages | C27: ='Townwide Contributions'!K361 -> 7605298161
B28: Difference from target | C28: =IF(ABS(C27-C26)<10,0,C27-C26) -> 0
B29: Percentage of EQV | C29: 0.003623791355
B30: Percentage of INCOME | C30: =C29*1/C34 -> 0.01524159425
B32: Total EQV | C32: ='Townwide Contributions'!C361 -> 1420130860400
B33: Total Income | C33: ='Townwide Contributions'!E361 -> 337645645855
B34: State Average % of EQV | C34: =C33/C32 -> 0.2377567133
A37: See Progress Towards Targets
K42: Progress Towards Target Aid Share
L44: FY07 | M44: FY08 | N44: FY09 | O44: FY10 | P44: FY11 | Q44: FY12 | R44: FY13 | S44: FY14 | T44: FY15 | U44: FY16 | V44: FY17 | W44: FY18 | X44: FY19 | Y44: FY20 | Z44: FY21 | AA44: FY22 | AB44: =CYr -> FY23
K45: aid above target | L45: 394.9 | M45: 421 | N45: 440.4 | O45: 413.5991456 | P45: 489.2905867 | Q45: 360.5802896 | R45: 372.9139726 | S45: 385.3 | T45: 404.6539336 | U45: 419.0730779 | V45: 488.1362137 | W45: 497.4038449 | X45: 487.8069694 | Y45: 518.4487954 | Z45: 516.4943275 | AA45: 613.17696 | AB45: ='Aid436'!AE449/1000000 -> 703.1135812
K46: aid below target | L46: -176.3 | M46: -143 | N46: -105.5 | O46: -97.82363262 | P46: -75.73073977 | Q46: -110.4290612 | R46: -84.70629692 | S46: -66.9 | T46: -49.39921427 | U46: -44.48798888 | V46: -13.01302676 | W46: -7.202688836 | X46: -0.01809683687 | Y46: -0.001189981026 | Z46: -0.01283887927 | AA46: -0.001771922842 | AB46: ='Aid436'!AE450/1000000 -> -2.542599243e-06
C50: =TEXT(effortred,"0%") -> 100%

Sheet localcont (hidden)
I1: c70fy22 | J1: c70fy22 | O1: c70fy22 | R1: c70fy22 | Z1: 2022-01-06 | CM1: Lookup table for foundation budget scenarios | CN1: 1 | CO1: 2
CN2: 2 | CO2: 8
D3: 1 | E3: 2 | F3: 3 | G3: 4 | H3: 5 | I3: 6 | J3: 7 | K3: 8 | L3: 9 | M3: 10 | N3: 11 | O3: 12 | P3: 13 | Q3: 14 | R3: 15 | S3: 16 | T3: 17 | U3: 18 | V3: 19 | W3: 20 | X3: 21 | Y3: 1 | BD3: 32 | BE3: 33 | BF3: 34 | BG3: 35 | BH3: 36 | BI3: 37 | BJ3: 38 | BK3: 39 | BL3: 40 | BM3: 41 | BN3: 42 | BO3: 43 | BP3: 44 | BQ3: 45 | BR3: 46 | BS3: 47 | BT3: 48 | BU3: 49 | BV3: 50 | BW3: 51 | BX3: 52 | BY3: 53 | BZ3: 54 | CA3: 55 | CB3: 56 | CC3: 57 | CD3: 58 | CE3: 59 | CF3: 60 | CG3: 61 | CH3: 62 | CI3: 63 | CJ3: 64 | CK3: 65 | CL3: 66 | CN3: 3 | CO3: 14
G4: lea1755 | K4: found1755 | N4: prelcont1755 | O4: pynetmin | R4: pyenro | W4: enro1755 | CN4: 4 | CO4: 20
Z5: 1 | AF5: 2 | BD5: 6 | BJ5: 7 | BP5: 8 | BV5: 9 | CB5: 10 | CH5: 11 | CN5: 5 | CO5: 26
T6: =parameters!$C$6 -> 1 | Z6: 2/6th SOA - inflation capped | CN6: 6 | CO6: 32
I7: =PYr -> FY22 | J7: =PYr -> FY22 | K7: =CYr -> FY23 | L7: =CYr -> FY23 | M7: =CYr -> FY23 | N7: =CYr -> FY23 | O7: =PYr -> FY22 | CN7: 7 | CO7: 38
I8: Foundation | J8: Share of Total | K8: Foundation | L8: Share of Total | M8: Townwide | N8: Net Minimum | O8: Net Minimum | P8: =PYr&" to "&CYr -> FY22 to FY23 | Q8: Percent | R8: =PYr -> FY22 | S8: =CYr -> FY23 | W8: final | X8: foundation | BG8: final | BH8: foundation | BM8: final | BN8: foundation | BS8: final | BT8: foundation | BY8: final | BZ8: foundation | CE8: final | CF8: foundation | CK8: final | CL8: foundation | CN8: 8 | CO8: 44
A9: TownLEA | B9: Town | C9: LEA | D9: Order | E9: Town | F9: City or Town | G9: LEA | H9: School District | I9: Budget | J9: Foundation | K9: Budget | L9: Foundation | M9: Contribution | N9: Contribution | O9: Contribution | P9: Change | Q9: Change | R9: Enrollment | S9: Enrollment | T9: Town | U9: LEA | V9: Order | W9: enrollment | X9: budget | BD9: Town | BE9: LEA | BF9: Order | BG9: enrollment | BH9: budget | BJ9: Town | BK9: LEA | BL9: Order | BM9: enrollment | BN9: budget | BP9: Town | BQ9: LEA | BR9: Order | BS9: enrollment | BT9: budget | BV9: Town | BW9: LEA | BX9: Order | BY9: enrollment | BZ9: budget | CB9: Town | CC9: LEA | CD9: Order | CE9: enrollment | CF9: budget | CH9: Town | CI9: LEA | CJ9: Order | CK9: enrollment | CL9: budget | CN9: 9 | CO9: 50
A10: =B10&C10 -> 00010001 | B10: 0001 | C10: 0001 | D10: 1 | E10: 1 | F10: Abington | G10: 1 | H10: Abington | I10: 26529795.66 | J10: 0.9424119752 | K10: =X10 -> 29563170.92 | L10: =IF(K14>0, K10/K14, 0) -> 0.9398162374 | N10: =ROUND(M14*L10,0) -> 16599047 | O10: 15771170 | P10: =N10-O10 -> 827877 | Q10: =IF(O10>0,P10*100/O10,IF(P10>0,100,0)) -> 5.249306171 | R10: 2193 | S10: =W10 -> 2238 | T10: =VLOOKUP($D10, foundoptions, VLOOKUP($T$6, foundoptcell, 2, FALSE), FALSE) -> 1 | U10: =VLOOKUP($D10, foundoptions, VLOOKUP($T$6, foundoptcell, 2, FALSE)+1, FALSE) -> 1 | V10: =VLOOKUP($D10, foundoptions, VLOOKUP($T$6, foundoptcell, 2, FALSE)+2, FALSE) -> 1 | W10: =VLOOKUP($D10, foundoptions, VLOOKUP($T$6, foundoptcell, 2, FALSE)+3, FALSE) -> 2238 | X10: =VLOOKUP($D10, foundoptions, VLOOKUP($T$6, foundoptcell, 2, FALSE)+4, FALSE) -> 29563170.92 | Y10: =D10 -> 1 | Z10: 1 | AA10: 1 | AB10: 1 | AC10: 2238 | AD10: 29563170.92 | CN10: 10 | CO10: 56
A11: 00010873 | B11: 0001 | C11: 0873 | D11: 2 | E11: 1 | F11: Abington | G11: 873 | H11: South Shore | I11: 1621157.805 | J11: 0.05758802476 | K11: =X11 -> 1893160.376 | L11: =IF(K14>0, K11/K14, 0) -> 0.06018376262 | N11: =ROUND(M14*L11,0) -> 1062966 | O11: 963730 | P11: =N11-O11 -> 99236 | Q11: 10.29707491 | R11: 88 | S11: =W11 -> 97 | T11: 1 | U11: 873 | V11: 2 | W11: 97 | X11: 1893160.376 | Y11: =D11 -> 2 | Z11: 1 | AA11: 873 | AB11: 2 | AC11: 97 | AD11: 1893160.376 | CN11: 11 | CO11: 62
A12: 00010998 | B12: 0001 | C12: 0998 | D12: 3 | E12: 1 | G12: 998 | I12: 0 | J12: 0 | K12: =X12 -> 0 | L12: =IF(K14>0, K12/K14, 0) -> 0 | N12: =ROUND(M14*L12,0) -> 0 | O12: 0 | P12: =N12-O12 -> 0 | Q12: 0 | R12: 0 | S12: 0 | T12: 1 | U12: 998 | V12: 3 | W12: 0 | X12: 0 | Y12: 3 | Z12: 1 | AA12: 998 | AB12: 3 | AC12: 0 | AD12: 0
A13: 00010998 | B13: 0001 | C13: 0998 | D13: 4 | E13: 1 | G13: 998 | I13: 0 | J13: 0 | K13: =X13 -> 0 | L13: =IF(K14>0, K13/K14, 0) -> 0 | N13: =ROUND(M14*L13,0) -> 0 | O13: 0 | P13: =N13-O13 -> 0 | Q13: 0 | R13: 0 | S13: 0 | T13: 1 | U13: 998 | V13: 4 | W13: 0 | X13: 0 | Y13: 4 | Z13: 1 | AA13: 998 | AB13: 4 | AC13: 0 | AD13: 0
A14: 00010999 | B14: 0001 | C14: 0999 | D14: 5 | E14: 1 | F14: Abington | G14: 999 | H14: Total | I14: 28150953.47 | J14: 1 | K14: =SUM(K10:K13) -> 31456331.29 | L14: =SUM(L10:L13) -> 1 | M14: =VLOOKUP(E14,town351,24) -> 17662013 | N14: =SUM(N10:N13) -> 17662013 | O14: 16734900 | P14: =SUM(P10:P13) -> 927113 | Q14: 5.539997251 | R14: 2281 | S14: 2335 | T14: 1 | U14: 999 | V14: 5 | W14: 2335 | X14: 31456331.29 | Y14: 5 | Z14: 1 | AA14: 999 | AB14: 5 | AC14: 2335 | AD14: 31456331.29
A15: 00020002 | B15: 0002 | C15: 0002 | D15: 6 | E15: 2 | F15: Acton | G15: 2 | H15: Acton | I15: 0 | J15: 0 | K15: =X15 -> 0 | L15: =IF(K19>0, K15/K19, 0) -> 0 | N15: =ROUND(M19*L15,0) -> 0 | O15: 0 | P15: =N15-O15 -> 0 | Q15: 0 | R15: 0 | S15: 0 | T15: 2 | U15: 2 | V15: 6 | W15: 0 | X15: 0 | Y15: 6 | Z15: 2 | AA15: 2 | AB15: 6 | AC15: 0 | AD15: 0
A16: 00020600 | B16: 0002 | C16: 0600 | D16: 7 | E16: 2 | F16: Acton | G16: 600 | H16: Acton Boxborough | I16: 48416592.18 | J16: 0.9752454961 | K16: 51261692.02 | L16: =IF(K19>0, K16/K19, 0) -> 0.969707218 | N16: =ROUND(M19*L16,0) -> 40380318 | O16: 38962815 | P16: =N16-O16 -> 1417503 | Q16: 3.638091858 | R16: 4287.104809 | S16: 4230.155832 | T16: 2 | U16: 600 | V16: 7 | W16: 4230.155832 | X16: 51261692.02 | Y16: 7 | Z16: 2 | AA16: 600 | AB16: 7 | AC16: 4230.155832 | AD16: 51261692.02
A17: 00020830 | B17: 0002 | C17: 0830 | D17: 8 | E17: 2 | F17: Acton | G17: 830 | H17: Minuteman | I17: 1228950.787 | J17: 0.0247545039 | K17: 1601369.189 | L17: =IF(K19>0, K17/K19, 0) -> 0.03029278201 | N17: =ROUND(M19*L17,0) -> 1261445 | O17: 988987 | P17: =N17-O17 -> 272458 | Q17: 27.54919933 | R17: 61 | S17: 81.14727273 | T17: 2 | U17: 830 | V17: 8 | W17: 81.14727273 | X17: 1601369.189 | Y17: 8 | Z17: 2 | AA17: 830 | AB17: 8 | AC17: 81.14727273 | AD17: 1601369.189
A18: 00020998 | B18: 0002 | C18: 0998 | D18: 9 | E18: 2 | G18: 998 | I18: 0 | J18: 0 | K18: 0 | L18: =IF(K19>0, K18/K19, 0) -> 0 | N18: =ROUND(M19*L18,0) -> 0 | O18: 0 | P18: =N18-O18 -> 0 | Q18: 0 | R18: 0 | S18: 0 | T18: 2 | U18: 998 | V18: 9 | W18: 0 | X18: 0 | Y18: 9 | Z18: 2 | AA18: 998 | AB18: 9 | AC18: 0 | AD18: 0
A19: 00020999 | B19: 0002 | C19: 0999 | D19: 10 | E19: 2 | F19: Acton | G19: 999 | H19: Total | I19: 49645542.97 | J19: 1 | K19: =SUM(K15:K18) -> 52863061.21 | L19: =SUM(L15:L18) -> 1 | M19: =VLOOKUP(E19,town351,24) -> 41641763 | N19: =SUM(N15:N18) -> 41641763 | O19: 39951802 | P19: =SUM(P15:P18) -> 1689961 | Q19: =IF(O19>0,P19*100/O19,IF(P19>0,100,0)) -> 4.229999438 | R19: 4348.104809 | S19: 4311.303104 | T19: 2 | U19: 999 | V19: 10 | W19: 4311.303104 | X19: 52863061.21 | Y19: 10 | Z19: 2 | AA19: 999 | AB19: 10 | AC19: 4311.303104 | AD19: 52863061.21
A20: 00030003 | B20: 0003 | C20: 0003 | D20: 11 | E20: 3 | F20: Acushnet | G20: 3 | H20: Acushnet | I20: 13489100.06 | J20: 0.8325215517 | K20: =X20 -> 14410940.64 | L20: =IF(K24>0, K20/K24, 0) -> 0.8251669527 | N20: =ROUND(M24*L20,0) -> 8355453 | O20: 7882117 | P20: =N20-O20 -> 473336 | Q20: 6.005188708 | R20: 1207 | S20: 1192 | T20: 3 | U20: 3 | V20: 11 | W20: 1192 | X20: 14410940.64 | Y20: 11 | Z20: 3 | AA20: 3 | AB20: 11 | AC20: 1192 | AD20: 14410940.64
A21: 00030855 | B21: 0003 | C21: 0855 | D21: 12 | E21: 3 | F21: Acushnet | G21: 855 | H21: Old Colony | I21: 2536404.642 | J21: 0.1565420613 | K21: 2748814.139 | L21: =IF(K24>0, K21/K24, 0) -> 0.1573964284 | N21: =ROUND(M24*L21,0) -> 1593761 | O21: 1482103 | P21: =N21-O21 -> 111658 | Q21: 7.533754402 | R21: 144 | S21: 149.2865385 | T21: 3 | U21: 855 | V21: 12 | W21: 149.2865385 | X21: 2748814.139 | Y21: 12 | Z21: 3 | AA21: 855 | AB21: 12 | AC21: 149.2865385 | AD21: 2748814.139
A22: 00030910 | B22: 0003 | C22: 0910 | D22: 13 | E22: 3 | F22: Acushnet | G22: 910 | H22: Bristol County | I22: 177199.0387 | J22: 0.01093638701 | K22: 304517.8673 | L22: =IF(K24>0, K22/K24, 0) -> 0.01743661895 | N22: =ROUND(M24*L22,0) -> 176559 | O22: 103543 | P22: =N22-O22 -> 73016 | Q22: 70.51756275 | R22: 10 | S22: 16 | T22: 3 | U22: 910 | V22: 13 | W22: 16 | X22: 304517.8673 | Y22: 13 | Z22: 3 | AA22: 910 | AB22: 13 | AC22: 16 | AD22: 304517.8673
A23: 00030998 | B23: 0003 | C23: 0998 | D23: 14 | E23: 3 | G23: 998 | I23: 0 | J23: 0 | K23: 0 | L23: =IF(K24>0, K23/K24, 0) -> 0 | N23: =ROUND(M24*L23,0) -> 0 | O23: 0 | P23: =N23-O23 -> 0 | Q23: 0 | R23: 0 | S23: 0 | T23: 3 | U23: 998 | V23: 14 | W23: 0 | X23: 0 | Y23: 14 | Z23: 3 | AA23: 998 | AB23: 14 | AC23: 0 | AD23: 0
A24: 00030999 | B24: 0003 | C24: 0999 | D24: 15 | E24: 3 | F24: Acushnet | G24: 999 | H24: Total | I24: 16202703.74 | J24: 1 | K24: =SUM(K20:K23) -> 17464272.65 | L24: =SUM(L20:L23) -> 1 | M24: =VLOOKUP(E24,town351,24) -> 10125773 | N24: =SUM(N20:N23) -> 10125773 | O24: 9467763 | P24: =SUM(P20:P23) -> 658010 | Q24: 6.95000498 | R24: 1361 | S24: 1357.286538 | T24: 3 | U24: 999 | V24: 15 | W24: 1357.286538 | X24: 17464272.65 | Y24: 15 | Z24: 3 | AA24: 999 | AB24: 15 | AC24: 1357.286538 | AD24: 17464272.65
A25: 00040004 | B25: 0004 | C25: 0004 | D25: 16 | E25: 4 | F25: Adams | G25: 4 | H25: Adams | I25: 0 | J25: 0 | K25: =X25 -> 0 | L25: =IF(K29>0, K25/K29, 0) -> 0 | N25: =ROUND(M29*L25,0) -> 0 | O25: 0 | P25: =N25-O25 -> 0 | Q25: 0 | R25: 0 | S25: 0 | T25: 4 | U25: 4 | V25: 16 | W25: 0 | X25: 0 | Y25: 16 | Z25: 4 | AA25: 4 | AB25: 16 | AC25: 0 | AD25: 0
A26: 00040603 | B26: 0004 | C26: 0603 | D26: 17 | E26: 4 | F26: Adams | G26: 603 | H26: Hoosac Valley | I26: 11141094.78 | J26: 0.8132693054 | K26: 12093284.32 | L26: =IF(K29>0, K26/K29, 0) -> 0.8141090771 | N26: =ROUND(M29*L26,0) -> 3790761 | O26: 3677626 | P26: =N26-O26 -> 113135 | Q26: 3.076305203 | R26: 862.4819479 | S26: 862.0552764 | T26: 4 | U26: 603 | V26: 17 | W26: 862.0552764 | X26: 12093284.32 | Y26: 17 | Z26: 4 | AA26: 603 | AB26: 17 | AC26: 862.0552764 | AD26: 12093284.32
A27: 00040851 | B27: 0004 | C27: 0851 | D27: 18 | E27: 4 | F27: Adams | G27: 851 | H27: Northern Berkshire | I27: 2558051.009 | J27: 0.1867306946 | K27: 2761339.784 | L27: =IF(K29>0, K27/K29, 0) -> 0.1858909229 | N27: =ROUND(M29*L27,0) -> 865570 | O27: 844401 | P27: =N27-O27 -> 21169 | Q27: 2.506984241 | R27: 138 | S27: 138 | T27: 4 | U27: 851 | V27: 18 | W27: 138 | X27: 2761339.784 | Y27: 18 | Z27: 4 | AA27: 851 | AB27: 18 | AC27: 138 | AD27: 2761339.784
A28: 00040998 | B28: 0004 | C28: 0998 | D28: 19 | E28: 4 | G28: 998 | I28: 0 | J28: 0 | K28: 0 | L28: =IF(K29>0, K28/K29, 0) -> 0 | N28: =ROUND(M29*L28,0) -> 0 | O28: 0 | P28: =N28-O28 -> 0 | Q28: 0 | R28: 0 | S28: 0 | T28: 4 | U28: 998 | V28: 19 | W28: 0 | X28: 0 | Y28: 19 | Z28: 4 | AA28: 998 | AB28: 19 | AC28: 0 | AD28: 0
A29: 00040999 | B29: 0004 | C29: 0999 | D29: 20 | E29: 4 | F29: Adams | G29: 999 | H29: Total | I29: 13699145.79 | J29: 1 | K29: =SUM(K25:K28) -> 14854624.1 | L29: =SUM(L25:L28) -> 1 | M29: =VLOOKUP(E29,town351,24) -> 4656331 | N29: =SUM(N25:N28) -> 4656331 | O29: 4522027 | P29: =SUM(P25:P28) -> 134304 | Q29: 2.969995535 | R29: 1000.481948 | S29: 1000.055276 | T29: 4 | U29: 999 | V29: 20 | W29: 1000.055276 | X29: 14854624.1 | Y29: 20 | Z29: 4 | AA29: 999 | AB29: 20 | AC29: 1000.055276 | AD29: 14854624.1
A30: 00050005 | B30: 0005 | C30: 0005 | D30: 21 | E30: 5 | F30: Agawam | G30: 5 | H30: Agawam | I30: 42850725.39 | J30: 1 | K30: =X30 -> 46476254.92 | L30: =IF(K34>0, K30/K34, 0) -> 1 | N30: =ROUND(M34*L30,0) -> 24515018 | O30: 23421246 | P30: =N30-O30 -> 1093772 | Q30: 4.669999196 | R30: 3516 | S30: 3420 | T30: 5 | U30: 5 | V30: 21 | W30: 3420 | X30: 46476254.92 | Y30: 21 | Z30: 5 | AA30: 5 | AB30: 21 | AC30: 3420 | AD30: 46476254.92
A31: 00050998 | B31: 0005 | C31: 0998 | D31: 22 | E31: 5 | G31: 998 | I31: 0 | J31: 0 | K31: 0 | L31: =IF(K34>0, K31/K34, 0) -> 0 | N31: =ROUND(M34*L31,0) -> 0 | O31: 0 | P31: =N31-O31 -> 0 | Q31: 0 | R31: 0 | S31: 0 | T31: 5 | U31: 998 | V31: 22 | W31: 0 | X31: 0 | Y31: 22 | Z31: 5 | AA31: 998 | AB31: 22 | AC31: 0 | AD31: 0
A32: 00050998 | B32: 0005 | C32: 0998 | D32: 23 | E32: 5 | G32: 998 | I32: 0 | J32: 0 | K32: 0 | L32: =IF(K34>0, K32/K34, 0) -> 0 | N32: =ROUND(M34*L32,0) -> 0 | O32: 0 | P32: =N32-O32 -> 0 | Q32: 0 | R32: 0 | S32: 0 | T32: 5 | U32: 998 | V32: 23 | W32: 0 | X32: 0 | Y32: 23 | Z32: 5 | AA32: 998 | AB32: 23 | AC32: 0 | AD32: 0
A33: 00050998 | B33: 0005 | C33: 0998 | D33: 24 | E33: 5 | G33: 998 | I33: 0 | J33: 0 | K33: 0 | L33: =IF(K34>0, K33/K34, 0) -> 0 | N33: =ROUND(M34*L33,0) -> 0 | O33: 0 | P33: =N33-O33 -> 0 | Q33: 0 | R33: 0 | S33: 0 | T33: 5 | U33: 998 | V33: 24 | W33: 0 | X33: 0 | Y33: 24 | Z33: 5 | AA33: 998 | AB33: 24 | AC33: 0 | AD33: 0
A34: 00050999 | B34: 0005 | C34: 0999 | D34: 25 | E34: 5 | F34: Agawam | G34: 999 | H34: Total | I34: 42850725.39 | J34: 1 | K34: =SUM(K30:K33) -> 46476254.92 | L34: =SUM(L30:L33) -> 1 | M34: =VLOOKUP(E34,town351,24) -> 24515018 | N34: =SUM(N30:N33) -> 24515018 | O34: 23421246 | P34: =SUM(P30:P33) -> 1093772 | Q34: 4.669999196 | R34: 3516 | S34: 3420 | T34: 5 | U34: 999 | V34: 25 | W34: 3420 | X34: 46476254.92 | Y34: 25 | Z34: 5 | AA34: 999 | AB34: 25 | AC34: 3420 | AD34: 46476254.92
A35: 00060006 | B35: 0006 | C35: 0006 | D35: 26 | E35: 6 | F35: Alford | G35: 6 | H35: Alford | I35: 0 | J35: 0 | K35: =X35 -> 0 | L35: =IF(K39>0, K35/K39, 0) -> 0 | N35: =ROUND(M39*L35,0) -> 0 | O35: 0 | P35: =N35-O35 -> 0 | Q35: 0 | R35: 0 | S35: 0 | T35: 6 | U35: 6 | V35: 26 | W35: 0 | X35: 0 | Y35: 26 | Z35: 6 | AA35: 6 | AB35: 26 | AC35: 0 | AD35: 0
A36: 00060765 | B36: 0006 | C36: 0765 | D36: 27 | E36: 6 | F36: Alford | G36: 765 | H36: Southern Berkshire | I36: 243289.8046 | J36: 1 | K36: 248350.6542 | L36: =IF(K39>0, K36/K39, 0) -> 1 | N36: =ROUND(M39*L36,0) -> 204889 | O36: 200714 | P36: =N36-O36 -> 4175 | Q36: 2.080074135 | R36: 20.45058139 | S36: 18.43283582 | T36: 6 | U36: 765 | V36: 27 | W36: 18.43283582 | X36: 248350.6542 | Y36: 27 | Z36: 6 | AA36: 765 | AB36: 27 | AC36: 18.43283582 | AD36: 248350.6542
A37: 00060998 | B37: 0006 | C37: 0998 | D37: 28 | E37: 6 | G37: 998 | I37: 0 | J37: 0 | K37: 0 | L37: =IF(K39>0, K37/K39, 0) -> 0 | N37: =ROUND(M39*L37,0) -> 0 | O37: 0 | P37: =N37-O37 -> 0 | Q37: 0 | R37: 0 | S37: 0 | T37: 6 | U37: 998 | V37: 28 | W37: 0 | X37: 0 | Y37: 28 | Z37: 6 | AA37: 998 | AB37: 28 | AC37: 0 | AD37: 0
A38: 00060998 | B38: 0006 | C38: 0998 | D38: 29 | E38: 6 | G38: 998 | I38: 0 | J38: 0 | K38: 0 | L38: =IF(K39>0, K38/K39, 0) -> 0 | N38: =ROUND(M39*L38,0) -> 0 | O38: 0 | P38: =N38-O38 -> 0 | Q38: 0 | R38: 0 | S38: 0 | T38: 6 | U38: 998 | V38: 29 | W38: 0 | X38: 0 | Y38: 29 | Z38: 6 | AA38: 998 | AB38: 29 | AC38: 0 | AD38: 0
A39: 00060999 | B39: 0006 | C39: 0999 | D39: 30 | E39: 6 | F39: Alford | G39: 999 | H39: Total | I39: 243289.8046 | J39: 1 | K39: =SUM(K35:K38) -> 248350.6542 | L39: =SUM(L35:L38) -> 1 | M39: =VLOOKUP(E39,town351,24) -> 204889 | N39: =SUM(N35:N38) -> 204889 | O39: 200714 | P39: =SUM(P35:P38) -> 4175 | Q39: 2.080074135 | R39: 20.45058139 | S39: 18.43283582 | T39: 6 | U39: 999 | V39: 30 | W39: 18.43283582 | X39: 248350.6542 | Y39: 30 | Z39: 6 | AA39: 999 | AB39: 30 | AC39: 18.43283582 | AD39: 248350.6542
A40: 00070007 | B40: 0007 | C40: 0007 | D40: 31 | E40: 7 | F40: Amesbury | G40: 7 | H40: Amesbury | I40: 22473928.55 | J40: 0.9198310235 | K40: =X40 -> 23505262.73 | L40: =IF(K44>0, K40/K44, 0) -> 0.9127043153 | N40: =ROUND(M44*L40,0) -> 17438478 | O40: 16512866 | P40: =N40-O40 -> 925612 | Q40: 5.605398845 | R40: 1930 | S40: 1878 | T40: 7 | U40: 7 | V40: 31 | W40: 1878 | X40: 23505262.73 | Y40: 31 | Z40: 7 | AA40: 7 | AB40: 31 | AC40: 1878 | AD40: 23505262.73
A41: 00070885 | B41: 0007 | C41: 0885 | D41: 32 | E41: 7 | F41: Amesbury | G41: 885 | H41: Whittier | I41: 1958742.207 | J41: 0.08016897647 | K41: 2248162.925 | L41: =IF(K44>0, K41/K44, 0) -> 0.08729568468 | N41: =ROUND(M44*L41,0) -> 1667905 | O41: 1439199 | P41: =N41-O41 -> 228706 | Q41: 15.89120059 | R41: 106 | S41: 115 | T41: 7 | U41: 885 | V41: 32 | W41: 115 | X41: 2248162.925 | Y41: 32 | Z41: 7 | AA41: 885 | AB41: 32 | AC41: 115 | AD41: 2248162.925
A42: 00070998 | B42: 0007 | C42: 0998 | D42: 33 | E42: 7 | G42: 998 | I42: 0 | J42: 0 | K42: 0 | L42: =IF(K44>0, K42/K44, 0) -> 0 | N42: =ROUND(M44*L42,0) -> 0 | O42: 0 | P42: =N42-O42 -> 0 | Q42: 0 | R42: 0 | S42: 0 | T42: 7 | U42: 998 | V42: 33 | W42: 0 | X42: 0 | Y42: 33 | Z42: 7 | AA42: 998 | AB42: 33 | AC42: 0 | AD42: 0
A43: 00070998 | B43: 0007 | C43: 0998 | D43: 34 | E43: 7 | G43: 998 | I43: 0 | J43: 0 | K43: 0 | L43: =IF(K44>0, K43/K44, 0) -> 0 | N43: =ROUND(M44*L43,0) -> 0 | O43: 0 | P43: =N43-O43 -> 0 | Q43: 0 | R43: 0 | S43: 0 | T43: 7 | U43: 998 | V43: 34 | W43: 0 | X43: 0 | Y43: 34 | Z43: 7 | AA43: 998 | AB43: 34 | AC43: 0 | AD43: 0
A44: 00070999 | B44: 0007 | C44: 0999 | D44: 35 | E44: 7 | F44: Amesbury | G44: 999 | H44: Total | I44: 24432670.76 | J44: 1 | K44: =SUM(K40:K43) -> 25753425.66 | L44: =SUM(L40:L43) -> 1 | M44: =VLOOKUP(E44,town351,24) -> 19106383 | N44: =SUM(N40:N43) -> 19106383 | O44: 17952065 | P44: =SUM(P40:P43) -> 1154318 | Q44: 6.430001228 | R44: 2036 | S44: 1993 | T44: 7 | U44: 999 | V44: 35 | W44: 1993 | X44: 25753425.66 | Y44: 35 | Z44: 7 | AA44: 999 | AB44: 35 | AC44: 1993 | AD44: 25753425.66
A45: 00080008 | B45: 0008 | C45: 0008 | D45: 36 | E45: 8 | F45: Amherst | G45: 8 | H45: Amherst | I45: 12765297.7 | J45: 0.4856332443 | K45: =X45 -> 13429756.49 | L45: =IF(K49>0, K45/K49, 0) -> 0.4916067962 | N45: =ROUND(M49*L45,0) -> 10461831 | O45: 9889673 | P45: =N45-O45 -> 572158 | Q45: 5.785408678 | R45: 1045 | S45: 1065 | T45: 8 | U45: 8 | V45: 36 | W45: 1065 | X45: 13429756.49 | Y45: 36 | Z45: 8 | AA45: 8 | AB45: 36 | AC45: 1065 | AD45: 13429756.49
A46: 00080605 | B46: 0008 | C46: 0605 | D46: 37 | E46: 8 | F46: Amherst | G46: 605 | H46: Amherst Pelham | I46: 13520583.36 | J46: 0.5143667557 | K46: 13888329.01 | L46: =IF(K49>0, K46/K49, 0) -> 0.5083932038 | N46: =ROUND(M49*L46,0) -> 10819061 | O46: 10474817 | P46: =N46-O46 -> 344244 | Q46: 3.286396316 | R46: 1078.811136 | S46: 1037 | T46: 8 | U46: 605 | V46: 37 | W46: 1037 | X46: 13888329.01 | Y46: 37 | Z46: 8 | AA46: 605 | AB46: 37 | AC46: 1037 | AD46: 13888329.01
A47: 00080998 | B47: 0008 | C47: 0998 | D47: 38 | E47: 8 | G47: 998 | I47: 0 | J47: 0 | K47: 0 | L47: =IF(K49>0, K47/K49, 0) -> 0 | N47: =ROUND(M49*L47,0) -> 0 | O47: 0 | P47: =N47-O47 -> 0 | Q47: 0 | R47: 0 | S47: 0 | T47: 8 | U47: 998 | V47: 38 | W47: 0 | X47: 0 | Y47: 38 | Z47: 8 | AA47: 998 | AB47: 38 | AC47: 0 | AD47: 0
A48: 00080998 | B48: 0008 | C48: 0998 | D48: 39 | E48: 8 | G48: 998 | I48: 0 | J48: 0 | K48: 0 | L48: =IF(K49>0, K48/K49, 0) -> 0 | N48: =ROUND(M49*L48,0) -> 0 | O48: 0 | P48: =N48-O48 -> 0 | Q48: 0 | R48: 0 | S48: 0 | T48: 8 | U48: 998 | V48: 39 | W48: 0 | X48: 0 | Y48: 39 | Z48: 8 | AA48: 998 | AB48: 39 | AC48: 0 | AD48: 0
A49: 00080999 | B49: 0008 | C49: 0999 | D49: 40 | E49: 8 | F49: Amherst | G49: 999 | H49: Total | I49: 26285881.06 | J49: 1 | K49: =SUM(K45:K48) -> 27318085.5 | L49: =SUM(L45:L48) -> 1 | M49: =VLOOKUP(E49,town351,24) -> 21280892 | N49: =SUM(N45:N48) -> 21280892 | O49: 20364490 | P49: =SUM(P45:P48) -> 916402 | Q49: 4.499999754 | R49: 2123.811136 | S49: 2102 | T49: 8 | U49: 999 | V49: 40 | W49: 2102 | X49: 27318085.5 | Y49: 40 | Z49: 8 | AA49: 999 | AB49: 40 | AC49: 2102 | AD49: 27318085.5
A50: 00090009 | B50: 0009 | C50: 0009 | D50: 41 | E50: 9 | F50: Andover | G50: 9 | H50: Andover | I50: 64739542.48 | J50: 0.9847432263 | K50: =X50 -> 67357496.13 | L50: =IF(K54>0, K50/K54, 0) -> 0.9822143534 | N50: =ROUND(M54*L50,0) -> 55569934 | O50: 53410123 | P50: =N50-O50 -> 2159811 | Q50: 4.043823303 | R50: 5628 | S50: 5500 | T50: 9 | U50: 9 | V50: 41 | W50: 5500 | X50: 67357496.13 | Y50: 41 | Z50: 9 | AA50: 9 | AB50: 41 | AC50: 5500 | AD50: 67357496.13
A51: 00090823 | B51: 0009 | C51: 0823 | D51: 42 | E51: 9 | F51: Andover | G51: 823 | H51: Greater Lawrence | I51: 1003019.392 | J51: 0.01525677375 | K51: 1219689.593 | L51: =IF(K54>0, K51/K54, 0) -> 0.01778564664 | N51: =ROUND(M54*L51,0) -> 1006244 | O51: 827491 | P51: =N51-O51 -> 178753 | Q51: 21.60180594 | R51: 46.00000001 | S51: 52 | T51: 9 | U51: 823 | V51: 42 | W51: 52 | X51: 1219689.593 | Y51: 42 | Z51: 9 | AA51: 823 | AB51: 42 | AC51: 52 | AD51: 1219689.593
A52: 00090998 | B52: 0009 | C52: 0998 | D52: 43 | E52: 9 | G52: 998 | I52: 0 | J52: 0 | K52: 0 | L52: =IF(K54>0, K52/K54, 0) -> 0 | N52: =ROUND(M54*L52,0) -> 0 | O52: 0 | P52: =N52-O52 -> 0 | Q52: 0 | R52: 0 | S52: 0 | T52: 9 | U52: 998 | V52: 43 | W52: 0 | X52: 0 | Y52: 43 | Z52: 9 | AA52: 998 | AB52: 43 | AC52: 0 | AD52: 0
A53: 00090998 | B53: 0009 | C53: 0998 | D53: 44 | E53: 9 | G53: 998 | I53: 0 | J53: 0 | K53: 0 | L53: =IF(K54>0, K53/K54, 0) -> 0 | N53: =ROUND(M54*L53,0) -> 0 | O53: 0 | P53: =N53-O53 -> 0 | Q53: 0 | R53: 0 | S53: 0 | T53: 9 | U53: 998 | V53: 44 | W53: 0 | X53: 0 | Y53: 44 | Z53: 9 | AA53: 998 | AB53: 44 | AC53: 0 | AD53: 0
A54: 00090999 | B54: 0009 | C54: 0999 | D54: 45 | E54: 9 | F54: Andover | G54: 999 | H54: Total | I54: 65742561.87 | J54: 1 | K54: =SUM(K50:K53) -> 68577185.72 | L54: =SUM(L50:L53) -> 1 | M54: =VLOOKUP(E54,town351,24) -> 56576178 | N54: =SUM(N50:N53) -> 56576178 | O54: 54237614 | P54: =SUM(P50:P53) -> 2338564 | Q54: 4.31170147 | R54: 5674 | S54: 5552 | T54: 9 | U54: 999 | V54: 45 | W54: 5552 | X54: 68577185.72 | Y54: 45 | Z54: 9 | AA54: 999 | AB54: 45 | AC54: 5552 | AD54: 68577185.72
A55: 00100010 | B55: 0010 | C55: 0010 | D55: 46 | E55: 10 | F55: Arlington | G55: 10 | H55: Arlington | I55: 64412505.94 | J55: 0.9483858505 | K55: =X55 -> 69496899.57 | L55: =IF(K59>0, K55/K59, 0) -> 0.9464228844 | N55: =ROUND(M59*L55,0) -> 53603535 | O55: 51220285 | P55: =N55-O55 -> 2383250 | Q55: 4.652941701 | R55: 5836 | S55: 5910 | T55: 10 | U55: 10 | V55: 46 | W55: 5910 | X55: 69496899.57 | Y55: 46 | Z55: 10 | AA55: 10 | AB55: 46 | AC55: 5910 | AD55: 69496899.57
A56: 00100830 | B56: 0010 | C56: 0830 | D56: 47 | E56: 10 | F56: Arlington | G56: 830 | H56: Minuteman | I56: 3505531.753 | J56: 0.05161414953 | K56: 3934228.009 | L56: =IF(K59>0, K56/K59, 0) -> 0.05357711557 | N56: =ROUND(M59*L56,0) -> 3034503 | O56: 2787570 | P56: =N56-O56 -> 246933 | Q56: 8.858360508 | R56: 174 | S56: 199.3618182 | T56: 10 | U56: 830 | V56: 47 | W56: 199.3618182 | X56: 3934228.009 | Y56: 47 | Z56: 10 | AA56: 830 | AB56: 47 | AC56: 199.3618182 | AD56: 3934228.009
A57: 00100998 | B57: 0010 | C57: 0998 | D57: 48 | E57: 10 | G57: 998 | I57: 0 | J57: 0 | K57: 0 | L57: =IF(K59>0, K57/K59, 0) -> 0 | N57: =ROUND(M59*L57,0) -> 0 | O57: 0 | P57: =N57-O57 -> 0 | Q57: 0 | R57: 0 | S57: 0 | T57: 10 | U57: 998 | V57: 48 | W57: 0 | X57: 0 | Y57: 48 | Z57: 10 | AA57: 998 | AB57: 48 | AC57: 0 | AD57: 0
A58: 00100998 | B58: 0010 | C58: 0998 | D58: 49 | E58: 10 | G58: 998 | I58: 0 | J58: 0 | K58: 0 | L58: =IF(K59>0, K58/K59, 0) -> 0 | N58: =ROUND(M59*L58,0) -> 0 | O58: 0 | P58: =N58-O58 -> 0 | Q58: 0 | R58: 0 | S58: 0 | T58: 10 | U58: 998 | V58: 49 | W58: 0 | X58: 0 | Y58: 49 | Z58: 10 | AA58: 998 | AB58: 49 | AC58: 0 | AD58: 0
A59: 00100999 | B59: 0010 | C59: 0999 | D59: 50 | E59: 10 | F59: Arlington | G59: 999 | H59: Total | I59: 67918037.69 | J59: 1 | K59: =SUM(K55:K58) -> 73431127.58 | L59: =SUM(L55:L58) -> 1 | M59: =VLOOKUP(E59,town351,24) -> 56638038 | N59: =SUM(N55:N58) -> 56638038 | O59: 54007855 | P59: =SUM(P55:P58) -> 2630183 | Q59: 4.870000855 | R59: 6010 | S59: 6109.361818 | T59: 10 | U59: 999 | V59: 50 | W59: 6109.361818 | X59: 73431127.58 | Y59: 50 | Z59: 10 | AA59: 999 | AB59: 50 | AC59: 6109.361818 | AD59: 73431127.58
A60: 00110011 | B60: 0011 | C60: 0011 | D60: 51 | E60: 11 | F60: Ashburnham | G60: 11 | H60: Ashburnham | I60: 0 | J60: 0 | K60: =X60 -> 0 | L60: =IF(K64>0, K60/K64, 0) -> 0 | N60: =ROUND(M64*L60,0) -> 0 | O60: 0 | P60: =N60-O60 -> 0 | Q60: 0 | R60: 0 | S60: 0 | T60: 11 | U60: 11 | V60: 51 | W60: 0 | X60: 0 | Y60: 51 | Z60: 11 | AA60: 11 | AB60: 51 | AC60: 0 | AD60: 0
A61: 00110610 | B61: 0011 | C61: 0610 | D61: 52 | E61: 11 | F61: Ashburnham | G61: 610 | H61: Ashburnham Westminster | I61: 11231931.15 | J61: 0.9005322139 | K61: 12545194.17 | L61: =IF(K64>0, K61/K64, 0) -> 0.9076283984 | N61: =ROUND(M64*L61,0) -> 5386483 | O61: 5107875 | P61: =N61-O61 -> 278608 | Q61: 5.454479603 | R61: 1003.110505 | S61: 1042.153846 | T61: 11 | U61: 610 | V61: 52 | W61: 1042.153846 | X61: 12545194.17 | Y61: 52 | Z61: 11 | AA61: 610 | AB61: 52 | AC61: 1042.153846 | AD61: 12545194.17
A62: 00110832 | B62: 0011 | C62: 0832 | D62: 53 | E62: 11 | F62: Ashburnham | G62: 832 | H62: Montachusett | I62: 1240616.724 | J62: 0.09946778613 | K62: 1276755.641 | L62: =IF(K64>0, K62/K64, 0) -> 0.09237160158 | N62: =ROUND(M64*L62,0) -> 548196 | O62: 564187 | P62: =N62-O62 -> -15991 | Q62: -2.834343932 | R62: 69.99999999 | S62: 67.0457026 | T62: 11 | U62: 832 | V62: 53 | W62: 67.0457026 | X62: 1276755.641 | Y62: 53 | Z62: 11 | AA62: 832 | AB62: 53 | AC62: 67.0457026 | AD62: 1276755.641
A63: 00110998 | B63: 0011 | C63: 0998 | D63: 54 | E63: 11 | G63: 998 | I63: 0 | J63: 0 | K63: 0 | L63: =IF(K64>0, K63/K64, 0) -> 0 | N63: =ROUND(M64*L63,0) -> 0 | O63: 0 | P63: =N63-O63 -> 0 | Q63: 0 | R63: 0 | S63: 0 | T63: 11 | U63: 998 | V63: 54 | W63: 0 | X63: 0 | Y63: 54 | Z63: 11 | AA63: 998 | AB63: 54 | AC63: 0 | AD63: 0
A64: 00110999 | B64: 0011 | C64: 0999 | D64: 55 | E64: 11 | F64: Ashburnham | G64: 999 | H64: Total | I64: 12472547.87 | J64: 1 | K64: =SUM(K60:K63) -> 13821949.81 | L64: =SUM(L60:L63) -> 1 | M64: =VLOOKUP(E64,town351,24) -> 5934679 | N64: =SUM(N60:N63) -> 5934679 | O64: 5672062 | P64: =SUM(P60:P63) -> 262617 | Q64: 4.630009333 | R64: 1073.110505 | S64: 1109.199549 | T64: 11 | U64: 999 | V64: 55 | W64: 1109.199549 | X64: 13821949.81 | Y64: 55 | Z64: 11 | AA64: 999 | AB64: 55 | AC64: 1109.199549 | AD64: 13821949.81
A65: 00120012 | B65: 0012 | C65: 0012 | D65: 56 | E65: 12 | F65: Ashby | G65: 12 | H65: Ashby | I65: 0 | J65: 0 | K65: =X65 -> 0 | L65: =IF(K69>0, K65/K69, 0) -> 0 | N65: =ROUND(M69*L65,0) -> 0 | O65: 0 | P65: =N65-O65 -> 0 | Q65: 0 | R65: 0 | S65: 0 | T65: 12 | U65: 12 | V65: 56 | W65: 0 | X65: 0 | Y65: 56 | Z65: 12 | AA65: 12 | AB65: 56 | AC65: 0 | AD65: 0
A66: 00120735 | B66: 0012 | C66: 0735 | D66: 57 | E66: 12 | F66: Ashby | G66: 735 | H66: North Middlesex | I66: 3906150.518 | J66: 0.8562542307 | K66: 4822549.182 | L66: =IF(K69>0, K66/K69, 0) -> 0.8815627139 | N66: =ROUND(M69*L66,0) -> 2511041 | O66: 2313778 | P66: =N66-O66 -> 197263 | Q66: 8.525580241 | R66: 349.0162899 | S66: 393.1275773 | T66: 12 | U66: 735 | V66: 57 | W66: 393.1275773 | X66: 4822549.182 | Y66: 57 | Z66: 12 | AA66: 735 | AB66: 57 | AC66: 393.1275773 | AD66: 4822549.182
A67: 00120832 | B67: 0012 | C67: 0832 | D67: 58 | E67: 12 | F67: Ashby | G67: 832 | H67: Montachusett | I67: 655754.5541 | J67: 0.1437457693 | K67: 647905.8476 | L67: =IF(K69>0, K67/K69, 0) -> 0.1184372861 | N67: =ROUND(M69*L67,0) -> 337357 | O67: 388431 | P67: =N67-O67 -> -51074 | Q67: -13.14879605 | R67: 37 | S67: 34.02319235 | T67: 12 | U67: 832 | V67: 58 | W67: 34.02319235 | X67: 647905.8476 | Y67: 58 | Z67: 12 | AA67: 832 | AB67: 58 | AC67: 34.02319235 | AD67: 647905.8476
A68: 00120998 | B68: 0012 | C68: 0998 | D68: 59 | E68: 12 | G68: 998 | I68: 0 | J68: 0 | K68: 0 | L68: =IF(K69>0, K68/K69, 0) -> 0 | N68: =ROUND(M69*L68,0) -> 0 | O68: 0 | P68: =N68-O68 -> 0 | Q68: 0 | R68: 0 | S68: 0 | T68: 12 | U68: 998 | V68: 59 | W68: 0 | X68: 0 | Y68: 59 | Z68: 12 | AA68: 998 | AB68: 59 | AC68: 0 | AD68: 0
A69: 00120999 | B69: 0012 | C69: 0999 | D69: 60 | E69: 12 | F69: Ashby | G69: 999 | H69: Total | I69: 4561905.072 | J69: 1 | K69: =SUM(K65:K68) -> 5470455.03 | L69: =SUM(L65:L68) -> 1 | M69: =VLOOKUP(E69,town351,24) -> 2848398 | N69: =SUM(N65:N68) -> 2848398 | O69: 2702209 | P69: =SUM(P65:P68) -> 146189 | Q69: 5.409981241 | R69: 386.0162899 | S69: 427.1507697 | T69: 12 | U69: 999 | V69: 60 | W69: 427.1507697 | X69: 5470455.03 | Y69: 60 | Z69: 12 | AA69: 999 | AB69: 60 | AC69: 427.1507697 | AD69: 5470455.03
A70: 00130013 | B70: 0013 | C70: 0013 | D70: 61 | E70: 13 | F70: Ashfield | G70: 13 | H70: Ashfield | I70: 134575.02 | J70: 0.07660823161 | K70: =X70 -> 141279.39 | L70: =IF(K74>0, K70/K74, 0) -> 0.07340423787 | N70: =ROUND(M74*L70,0) -> 110785 | O70: 111024 | P70: =N70-O70 -> -239 | Q70: -0.2152687707 | R70: 9 | S70: 9 | T70: 13 | U70: 13 | V70: 61 | W70: 9 | X70: 141279.39 | Y70: 61 | Z70: 13 | AA70: 13 | AB70: 61 | AC70: 9 | AD70: 141279.39
A71: 00130717 | B71: 0013 | C71: 0717 | D71: 62 | E71: 13 | F71: Ashfield | G71: 717 | H71: Mohawk Trail | I71: 1622090.252 | J71: 0.9233917684 | K71: 1783396.815 | L71: =IF(K74>0, K71/K74, 0) -> 0.9265957621 | N71: =ROUND(M74*L71,0) -> 1398462 | O71: 1338225 | P71: =N71-O71 -> 60237 | Q71: 4.501260999 | R71: 136.8085612 | S71: 135.2625438 | T71: 13 | U71: 717 | V71: 62 | W71: 135.2625438 | X71: 1783396.815 | Y71: 62 | Z71: 13 | AA71: 717 | AB71: 62 | AC71: 135.2625438 | AD71: 1783396.815
A72: 00130998 | B72: 0013 | C72: 0998 | D72: 63 | E72: 13 | G72: 998 | I72: 0 | J72: 0 | K72: 0 | L72: =IF(K74>0, K72/K74, 0) -> 0 | N72: =ROUND(M74*L72,0) -> 0 | O72: 0 | P72: =N72-O72 -> 0 | Q72: 0 | R72: 0 | S72: 0 | T72: 13 | U72: 998 | V72: 63 | W72: 0 | X72: 0 | Y72: 63 | Z72: 13 | AA72: 998 | AB72: 63 | AC72: 0 | AD72: 0
A73: 00130998 | B73: 0013 | C73: 0998 | D73: 64 | E73: 13 | G73: 998 | I73: 0 | J73: 0 | K73: 0 | L73: =IF(K74>0, K73/K74, 0) -> 0 | N73: =ROUND(M74*L73,0) -> 0 | O73: 0 | P73: =N73-O73 -> 0 | Q73: 0 | R73: 0 | S73: 0 | T73: 13 | U73: 998 | V73: 64 | W73: 0 | X73: 0 | Y73: 64 | Z73: 13 | AA73: 998 | AB73: 64 | AC73: 0 | AD73: 0
A74: =B74&C74 -> 00130999 | B74: 0013 | C74: 0999 | D74: 65 | E74: 13 | F74: Ashfield | G74: 999 | H74: Total | I74: 1756665.272 | J74: 1 | K74: =SUM(K70:K73) -> 1924676.205 | L74: =SUM(L70:L73) -> 1 | M74: =VLOOKUP(E74,town351,24) -> 1509247 | N74: =SUM(N70:N73) -> 1509247 | O74: 1449249 | P74: =SUM(P70:P73) -> 59998 | Q74: 4.139937305 | R74: 145.8085612 | S74: 144.2625438 | T74: =VLOOKUP($D74, foundoptions, VLOOKUP($T$6, foundoptcell, 2, FALSE), FALSE) -> 13 | U74: =VLOOKUP($D74, foundoptions, VLOOKUP($T$6, foundoptcell, 2, FALSE)+1, FALSE) -> 999 | V74: =VLOOKUP($D74, foundoptions, VLOOKUP($T$6, foundoptcell, 2, FALSE)+2, FALSE) -> 65 | W74: =VLOOKUP($D74, foundoptions, VLOOKUP($T$6, foundoptcell, 2, FALSE)+3, FALSE) -> 144.2625438 | X74: =VLOOKUP($D74, foundoptions, VLOOKUP($T$6, foundoptcell, 2, FALSE)+4, FALSE) -> 1924676.205 | Y74: 65 | Z74: 13 | AA74: 999 | AB74: 65 | AC74: 144.2625438 | AD74: 1924676.205
A75: 00140014 | B75: 0014 | C75: 0014 | D75: 66 | E75: 14 | F75: Ashland | G75: 14 | H75: Ashland | I75: 30147061.93 | J75: 0.9593346108 | K75: =X75 -> 33942250.53 | L75: =IF(K79>0, K75/K79, 0) -> 0.9663356112 | N75: =ROUND(M79*L75,0) -> 24208528 | O75: 22838677 | P75: =N75-O75 -> 1369851 | Q75: 5.997943751 | R75: 2694 | S75: =W75 -> 2814 | T75: 14 | U75: 14 | V75: 66 | W75: 2814 | X75: 33942250.53 | Y75: =D75 -> 66 | Z75: 14 | AA75: 14 | AB75: 66 | AC75: 2814 | AD75: 33942250.53
A76: 00140829 | B76: 0014 | C76: 0829 | D76: 67 | E76: 14 | F76: Ashland | G76: 829 | H76: South Middlesex | I76: 1277908.66 | J76: 0.04066538921 | K76: 1182451.629 | L76: =IF(K79>0, K76/K79, 0) -> 0.03366438878 | N76: =ROUND(M79*L76,0) -> 843356 | O76: 968112 | P76: =N76-O76 -> -124756 | Q76: -12.88652553 | R76: 63.07720588 | S76: 55.13002364 | T76: 14 | U76: 829 | V76: 67 | W76: 55.13002364 | X76: 1182451.629 | Y76: 67 | Z76: 14 | AA76: 829 | AB76: 67 | AC76: 55.13002364 | AD76: 1182451.629
A77: 00140998 | B77: 0014 | C77: 0998 | D77: 68 | E77: 14 | G77: 998 | I77: 0 | J77: 0 | K77: 0 | L77: =IF(K79>0, K77/K79, 0) -> 0 | N77: =ROUND(M79*L77,0) -> 0 | O77: 0 | P77: =N77-O77 -> 0 | Q77: 0 | R77: 0 | S77: 0 | T77: 14 | U77: 998 | V77: 68 | W77: 0 | X77: 0 | Y77: 68 | Z77: 14 | AA77: 998 | AB77: 68 | AC77: 0 | AD77: 0
A78: 00140998 | B78: 0014 | C78: 0998 | D78: 69 | E78: 14 | G78: 998 | I78: 0 | J78: 0 | K78: 0 | L78: =IF(K79>0, K78/K79, 0) -> 0 | N78: =ROUND(M79*L78,0) -> 0 | O78: 0 | P78: =N78-O78 -> 0 | Q78: 0 | R78: 0 | S78: 0 | T78: 14 | U78: 998 | V78: 69 | W78: 0 | X78: 0 | Y78: 69 | Z78: 14 | AA78: 998 | AB78: 69 | AC78: 0 | AD78: 0
A79: 00140999 | B79: 0014 | C79: 0999 | D79: 70 | E79: 14 | F79: Ashland | G79: 999 | H79: Total | I79: 31424970.59 | J79: 1 | K79: =SUM(K75:K78) -> 35124702.16 | L79: =SUM(L75:L78) -> 1 | M79: =VLOOKUP(E79,town351,24) -> 25051884 | N79: =SUM(N75:N78) -> 25051884 | O79: 23806789 | P79: =SUM(P75:P78) -> 1245095 | Q79: 5.229999728 | R79: 2757.077206 | S79: 2869.130024 | T79: 14 | U79: 999 | V79: 70 | W79: 2869.130024 | X79: 35124702.16 | Y79: 70 | Z79: 14 | AA79: 999 | AB79: 70 | AC79: 2869.130024 | AD79: 35124702.16
A80: 00150015 | B80: 0015 | C80: 0015 | D80: 71 | E80: 15 | F80: Athol | G80: 15 | H80: Athol | I80: 0 | J80: 0 | K80: =X80 -> 0 | L80: =IF(K84>0, K80/K84, 0) -> 0 | N80: =ROUND(M84*L80,0) -> 0 | O80: 0 | P80: =N80-O80 -> 0 | Q80: =IF(O80>0,P80*100/O80,IF(P80>0,100,0)) -> 0 | R80: 0 | S80: 0 | T80: 15 | U80: 15 | V80: 71 | W80: 0 | X80: 0 | Y80: 71 | Z80: 15 | AA80: 15 | AB80: 71 | AC80: 0 | AD80: 0
A81: 00150615 | B81: 0015 | C81: 0615 | D81: 72 | E81: 15 | F81: Athol | G81: 615 | H81: Athol Royalston | I81: 19986457.48 | J81: 0.9089228881 | K81: 23336352.35 | L81: =IF(K84>0, K81/K84, 0) -> 0.9148374252 | N81: =ROUND(M84*L81,0) -> 3516775 | O81: 3259668 | P81: =N81-O81 -> 257107 | Q81: =IF(O81>0,P81*100/O81,IF(P81>0,100,0)) -> 7.88752106 | R81: 1547.563981 | S81: 1635.389292 | T81: 15 | U81: 615 | V81: 72 | W81: 1635.389292 | X81: 23336352.35 | Y81: 72 | Z81: 15 | AA81: 615 | AB81: 72 | AC81: 1635.389292 | AD81: 23336352.35
A82: 00150832 | B82: 0015 | C82: 0832 | D82: 73 | E82: 15 | F82: Athol | G82: 832 | H82: Montachusett | I82: 2002709.855 | J82: 0.09107711192 | K82: 2172390.195 | L82: =IF(K84>0, K82/K84, 0) -> 0.08516257482 | N82: =ROUND(M84*L82,0) -> 327378 | O82: 326630 | P82: =N82-O82 -> 748 | Q82: =IF(O82>0,P82*100/O82,IF(P82>0,100,0)) -> 0.2290052965 | R82: 113 | S82: 114.0777626 | T82: 15 | U82: 832 | V82: 73 | W82: 114.0777626 | X82: 2172390.195 | Y82: 73 | Z82: 15 | AA82: 832 | AB82: 73 | AC82: 114.0777626 | AD82: 2172390.195
A83: 00150998 | B83: 0015 | C83: 0998 | D83: 74 | E83: 15 | G83: 998 | I83: 0 | J83: 0 | K83: 0 | L83: =IF(K84>0, K83/K84, 0) -> 0 | N83: =ROUND(M84*L83,0) -> 0 | O83: 0 | P83: =N83-O83 -> 0 | Q83: =IF(O83>0,P83*100/O83,IF(P83>0,100,0)) -> 0 | R83: 0 | S83: 0 | T83: 15 | U83: 998 | V83: 74 | W83: 0 | X83: 0 | Y83: 74 | Z83: 15 | AA83: 998 | AB83: 74 | AC83: 0 | AD83: 0
A84: 00150999 | B84: 0015 | C84: 0999 | D84: 75 | E84: 15 | F84: Athol | G84: 999 | H84: Total | I84: 21989167.34 | J84: 1 | K84: =SUM(K80:K83) -> 25508742.54 | L84: =SUM(L80:L83) -> 1 | M84: =VLOOKUP(E84,town351,24) -> 3844153 | N84: =SUM(N80:N83) -> 3844153 | O84: 3586298 | P84: =SUM(P80:P83) -> 257855 | Q84: =IF(O84>0,P84*100/O84,IF(P84>0,100,0)) -> 7.190004846 | R84: 1660.563981 | S84: 1749.467054 | T84: 15 | U84: 999 | V84: 75 | W84: 1749.467054 | X84: 25508742.54 | Y84: 75 | Z84: 15 | AA84: 999 | AB84: 75 | AC84: 1749.467054 | AD84: 25508742.54
A85: 00160016 | B85: 0016 | C85: 0016 | D85: 76 | E85: 16 | F85: Attleboro | G85: 16 | H85: Attleboro | I85: 80741145.67 | J85: 0.9956298699 | K85: =X85 -> 89310929.61 | L85: =IF(K89>0, K85/K89, 0) -> 0.9963903374 | N85: =ROUND(M89*L85,0) -> 41515915 | O85: 39217459 | P85: =N85-O85 -> 2298456 | Q85: 5.860797866 | R85: 6188 | S85: 6237 | T85: 16 | U85: 16 | V85: 76 | W85: 6237 | X85: 89310929.61 | Y85: 76 | Z85: 16 | AA85: 16 | AB85: 76 | AC85: 6237 | AD85: 89310929.61
A86: 00160910 | B86: 0016 | C86: 0910 | D86: 77 | E86: 16 | F86: Attleboro | G86: 910 | H86: Bristol County | I86: 354398.0775 | J86: 0.004370130109 | K86: 323550.234 | L86: =IF(K89>0, K86/K89, 0) -> 0.003609662649 | N86: =ROUND(M89*L86,0) -> 150401 | O86: 172138 | P86: =N86-O86 -> -21737 | Q86: -12.6276592 | R86: 20 | S86: 17 | T86: 16 | U86: 910 | V86: 77 | W86: 17 | X86: 323550.234 | Y86: 77 | Z86: 16 | AA86: 910 | AB86: 77 | AC86: 17 | AD86: 323550.234
A87: 00160998 | B87: 0016 | C87: 0998 | D87: 78 | E87: 16 | G87: 998 | I87: 0 | J87: 0 | K87: 0 | L87: =IF(K89>0, K87/K89, 0) -> 0 | N87: =ROUND(M89*L87,0) -> 0 | O87: 0 | P87: =N87-O87 -> 0 | Q87: 0 | R87: 0 | S87: 0 | T87: 16 | U87: 998 | V87: 78 | W87: 0 | X87: 0 | Y87: 78 | Z87: 16 | AA87: 998 | AB87: 78 | AC87: 0 | AD87: 0
A88: 00160998 | B88: 0016 | C88: 0998 | D88: 79 | E88: 16 | G88: 998 | I88: 0 | J88: 0 | K88: 0 | L88: =IF(K89>0, K88/K89, 0) -> 0 | N88: =ROUND(M89*L88,0) -> 0 | O88: 0 | P88: =N88-O88 -> 0 | Q88: 0 | R88: 0 | S88: 0 | T88: 16 | U88: 998 | V88: 79 | W88: 0 | X88: 0 | Y88: 79 | Z88: 16 | AA88: 998 | AB88: 79 | AC88: 0 | AD88: 0
A89: 00160999 | B89: 0016 | C89: 0999 | D89: 80 | E89: 16 | F89: Attleboro | G89: 999 | H89: Total | I89: 81095543.75 | J89: 1 | K89: =SUM(K85:K88) -> 89634479.84 | L89: =SUM(L85:L88) -> 1 | M89: =VLOOKUP(E89,town351,24) -> 41666316 | N89: =SUM(N85:N88) -> 41666316 | O89: 39389597 | P89: =SUM(P85:P88) -> 2276719 | Q89: 5.780000745 | R89: 6208 | S89: 6254 | T89: 16 | U89: 999 | V89: 80 | W89: 6254 | X89: 89634479.84 | Y89: 80 | Z89: 16 | AA89: 999 | AB89: 80 | AC89: 6254 | AD89: 89634479.84
A90: 00170017 | B90: 0017 | C90: 0017 | D90: 81 | E90: 17 | F90: Auburn | G90: 17 | H90: Auburn | I90: 27367440.74 | J90: 0.9393513518 | K90: =X90 -> 30252650.17 | L90: =IF(K94>0, K90/K94, 0) -> 0.9308607076 | N90: =ROUND(M94*L90,0) -> 16217482 | O90: 15568309 | P90: =N90-O90 -> 649173 | Q90: 4.1698363 | R90: 2421 | S90: 2425 | T90: 17 | U90: 17 | V90: 81 | W90: 2425 | X90: 30252650.17 | Y90: 81 | Z90: 17 | AA90: 17 | AB90: 81 | AC90: 2425 | AD90: 30252650.17
A91: 00170876 | B91: 0017 | C91: 0876 | D91: 82 | E91: 17 | F91: Auburn | G91: 876 | H91: Southern Worcester | I91: 1766962.151 | J91: 0.06064864818 | K91: 2247003.026 | L91: =IF(K94>0, K91/K94, 0) -> 0.06913929243 | N91: =ROUND(M94*L91,0) -> 1204547 | O91: 1005158 | P91: =N91-O91 -> 199389 | Q91: 19.83658291 | R91: 99 | S91: 118 | T91: 17 | U91: 876 | V91: 82 | W91: 118 | X91: 2247003.026 | Y91: 82 | Z91: 17 | AA91: 876 | AB91: 82 | AC91: 118 | AD91: 2247003.026
A92: 00170998 | B92: 0017 | C92: 0998 | D92: 83 | E92: 17 | G92: 998 | I92: 0 | J92: 0 | K92: 0 | L92: =IF(K94>0, K92/K94, 0) -> 0 | N92: =ROUND(M94*L92,0) -> 0 | O92: 0 | P92: =N92-O92 -> 0 | Q92: 0 | R92: 0 | S92: 0 | T92: 17 | U92: 998 | V92: 83 | W92: 0 | X92: 0 | Y92: 83 | Z92: 17 | AA92: 998 | AB92: 83 | AC92: 0 | AD92: 0
A93: 00170998 | B93: 0017 | C93: 0998 | D93: 84 | E93: 17 | G93: 998 | I93: 0 | J93: 0 | K93: 0 | L93: =IF(K94>0, K93/K94, 0) -> 0 | N93: =ROUND(M94*L93,0) -> 0 | O93: 0 | P93: =N93-O93 -> 0 | Q93: 0 | R93: 0 | S93: 0 | T93: 17 | U93: 998 | V93: 84 | W93: 0 | X93: 0 | Y93: 84 | Z93: 17 | AA93: 998 | AB93: 84 | AC93: 0 | AD93: 0
A94: 00170999 | B94: 0017 | C94: 0999 | D94: 85 | E94: 17 | F94: Auburn | G94: 999 | H94: Total | I94: 29134402.89 | J94: 1 | K94: =SUM(K90:K93) -> 32499653.2 | L94: =SUM(L90:L93) -> 1 | M94: =VLOOKUP(E94,town351,24) -> 17422029 | N94: =SUM(N90:N93) -> 17422029 | O94: 16573467 | P94: =SUM(P90:P93) -> 848562 | Q94: 5.120002954 | R94: 2520 | S94: 2543 | T94: 17 | U94: 999 | V94: 85 | W94: 2543 | X94: 32499653.2 | Y94: 85 | Z94: 17 | AA94: 999 | AB94: 85 | AC94: 2543 | AD94: 32499653.2
A95: 00180018 | B95: 0018 | C95: 0018 | D95: 86 | E95: 18 | F95: Avon | G95: 18 | H95: Avon | I95: 7016240.13 | J95: 0.8527820329 | K95: =X95 -> 8289241.66 | L95: =IF(K99>0, K95/K99, 0) -> 0.8825659136 | N95: =ROUND(M99*L95,0) -> 5081884 | O95: 4689958 | P95: =N95-O95 -> 391926 | Q95: 8.356705966 | R95: 560 | S95: 563 | T95: 18 | U95: 18 | V95: 86 | W95: 563 | X95: 8289241.66 | Y95: 86 | Z95: 18 | AA95: 18 | AB95: 86 | AC95: 563 | AD95: 8289241.66
A96: 00180806 | B96: 0018 | C96: 0806 | D96: 87 | E96: 18 | F96: Avon | G96: 806 | H96: Blue Hills | I96: 1118469.058 | J96: 0.1359432259 | K96: 1022255.474 | L96: =IF(K99>0, K96/K99, 0) -> 0.1088408172 | N96: =ROUND(M99*L96,0) -> 626714 | O96: 747633 | P96: =N96-O96 -> -120919 | Q96: -16.17357714 | R96: 59 | S96: 50 | T96: 18 | U96: 806 | V96: 87 | W96: 50 | X96: 1022255.474 | Y96: 87 | Z96: 18 | AA96: 806 | AB96: 87 | AC96: 50 | AD96: 1022255.474
A97: 00180915 | B97: 0018 | C97: 0915 | D97: 88 | E97: 18 | F97: Avon | G97: 915 | H97: Norfolk County | I97: 92762.61494 | J97: 0.01127474115 | K97: 80709.76238 | L97: =IF(K99>0, K97/K99, 0) -> 0.008593269214 | N97: =ROUND(M99*L97,0) -> 49481 | O97: 62007 | P97: =N97-O97 -> -12526 | Q97: -20.20094505 | R97: 4.999999999 | S97: 4.000000001 | T97: 18 | U97: 915 | V97: 88 | W97: 4.000000001 | X97: 80709.76238 | Y97: 88 | Z97: 18 | AA97: 915 | AB97: 88 | AC97: 4.000000001 | AD97: 80709.76238
A98: 00180998 | B98: 0018 | C98: 0998 | D98: 89 | E98: 18 | G98: 998 | I98: 0 | J98: 0 | K98: 0 | L98: =IF(K99>0, K98/K99, 0) -> 0 | N98: =ROUND(M99*L98,0) -> 0 | O98: 0 | P98: =N98-O98 -> 0 | Q98: 0 | R98: 0 | S98: 0 | T98: 18 | U98: 998 | V98: 89 | W98: 0 | X98: 0 | Y98: 89 | Z98: 18 | AA98: 998 | AB98: 89 | AC98: 0 | AD98: 0
A99: 00180999 | B99: 0018 | C99: 0999 | D99: 90 | E99: 18 | F99: Avon | G99: 999 | H99: Total | I99: 8227471.803 | J99: 1 | K99: =SUM(K95:K98) -> 9392206.897 | L99: =SUM(L95:L98) -> 1 | M99: =VLOOKUP(E99,town351,24) -> 5758079 | N99: =SUM(N95:N98) -> 5758079 | O99: 5499598 | P99: =SUM(P95:P98) -> 258481 | Q99: 4.699998073 | R99: 624 | S99: 617 | T99: 18 | U99: 999 | V99: 90 | W99: 617 | X99: 9392206.897 | Y99: 90 | Z99: 18 | AA99: 999 | AB99: 90 | AC99: 617 | AD99: 9392206.897
A100: 00190019 | B100: 0019 | C100: 0019 | D100: 91 | E100: 19 | F100: Ayer | G100: 19 | H100: Ayer | I100: 0 | J100: 0 | K100: =X100 -> 0 | L100: =IF(K104>0, K100/K104, 0) -> 0 | N100: =ROUND(M104*L100,0) -> 0 | O100: 0 | P100: =N100-O100 -> 0 | Q100: 0 | R100: 0 | S100: 0 | T100: 19 | U100: 19 | V100: 91 | W100: 0 | X100: 0 | Y100: 91 | Z100: 19 | AA100: 19 | AB100: 91 | AC100: 0 | AD100: 0
A101: 00190616 | B101: 0019 | C101: 0616 | D101: 92 | E101: 19 | F101: Ayer | G101: 616 | H101: Ayer Shirley | I101: 10929926.09 | J101: 0.9125370411 | K101: 12015199.51 | L101: =IF(K104>0, K101/K104, 0) -> 0.9122241455 | N101: =ROUND(M104*L101,0) -> 8677592 | O101: 8156896 | P101: =N101-O101 -> 520696 | Q101: 6.383506667 | R101: 928.6067961 | S101: 958.5781533 | T101: 19 | U101: 616 | V101: 92 | W101: 958.5781533 | X101: 12015199.51 | Y101: 92 | Z101: 19 | AA101: 616 | AB101: 92 | AC101: 958.5781533 | AD101: 12015199.51
A102: 00190852 | B102: 0019 | C102: 0852 | D102: 93 | E102: 19 | F102: Ayer | G102: 852 | H102: Nashoba Valley | I102: 1047588.901 | J102: 0.08746295887 | K102: 1156124.193 | L102: =IF(K104>0, K102/K104, 0) -> 0.08777585446 | N102: =ROUND(M104*L102,0) -> 834974 | O102: 781805 | P102: =N102-O102 -> 53169 | Q102: 6.800800711 | R102: 59 | S102: 61 | T102: 19 | U102: 852 | V102: 93 | W102: 61 | X102: 1156124.193 | Y102: 93 | Z102: 19 | AA102: 852 | AB102: 93 | AC102: 61 | AD102: 1156124.193
A103: 00190998 | B103: 0019 | C103: 0998 | D103: 94 | E103: 19 | G103: 998 | I103: 0 | J103: 0 | K103: 0 | L103: =IF(K104>0, K103/K104, 0) -> 0 | N103: =ROUND(M104*L103,0) -> 0 | O103: 0 | P103: =N103-O103 -> 0 | Q103: 0 | R103: 0 | S103: 0 | T103: 19 | U103: 998 | V103: 94 | W103: 0 | X103: 0 | Y103: 94 | Z103: 19 | AA103: 998 | AB103: 94 | AC103: 0 | AD103: 0
A104: 00190999 | B104: 0019 | C104: 0999 | D104: 95 | E104: 19 | F104: Ayer | G104: 999 | H104: Total | I104: 11977515 | J104: 1 | K104: =SUM(K100:K103) -> 13171323.71 | L104: =SUM(L100:L103) -> 1 | M104: =VLOOKUP(E104,town351,24) -> 9512566 | N104: =SUM(N100:N103) -> 9512566 | O104: 8938701 | P104: =SUM(P100:P103) -> 573865 | Q104: 6.420004428 | R104: 987.6067961 | S104: 1019.578153 | T104: 19 | U104: 999 | V104: 95 | W104: 1019.578153 | X104: 13171323.71 | Y104: 95 | Z104: 19 | AA104: 999 | AB104: 95 | AC104: 1019.578153 | AD104: 13171323.71
A105: 00200020 | B105: 0020 | C105: 0020 | D105: 96 | E105: 20 | F105: Barnstable | G105: 20 | H105: Barnstable | I105: 65238260.34 | J105: 0.953234973 | K105: =X105 -> 75594779.84 | L105: =IF(K109>0, K105/K109, 0) -> 0.9519605426 | N105: =ROUND(M109*L105,0) -> 56888584 | O105: 53821564 | P105: =N105-O105 -> 3067020 | Q105: 5.69849661 | R105: 5147 | S105: 5193 | T105: 20 | U105: 20 | V105: 96 | W105: 5193 | X105: 75594779.84 | Y105: 96 | Z105: 20 | AA105: 20 | AB105: 96 | AC105: 5193 | AD105: 75594779.84
A106: 00200815 | B106: 0020 | C106: 0815 | D106: 97 | E106: 20 | F106: Barnstable | G106: 815 | H106: Cape Cod | I106: 3200542.459 | J106: 0.04676502698 | K106: 3814792.779 | L106: =IF(K109>0, K106/K109, 0) -> 0.04803945738 | N106: =ROUND(M109*L106,0) -> 2870809 | O106: 2640448 | P106: =N106-O106 -> 230361 | Q106: 8.724314965 | R106: 170 | S106: 186.2835366 | T106: 20 | U106: 815 | V106: 97 | W106: 186.2835366 | X106: 3814792.779 | Y106: 97 | Z106: 20 | AA106: 815 | AB106: 97 | AC106: 186.2835366 | AD106: 3814792.779
A107: 00200998 | B107: 0020 | C107: 0998 | D107: 98 | E107: 20 | G107: 998 | I107: 0 | J107: 0 | K107: 0 | L107: =IF(K109>0, K107/K109, 0) -> 0 | N107: =ROUND(M109*L107,0) -> 0 | O107: 0 | P107: =N107-O107 -> 0 | Q107: 0 | R107: 0 | S107: 0 | T107: 20 | U107: 998 | V107: 98 | W107: 0 | X107: 0 | Y107: 98 | Z107: 20 | AA107: 998 | AB107: 98 | AC107: 0 | AD107: 0
A108: 00200998 | B108: 0020 | C108: 0998 | D108: 99 | E108: 20 | G108: 998 | I108: 0 | J108: 0 | K108: 0 | L108: =IF(K109>0, K108/K109, 0) -> 0 | N108: =ROUND(M109*L108,0) -> 0 | O108: 0 | P108: =N108-O108 -> 0 | Q108: 0 | R108: 0 | S108: 0 | T108: 20 | U108: 998 | V108: 99 | W108: 0 | X108: 0 | Y108: 99 | Z108: 20 | AA108: 998 | AB108: 99 | AC108: 0 | AD108: 0
A109: 00200999 | B109: 0020 | C109: 0999 | D109: 100 | E109: 20 | F109: Barnstable | G109: 999 | H109: Total | I109: 68438802.8 | J109: 1 | K109: =SUM(K105:K108) -> 79409572.62 | L109: =SUM(L105:L108) -> 1 | M109: =VLOOKUP(E109,town351,24) -> 59759393 | N109: =SUM(N105:N108) -> 59759393 | O109: 56462012 | P109: =SUM(P105:P108) -> 3297381 | Q109: 5.839999113 | R109: 5317 | S109: 5379.283537 | T109: 20 | U109: 999 | V109: 100 | W109: 5379.283537 | X109: 79409572.62 | Y109: 100 | Z109: 20 | AA109: 999 | AB109: 100 | AC109: 5379.283537 | AD109: 79409572.62
A110: 00210021 | B110: 0021 | C110: 0021 | D110: 101 | E110: 21 | F110: Barre | G110: 21 | H110: Barre | I110: 0 | J110: 0 | K110: =X110 -> 0 | L110: =IF(K114>0, K110/K114, 0) -> 0 | N110: =ROUND(M114*L110,0) -> 0 | O110: 0 | P110: =N110-O110 -> 0 | Q110: 0 | R110: 0 | S110: 0 | T110: 21 | U110: 21 | V110: 101 | W110: 0 | X110: 0 | Y110: 101 | Z110: 21 | AA110: 21 | AB110: 101 | AC110: 0 | AD110: 0
A111: 00210753 | B111: 0021 | C111: 0753 | D111: 102 | E111: 21 | F111: Barre | G111: 753 | H111: Quabbin | I111: 8480820.1 | J111: 0.9088350219 | K111: 9863169.767 | L111: =IF(K114>0, K111/K114, 0) -> 0.9119078087 | N111: =ROUND(M114*L111,0) -> 3621535 | O111: 3434842 | P111: =N111-O111 -> 186693 | Q111: 5.435271841 | R111: 719.1044776 | S111: 757.4253215 | T111: 21 | U111: 753 | V111: 102 | W111: 757.4253215 | X111: 9863169.767 | Y111: 102 | Z111: 21 | AA111: 753 | AB111: 102 | AC111: 757.4253215 | AD111: 9863169.767
A112: 00210832 | B112: 0021 | C112: 0832 | D112: 103 | E112: 21 | F112: Barre | G112: 832 | H112: Montachusett | I112: 850708.6109 | J112: 0.09116497813 | K112: 952802.7174 | L112: =IF(K114>0, K112/K114, 0) -> 0.08809219132 | N112: =ROUND(M114*L112,0) -> 349848 | O112: 344548 | P112: =N112-O112 -> 5300 | Q112: 1.538247211 | R112: 48.00000001 | S112: 50.03410642 | T112: 21 | U112: 832 | V112: 103 | W112: 50.03410642 | X112: 952802.7174 | Y112: 103 | Z112: 21 | AA112: 832 | AB112: 103 | AC112: 50.03410642 | AD112: 952802.7174
A113: 00210998 | B113: 0021 | C113: 0998 | D113: 104 | E113: 21 | G113: 998 | I113: 0 | J113: 0 | K113: 0 | L113: =IF(K114>0, K113/K114, 0) -> 0 | N113: =ROUND(M114*L113,0) -> 0 | O113: 0 | P113: =N113-O113 -> 0 | Q113: 0 | R113: 0 | S113: 0 | T113: 21 | U113: 998 | V113: 104 | W113: 0 | X113: 0 | Y113: 104 | Z113: 21 | AA113: 998 | AB113: 104 | AC113: 0 | AD113: 0
A114: 00210999 | B114: 0021 | C114: 0999 | D114: 105 | E114: 21 | F114: Barre | G114: 999 | H114: Total | I114: 9331528.711 | J114: 1 | K114: =SUM(K110:K113) -> 10815972.48 | L114: =SUM(L110:L113) -> 1 | M114: =VLOOKUP(E114,town351,24) -> 3971383 | N114: =SUM(N110:N113) -> 3971383 | O114: 3779390 | P114: =SUM(P110:P113) -> 191993 | Q114: 5.079999682 | R114: 767.1044776 | S114: 807.4594279 | T114: 21 | U114: 999 | V114: 105 | W114: 807.4594279 | X114: 10815972.48 | Y114: 105 | Z114: 21 | AA114: 999 | AB114: 105 | AC114: 807.4594279 | AD114: 10815972.48
A115: 00220022 | B115: 0022 | C115: 0022 | D115: 106 | E115: 22 | F115: Becket | G115: 22 | H115: Becket | I115: 207582.36 | J115: 0.08083630255 | K115: =X115 -> 202094.16 | L115: =IF(K119>0, K115/K119, 0) -> 0.07223187621 | N115: =ROUND(M119*L115,0) -> 153855 | O115: 163858 | P115: =N115-O115 -> -10003 | Q115: -6.104676 | R115: 12 | S115: 11 | T115: 22 | U115: 22 | V115: 106 | W115: 11 | X115: 202094.16 | Y115: 106 | Z115: 22 | AA115: 22 | AB115: 106 | AC115: 11 | AD115: 202094.16
A116: 00220635 | B116: 0022 | C116: 0635 | D116: 107 | E116: 22 | F116: Becket | G116: 635 | H116: Central Berkshire | I116: 2360352.509 | J116: 0.9191636975 | K116: 2595758.68 | L116: =IF(K119>0, K116/K119, 0) -> 0.9277681238 | N116: =ROUND(M119*L116,0) -> 1976155 | O116: 1863178 | P116: =N116-O116 -> 112977 | Q116: 6.063671855 | R116: 194.4348958 | S116: 193.6588389 | T116: 22 | U116: 635 | V116: 107 | W116: 193.6588389 | X116: 2595758.68 | Y116: 107 | Z116: 22 | AA116: 635 | AB116: 107 | AC116: 193.6588389 | AD116: 2595758.68
A117: 00220998 | B117: 0022 | C117: 0998 | D117: 108 | E117: 22 | G117: 998 | I117: 0 | J117: 0 | K117: 0 | L117: =IF(K119>0, K117/K119, 0) -> 0 | N117: =ROUND(M119*L117,0) -> 0 | O117: 0 | P117: =N117-O117 -> 0 | Q117: 0 | R117: 0 | S117: 0 | T117: 22 | U117: 998 | V117: 108 | W117: 0 | X117: 0 | Y117: 108 | Z117: 22 | AA117: 998 | AB117: 108 | AC117: 0 | AD117: 0
A118: 00220998 | B118: 0022 | C118: 0998 | D118: 109 | E118: 22 | G118: 998 | I118: 0 | J118: 0 | K118: 0 | L118: =IF(K119>0, K118/K119, 0) -> 0 | N118: =ROUND(M119*L118,0) -> 0 | O118: 0 | P118: =N118-O118 -> 0 | Q118: 0 | R118: 0 | S118: 0 | T118: 22 | U118: 998 | V118: 109 | W118: 0 | X118: 0 | Y118: 109 | Z118: 22 | AA118: 998 | AB118: 109 | AC118: 0 | AD118: 0
A119: 00220999 | B119: 0022 | C119: 0999 | D119: 110 | E119: 22 | F119: Becket | G119: 999 | H119: Total | I119: 2567934.869 | J119: 1 | K119: =SUM(K115:K118) -> 2797852.84 | L119: =SUM(L115:L118) -> 1 | M119: =VLOOKUP(E119,town351,24) -> 2130010 | N119: =SUM(N115:N118) -> 2130010 | O119: 2027036 | P119: =SUM(P115:P118) -> 102974 | Q119: 5.080028179 | R119: 206.4348958 | S119: 204.6588389 | T119: 22 | U119: 999 | V119: 110 | W119: 204.6588389 | X119: 2797852.84 | Y119: 110 | Z119: 22 | AA119: 999 | AB119: 110 | AC119: 204.6588389 | AD119: 2797852.84
A120: 00230023 | B120: 0023 | C120: 0023 | D120: 111 | E120: 23 | F120: Bedford | G120: 23 | H120: Bedford | I120: 30729462.66 | J120: 0.9776756629 | K120: =X120 -> 32246555.76 | L120: =IF(K124>0, K120/K124, 0) -> 0.9790095412 | N120: =ROUND(M124*L120,0) -> 26379003 | O120: 25351806 | P120: =N120-O120 -> 1027197 | Q120: 4.051770513 | R120: 2649 | S120: 2624 | T120: 23 | U120: 23 | V120: 111 | W120: 2624 | X120: 32246555.76 | Y120: 111 | Z120: 23 | AA120: 23 | AB120: 111 | AC120: 2624 | AD120: 32246555.76
A121: 00230871 | B121: 0023 | C121: 0871 | D121: 112 | E121: 23 | F121: Bedford | G121: 871 | H121: Shawsheen Valley | I121: 701679.4101 | J121: 0.02232433707 | K121: 691382.4358 | L121: =IF(K124>0, K121/K124, 0) -> 0.02099045884 | N121: =ROUND(M124*L121,0) -> 565579 | O121: 578886 | P121: =N121-O121 -> -13307 | Q121: -2.298725483 | R121: 40.99999999 | S121: 38 | T121: 23 | U121: 871 | V121: 112 | W121: 38 | X121: 691382.4358 | Y121: 112 | Z121: 23 | AA121: 871 | AB121: 112 | AC121: 38 | AD121: 691382.4358
A122: 00230998 | B122: 0023 | C122: 0998 | D122: 113 | E122: 23 | G122: 998 | I122: 0 | J122: 0 | K122: 0 | L122: =IF(K124>0, K122/K124, 0) -> 0 | N122: =ROUND(M124*L122,0) -> 0 | O122: 0 | P122: =N122-O122 -> 0 | Q122: 0 | R122: 0 | S122: 0 | T122: 23 | U122: 998 | V122: 113 | W122: 0 | X122: 0 | Y122: 113 | Z122: 23 | AA122: 998 | AB122: 113 | AC122: 0 | AD122: 0
A123: 00230998 | B123: 0023 | C123: 0998 | D123: 114 | E123: 23 | G123: 998 | I123: 0 | J123: 0 | K123: 0 | L123: =IF(K124>0, K123/K124, 0) -> 0 | N123: =ROUND(M124*L123,0) -> 0 | O123: 0 | P123: =N123-O123 -> 0 | Q123: 0 | R123: 0 | S123: 0 | T123: 23 | U123: 998 | V123: 114 | W123: 0 | X123: 0 | Y123: 114 | Z123: 23 | AA123: 998 | AB123: 114 | AC123: 0 | AD123: 0
A124: 00230999 | B124: 0023 | C124: 0999 | D124: 115 | E124: 23 | F124: Bedford | G124: 999 | H124: Total | I124: 31431142.07 | J124: 1 | K124: =SUM(K120:K123) -> 32937938.19 | L124: =SUM(L120:L123) -> 1 | M124: =VLOOKUP(E124,town351,24) -> 26944582 | N124: =SUM(N120:N123) -> 26944582 | O124: 25930692 | P124: =SUM(P120:P123) -> 1013890 | Q124: 3.909999779 | R124: 2690 | S124: 2662 | T124: 23 | U124: 999 | V124: 115 | W124: 2662 | X124: 32937938.19 | Y124: 115 | Z124: 23 | AA124: 999 | AB124: 115 | AC124: 2662 | AD124: 32937938.19
A125: 00240024 | B125: 0024 | C125: 0024 | D125: 116 | E125: 24 | F125: Belchertown | G125: 24 | H125: Belchertown | I125: 24800115.19 | J125: 0.940269338 | K125: =X125 -> 26384198.33 | L125: =IF(K129>0, K125/K129, 0) -> 0.9282611991 | N125: =ROUND(M129*L125,0) -> 13099002 | O125: 12857028 | P125: =N125-O125 -> 241974 | Q125: 1.882036813 | R125: 2204 | S125: 2177 | T125: 24 | U125: 24 | V125: 116 | W125: 2177 | X125: 26384198.33 | Y125: 116 | Z125: 24 | AA125: 24 | AB125: 116 | AC125: 2177 | AD125: 26384198.33
A126: 00240860 | B126: 0024 | C126: 0860 | D126: 117 | E126: 24 | F126: Belchertown | G126: 860 | H126: Pathfinder | I126: 1575428.698 | J126: 0.05973066203 | K126: 2039049.735 | L126: =IF(K129>0, K126/K129, 0) -> 0.07173880094 | N126: =ROUND(M129*L126,0) -> 1012330 | O126: 816743 | P126: =N126-O126 -> 195587 | Q126: 23.94719024 | R126: 84 | S126: 103 | T126: 24 | U126: 860 | V126: 117 | W126: 103 | X126: 2039049.735 | Y126: 117 | Z126: 24 | AA126: 860 | AB126: 117 | AC126: 103 | AD126: 2039049.735
A127: 00240998 | B127: 0024 | C127: 0998 | D127: 118 | E127: 24 | G127: 998 | I127: 0 | J127: 0 | K127: 0 | L127: =IF(K129>0, K127/K129, 0) -> 0 | N127: =ROUND(M129*L127,0) -> 0 | O127: 0 | P127: =N127-O127 -> 0 | Q127: 0 | R127: 0 | S127: 0 | T127: 24 | U127: 998 | V127: 118 | W127: 0 | X127: 0 | Y127: 118 | Z127: 24 | AA127: 998 | AB127: 118 | AC127: 0 | AD127: 0
A128: 00240998 | B128: 0024 | C128: 0998 | D128: 119 | E128: 24 | G128: 998 | I128: 0 | J128: 0 | K128: 0 | L128: =IF(K129>0, K128/K129, 0) -> 0 | N128: =ROUND(M129*L128,0) -> 0 | O128: 0 | P128: =N128-O128 -> 0 | Q128: 0 | R128: 0 | S128: 0 | T128: 24 | U128: 998 | V128: 119 | W128: 0 | X128: 0 | Y128: 119 | Z128: 24 | AA128: 998 | AB128: 119 | AC128: 0 | AD128: 0
A129: 00240999 | B129: 0024 | C129: 0999 | D129: 120 | E129: 24 | F129: Belchertown | G129: 999 | H129: Total | I129: 26375543.89 | J129: 1 | K129: =SUM(K125:K128) -> 28423248.07 | L129: =SUM(L125:L128) -> 1 | M129: =VLOOKUP(E129,town351,24) -> 14111332 | N129: =SUM(N125:N128) -> 14111332 | O129: 13673771 | P129: =SUM(P125:P128) -> 437561 | Q129: 3.200002399 | R129: 2288 | S129: 2280 | T129: 24 | U129: 999 | V129: 120 | W129: 2280 | X129: 28423248.07 | Y129: 120 | Z129: 24 | AA129: 999 | AB129: 120 | AC129: 2280 | AD129: 28423248.07
A130: 00250025 | B130: 0025 | C130: 0025 | D130: 121 | E130: 25 | F130: Bellingham | G130: 25 | H130: Bellingham | I130: 24805882.76 | J130: 0.9391307279 | K130: =X130 -> 27015991.39 | L130: =IF(K134>0, K130/K134, 0) -> 0.9425162314 | N130: =ROUND(M134*L130,0) -> 18432465 | O130: 17397231 | P130: =N130-O130 -> 1035234 | Q130: 5.950567651 | R130: 2184 | S130: 2158 | T130: 25 | U130: 25 | V130: 121 | W130: 2158 | X130: 27015991.39 | Y130: 121 | Z130: 25 | AA130: 25 | AB130: 121 | AC130: 2158 | AD130: 27015991.39
A131: 00250805 | B131: 0025 | C131: 0805 | D131: 122 | E131: 25 | F131: Bellingham | G131: 805 | H131: Blackstone Valley | I131: 1181072.425 | J131: 0.04471445008 | K131: 1284502.891 | L131: =IF(K134>0, K131/K134, 0) -> 0.04481289642 | N131: =ROUND(M134*L131,0) -> 876390 | O131: 828327 | P131: =N131-O131 -> 48063 | Q131: 5.80241861 | R131: 70 | S131: 72 | T131: 25 | U131: 805 | V131: 122 | W131: 72 | X131: 1284502.891 | Y131: 122 | Z131: 25 | AA131: 805 | AB131: 122 | AC131: 72 | AD131: 1284502.891
A132: 00250915 | B132: 0025 | C132: 0915 | D132: 123 | E132: 25 | F132: Bellingham | G132: 915 | H132: Norfolk County | I132: 426708.0288 | J132: 0.01615482204 | K132: 363193.9306 | L132: =IF(K134>0, K132/K134, 0) -> 0.01267087222 | N132: =ROUND(M134*L132,0) -> 247800 | O132: 299265 | P132: =N132-O132 -> -51465 | Q132: -17.19713298 | R132: 23 | S132: 18 | T132: 25 | U132: 915 | V132: 123 | W132: 18 | X132: 363193.9306 | Y132: 123 | Z132: 25 | AA132: 915 | AB132: 123 | AC132: 18 | AD132: 363193.9306
A133: 00250998 | B133: 0025 | C133: 0998 | D133: 124 | E133: 25 | G133: 998 | I133: 0 | J133: 0 | K133: 0 | L133: =IF(K134>0, K133/K134, 0) -> 0 | N133: =ROUND(M134*L133,0) -> 0 | O133: 0 | P133: =N133-O133 -> 0 | Q133: 0 | R133: 0 | S133: 0 | T133: 25 | U133: 998 | V133: 124 | W133: 0 | X133: 0 | Y133: 124 | Z133: 25 | AA133: 998 | AB133: 124 | AC133: 0 | AD133: 0
A134: 00250999 | B134: 0025 | C134: 0999 | D134: 125 | E134: 25 | F134: Bellingham | G134: 999 | H134: Total | I134: 26413663.21 | J134: 1 | K134: =SUM(K130:K133) -> 28663688.21 | L134: =SUM(L130:L133) -> 1 | M134: =VLOOKUP(E134,town351,24) -> 19556655 | N134: =SUM(N130:N133) -> 19556655 | O134: 18524823 | P134: =SUM(P130:P133) -> 1031832 | Q134: 5.569996539 | R134: 2277 | S134: 2248 | T134: 25 | U134: 999 | V134: 125 | W134: 2248 | X134: 28663688.21 | Y134: 125 | Z134: 25 | AA134: 999 | AB134: 125 | AC134: 2248 | AD134: 28663688.21
A135: 00260026 | B135: 0026 | C135: 0026 | D135: 126 | E135: 26 | F135: Belmont | G135: 26 | H135: Belmont | I135: 50694465.25 | J135: 1 | K135: =X135 -> 53256083.38 | L135: =IF(K139>0, K135/K139, 0) -> 1 | N135: =ROUND(M139*L135,0) -> 43686648 | O135: 40824828 | P135: =N135-O135 -> 2861820 | Q135: 7.009998915 | R135: 4534 | S135: 4449 | T135: 26 | U135: 26 | V135: 126 | W135: 4449 | X135: 53256083.38 | Y135: 126 | Z135: 26 | AA135: 26 | AB135: 126 | AC135: 4449 | AD135: 53256083.38
A136: 00260830 | B136: 0026 | C136: 0830 | D136: 127 | E136: 26 | G136: 998 | I136: 0 | J136: 0 | K136: 0 | L136: =IF(K139>0, K136/K139, 0) -> 0 | N136: =ROUND(M139*L136,0) -> 0 | O136: 0 | P136: =N136-O136 -> 0 | Q136: 0 | R136: 0 | S136: 0 | T136: 26 | U136: 830 | V136: 127 | W136: 0 | X136: 0 | Y136: 127 | Z136: 26 | AA136: 830 | AB136: 127 | AC136: 0 | AD136: 0
A137: 00260998 | B137: 0026 | C137: 0998 | D137: 128 | E137: 26 | G137: 998 | I137: 0 | J137: 0 | K137: 0 | L137: =IF(K139>0, K137/K139, 0) -> 0 | N137: =ROUND(M139*L137,0) -> 0 | O137: 0 | P137: =N137-O137 -> 0 | Q137: 0 | R137: 0 | S137: 0 | T137: 26 | U137: 998 | V137: 128 | W137: 0 | X137: 0 | Y137: 128 | Z137: 26 | AA137: 998 | AB137: 128 | AC137: 0 | AD137: 0
A138: =B138&C138 -> 00260998 | B138: 0026 | C138: 0998 | D138: 129 | E138: 26 | G138: 998 | I138: 0 | J138: 0 | K138: 0 | L138: =IF(K139>0, K138/K139, 0) -> 0 | N138: =ROUND(M139*L138,0) -> 0 | O138: 0 | P138: =N138-O138 -> 0 | Q138: 0 | R138: 0 | S138: 0 | T138: =VLOOKUP($D138, foundoptions, VLOOKUP($T$6, foundoptcell, 2, FALSE), FALSE) -> 26 | U138: =VLOOKUP($D138, foundoptions, VLOOKUP($T$6, foundoptcell, 2, FALSE)+1, FALSE) -> 998 | V138: =VLOOKUP($D138, foundoptions, VLOOKUP($T$6, foundoptcell, 2, FALSE)+2, FALSE) -> 129 | W138: =VLOOKUP($D138, foundoptions, VLOOKUP($T$6, foundoptcell, 2, FALSE)+3, FALSE) -> 0 | X138: =VLOOKUP($D138, foundoptions, VLOOKUP($T$6, foundoptcell, 2, FALSE)+4, FALSE) -> 0 | Y138: 129 | Z138: 26 | AA138: 998 | AB138: 129 | AC138: 0 | AD138: 0
A139: 00260999 | B139: 0026 | C139: 0999 | D139: 130 | E139: 26 | F139: Belmont | G139: 999 | H139: Total | I139: 50694465.25 | J139: 1 | K139: =SUM(K135:K138) -> 53256083.38 | L139: =SUM(L135:L138) -> 1 | M139: =VLOOKUP(E139,town351,24) -> 43686648 | N139: =SUM(N135:N138) -> 43686648 | O139: 40824828 | P139: =SUM(P135:P138) -> 2861820 | Q139: 7.009998915 | R139: 4534 | S139: =W139 -> 4449 | T139: 26 | U139: 999 | V139: 130 | W139: 4449 | X139: 53256083.38 | Y139: =D139 -> 130 | Z139: 26 | AA139: 999 | AB139: 130 | AC139: 4449 | AD139: 53256083.38
A140: 00270027 | B140: 0027 | C140: 0027 | D140: 131 | E140: 27 | F140: Berkley | G140: 27 | H140: Berkley | I140: 7950531.78 | J140: 0.6016397336 | K140: =X140 -> 8601441.5 | L140: =IF(K144>0, K140/K144, 0) -> 0.6126300794 | N140: =ROUND(M144*L140,0) -> 4571797 | O140: 4249272 | P140: =N140-O140 -> 322525 | Q140: 7.590123673 | R140: 733 | S140: 725 | T140: 27 | U140: 27 | V140: 131 | W140: 725 | X140: 8601441.5 | Y140: 131 | Z140: 27 | AA140: 27 | AB140: 131 | AC140: 725 | AD140: 8601441.5
A141: 00270763 | B141: 0027 | C141: 0763 | D141: 132 | E141: 27 | F141: Berkley | G141: 763 | H141: Somerset Berkley | I141: 3388681.455 | J141: 0.2564313262 | K141: 3452748.819 | L141: =IF(K144>0, K141/K144, 0) -> 0.2459189873 | N141: =ROUND(M144*L141,0) -> 1835188 | O141: 1811128 | P141: =N141-O141 -> 24060 | Q141: 1.32845387 | R141: 274.5362035 | S141: 257 | T141: 27 | U141: 763 | V141: 132 | W141: 257 | X141: 3452748.819 | Y141: 132 | Z141: 27 | AA141: 763 | AB141: 132 | AC141: 257 | AD141: 3452748.819
A142: 00270810 | B142: 0027 | C142: 0810 | D142: 133 | E142: 27 | F142: Berkley | G142: 810 | H142: Bristol Plymouth | I142: 1716079.42 | J142: 0.1298606928 | K142: 1700512.198 | L142: =IF(K144>0, K142/K144, 0) -> 0.1211174805 | N142: =ROUND(M144*L142,0) -> 903848 | O142: 917182 | P142: =N142-O142 -> -13334 | Q142: -1.453800881 | R142: 95.28127313 | S142: 89.26292466 | T142: 27 | U142: 810 | V142: 133 | W142: 89.26292466 | X142: 1700512.198 | Y142: 133 | Z142: 27 | AA142: 810 | AB142: 133 | AC142: 89.26292466 | AD142: 1700512.198
A143: 00270910 | B143: 0027 | C143: 0910 | D143: 134 | E143: 27 | F143: Berkley | G143: 910 | H143: Bristol County | I143: 159479.1348 | J143: 0.01206824736 | K143: 285485.5006 | L143: =IF(K144>0, K143/K144, 0) -> 0.02033345281 | N143: =ROUND(M144*L143,0) -> 151740 | O143: 85236 | P143: =N143-O143 -> 66504 | Q143: 78.02337041 | R143: 8.999999998 | S143: 15 | T143: 27 | U143: 910 | V143: 134 | W143: 15 | X143: 285485.5006 | Y143: 134 | Z143: 27 | AA143: 910 | AB143: 134 | AC143: 15 | AD143: 285485.5006
A144: 00270999 | B144: 0027 | C144: 0999 | D144: 135 | E144: 27 | F144: Berkley | G144: 999 | H144: Total | I144: 13214771.79 | J144: 1 | K144: =SUM(K140:K143) -> 14040188.02 | L144: =SUM(L140:L143) -> 1 | M144: =VLOOKUP(E144,town351,24) -> 7462573 | N144: =SUM(N140:N143) -> 7462573 | O144: 7062818 | P144: =SUM(P140:P143) -> 399755 | Q144: =IF(O144>0,P144*100/O144,IF(P144>0,100,0)) -> 5.659992938 | R144: 1111.817477 | S144: 1086.262925 | T144: 27 | U144: 999 | V144: 135 | W144: 1086.262925 | X144: 14040188.02 | Y144: 135 | Z144: 27 | AA144: 999 | AB144: 135 | AC144: 1086.262925 | AD144: 14040188.02
A145: 00280028 | B145: 0028 | C145: 0028 | D145: 136 | E145: 28 | F145: Berlin | G145: 28 | H145: Berlin | I145: 0 | J145: 0 | K145: =X145 -> 0 | L145: =IF(K149>0, K145/K149, 0) -> 0 | N145: =ROUND(M149*L145,0) -> 0 | O145: 0 | P145: =N145-O145 -> 0 | Q145: 0 | R145: 0 | S145: 0 | T145: 28 | U145: 28 | V145: 136 | W145: 0 | X145: 0 | Y145: 136 | Z145: 28 | AA145: 28 | AB145: 136 | AC145: 0 | AD145: 0
A146: 00280620 | B146: 0028 | C146: 0620 | D146: 137 | E146: 28 | F146: Berlin | G146: 620 | H146: Berlin Boylston | I146: 3808665.766 | J146: 0.86728973 | K146: 4346852.583 | L146: =IF(K149>0, K146/K149, 0) -> 0.8496911329 | N146: =ROUND(M149*L146,0) -> 3146824 | O146: 3018513 | P146: =N146-O146 -> 128311 | Q146: 4.250801636 | R146: 347.8636826 | S146: 371.7171923 | T146: 28 | U146: 620 | V146: 137 | W146: 371.7171923 | X146: 4346852.583 | Y146: 137 | Z146: 28 | AA146: 620 | AB146: 137 | AC146: 371.7171923 | AD146: 4346852.583
A147: 00280801 | B147: 0028 | C147: 0801 | D147: 138 | E147: 28 | F147: Berlin | G147: 801 | H147: Assabet Valley | I147: 582791.4764 | J147: 0.13271027 | K147: 768950.5774 | L147: =IF(K149>0, K147/K149, 0) -> 0.1503088671 | N147: =ROUND(M149*L147,0) -> 556668 | O147: 461885 | P147: =N147-O147 -> 94783 | Q147: 20.52090888 | R147: 30 | S147: 37 | T147: 28 | U147: 801 | V147: 138 | W147: 37 | X147: 768950.5774 | Y147: 138 | Z147: 28 | AA147: 801 | AB147: 138 | AC147: 37 | AD147: 768950.5774
A148: 00280998 | B148: 0028 | C148: 0998 | D148: 139 | E148: 28 | G148: 998 | I148: 0 | J148: 0 | K148: 0 | L148: =IF(K149>0, K148/K149, 0) -> 0 | N148: =ROUND(M149*L148,0) -> 0 | O148: 0 | P148: =N148-O148 -> 0 | Q148: 0 | R148: 0 | S148: 0 | T148: 28 | U148: 998 | V148: 139 | W148: 0 | X148: 0 | Y148: 139 | Z148: 28 | AA148: 998 | AB148: 139 | AC148: 0 | AD148: 0
A149: 00280999 | B149: 0028 | C149: 0999 | D149: 140 | E149: 28 | F149: Berlin | G149: 999 | H149: Total | I149: 4391457.242 | J149: 1 | K149: =SUM(K145:K148) -> 5115803.16 | L149: =SUM(L145:L148) -> 1 | M149: =VLOOKUP(E149,town351,24) -> 3703492 | N149: =SUM(N145:N148) -> 3703492 | O149: 3480398 | P149: =SUM(P145:P148) -> 223094 | Q149: 6.410014027 | R149: 377.8636826 | S149: 408.7171923 | T149: 28 | U149: 999 | V149: 140 | W149: 408.7171923 | X149: 5115803.16 | Y149: 140 | Z149: 28 | AA149: 999 | AB149: 140 | AC149: 408.7171923 | AD149: 5115803.16
A150: 00290029 | B150: 0029 | C150: 0029 | D150: 141 | E150: 29 | F150: Bernardston | G150: 29 | H150: Bernardston | I150: 0 | J150: 0 | K150: =X150 -> 0 | L150: =IF(K154>0, K150/K154, 0) -> 0 | N150: =ROUND(M154*L150,0) -> 0 | O150: 0 | P150: =N150-O150 -> 0 | Q150: 0 | R150: 0 | S150: 0 | T150: 29 | U150: 29 | V150: 141 | W150: 0 | X150: 0 | Y150: 141 | Z150: 29 | AA150: 29 | AB150: 141 | AC150: 0 | AD150: 0
A151: 00290750 | B151: 0029 | C151: 0750 | D151: 142 | E151: 29 | F151: Bernardston | G151: 750 | H151: Pioneer | I151: 2729706.169 | J151: 0.8000487217 | K151: 2923168.882 | L151: =IF(K154>0, K151/K154, 0) -> 0.848563347 | N151: =ROUND(M154*L151,0) -> 1542305 | O151: 1396855 | P151: =N151-O151 -> 145450 | Q151: 10.41267705 | R151: 231.5016077 | S151: 227.1384137 | T151: 29 | U151: 750 | V151: 142 | W151: 227.1384137 | X151: 2923168.882 | Y151: 142 | Z151: 29 | AA151: 750 | AB151: 142 | AC151: 227.1384137 | AD151: 2923168.882
A152: 00290818 | B152: 0029 | C152: 0818 | D152: 143 | E152: 29 | F152: Bernardston | G152: 818 | H152: Franklin County | I152: 682218.7491 | J152: 0.1999512783 | K152: 521675.7395 | L152: =IF(K154>0, K152/K154, 0) -> 0.151436653 | N152: =ROUND(M154*L152,0) -> 275243 | O152: 349108 | P152: =N152-O152 -> -73865 | Q152: -21.15820892 | R152: 36 | S152: 26 | T152: 29 | U152: 818 | V152: 143 | W152: 26 | X152: 521675.7395 | Y152: 143 | Z152: 29 | AA152: 818 | AB152: 143 | AC152: 26 | AD152: 521675.7395
A153: 00290998 | B153: 0029 | C153: 0998 | D153: 144 | E153: 29 | G153: 998 | I153: 0 | J153: 0 | K153: 0 | L153: =IF(K154>0, K153/K154, 0) -> 0 | N153: =ROUND(M154*L153,0) -> 0 | O153: 0 | P153: =N153-O153 -> 0 | Q153: 0 | R153: 0 | S153: 0 | T153: 29 | U153: 998 | V153: 144 | W153: 0 | X153: 0 | Y153: 144 | Z153: 29 | AA153: 998 | AB153: 144 | AC153: 0 | AD153: 0
A154: 00290999 | B154: 0029 | C154: 0999 | D154: 145 | E154: 29 | F154: Bernardston | G154: 999 | H154: Total | I154: 3411924.919 | J154: 1 | K154: =SUM(K150:K153) -> 3444844.622 | L154: =SUM(L150:L153) -> 1 | M154: =VLOOKUP(E154,town351,24) -> 1817548 | N154: =SUM(N150:N153) -> 1817548 | O154: 1745963 | P154: =SUM(P150:P153) -> 71585 | Q154: 4.100029611 | R154: 267.5016077 | S154: 253.1384137 | T154: 29 | U154: 999 | V154: 145 | W154: 253.1384137 | X154: 3444844.622 | Y154: 145 | Z154: 29 | AA154: 999 | AB154: 145 | AC154: 253.1384137 | AD154: 3444844.622
A155: 00300030 | B155: 0030 | C155: 0030 | D155: 146 | E155: 30 | F155: Beverly | G155: 30 | H155: Beverly | I155: 53925726.19 | J155: 0.9624624996 | K155: =X155 -> 58610573.33 | L155: =IF(K159>0, K155/K159, 0) -> 0.9568606614 | N155: =ROUND(M159*L155,0) -> 45452132 | O155: 43334812 | P155: =N155-O155 -> 2117320 | Q155: 4.885956353 | R155: 4613 | S155: 4595 | T155: 30 | U155: 30 | V155: 146 | W155: 4595 | X155: 58610573.33 | Y155: 146 | Z155: 30 | AA155: 30 | AB155: 146 | AC155: 4595 | AD155: 58610573.33
A156: 00300817 | B156: 0030 | C156: 0817 | D156: 147 | E156: 30 | F156: Beverly | G156: 817 | H156: Essex North Shore | I156: 2103185.284 | J156: 0.03753750036 | K156: 2642413.334 | L156: =IF(K159>0, K156/K159, 0) -> 0.04313933864 | N156: =ROUND(M159*L156,0) -> 2049175 | O156: 1690124 | P156: =N156-O156 -> 359051 | Q156: 21.24406257 | R156: 116 | S156: 142 | T156: 30 | U156: 817 | V156: 147 | W156: 142 | X156: 2642413.334 | Y156: 147 | Z156: 30 | AA156: 817 | AB156: 147 | AC156: 142 | AD156: 2642413.334
A157: 00300998 | B157: 0030 | C157: 0998 | D157: 148 | E157: 30 | G157: 998 | I157: 0 | J157: 0 | K157: 0 | L157: =IF(K159>0, K157/K159, 0) -> 0 | N157: =ROUND(M159*L157,0) -> 0 | O157: 0 | P157: =N157-O157 -> 0 | Q157: 0 | R157: 0 | S157: 0 | T157: 30 | U157: 998 | V157: 148 | W157: 0 | X157: 0 | Y157: 148 | Z157: 30 | AA157: 998 | AB157: 148 | AC157: 0 | AD157: 0
A158: 00300998 | B158: 0030 | C158: 0998 | D158: 149 | E158: 30 | G158: 998 | I158: 0 | J158: 0 | K158: 0 | L158: =IF(K159>0, K158/K159, 0) -> 0 | N158: =ROUND(M159*L158,0) -> 0 | O158: 0 | P158: =N158-O158 -> 0 | Q158: 0 | R158: 0 | S158: 0 | T158: 30 | U158: 998 | V158: 149 | W158: 0 | X158: 0 | Y158: 149 | Z158: 30 | AA158: 998 | AB158: 149 | AC158: 0 | AD158: 0
A159: 00300999 | B159: 0030 | C159: 0999 | D159: 150 | E159: 30 | F159: Beverly | G159: 999 | H159: Total | I159: 56028911.47 | J159: 1 | K159: =SUM(K155:K158) -> 61252986.66 | L159: =SUM(L155:L158) -> 1 | M159: =VLOOKUP(E159,town351,24) -> 47501307 | N159: =SUM(N155:N158) -> 47501307 | O159: 45024936 | P159: =SUM(P155:P158) -> 2476371 | Q159: 5.499998934 | R159: 4729 | S159: 4737 | T159: 30 | U159: 999 | V159: 150 | W159: 4737 | X159: 61252986.66 | Y159: 150 | Z159: 30 | AA159: 999 | AB159: 150 | AC159: 4737 | AD159: 61252986.66
A160: 00310031 | B160: 0031 | C160: 0031 | D160: 151 | E160: 31 | F160: Billerica | G160: 31 | H160: Billerica | I160: 52245953.96 | J160: 0.8575761092 | K160: =X160 -> 57705837.69 | L160: =IF(K164>0, K160/K164, 0) -> 0.8671277339 | N160: =ROUND(M164*L160,0) -> 46197969 | O160: 43102912 | P160: =N160-O160 -> 3095057 | Q160: 7.180621578 | R160: 4694 | S160: 4792 | T160: 31 | U160: 31 | V160: 151 | W160: 4792 | X160: 57705837.69 | Y160: 151 | Z160: 31 | AA160: 31 | AB160: 151 | AC160: 4792 | AD160: 57705837.69
A161: 00310871 | B161: 0031 | C161: 0871 | D161: 152 | E161: 31 | F161: Billerica | G161: 871 | H161: Shawsheen Valley | I161: 8676864.902 | J161: 0.1424238908 | K161: 8842417.468 | L161: =IF(K164>0, K161/K164, 0) -> 0.1328722661 | N161: =ROUND(M164*L161,0) -> 7079036 | O161: 7158414 | P161: =N161-O161 -> -79378 | Q161: -1.10887691 | R161: 507 | S161: 486 | T161: 31 | U161: 871 | V161: 152 | W161: 486 | X161: 8842417.468 | Y161: 152 | Z161: 31 | AA161: 871 | AB161: 152 | AC161: 486 | AD161: 8842417.468
A162: 00310998 | B162: 0031 | C162: 0998 | D162: 153 | E162: 31 | G162: 998 | I162: 0 | J162: 0 | K162: 0 | L162: =IF(K164>0, K162/K164, 0) -> 0 | N162: =ROUND(M164*L162,0) -> 0 | O162: 0 | P162: =N162-O162 -> 0 | Q162: 0 | R162: 0 | S162: 0 | T162: 31 | U162: 998 | V162: 153 | W162: 0 | X162: 0 | Y162: 153 | Z162: 31 | AA162: 998 | AB162: 153 | AC162: 0 | AD162: 0
A163: 00310998 | B163: 0031 | C163: 0998 | D163: 154 | E163: 31 | G163: 998 | I163: 0 | J163: 0 | K163: 0 | L163: =IF(K164>0, K163/K164, 0) -> 0 | N163: =ROUND(M164*L163,0) -> 0 | O163: 0 | P163: =N163-O163 -> 0 | Q163: 0 | R163: 0 | S163: 0 | T163: 31 | U163: 998 | V163: 154 | W163: 0 | X163: 0 | Y163: 154 | Z163: 31 | AA163: 998 | AB163: 154 | AC163: 0 | AD163: 0
A164: 00310999 | B164: 0031 | C164: 0999 | D164: 155 | E164: 31 | F164: Billerica | G164: 999 | H164: Total | I164: 60922818.86 | J164: 1 | K164: =SUM(K160:K163) -> 66548255.16 | L164: =SUM(L160:L163) -> 1 | M164: =VLOOKUP(E164,town351,24) -> 53277005 | N164: =SUM(N160:N163) -> 53277005 | O164: 50261326 | P164: =SUM(P160:P163) -> 3015679 | Q164: 5.999998886 | R164: 5201 | S164: 5278 | T164: 31 | U164: 999 | V164: 155 | W164: 5278 | X164: 66548255.16 | Y164: 155 | Z164: 31 | AA164: 999 | AB164: 155 | AC164: 5278 | AD164: 66548255.16
A165: 00320032 | B165: 0032 | C165: 0032 | D165: 156 | E165: 32 | F165: Blackstone | G165: 32 | H165: Blackstone | I165: 446826.84 | J165: 0.02758723929 | K165: =X165 -> 437559.81 | L165: =IF(K169>0, K165/K169, 0) -> 0.02566271906 | N165: =ROUND(M169*L165,0) -> 213832 | O165: 218589 | P165: =N165-O165 -> -4757 | Q165: -2.176230277 | R165: 28 | S165: 26 | T165: 32 | U165: 32 | V165: 156 | W165: 26 | X165: 437559.81 | Y165: 156 | Z165: 32 | AA165: 32 | AB165: 156 | AC165: 26 | AD165: 437559.81
A166: 00320622 | B166: 0032 | C166: 0622 | D166: 157 | E166: 32 | F166: Blackstone | G166: 622 | H166: Blackstone Millville | I166: 14467732.75 | J166: 0.8932426829 | K166: 15399705.78 | L166: =IF(K169>0, K166/K169, 0) -> 0.9031869791 | N166: =ROUND(M169*L166,0) -> 7525714 | O166: 7077649 | P166: =N166-O166 -> 448065 | Q166: 6.330703882 | R166: 1254.770318 | S166: 1225.135684 | T166: 32 | U166: 622 | V166: 157 | W166: 1225.135684 | X166: 15399705.78 | Y166: 157 | Z166: 32 | AA166: 622 | AB166: 157 | AC166: 1225.135684 | AD166: 15399705.78
A167: 00320805 | B167: 0032 | C167: 0805 | D167: 158 | E167: 32 | F167: Blackstone | G167: 805 | H167: Blackstone Valley | I167: 1282307.205 | J167: 0.07917007783 | K167: 1213141.619 | L167: =IF(K169>0, K167/K169, 0) -> 0.07115030183 | N167: =ROUND(M169*L167,0) -> 592853 | O167: 627308 | P167: =N167-O167 -> -34455 | Q167: -5.492517232 | R167: 76.00000001 | S167: 68 | T167: 32 | U167: 805 | V167: 158 | W167: 68 | X167: 1213141.619 | Y167: 158 | Z167: 32 | AA167: 805 | AB167: 158 | AC167: 68 | AD167: 1213141.619
A168: 00320998 | B168: 0032 | C168: 0998 | D168: 159 | E168: 32 | G168: 998 | I168: 0 | J168: 0 | K168: 0 | L168: =IF(K169>0, K168/K169, 0) -> 0 | N168: =ROUND(M169*L168,0) -> 0 | O168: 0 | P168: =N168-O168 -> 0 | Q168: 0 | R168: 0 | S168: 0 | T168: 32 | U168: 998 | V168: 159 | W168: 0 | X168: 0 | Y168: 159 | Z168: 32 | AA168: 998 | AB168: 159 | AC168: 0 | AD168: 0
A169: 00320999 | B169: 0032 | C169: 0999 | D169: 160 | E169: 32 | F169: Blackstone | G169: 999 | H169: Total | I169: 16196866.79 | J169: 1 | K169: =SUM(K165:K168) -> 17050407.21 | L169: =SUM(L165:L168) -> 1 | M169: =VLOOKUP(E169,town351,24) -> 8332399 | N169: =SUM(N165:N168) -> 8332399 | O169: 7923546 | P169: =SUM(P165:P168) -> 408853 | Q169: 5.159975092 | R169: 1358.770318 | S169: 1319.135684 | T169: 32 | U169: 999 | V169: 160 | W169: 1319.135684 | X169: 17050407.21 | Y169: 160 | Z169: 32 | AA169: 999 | AB169: 160 | AC169: 1319.135684 | AD169: 17050407.21
A170: 00330033 | B170: 0033 | C170: 0033 | D170: 161 | E170: 33 | F170: Blandford | G170: 33 | H170: Blandford | I170: 149527.8 | J170: 0.113025951 | K170: =X170 -> 156977.1 | L170: =IF(K174>0, K170/K174, 0) -> 0.119510177 | N170: =ROUND(M174*L170,0) -> 129506 | O170: 123360 | P170: =N170-O170 -> 6146 | Q170: 4.982166018 | R170: 10 | S170: 10 | T170: 33 | U170: 33 | V170: 161 | W170: 10 | X170: 156977.1 | Y170: 161 | Z170: 33 | AA170: 33 | AB170: 161 | AC170: 10 | AD170: 156977.1
A171: 00330672 | B171: 0033 | C171: 0672 | D171: 162 | E171: 33 | F171: Blandford | G171: 672 | H171: Gateway | I171: 1173423.245 | J171: 0.886974049 | K171: 1156526.937 | L171: =IF(K174>0, K171/K174, 0) -> 0.880489823 | N171: =ROUND(M174*L171,0) -> 954135 | O171: 968075 | P171: =N171-O171 -> -13940 | Q171: -1.439971077 | R171: 95.40983607 | S171: 85.28534705 | T171: 33 | U171: 672 | V171: 162 | W171: 85.28534705 | X171: 1156526.937 | Y171: 162 | Z171: 33 | AA171: 672 | AB171: 162 | AC171: 85.28534705 | AD171: 1156526.937
A172: 00330998 | B172: 0033 | C172: 0998 | D172: 163 | E172: 33 | G172: 998 | I172: 0 | J172: 0 | K172: 0 | L172: =IF(K174>0, K172/K174, 0) -> 0 | N172: =ROUND(M174*L172,0) -> 0 | O172: 0 | P172: =N172-O172 -> 0 | Q172: 0 | R172: 0 | S172: 0 | T172: 33 | U172: 998 | V172: 163 | W172: 0 | X172: 0 | Y172: 163 | Z172: 33 | AA172: 998 | AB172: 163 | AC172: 0 | AD172: 0
A173: 00330998 | B173: 0033 | C173: 0998 | D173: 164 | E173: 33 | G173: 998 | I173: 0 | J173: 0 | K173: 0 | L173: =IF(K174>0, K173/K174, 0) -> 0 | N173: =ROUND(M174*L173,0) -> 0 | O173: 0 | P173: =N173-O173 -> 0 | Q173: 0 | R173: 0 | S173: 0 | T173: 33 | U173: 998 | V173: 164 | W173: 0 | X173: 0 | Y173: 164 | Z173: 33 | AA173: 998 | AB173: 164 | AC173: 0 | AD173: 0
A174: 00330999 | B174: 0033 | C174: 0999 | D174: 165 | E174: 33 | F174: Blandford | G174: 999 | H174: Total | I174: 1322951.045 | J174: 1 | K174: =SUM(K170:K173) -> 1313504.037 | L174: =SUM(L170:L173) -> 1 | M174: =VLOOKUP(E174,town351,24) -> 1083641 | N174: =SUM(N170:N173) -> 1083641 | O174: 1091435 | P174: =SUM(P170:P173) -> -7794 | Q174: -0.7141057415 | R174: 105.4098361 | S174: 95.28534705 | T174: 33 | U174: 999 | V174: 165 | W174: 95.28534705 | X174: 1313504.037 | Y174: 165 | Z174: 33 | AA174: 999 | AB174: 165 | AC174: 95.28534705 | AD174: 1313504.037
A175: 00340034 | B175: 0034 | C175: 0034 | D175: 166 | E175: 34 | F175: Bolton | G175: 34 | H175: Bolton | I175: 15459.31386 | J175: 0.001283918095 | K175: =X175 -> 0 | L175: =IF(K179>0, K175/K179, 0) -> 0 | N175: =ROUND(M179*L175,0) -> 0 | O175: 12370 | P175: =N175-O175 -> -12370 | Q175: -100 | R175: 1 | S175: 0 | T175: 34 | U175: 34 | V175: 166 | W175: 0 | X175: 0 | Y175: 166 | Z175: 34 | AA175: 34 | AB175: 166 | AC175: 0 | AD175: 0
A176: 00340725 | B176: 0034 | C176: 0725 | D176: 167 | E176: 34 | F176: Bolton | G176: 725 | H176: Nashoba | I176: 11682778.34 | J176: 0.9702714261 | K176: 12215898.24 | L176: =IF(K179>0, K176/K179, 0) -> 0.9626110617 | N176: =ROUND(M179*L176,0) -> 9705349 | O176: 9347905 | P176: =N176-O176 -> 357444 | Q176: 3.823787255 | R176: 1054.280557 | S176: 1030.459374 | T176: 34 | U176: 725 | V176: 167 | W176: 1030.459374 | X176: 12215898.24 | Y176: 167 | Z176: 34 | AA176: 725 | AB176: 167 | AC176: 1030.459374 | AD176: 12215898.24
A177: 00340830 | B177: 0034 | C177: 0830 | D177: 168 | E177: 34 | F177: Bolton | G177: 830 | H177: Minuteman | I177: 342494.4816 | J177: 0.02844465584 | K177: 474479.7599 | L177: =IF(K179>0, K177/K179, 0) -> 0.03738893828 | N177: =ROUND(M179*L177,0) -> 376967 | O177: 274045 | P177: =N177-O177 -> 102922 | Q177: 37.55660567 | R177: 17 | S177: 24.04363637 | T177: 34 | U177: 830 | V177: 168 | W177: 24.04363637 | X177: 474479.7599 | Y177: 168 | Z177: 34 | AA177: 830 | AB177: 168 | AC177: 24.04363637 | AD177: 474479.7599
A178: 00340998 | B178: 0034 | C178: 0998 | D178: 169 | E178: 34 | G178: 998 | I178: 0 | J178: 0 | K178: 0 | L178: =IF(K179>0, K178/K179, 0) -> 0 | N178: =ROUND(M179*L178,0) -> 0 | O178: 0 | P178: =N178-O178 -> 0 | Q178: 0 | R178: 0 | S178: 0 | T178: 34 | U178: 998 | V178: 169 | W178: 0 | X178: 0 | Y178: 169 | Z178: 34 | AA178: 998 | AB178: 169 | AC178: 0 | AD178: 0
A179: 00340999 | B179: 0034 | C179: 0999 | D179: 170 | E179: 34 | F179: Bolton | G179: 999 | H179: Total | I179: 12040732.13 | J179: 1 | K179: =SUM(K175:K178) -> 12690378 | L179: =SUM(L175:L178) -> 1 | M179: =VLOOKUP(E179,town351,24) -> 10082316 | N179: =SUM(N175:N178) -> 10082316 | O179: 9634320 | P179: =SUM(P175:P178) -> 447996 | Q179: 4.650001246 | R179: 1072.280557 | S179: 1054.50301 | T179: 34 | U179: 999 | V179: 170 | W179: 1054.50301 | X179: 12690378 | Y179: 170 | Z179: 34 | AA179: 999 | AB179: 170 | AC179: 1054.50301 | AD179: 12690378
A180: 00350035 | B180: 0035 | C180: 0035 | D180: 171 | E180: 35 | F180: Boston | G180: 35 | H180: Boston | I180: 978880394.5 | J180: 1 | K180: =X180 -> 1012695286 | L180: =IF(K184>0, K180/K184, 0) -> 1 | N180: =ROUND(M184*L180,0) -> 827212576 | O180: 788497356 | P180: =N180-O180 -> 38715220 | Q180: 4.909999977 | R180: 60704 | S180: 58339 | T180: 35 | U180: 35 | V180: 171 | W180: 58339 | X180: 1012695286 | Y180: 171 | Z180: 35 | AA180: 35 | AB180: 171 | AC180: 58339 | AD180: 1012695286
A181: 00350998 | B181: 0035 | C181: 0998 | D181: 172 | E181: 35 | G181: 998 | I181: 0 | J181: 0 | K181: 0 | L181: =IF(K184>0, K181/K184, 0) -> 0 | N181: =ROUND(M184*L181,0) -> 0 | O181: 0 | P181: =N181-O181 -> 0 | Q181: 0 | R181: 0 | S181: 0 | T181: 35 | U181: 998 | V181: 172 | W181: 0 | X181: 0 | Y181: 172 | Z181: 35 | AA181: 998 | AB181: 172 | AC181: 0 | AD181: 0
A182: 00350998 | B182: 0035 | C182: 0998 | D182: 173 | E182: 35 | G182: 998 | I182: 0 | J182: 0 | K182: 0 | L182: =IF(K184>0, K182/K184, 0) -> 0 | N182: =ROUND(M184*L182,0) -> 0 | O182: 0 | P182: =N182-O182 -> 0 | Q182: 0 | R182: 0 | S182: 0 | T182: 35 | U182: 998 | V182: 173 | W182: 0 | X182: 0 | Y182: 173 | Z182: 35 | AA182: 998 | AB182: 173 | AC182: 0 | AD182: 0
A183: 00350998 | B183: 0035 | C183: 0998 | D183: 174 | E183: 35 | G183: 998 | I183: 0 | J183: 0 | K183: 0 | L183: =IF(K184>0, K183/K184, 0) -> 0 | N183: =ROUND(M184*L183,0) -> 0 | O183: 0 | P183: =N183-O183 -> 0 | Q183: 0 | R183: 0 | S183: 0 | T183: 35 | U183: 998 | V183: 174 | W183: 0 | X183: 0 | Y183: 174 | Z183: 35 | AA183: 998 | AB183: 174 | AC183: 0 | AD183: 0
A184: 00350999 | B184: 0035 | C184: 0999 | D184: 175 | E184: 35 | F184: Boston | G184: 999 | H184: Total | I184: 978880394.5 | J184: 1 | K184: =SUM(K180:K183) -> 1012695286 | L184: =SUM(L180:L183) -> 1 | M184: =VLOOKUP(E184,town351,24) -> 827212576 | N184: =SUM(N180:N183) -> 827212576 | O184: 788497356 | P184: =SUM(P180:P183) -> 38715220 | Q184: 4.909999977 | R184: 60704 | S184: 58339 | T184: 35 | U184: 999 | V184: 175 | W184: 58339 | X184: 1012695286 | Y184: 175 | Z184: 35 | AA184: 999 | AB184: 175 | AC184: 58339 | AD184: 1012695286
A185: 00360036 | B185: 0036 | C185: 0036 | D185: 176 | E185: 36 | F185: Bourne | G185: 36 | H185: Bourne | I185: 20951766.19 | J185: 0.8673290846 | K185: =X185 -> 21855345.04 | L185: =IF(K189>0, K185/K189, 0) -> 0.8617195264 | N185: =ROUND(M189*L185,0) -> 17827720 | O185: 17285207 | P185: =N185-O185 -> 542513 | Q185: 3.138597067 | R185: 1789 | S185: 1717 | T185: 36 | U185: 36 | V185: 176 | W185: 1717 | X185: 21855345.04 | Y185: 176 | Z185: 36 | AA185: 36 | AB185: 176 | AC185: 1717 | AD185: 21855345.04
A186: 00360879 | B186: 0036 | C186: 0879 | D186: 177 | E186: 36 | F186: Bourne | G186: 879 | H186: Upper Cape Cod | I186: 3204885.031 | J186: 0.1326709154 | K186: 3507135.871 | L186: =IF(K189>0, K186/K189, 0) -> 0.1382804736 | N186: =ROUND(M189*L186,0) -> 2860821 | O186: 2644030 | P186: =N186-O186 -> 216791 | Q186: 8.199264002 | R186: 179.7084433 | S186: 179.9322917 | T186: 36 | U186: 879 | V186: 177 | W186: 179.9322917 | X186: 3507135.871 | Y186: 177 | Z186: 36 | AA186: 879 | AB186: 177 | AC186: 179.9322917 | AD186: 3507135.871
A187: 00360998 | B187: 0036 | C187: 0998 | D187: 178 | E187: 36 | G187: 998 | I187: 0 | J187: 0 | K187: 0 | L187: =IF(K189>0, K187/K189, 0) -> 0 | N187: =ROUND(M189*L187,0) -> 0 | O187: 0 | P187: =N187-O187 -> 0 | Q187: 0 | R187: 0 | S187: 0 | T187: 36 | U187: 998 | V187: 178 | W187: 0 | X187: 0 | Y187: 178 | Z187: 36 | AA187: 998 | AB187: 178 | AC187: 0 | AD187: 0
A188: 00360998 | B188: 0036 | C188: 0998 | D188: 179 | E188: 36 | G188: 998 | I188: 0 | J188: 0 | K188: 0 | L188: =IF(K189>0, K188/K189, 0) -> 0 | N188: =ROUND(M189*L188,0) -> 0 | O188: 0 | P188: =N188-O188 -> 0 | Q188: 0 | R188: 0 | S188: 0 | T188: 36 | U188: 998 | V188: 179 | W188: 0 | X188: 0 | Y188: 179 | Z188: 36 | AA188: 998 | AB188: 179 | AC188: 0 | AD188: 0
A189: 00360999 | B189: 0036 | C189: 0999 | D189: 180 | E189: 36 | F189: Bourne | G189: 999 | H189: Total | I189: 24156651.22 | J189: 1 | K189: =SUM(K185:K188) -> 25362480.91 | L189: =SUM(L185:L188) -> 1 | M189: =VLOOKUP(E189,town351,24) -> 20688541 | N189: =SUM(N185:N188) -> 20688541 | O189: 19929237 | P189: =SUM(P185:P188) -> 759304 | Q189: 3.810000353 | R189: 1968.708443 | S189: 1896.932292 | T189: 36 | U189: 999 | V189: 180 | W189: 1896.932292 | X189: 25362480.91 | Y189: 180 | Z189: 36 | AA189: 999 | AB189: 180 | AC189: 1896.932292 | AD189: 25362480.91
A190: 00370037 | B190: 0037 | C190: 0037 | D190: 181 | E190: 37 | F190: Boxborough | G190: 37 | H190: Boxborough | I190: 144995.1451 | J190: 0.01518062229 | K190: =X190 -> 171344.577 | L190: =IF(K194>0, K190/K194, 0) -> 0.01701536653 | N190: =ROUND(M194*L190,0) -> 138436 | O190: 119621 | P190: =N190-O190 -> 18815 | Q190: 15.7288436 | R190: 9 | S190: 10 | T190: 37 | U190: 37 | V190: 181 | W190: 10 | X190: 171344.577 | Y190: 181 | Z190: 37 | AA190: 37 | AB190: 181 | AC190: 10 | AD190: 171344.577
A191: 00370600 | B191: 0037 | C191: 0600 | D191: 182 | E191: 37 | F191: Boxborough | G191: 600 | H191: Acton Boxborough | I191: 9406335.644 | J191: 0.9848193777 | K191: 9898645.785 | L191: =IF(K194>0, K191/K194, 0) -> 0.9829846335 | N191: =ROUND(M194*L191,0) -> 7997507 | O191: 7760227 | P191: =N191-O191 -> 237280 | Q191: 3.057642515 | R191: 832.8951906 | S191: 816.8441684 | T191: 37 | U191: 600 | V191: 182 | W191: 816.8441684 | X191: 9898645.785 | Y191: 182 | Z191: 37 | AA191: 600 | AB191: 182 | AC191: 816.8441684 | AD191: 9898645.785
A192: 00370830 | B192: 0037 | C192: 0830 | D192: 183 | E192: 37 | G192: 998 | I192: 0 | J192: 0 | K192: 0 | L192: =IF(K194>0, K192/K194, 0) -> 0 | N192: =ROUND(M194*L192,0) -> 0 | O192: 0 | P192: =N192-O192 -> 0 | Q192: 0 | R192: 0 | S192: 0 | T192: 37 | U192: 998 | V192: 183 | W192: 0 | X192: 0 | Y192: 183 | Z192: 37 | AA192: 998 | AB192: 183 | AC192: 0 | AD192: 0
A193: 00370998 | B193: 0037 | C193: 0998 | D193: 184 | E193: 37 | G193: 998 | I193: 0 | J193: 0 | K193: 0 | L193: =IF(K194>0, K193/K194, 0) -> 0 | N193: =ROUND(M194*L193,0) -> 0 | O193: 0 | P193: =N193-O193 -> 0 | Q193: 0 | R193: 0 | S193: 0 | T193: 37 | U193: 998 | V193: 184 | W193: 0 | X193: 0 | Y193: 184 | Z193: 37 | AA193: 998 | AB193: 184 | AC193: 0 | AD193: 0
A194: 00370999 | B194: 0037 | C194: 0999 | D194: 185 | E194: 37 | F194: Boxborough | G194: 999 | H194: Total | I194: 9551330.789 | J194: 1 | K194: =SUM(K190:K193) -> 10069990.36 | L194: =SUM(L190:L193) -> 1 | M194: =VLOOKUP(E194,town351,24) -> 8135943 | N194: =SUM(N190:N193) -> 8135943 | O194: 7879848 | P194: =SUM(P190:P193) -> 256095 | Q194: 3.249999239 | R194: 841.8951906 | S194: 826.8441684 | T194: 37 | U194: 999 | V194: 185 | W194: 826.8441684 | X194: 10069990.36 | Y194: 185 | Z194: 37 | AA194: 999 | AB194: 185 | AC194: 826.8441684 | AD194: 10069990.36
A195: 00380038 | B195: 0038 | C195: 0038 | D195: 186 | E195: 38 | F195: Boxford | G195: 38 | H195: Boxford | I195: 7077684.452 | J195: 0.4794040606 | K195: =X195 -> 8106140.946 | L195: =IF(K199>0, K195/K199, 0) -> 0.4986513913 | N195: =ROUND(M199*L195,0) -> 6300062 | O195: 5839090 | P195: =N195-O195 -> 460972 | Q195: 7.894586314 | R195: 673 | S195: 729 | T195: 38 | U195: 38 | V195: 186 | W195: 729 | X195: 8106140.946 | Y195: 186 | Z195: 38 | AA195: 38 | AB195: 186 | AC195: 729 | AD195: 8106140.946
A196: 00380705 | B196: 0038 | C196: 0705 | D196: 187 | E196: 38 | F196: Boxford | G196: 705 | H196: Masconomet | I196: 7250679.196 | J196: 0.4911217888 | K196: 7684773.643 | L196: =IF(K199>0, K196/K199, 0) -> 0.4727308709 | N196: =ROUND(M199*L196,0) -> 5972577 | O196: 5981810 | P196: =N196-O196 -> -9233 | Q196: -0.1543512749 | R196: 630.0907514 | S196: 630.7451212 | T196: 38 | U196: 705 | V196: 187 | W196: 630.7451212 | X196: 7684773.643 | Y196: 187 | Z196: 38 | AA196: 705 | AB196: 187 | AC196: 630.7451212 | AD196: 7684773.643
A197: 00380817 | B197: 0038 | C197: 0817 | D197: 188 | E197: 38 | F197: Boxford | G197: 817 | H197: Essex North Shore | I197: 435141.7829 | J197: 0.02947415063 | K197: 465213.6151 | L197: =IF(K199>0, K197/K199, 0) -> 0.02861773783 | N197: =ROUND(M199*L197,0) -> 361562 | O197: 358992 | P197: =N197-O197 -> 2570 | Q197: 0.7158933904 | R197: 23.99999999 | S197: 24.99999999 | T197: 38 | U197: 817 | V197: 188 | W197: 24.99999999 | X197: 465213.6151 | Y197: 188 | Z197: 38 | AA197: 817 | AB197: 188 | AC197: 24.99999999 | AD197: 465213.6151
A198: 00380998 | B198: 0038 | C198: 0998 | D198: 189 | E198: 38 | G198: 998 | I198: 0 | J198: 0 | K198: 0 | L198: =IF(K199>0, K198/K199, 0) -> 0 | N198: =ROUND(M199*L198,0) -> 0 | O198: 0 | P198: =N198-O198 -> 0 | Q198: 0 | R198: 0 | S198: 0 | T198: 38 | U198: 998 | V198: 189 | W198: 0 | X198: 0 | Y198: 189 | Z198: 38 | AA198: 998 | AB198: 189 | AC198: 0 | AD198: 0
A199: 00380999 | B199: 0038 | C199: 0999 | D199: 190 | E199: 38 | F199: Boxford | G199: 999 | H199: Total | I199: 14763505.43 | J199: 1 | K199: =SUM(K195:K198) -> 16256128.2 | L199: =SUM(L195:L198) -> 1 | M199: =VLOOKUP(E199,town351,24) -> 12634202 | N199: =SUM(N195:N198) -> 12634201 | O199: 12179892 | P199: =SUM(P195:P198) -> 454309 | Q199: 3.729992023 | R199: 1327.090751 | S199: 1384.745121 | T199: 38 | U199: 999 | V199: 190 | W199: 1384.745121 | X199: 16256128.2 | Y199: 190 | Z199: 38 | AA199: 999 | AB199: 190 | AC199: 1384.745121 | AD199: 16256128.2
A200: 00390039 | B200: 0039 | C200: 0039 | D200: 191 | E200: 39 | F200: Boylston | G200: 39 | H200: Boylston | I200: 579645.3 | J200: 0.07761835643 | K200: =X200 -> 500350.65 | L200: =IF(K204>0, K200/K204, 0) -> 0.06602226071 | N200: =ROUND(M204*L200,0) -> 412789 | O200: 466173 | P200: =N200-O200 -> -53384 | Q200: -11.45154267 | R200: 35 | S200: 30 | T200: 39 | U200: 39 | V200: 191 | W200: 30 | X200: 500350.65 | Y200: 191 | Z200: 39 | AA200: 39 | AB200: 191 | AC200: 30 | AD200: 500350.65
... 1566 more rows

Sheet Index
A1: Massachusetts Department of Elementary and Secondary Education | J1: 2022-01-26
A2: =parameters!B1& " Chapter 70 and Net School Spending Formula Spreadsheet" -> FY23 Chapter 70 and Net School Spending Formula Spreadsheet
B3: Select or type full district name below | C3: LEA code
A4: =C4 -> 999 | B4: Select a district | C4: =VLOOKUP(B4,leas!$E$4:$F$445,2,FALSE) -> 999
B6: Use the drop-down menu to select a municipal or regional district and then go to any of the first four links below.
B7: Only municipal district selections will activate the Municipal Contribution Requirement and Regional Allocation reports.
B8: A list of LEAs by code begins on row 26 of this sheet.
B10: We recommend that you save this workbook to your computer before proceeding, then leave this browser, and open the workbook using Excel or My Computer.
B12: Summary
B13: Foundation Budget
B14: Municipal Contribution Requirement
B15: Regional Allocation
B17: Regional District Detail | D17: (go to this sheet to see any particular regional district's comparison of enrollment and minimum contributions to the prior year)
B19: There are also a number of "hidden" sheets which contain the underlying spreadsheet calculations.
B20: They can be accessed by right-clicking on any of the tabs below and choosing a sheet to unhide.
B22: Questions or comments about Chapter 70 may be directed to:
B23: Rob Hanna | D23: Robert.Hanna@mass.gov | G23: 781-338-6525
B24: Rob O'Donnell | D24: Robert.F.O'Donnell@mass.gov | G24: 781-338-6512
B26: District | D26: LEA Number
B27: Abington | D27: 1
B28: Acton | D28: 2
B29: Acton Boxborough | D29: 600
B30: Acushnet | D30: 3
B31: Adams | D31: 4
B32: Agawam | D32: 5
B33: Alford | D33: 6
B34: Amesbury | D34: 7
B35: Amherst | D35: 8
B36: Amherst Pelham | D36: 605
B37: Andover | D37: 9
B38: Arlington | D38: 10
B39: Ashburnham | D39: 11
B40: Ashburnham Westminster | D40: 610
B41: Ashby | D41: 12
B42: Ashfield | D42: 13
B43: Ashland | D43: 14
B44: Assabet Valley | D44: 801
B45: Athol | D45: 15
B46: Athol Royalston | D46: 615
B47: Attleboro | D47: 16
B48: Auburn | D48: 17
B49: Avon | D49: 18
B50: Ayer | D50: 19
B51: Ayer Shirley | D51: 616
B52: Barnstable | D52: 20
B53: Barre | D53: 21
B54: Becket | D54: 22
B55: Bedford | D55: 23
B56: Belchertown | D56: 24
B57: Bellingham | D57: 25
B58: Belmont | D58: 26
B59: Berkley | D59: 27
B60: Berkshire Hills | D60: 618
B61: Berlin | D61: 28
B62: Berlin Boylston | D62: 620
B63: Bernardston | D63: 29
B64: Beverly | D64: 30
B65: Billerica | D65: 31
B66: Blackstone | D66: 32
B67: Blackstone Millville | D67: 622
B68: Blackstone Valley | D68: 805
B69: Blandford | D69: 33
B70: Blue Hills | D70: 806
B71: Bolton | D71: 34
B72: Boston | D72: 35
B73: Bourne | D73: 36
B74: Boxborough | D74: 37
B75: Boxford | D75: 38
B76: Boylston | D76: 39
B77: Braintree | D77: 40
B78: Brewster | D78: 41
B79: Bridgewater | D79: 42
B80: Bridgewater Raynham | D80: 625
B81: Brimfield | D81: 43
B82: Bristol County | D82: 910
B83: Bristol Plymouth | D83: 810
B84: Brockton | D84: 44
B85: Brookfield | D85: 45
B86: Brookline | D86: 46
B87: Buckland | D87: 47
B88: Burlington | D88: 48
B89: Cambridge | D89: 49
B90: Canton | D90: 50
B91: Cape Cod | D91: 815
B92: Carlisle | D92: 51
B93: Carver | D93: 52
B94: Central Berkshire | D94: 635
B95: Charlemont | D95: 53
B96: Charlton | D96: 54
B97: Chatham | D97: 55
B98: Chelmsford | D98: 56
B99: Chelsea | D99: 57
B100: Cheshire | D100: 58
B101: Chester | D101: 59
B102: Chesterfield | D102: 60
B103: Chesterfield Goshen | D103: 632
B104: Chicopee | D104: 61
B105: Chilmark | D105: 62
B106: Clarksburg | D106: 63
B107: Clinton | D107: 64
B108: Cohasset | D108: 65
B109: Colrain | D109: 66
B110: Concord | D110: 67
B111: Concord Carlisle | D111: 640
B112: Conway | D112: 68
B113: Cummington | D113: 69
B114: Dalton | D114: 70
B115: Danvers | D115: 71
B116: Dartmouth | D116: 72
B117: Dedham | D117: 73
B118: Deerfield | D118: 74
B119: Dennis | D119: 75
B120: Dennis Yarmouth | D120: 645
B121: Dighton | D121: 76
B122: Dighton Rehoboth | D122: 650
B123: Douglas | D123: 77
B124: Dover | D124: 78
B125: Dover Sherborn | D125: 655
B126: Dracut | D126: 79
B127: Dudley | D127: 80
B128: Dudley Charlton | D128: 658
B129: Dunstable | D129: 81
B130: Duxbury | D130: 82
B131: East Bridgewater | D131: 83
B132: East Brookfield | D132: 84
B133: East Longmeadow | D133: 87
B134: Eastham | D134: 85
B135: Easthampton | D135: 86
B136: Easton | D136: 88
B137: Edgartown | D137: 89
B138: Egremont | D138: 90
B139: Erving | D139: 91
B140: Essex | D140: 92
B141: Essex North Shore | D141: 817
B142: Everett | D142: 93
B143: Fairhaven | D143: 94
B144: Fall River | D144: 95
B145: Falmouth | D145: 96
B146: Farmington River | D146: 662
B147: Fitchburg | D147: 97
B148: Florida | D148: 98
B149: Foxborough | D149: 99
B150: Framingham | D150: 100
B151: Franklin | D151: 101
B152: Franklin County | D152: 818
B153: Freetown | D153: 102
B154: Freetown Lakeville | D154: 665
B155: Frontier | D155: 670
B156: Gardner | D156: 103
B157: Gateway | D157: 672
B158: Gay Head | D158: 104
B159: Georgetown | D159: 105
B160: Gill | D160: 106
B161: Gill Montague | D161: 674
B162: Gloucester | D162: 107
B163: Goshen | D163: 108
B164: Gosnold | D164: 109
B165: Grafton | D165: 110
B166: Granby | D166: 111
B167: Granville | D167: 112
B168: Great Barrington | D168: 113
B169: Greater Fall River | D169: 821
B170: Greater Lawrence | D170: 823
B171: Greater Lowell | D171: 828
B172: Greater New Bedford | D172: 825
B173: Greenfield | D173: 114
B174: Groton | D174: 115
B175: Groton Dunstable | D175: 673
B176: Groveland | D176: 116
B177: Hadley | D177: 117
B178: Halifax | D178: 118
B179: Hamilton | D179: 119
B180: Hamilton Wenham | D180: 675
B181: Hampden | D181: 120
B182: Hampden Wilbraham | D182: 680
B183: Hampshire | D183: 683
B184: Hancock | D184: 121
B185: Hanover | D185: 122
B186: Hanson | D186: 123
B187: Hardwick | D187: 124
B188: Harvard | D188: 125
B189: Harwich | D189: 126
B190: Hatfield | D190: 127
B191: Haverhill | D191: 128
B192: Hawlemont | D192: 685
B193: Hawley | D193: 129
B194: Heath | D194: 130
B195: Hingham | D195: 131
B196: Hinsdale | D196: 132
B197: Holbrook | D197: 133
B198: Holden | D198: 134
B199: Holland | D199: 135
B200: Holliston | D200: 136
B201: Holyoke | D201: 137
B202: Hoosac Valley | D202: 603
B203: Hopedale | D203: 138
B204: Hopkinton | D204: 139
B205: Hubbardston | D205: 140
B206: Hudson | D206: 141
B207: Hull | D207: 142
... 257 more rows

Sheet MoreAboutData
B1: =CYr&" Chapter 70 and Net School Spending Formula" -> FY23 Chapter 70 and Net School Spending Formula | C1: FY18 Chapter 70 and Net School Spending Formula Spreadsheet | D1: FY18 Chapter 70 and Net School Spending Formula Spreadsheet | E1: FY18 Chapter 70 and Net School Spending Formula Spreadsheet | F1: FY18 Chapter 70 and Net School Spending Formula Spreadsheet | G1: Return to Index
B2: More about the data
A3: TABLE OF CONTENTS
A4: Index | E4: Back to the top
A5: Select the district you're interested in from the dropdown list on this sheet.
A6: Foundation Budget | E6: Back to the top
A7: This report displays the foundation enrollment and foundation budget for a single district. A district’s foundation budget is updated each year and it is derived by multiplying the number of pupils in thirteen enrollment categories by cost rates in eleven functional areas.
A9: Key Terms
A10: Foundation Enrollment: A count of the students for whom a school district is financially responsible on October 1st of any given year. Inflation: Foundation budget rates are adjusted each year by a statutorily defined inflationary factor. It affects all districts in the same way. Wage Adjustment Factor (WAF): Gives a district credit for having higher school costs if it is located in a geographic area where average wages are higher than in other areas of the state. Calculated using the latest available average wage data supplied by the state’s Executive Office of Labor and Workforce Development (EOLWD). Low-Income Group: Determined based on the relative concentration of low-income students served in the district. Corresponds to a foundation budget rate for low-income students.
A11: Municipal Contribution | E11: Back to the top
A12: This report displays the required local contribution for a single municipality. Each municipality has a target local share of its foundation budget, based on local ability to pay. The required local contribution for each municipality is based on the previous year's required contribution, and includes some transition factors so that the shift toward the target levels occurs over a period of several years.
A14: Key Terms
A15: Equalized Valuation (EQV): Calculated by DOR every two years. Full and fair cash value of all taxable property for each municipality. Income: Derived annually by DOR from state income tax returns. Includes all forms of wage, pension, interest, business, investment, and capital gains income. Combined Effort Yield (CEY): Sum of property and income effort. Based on DESE-calculated property and income percentages, which, when applied to all municipalities in the Commonwealth, yields 59% of statewide foundation coming from local revenue. Target Local Contribution/Share: Calculated for each municipality as an equitable share of its foundation budget based on property wealth and income. Municipal Revenue Growth Factor (MRGF): Calculated each year by DOR and quantifies the most recent annual percentage change in each community's local revenues (such as the annual increase in the Proposition 2½ levy limit) that should be available for schools.
A16: Regional Allocation | E16: Back to the top
A17: This report displays the allocation of a municipality's required local contribution across the districts to which it belongs. The municipality's required contribution is allocated in direct proportion to the district's share of the municipality's foundation budget.
A18: Summary | E18: Back to the top
A19: This report displays the Chapter 70 aid calculation for a single district. The aid calculation begins with each district's prior year Chapter 70 amount. The difference between each district's foundation budget and its required contribution equals foundation aid. On the right-hand side, there is a comparison to the prior year.
A20: Key Terms
A21: Foundation Aid: The amount of aid needed by a district to reach its foundation budget, after factoring in this year's required local contribution. Foundation budget - Required Local Contribution = Foundation Aid Minimum Aid: A guaranteed per pupil aid increase over the prior year. Required Net School Spending (NSS): The sum of this year's required local contribution and Chapter 70 aid. A district must spend this amount to be in compliance.
A22: Regional District Members | E22: Back to the top
A23: This report displays relevant data for municipal members of a single regional district.
A24: Key Terms
A25: Foundation Enrollment: Foundation enrollment for the selected district, in total and by member. Required Minimum Contribution: Total required minimum contribution for the selected district, in total and by member.
A26: ="Comparison to "&PYr -> Comparison to FY22 | E26: Back to the top
A27: This report displays prior year and current year foundation enrollment, foundation budget, required local contribution and Chapter 70 aid for all operating districts.
A29: Rates | E29: Back to the top
A30: ="This sheet displays the "&CYr&" foundation budget rates." -> This sheet displays the FY23 foundation budget rates.
A31: Townwide Contributions | E31: Back to the top
A32: ="This sheet calculates the "&CYr&" required local contribution for each municipality" -> This sheet calculates the FY23 required local contribution for each municipality
A33: Aid436 | E33: Back to the top
A34: ="This sheet calculates the "&CYr&" Chapter 70 aid for each district." -> This sheet calculates the FY23 Chapter 70 aid for each district.

Sheet Foundation Budget
A1: Return to Index | U1: More about the data
A2: Massachusetts Department of Elementary and Secondary Education
A3: Office of School Finance
A4: =parameters!B1&" Chapter 70 Foundation Budget" -> FY23 Chapter 70 Foundation Budget
A5: =lea -> 999 | B5: =IF(lea=999,"State total cannot be computed on this page; Please enter an lea code on the index sheet",VLOOKUP(A5,dist915,2)) -> State total cannot be computed on this page; Please enter an lea code on the index sheet | H5: 6 | I5: 8 | K5: 9 | L5: 10 | M5: 11 | N5: 12 | O5: 13 | P5: 14
C6: Base Foundation Components | K6: Incremental Costs Above the Base
C7: 1 | D7: 2 | E7: 3 | F7: 4 | G7: 5 | H7: 6 | I7: 7 | K7: 8 | L7: 9 | M7: 10 | N7: 11 | O7: 12 | P7: 13 | Q7: 14
D8: ------ Kindergarten ------ | G8: Junior/ | H8: High | K8: Special Ed | L8: Special Ed | M8: English learners | N8: English learners | O8: English learners
C9: Pre-school | D9: Half-Day | E9: Full-Day | F9: Elementary | G9: Middle | H9: School | I9: Vocational | K9: In-District | L9: Tuitioned-Out | M9: PK-5 | N9: 6-8 | O9: High School/Voc | P9: Low income | Q9: TOTAL
B10: Foundation Enrollment | C10: =IF($A$5<>999,VLOOKUP(lea,dist915,VALUE(C$7)+2),0) -> 0 | D10: 0 | E10: 0 | F10: 0 | G10: 0 | H10: 0 | I10: =IF($A$5<>999,VLOOKUP(lea,dist915,VALUE(I$7)+2),0) -> 0 | K10: =IF($A$5<>999,VLOOKUP(lea,dist915,VALUE(K$7)+2),0) -> 0 | L10: 0 | M10: 0 | N10: 0 | O10: 0 | P10: 0 | Q10: 0
A12: 1 | B12: Administration | C12: =(VLOOKUP(VALUE(C$7),newrates,$A12+2)*C$10*waf) -> 0 | D12: 0 | E12: 0 | F12: 0 | G12: 0 | H12: 0 | I12: 0 | K12: =(VLOOKUP(VALUE(K$7),newrates,$A12+2)*K$10*waf) -> 0 | L12: 0 | M12: 0 | N12: 0 | O12: 0 | P12: =IF(C29=0,0,(VLOOKUP(VALUE(P$7)+$C$29-1, newrates, $A12+2, FALSE))*P$10*waf) -> 0 | Q12: =SUM(C12:P12) -> 0
A13: 2 | B13: Instructional Leadership | C13: 0 | D13: 0 | E13: 0 | F13: 0 | G13: 0 | H13: 0 | I13: 0 | K13: 0 | L13: 0 | M13: 0 | N13: 0 | O13: 0 | P13: =IF(C29=0,0,(VLOOKUP(VALUE(P$7)+$C$29-1, newrates, $A13+2, FALSE))*P$10*waf) -> 0 | Q13: 0
A14: 3 | B14: Classroom & Specialist Teachers | C14: 0 | D14: 0 | E14: 0 | F14: 0 | G14: 0 | H14: 0 | I14: 0 | K14: 0 | L14: 0 | M14: 0 | N14: 0 | O14: 0 | P14: =IF(C29=0,0,(VLOOKUP(VALUE(P$7)+$C$29-1, newrates, $A14+2, FALSE))*P$10*waf) -> 0 | Q14: 0
A15: 4 | B15: Other Teaching Services | C15: 0 | D15: 0 | E15: 0 | F15: 0 | G15: 0 | H15: 0 | I15: 0 | K15: 0 | L15: 0 | M15: 0 | N15: 0 | O15: 0 | P15: =IF(C29=0,0,(VLOOKUP(VALUE(P$7)+$C$29-1, newrates, $A15+2, FALSE))*P$10*waf) -> 0 | Q15: 0
A16: 5 | B16: Professional Development | C16: 0 | D16: 0 | E16: 0 | F16: 0 | G16: 0 | H16: 0 | I16: 0 | K16: 0 | L16: 0 | M16: 0 | N16: 0 | O16: 0 | P16: =IF(C29=0,0,(VLOOKUP(VALUE(P$7)+$C$29-1, newrates, $A16+2, FALSE))*P$10*waf) -> 0 | Q16: 0
A17: 6 | B17: Instructional Materials, Equipment & Technology* | C17: =(VLOOKUP(VALUE(C$7),newrates,$A17+2)*C$10) -> 0 | D17: 0 | E17: 0 | F17: 0 | G17: 0 | H17: 0 | I17: 0 | K17: =(VLOOKUP(VALUE(K$7),newrates,$A17+2)*K$10) -> 0 | L17: =(VLOOKUP(VALUE(L$7),newrates,$A17+2)*L$10) -> 0 | M17: =(VLOOKUP(VALUE(M$7),newrates,$A17+2)*M$10) -> 0 | N17: =(VLOOKUP(VALUE(N$7),newrates,$A17+2)*N$10) -> 0 | O17: =(VLOOKUP(VALUE(O$7),newrates,$A17+2)*O$10) -> 0 | P17: =IF(C29=0,0,(VLOOKUP(VALUE(P$7)+$C$29-1, newrates, $A17+2, FALSE))*P$10) -> 0 | Q17: 0
A18: 7 | B18: Guidance & Psychological Services | C18: =(VLOOKUP(VALUE(C$7),newrates,$A18+2)*C$10*waf) -> 0 | D18: 0 | E18: 0 | F18: 0 | G18: 0 | H18: 0 | I18: 0 | K18: =(VLOOKUP(VALUE(K$7),newrates,$A18+2)*K$10*waf) -> 0 | L18: 0 | M18: 0 | N18: 0 | O18: 0 | P18: =IF(C29=0,0,(VLOOKUP(VALUE(P$7)+$C$29-1, newrates, $A18+2, FALSE))*P$10*waf) -> 0 | Q18: 0
A19: 8 | B19: Pupil Services | C19: 0 | D19: 0 | E19: 0 | F19: 0 | G19: 0 | H19: 0 | I19: 0 | K19: 0 | L19: 0 | M19: 0 | N19: 0 | O19: 0 | P19: =IF(C29=0,0,(VLOOKUP(VALUE(P$7)+$C$29-1, newrates, $A19+2, FALSE))*P$10*waf) -> 0 | Q19: 0
A20: 9 | B20: Operations & Maintenance | C20: 0 | D20: 0 | E20: 0 | F20: 0 | G20: 0 | H20: 0 | I20: 0 | K20: 0 | L20: 0 | M20: 0 | N20: 0 | O20: 0 | P20: =IF(C29=0,0,(VLOOKUP(VALUE(P$7)+$C$29-1, newrates, $A20+2, FALSE))*P$10*waf) -> 0 | Q20: 0
A21: 10 | B21: Employee Benefits/Fixed Charges* | C21: =(VLOOKUP(VALUE(C$7),newrates,$A21+2)*C$10) -> 0 | D21: 0 | E21: 0 | F21: 0 | G21: 0 | H21: 0 | I21: 0 | K21: =(VLOOKUP(VALUE(K$7),newrates,$A21+2)*K$10) -> 0 | L21: =(VLOOKUP(VALUE(L$7),newrates,$A21+2)*L$10) -> 0 | M21: =(VLOOKUP(VALUE(M$7),newrates,$A21+2)*M$10) -> 0 | N21: =(VLOOKUP(VALUE(N$7),newrates,$A21+2)*N$10) -> 0 | O21: =(VLOOKUP(VALUE(O$7),newrates,$A21+2)*O$10) -> 0 | P21: =IF(C29=0,0,(VLOOKUP(VALUE(P$7)+$C$29-1, newrates, $A21+2, FALSE))*P$10) -> 0 | Q21: 0
A22: 11 | B22: Special Education Tuition* | C22: 0 | D22: 0 | E22: 0 | F22: 0 | G22: 0 | H22: 0 | I22: 0 | K22: =(VLOOKUP(VALUE(K$7)-2,newrates,$A22+2)*K$10) -> 0 | L22: =(VLOOKUP(VALUE(L$7),newrates,$A22+2)*L$10) -> 0 | M22: =(VLOOKUP(VALUE(M$7),newrates,$A22+2)*M$10) -> 0 | N22: =(VLOOKUP(VALUE(N$7),newrates,$A22+2)*N$10) -> 0 | O22: =(VLOOKUP(VALUE(O$7)-2,newrates,$A22+2)*O$10) -> 0 | P22: =IF(C29=0,0,(VLOOKUP(VALUE(P$7)+$C$29-1, newrates, $A22+2, FALSE))*P$10) -> 0 | Q22: 0
A24: 12 | B24: Total | C24: =SUM(C12:C22) -> 0 | D24: =SUM(D12:D22) -> 0 | E24: =SUM(E12:E22) -> 0 | F24: 0 | G24: 0 | H24: 0 | I24: =SUM(I12:I22) -> 0 | K24: 0 | L24: 0 | M24: 0 | N24: 0 | O24: 0 | P24: 0 | Q24: =SUM(Q12:Q23) -> 0
A26: 13 | B26: Wage Adjustment Factor | C26: =VLOOKUP(lea,dist915,17) -> 1 | N26: Foundation Budget per Pupil | Q26: =IFERROR(IF(A5<>999,Q24/Q10," "),"") -> 
B27: *The wage adjustment factor is applied to underlying rates in all functions except instructional equipment, benefits and special education tuition.
A28: 14 | B28: Low-income percentage | C28: =VLOOKUP(lea,dist915,19) -> 0 | L28: English learner foundation budget as % total foundation budget | Q28: =IFERROR(IF(A5=999,"",SUM(M24:O24)/Q24),"") -> 
A29: 15 | B29: Low-income group | C29: =VLOOKUP(lea,dist915,18) -> 0 | L29: Low-income foundation budget as % total foundation budget | Q29: =IFERROR(IF(A5=999,"",P24/Q24),"") -> 
B32: Total foundation enrollment (column 14) does not include incremental costs above the base. The pupils are already counted in columns 1 to 7. | K32: Low-income group | L32: Low-income %
B33: Total foundation enrollment assigns pupils in pre-kindergarten and half-time kindergarten an enrollment count of .5. | K33: Group 1 | L33: 0-5.99%
B34: Special education in-district enrollment is an assumed percentage, representing 3.86 percent of K-12 non-vocational enrollment and | K34: Group 2 | L34: 6-11.99%
B35: 4.86 percent of vocational enrollment. | K35: Group 3 | L35: 12-17.99%
B36: Special education tuitioned-out enrollment is also an assumed percentage, representing 1 percent of non-vocational K-12 enrollment. | K36: Group 4 | L36: 18-23.99%
B37: Direct certification includes the Supplemental Nutrition Assistance Program (SNAP); | K37: Group 5 | L37: 24-29.99%
B38: the Transitional Assistance for Families with Dependent Children (TAFDC); MassHealth (Medicaid); and students in foster care. | K38: Group 6 | L38: 30-35.99%
B39: Low-income and English learner foundation budget increments are based on: | K39: Group 7 | L39: 36-41.99%
B40: the number of students attending school in the district or district residents who attend charter schools. | K40: Group 8 | L40: 42-47.99%
B41: The low-income percentage is the ratio of the low-income enrollment to: | K41: Group 9 | L41: 48-53.99%
B42: the total students attending school in the district and the total resident students attending charter schools. | K42: Group 10 | L42: 54-69.99%
K43: Group 11 | L43: 70-79.99%
B44: Each component of the foundation budget represents the enrollment in row 10 multiplied by the appropriate statewide foundation allotment. | K44: Group 12 | L44: 80%+
B45: The foundation budget shown on this page may differ from the final number used in the formula, due to rounding error.
B48: Return to Index

Sheet Municipal Contribution
M1: =IF(VLOOKUP(A6,town351,18)>0,"lo","hi") -> hi
A2: Return to Index | G2: More about the data
A3: Massachusetts Department of Elementary and Secondary Education
A4: Office of School Finance
A5: =parameters!B1&" Chapter 70 Determination of City and Town Total Required Contribution" -> FY23 Chapter 70 Determination of City and Town Total Required Contribution
A6: =lea -> 999 | B6: =IF(lea>351, "This lea code does not refer to a city or a town - this table shows municipal data only.",VLOOKUP(A6,aidcalc,2)) -> This lea code does not refer to a city or a town - this table shows municipal data only.
A8: Effort Goal | E8: =parameters!B1&" Increments Toward Goal" -> FY23 Increments Toward Goal
A10: 1) | B10: 2020 equalized valuation | C10: =IF(A6<352,VLOOKUP($A$6,town351,3)," ") ->  | E10: 13) | F10: =PYr&" required local contribution" -> FY22 required local contribution | G10: =IF(A6<352,VLOOKUP($A$6,town351,14)," ") -> 
A11: 2) | B11: Uniform property percentage | C11: =IF(A6<352,'Townwide Contributions'!D5," ") ->  | E11: 14) | F11: Municipal revenue growth factor (DOR) | G11: =IF(A$6<352,VLOOKUP($A$6,town351,15)," ") -> 
A12: 3) | B12: Local effort from property wealth | C12: =IF(A6<352,VLOOKUP($A$6,town351,4)," ") ->  | E12: 15) | F12: =parameters!B1&" preliminary contribution (13 raised by 14)" -> FY23 preliminary contribution (13 raised by 14) | G12: =IF(A$6<352,VLOOKUP($A$6,town351,16)," ") -> 
E13: 16) | F13: Preliminary contribution pct of foundation (15 / 8) | G13: =IF(A$6<352,VLOOKUP($A$6,town351,17)/100," ") -> 
A14: 4) | B14: 2019 income | C14: =IF(A6<352,VLOOKUP($A$6,town351,5)," ") -> 
A15: 5) | B15: Uniform income percentage | C15: =IF(A6<352,'Townwide Contributions'!F5," ") ->  | E15: If preliminary contribution is above the target share:
A16: 6) | B16: Local effort from income | C16: =IF(A6<352,VLOOKUP($A$6,town351,6)," ") ->  | E16: 17) | F16: Excess local effort (15 - 10) | G16: =IF(AND(A$6<352,M$1="hi"),VLOOKUP($A$6,town351,21)," ") -> 
E17: 18) | F17: =parameters!$C$50&" reduction toward target (17 x "&parameters!$C$50&")" -> 100% reduction toward target (17 x 100%) | G17: =IF(AND(A$6<352,M$1="hi"),VLOOKUP($A$6,town351,22)," ") -> 
A18: 7) | B18: Combined effort yield (3 + 6) | C18: =IF(A6<352,VLOOKUP($A$6,town351,7)," ") ->  | E18: 19) | F18: =parameters!B1&" required local contribution (15 - 18), capped at 90% of foundation" -> FY23 required local contribution (15 - 18), capped at 90% of foundation | G18: =IF(AND(A$6<352,M$1="hi"),VLOOKUP($A$6,town351,24)," ") -> 
E19: 20) | F19: Contribution as percentage of foundation (19 / 8) | G19: =IF(AND(A$6<352,M$1="hi"),VLOOKUP($A$6,town351,25)/100," ") -> 
A20: 8) | B20: =parameters!B1&" Foundation budget" -> FY23 Foundation budget | C20: =IF(A6<352,VLOOKUP($A$6,town351,8)," ") -> 
A21: 9) | B21: Maximum local contribution (82.5% * 8) | C21: =IF(A6<352,VLOOKUP($A$6,town351,10)," ") ->  | E21: If preliminary contribution is below the target share:
E22: 21) | F22: Shortfall from target local share (10 - 15) | G22: =IF(AND(A$6<352,M1="lo"),-1*VLOOKUP($A$6,town351,27)," ") -> 
A23: 10) | B23: Target local contribution (lesser of 7 or 9) | C23: =IF(A6<352,VLOOKUP($A$6,town351,11)," ") ->  | E23: 22) | F23: Shortfall percentage (11 - 16) | G23: =IF(AND(A$6<352,M1="lo"),VLOOKUP($A$6,town351,18)/100," ") -> 
E24: 23) | F24: Added increment toward target (13 x 1% or 2%)* | G24: =IF(AND(A$6<352,M1="lo"),VLOOKUP($A$6,town351,20)," ") -> 
A25: 11) | B25: Target local share (10 as % of 8) | C25: =IF(A6<352,VLOOKUP(lea,town351,12)/100," ") ->  | F25: *1% if shortfall is between 2.5% and 7.5%; 2% if shortfall > 7.5%
A26: 12) | B26: Target aid share (100% minus 11) | C26: =IF(A6<352,VLOOKUP(lea,aidcalc,13)/100," ") ->  | E26: 24) | F26: Special increment toward 82.5% target** | G26: =IF(AND(A$6<352,M1="lo"),VLOOKUP($A$6,town351,23)," ") -> 
F27: **if combined effort yield > 175% foundation
F28: Combined effort yield as % of foundation | G28: =IF(AND(A$6<352,M1="lo"),IF(VLOOKUP($A$6,town351,9)>175%,VLOOKUP($A$6,town351,9)," "),"") -> 
B29: See a listing of all 351 communities | E29: 25) | F29: Shortfall from target after adding increments (10 - 15 - 23 - 24) | G29: =IF(AND(A$6<352,M1="lo"),-1*VLOOKUP($A$6,town351,28)," ") -> 
E30: 26) | F30: =parameters!B1&" required local contribution (15 + 23 + 24)" -> FY23 required local contribution (15 + 23 + 24) | G30: =IF(AND(A$6<352,M1="lo"),VLOOKUP($A$6,town351,24)," ") -> 
E31: 27) | F31: Contribution as percentage of foundation (26 / 8) | G31: =IF(AND(A$6<352,M1="lo"),VLOOKUP($A$6,town351,25)/100," ") -> 

Sheet Regional Allocation
J1: More about the data
D2: Return to Index
D3: Massachusetts Department of Elementary and Secondary Education
D4: Office of School Finance
D5: =CYr& " Chapter 70 Apportionment of Local Contribution Across School Districts" -> FY23 Chapter 70 Apportionment of Local Contribution Across School Districts
E7: 4 | F7: 4 | G7: 3 | H7: 2 | I7: 1
A9: 5 | D9: =lea -> 999 | E9: =IF($D$9>351, "", IF(AND($D$9>0, VLOOKUP($D$9*5-E$7, order1755, $A9)<>0), VLOOKUP($D$9*5-E$7, order1755, $A9), "")) ->  | F9: =IF(OR($D$9="", $D$9>351), "", IF(AND($D$9>0, VLOOKUP($D$9*5-F$7, order1755, $A9)<>0), VLOOKUP($D$9*5-F$7, order1755, $A9), "")) ->  | G9: =IF(OR($D$9="", $D$9>351), "", IF(AND($D$9>0, VLOOKUP($D$9*5-G$7, order1755, $A9)<>0), VLOOKUP($D$9*5-G$7, order1755, $A9), "")) ->  | H9: =IF(OR($D$9="", $D$9>351), "", IF(AND($D$9>0, VLOOKUP($D$9*5-H$7, order1755, $A9)<>0), VLOOKUP($D$9*5-H$7, order1755, $A9), "")) ->  | I9: =IF(OR($D$9="", $D$9>351), "", IF(AND($D$9>0, VLOOKUP($D$9*5-I$7, order1755, $A9)<>0), VLOOKUP($D$9*5-I$7, order1755, $A9), "")) ->  | J9: Combined Total for All Districts
A10: 6
E11: Prior Year Data (for comparison purposes)
A13: 15 | D13: 1 | E13: =parameters!B2&" foundation enrollment" -> FY22 foundation enrollment | F13: =IF(OR($D$9="", $D$9>351), "", IF(AND($D$9>0, VLOOKUP($D$9*5-F$7, order1755, $A13)<>0), VLOOKUP($D$9*5-F$7, order1755, $A13), "")) ->  | J13: =IF(OR($D$9="", $D$9>351), "", VLOOKUP($D$9*5, order1755, $A13)) -> 
A14: 6 | D14: 2 | E14: =parameters!B2&" foundation budget" -> FY22 foundation budget | J14: =IF(OR($D$9="", $D$9>351), "", VLOOKUP($D$9*5, order1755, $A14)) -> 
A15: 7 | D15: 3 | E15: ="Each district's share of municipality's combined "& parameters!B2&" foundation" -> Each district's share of municipality's combined FY22 foundation | J15: =IF(OR($D$9="", $D$9>351), "", VLOOKUP($D$9*5, order1755, $A15)) -> 
A16: 12 | D16: 4 | E16: =parameters!B2&" required contribution" -> FY22 required contribution | J16: =IF(OR($D$9="", $D$9>351), "", VLOOKUP($D$9*5, order1755, $A16)) -> 
E17: =parameters!B1& " apportionment of contribution among community's districts" -> FY23 apportionment of contribution among community's districts
D18: 5 | E18: =parameters!B1&" total unapportioned required contribution ('municipal contribution' tab row 19 or 25)" -> FY23 total unapportioned required contribution ('municipal contribution' tab row 19 or 25) | J18: =IF(OR($D$9="", $D$9>351), "", VLOOKUP($D$9,town351,24)) -> 
A19: 20 | D19: 6 | E19: =parameters!B1&" foundation enrollment" -> FY23 foundation enrollment | F19: =IF(OR($D$9="", $D$9>351), "", IF(AND($D$9>0, VLOOKUP($D$9*5-F$7, order1755, $A19)<>0), VLOOKUP($D$9*5-F$7, order1755, $A19), "")) ->  | J19: =IF(OR($D$9="", $D$9>351), "", VLOOKUP($D$9*5, order1755, $A19)) -> 
A20: 8 | D20: 7 | E20: =parameters!B1&" foundation budget" -> FY23 foundation budget | J20: =IF(OR($D$9="", $D$9>351), "", VLOOKUP($D$9*5, order1755, $A20)) -> 
A21: 9 | D21: 8 | E21: ="Each district's share of municipality's total "& parameters!B1&" foundation " -> Each district's share of municipality's total FY23 foundation | J21: =IF(OR($D$9="", $D$9>351), "", VLOOKUP($D$9*5, order1755, $A21)) -> 
A22: 11 | D22: 9 | E22: =parameters!B1&" Required Contribution" -> FY23 Required Contribution | J22: =VLOOKUP($D$9*5, order1755, $A22) -> 7166744291
A24: 13 | D24: 10 | E24: ="Change "&parameters!B1&" to "&parameters!B2& " (9 - 4)" -> Change FY23 to FY22 (9 - 4) | F24: =IF(OR($D$9="", $D$9>351), "", IF(AND($D$9>0, VLOOKUP($D$9*5-F$7, order1755, $A24)<>0), VLOOKUP($D$9*5-F$7, order1755, $A24), "")) ->  | G24: =IF(OR($D$9="", $D$9>351), "", IF(AND($D$9>0, VLOOKUP($D$9*5-G$7, order1755, $A24)<>0), VLOOKUP($D$9*5-G$7, order1755, $A24), "")) ->  | H24: =IF(OR($D$9="", $D$9>351), "", IF(AND($D$9>0, VLOOKUP($D$9*5-H$7, order1755, $A24)<>0), VLOOKUP($D$9*5-H$7, order1755, $A24), "")) ->  | I24: =IF(OR($D$9="", $D$9>351), "", IF(AND($D$9>0, VLOOKUP($D$9*5-I$7, order1755, $A24)<>0), VLOOKUP($D$9*5-I$7, order1755, $A24), "")) ->  | J24: =IF(OR($D$9="", $D$9>351), "", VLOOKUP($D$9*5, order1755, $A24)) -> 
E26: The combined totals on lines 5 and 9 may differ due to rounding.

Sheet Summary
A1: Return to Index | J1: More about the data
A3: Massachusetts Department of Elementary and Secondary Education
A4: =parameters!B1&" Chapter 70 Summary" -> FY23 Chapter 70 Summary
A6: =lea -> 999 | B6: =PROPER(VLOOKUP(A6,dist915,2)) -> State Total
A8: ="Aid Calculation "&CYr -> Aid Calculation FY23 | E8: ="Comparison to "&PYr -> Comparison to FY22
F10: =PYr -> FY22 | G10: =CYr -> FY23 | H10: Change | I10: Pct Chg | U10: FY06 | V10: FY07 | W10: FY08 | X10: FY09 | Y10: FY10 | Z10: FY11 | AA10: FY12 | AB10: FY13 | AC10: FY14 | AD10: FY15 | AE10: FY16 | AF10: FY17 | AG10: FY18 | AH10: FY19 | AI10: FY20 | AJ10: FY21 | AK10: FY22 | AL10: FY23
A11: Prior Year Aid | E11: Enrollment | F11: =VLOOKUP(A6,aidcalc,14) -> 907506 | G11: =VLOOKUP(A6,aidcalc,15) -> 903751 | H11: =G11-F11 -> -3755 | I11: =IF(F11>0, H11/F11, 0) -> -0.00413771369 | T11: Required District Contribution | U11: =VLOOKUP($A$6,disthist,5) -> 4743946672 | V11: =VLOOKUP($A$6,disthist,8) -> 4876428772 | W11: =VLOOKUP($A$6,disthist,11) -> 4997705374 | X11: =VLOOKUP($A$6,disthist,14) -> 5110365426 | Y11: =VLOOKUP($A$6,disthist,18) -> 5250106061 | Z11: =VLOOKUP($A$6,disthist,22) -> 5302200670 | AA11: =VLOOKUP($A$6,disthist,27) -> 5413602268 | AB11: =VLOOKUP($A$6,disthist,30) -> 5582113529 | AC11: =VLOOKUP($A$6,disthist, 33) -> 5748475145 | AD11: =VLOOKUP($A$6,disthist, 36) -> 5817618237 | AE11: =VLOOKUP($A$6,disthist, 39) -> 5943909029 | AF11: =VLOOKUP($A$6,disthist, 42) -> 5926185567 | AG11: =VLOOKUP($A$6,disthist, 45) -> 6046916786 | AH11: =VLOOKUP($A$6,disthist, 48) -> 6246842886 | AI11: =VLOOKUP($A$6,disthist, 51) -> 6513607368 | AJ11: =VLOOKUP($A$6,disthist, 54) -> 6705321561 | AK11: =VLOOKUP($A$6,disthist, 57) -> 6827673657 | AL11: =VLOOKUP($A$6,aidcalc,10 ) -> 7166744291
A12: 1 | B12: ="Chapter 70 "&PYr -> Chapter 70 FY22 | C12: =VLOOKUP(A6,aidcalc,6) -> 5502959667 | E12: Foundation budget | F12: =VLOOKUP(A6,disthist,56) -> 1.192622579e+10 | G12: =VLOOKUP(A6,aidcalc,9) -> 1.289033588e+10 | H12: =G12-F12 -> 964110088.9 | I12: =IF(F12>0, H12/F12, 0) -> 0.08083949656 | T12: C70 Aid | U12: =VLOOKUP($A$6,disthist,6) -> 3288603062 | V12: =VLOOKUP($A$6,disthist,9) -> 3505192039 | W12: =VLOOKUP($A$6,disthist,12) -> 3725343327 | X12: =VLOOKUP($A$6,disthist,15)+VLOOKUP($A$6,disthist,16) -> 3948496062 | Y12: =VLOOKUP($A$6,disthist,19)+VLOOKUP($A$6,disthist,20) -> 4043156700 | Z12: =VLOOKUP($A$6,disthist,23)+VLOOKUP($A$6,disthist,24)+VLOOKUP($A$6,disthist,25) -> 4072032853 | AA12: =VLOOKUP($A$6,disthist,28) -> 3990504093 | AB12: =VLOOKUP($A$6,disthist,31) -> 4173223954 | AC12: =VLOOKUP($A$6,disthist,34) -> 4300854366 | AD12: =VLOOKUP($A$6,disthist,37) -> 4400335962 | AE12: =VLOOKUP($A$6,disthist,40) -> 4511521974 | AF12: =VLOOKUP($A$6,disthist,43) -> 4627705061 | AG12: =VLOOKUP($A$6,disthist,46) -> 4745645156 | AH12: =VLOOKUP($A$6,disthist,49) -> 4906614766 | AI12: =VLOOKUP($A$6,disthist,52) -> 5175694094 | AJ12: =VLOOKUP($A$6,disthist,55) -> 5283343073 | AK12: =VLOOKUP($A$6,disthist,58) -> 5502959667 | AL12: =VLOOKUP($A$6,aidcalc,25) -> 5988211808
E13: Required district contribution | F13: =VLOOKUP(A6,disthist,57) -> 6827673657 | G13: =VLOOKUP($A$6, aidcalc, 10) -> 7166744291 | H13: =G13-F13 -> 339070634 | I13: =IF(F13>0, H13/F13, 0) -> 0.04966122446 | T13: Foundation Budget | U13: =VLOOKUP($A$6,disthist,4) -> 7551933454 | V13: =VLOOKUP($A$6,disthist,7) -> 8014672861 | W13: =VLOOKUP($A$6,disthist,10) -> 8406096436 | X13: =VLOOKUP($A$6,disthist,13) -> 8811314229 | Y13: =VLOOKUP($A$6,disthist,17) -> 9088557473 | Z13: =VLOOKUP($A$6,disthist,21) -> 8921047970 | AA13: =VLOOKUP($A$6,disthist,26) -> 9119340580 | AB13: =VLOOKUP($A$6,disthist,29) -> 9467117141 | AC13: =VLOOKUP($A$6,disthist, 32) -> 9711217585 | AD13: =VLOOKUP($A$6,disthist, 35) -> 9866011313 | AE13: =VLOOKUP($A$6,disthist, 38) -> 1.009017727e+10 | AF13: =VLOOKUP($A$6,disthist, 41) -> 1.012823838e+10 | AG13: =VLOOKUP($A$6,disthist, 44) -> 1.037917384e+10 | AH13: =VLOOKUP($A$6,disthist, 47) -> 1.077758855e+10 | AI13: =VLOOKUP($A$6,disthist, 50) -> 1.135904851e+10 | AJ13: =VLOOKUP($A$6,disthist, 53) -> 1.16265311e+10 | AK13: =VLOOKUP($A$6,disthist, 56) -> 1.192622579e+10 | AL13: =VLOOKUP($A$6,aidcalc,9 ) -> 1.289033588e+10
A14: Foundation Aid | E14: Chapter 70 aid | F14: =IF(A6=999,VLOOKUP(A6,disthist,58,0)+308558,VLOOKUP(A6,disthist,58,0)) -> 5503268225 | G14: =IF(A6=999,VLOOKUP($A$6,aidcalc,25,0)+308558,VLOOKUP($A$6,aidcalc,25,0)) -> 5988520366 | H14: =G14-F14 -> 485252141 | I14: =IF(F14>0, H14/F14, 0) -> 0.08817526626
A15: 2 | B15: ="Foundation budget "&CYr -> Foundation budget FY23 | C15: =VLOOKUP($A$6, aidcalc, 9) -> 1.289033588e+10 | E15: Required net school spending (NSS) | F15: =F13+F14 -> 1.233094188e+10 | G15: =G13+G14 -> 1.315526466e+10 | H15: =G15-F15 -> 824322775 | I15: =IF(F15>0, H15/F15, 0) -> 0.06684994406
A16: 3 | B16: ="Required district contribution "& CYr -> Required district contribution FY23 | C16: =VLOOKUP($A$6, aidcalc, 10) -> 7166744291
A17: 4 | B17: Foundation aid (2 -3) | C17: =VLOOKUP($A$6, aidcalc, 11) -> 5723591590 | E17: Target aid share | F17: =VLOOKUP(A$6,disthist,3)/100 -> 0.41 | G17: =VLOOKUP(A6,aidcalc,13)/100 -> 0.41
A18: 5 | B18: ="Increase over " & PYr&" (4 - 1)" -> Increase over FY22 (4 - 1) | C18: =VLOOKUP($A$6, aidcalc, 12) -> 475998886 | E18: C70 % of foundation | F18: =IF(F12>0,F14/F12,IF(F14>0,1,0)) -> 0.4614425654 | G18: =IF(G12>0,G14/G12,IF(G14>0,1,0)) -> 0.4645744239
A20: Minimum Aid | E20: Required NSS % of foundation | F20: =IF(F12>0,F15/F12,IF(F15>0,1,0)) -> 1.033934968 | G20: =IF(G12>0,G15/G12,IF(G15>0,1,0)) -> 1.020552511
A21: 6 | B21: Minimum $30 per pupil increase | C21: =IF(A6=999,"",VLOOKUP($A$6,aidcalc,17,0)) -> 
A22: 7 | B22: Minimum aid amount
B23: (if line 6 - line 5 > 0, then line 6 - line 5, otherwise 0) | C23: =VLOOKUP($A$6, aidcalc, 18,0) -> 9180653
A25: Subtotal
A26: 8 | B26: Sum of 1,5,7 | C26: =C12+C18+C23 -> 5988139206
A28: Minimum Aid Adjustment
A29: 9 | B29: Minimum aid adjustment | C29: =IF(A6=999,"",VLOOKUP($A$6, aidcalc, 20)) -> 
A30: 10 | B30: Aid adjustment increment
B31: (if line 9 - line 8 > 0, then line 9 - line 8, otherwise 0) | C31: =VLOOKUP($A$6, aidcalc, 21, FALSE) -> 111576
A33: Non-Operating District Reduction to Foundation
A34: 11 | B34: Reduction to foundation | C34: =VLOOKUP($A$6, aidcalc, 23) -> 38974
A36: =CYr&" Chapter 70 Aid" -> FY23 Chapter 70 Aid
A37: 12 | B37: Sum of 1,5,7,10 minus 11 | C37: =VLOOKUP($A$6, aidcalc, 25) -> 5988211808
B38: =IF(A6=999,"with Devens aid","") -> with Devens aid | C38: =IF(A6=999,C37+308558,"") -> 5988520366
A40: Note on Minimum Aid Adjustment on lines 9 and 10:
A41: The minimum aid adjustment is the sum of (a) the greater of foundation aid or base aid determined based on the FY21 base and incremental rates, inflated to FY23, and (b) foundation enrollment multiplied by $30. The aid adjustment increment (line 10) is the line 9 amount less the line 9 amount if the difference is positive. Otherwise, the increment is zero.

Sheet Regional District Members
E2: Return to Index
F3: Select or type full regional district name below
E4: =VLOOKUP(reg_order, regdistricts, 3, FALSE) -> 600 | F4: Acton Boxborough | G4: =VLOOKUP(F4,leas!$E$450:$H$536,4,FALSE) -> 1
E6: Massachusetts Department of Elementary and Secondary Education
E7: Office of School Finance
E8: =CYr&" Chapter 70" -> FY23 Chapter 70
E9: Regional District Enrollment and Contributions by Member City or Town
E10: The table below presents the minimum required local contribution for each member to the selected regional district.
E11: Note: A city or town might belong to more than one regional district (e.g., a regional district and a vocational district) and therefore be required to contribute to multiple districts. See the regional allocation tab for a full list of minimum required contributions for each city or town. Foundation enrollments are presented as whole numbers. The change column reflects differences prior to rounding.
B12: =VLOOKUP(E4, leas!D6:G445, 4, FALSE) -> 0600 | D12: 2 | E12: =VLOOKUP(reg_order, regdistricts, 2, FALSE) -> 600 Acton Boxborough
G14: Foundation Enrollment in Regional District | J14: Required Minimum Contribution to Regional District
B16: =VLOOKUP($E$4, regcount, 2, FALSE) -> 2 | E16: LEA | F16: Member | G16: =PYr -> FY22 | H16: =CYr -> FY23 | I16: Change | J16: =PYr -> FY22 | K16: =CYr -> FY23 | L16: Change
F18: Total | G18: =SUM(G20:G67) -> 5120 | H18: =SUM(H20:H67) -> 5047 | I18: =SUM(I20:I67) -> -73 | J18: =SUM(J20:J67) -> 46723042 | K18: =SUM(K20:K67) -> 48377825 | L18: =SUM(L20:L62) -> 1654783
A20: =IF($C20<=$B$16,VLOOKUP(E20,leas!D6:G445,4,FALSE),"") -> 0002 | B20: =$E$4*100+C20 -> 60001 | C20: 1 | E20: =IF($C20<=$B$16, VLOOKUP($B20, regdetail, 5), " ") -> 2 | F20: =IF($C20<=$B$16, VLOOKUP($B20, regdetail, 6), " ") -> Acton | G20: =IF($C20<=$B$16,VLOOKUP(A20&$B$12, localcont!A10:X1764, 18, FALSE), "") -> 4287.104809 | H20: =IF($C20<=$B$16,VLOOKUP(A20&$B$12, localcont!$A$10:$X$1764, 23, FALSE), "") -> 4230.155832 | I20: =IF($C20<=$B$16, H20-G20, " ") -> -56.94897779 | J20: =IF($C20<=$B$16,VLOOKUP(A20&$B$12, localcont!$A$10:$X$1764, 15, FALSE), "") -> 38962815 | K20: =IF($C20<=$B$16,VLOOKUP(A20&$B$12, localcont!$A$10:$X$1764, 14, FALSE),"") -> 40380318 | L20: =IF($C20<=$B$16, K20-J20, " ") -> 1417503
A21: =IF($C21<=$B$16,VLOOKUP(E21,leas!D7:G446,4,FALSE),"") -> 0037 | B21: =$E$4*100+C21 -> 60002 | C21: 2 | E21: 37 | F21: Boxborough | G21: =IF($C21<=$B$16,VLOOKUP(A21&$B$12, localcont!A11:X1765, 18, FALSE), "") -> 832.8951906 | H21: =IF($C21<=$B$16,VLOOKUP(A21&$B$12, localcont!$A$10:$X$1764, 23, FALSE), "") -> 816.8441684 | I21: =IF($C21<=$B$16, H21-G21, " ") -> -16.05102221 | J21: =IF($C21<=$B$16,VLOOKUP(A21&$B$12, localcont!$A$10:$X$1764, 15, FALSE), "") -> 7760227 | K21: =IF($C21<=$B$16,VLOOKUP(A21&$B$12, localcont!$A$10:$X$1764, 14, FALSE),"") -> 7997507 | L21: =IF($C21<=$B$16, K21-J21, " ") -> 237280
A22: =IF($C22<=$B$16,VLOOKUP(E22,leas!D8:G447,4,FALSE),"") ->  | B22: 60003 | C22: 3 | G22: =IF($C22<=$B$16,VLOOKUP(A22&$B$12, localcont!A12:X1766, 18, FALSE), "") ->  | H22: =IF($C22<=$B$16,VLOOKUP(A22&$B$12, localcont!$A$10:$X$1764, 23, FALSE), "") ->  | J22: =IF($C22<=$B$16,VLOOKUP(A22&$B$12, localcont!$A$10:$X$1764, 15, FALSE), "") ->  | K22: =IF($C22<=$B$16,VLOOKUP(A22&$B$12, localcont!$A$10:$X$1764, 14, FALSE),"") -> 
A23: =IF($C23<=$B$16,VLOOKUP(E23,leas!D9:G448,4,FALSE),"") ->  | B23: 60004 | C23: 4 | G23: =IF($C23<=$B$16,VLOOKUP(A23&$B$12, localcont!A13:X1767, 18, FALSE), "") ->  | H23: =IF($C23<=$B$16,VLOOKUP(A23&$B$12, localcont!$A$10:$X$1764, 23, FALSE), "") ->  | J23: =IF($C23<=$B$16,VLOOKUP(A23&$B$12, localcont!$A$10:$X$1764, 15, FALSE), "") ->  | K23: =IF($C23<=$B$16,VLOOKUP(A23&$B$12, localcont!$A$10:$X$1764, 14, FALSE),"") -> 
A24: =IF($C24<=$B$16,VLOOKUP(E24,leas!D10:G449,4,FALSE),"") ->  | B24: 60005 | C24: 5 | G24: =IF($C24<=$B$16,VLOOKUP(A24&$B$12, localcont!A14:X1768, 18, FALSE), "") ->  | H24: =IF($C24<=$B$16,VLOOKUP(A24&$B$12, localcont!$A$10:$X$1764, 23, FALSE), "") ->  | J24: =IF($C24<=$B$16,VLOOKUP(A24&$B$12, localcont!$A$10:$X$1764, 15, FALSE), "") ->  | K24: =IF($C24<=$B$16,VLOOKUP(A24&$B$12, localcont!$A$10:$X$1764, 14, FALSE),"") -> 
A25: =IF($C25<=$B$16,VLOOKUP(E25,leas!D11:G450,4,FALSE),"") ->  | B25: 60006 | C25: 6 | G25: =IF($C25<=$B$16,VLOOKUP(A25&$B$12, localcont!A15:X1769, 18, FALSE), "") ->  | H25: =IF($C25<=$B$16,VLOOKUP(A25&$B$12, localcont!$A$10:$X$1764, 23, FALSE), "") ->  | J25: =IF($C25<=$B$16,VLOOKUP(A25&$B$12, localcont!$A$10:$X$1764, 15, FALSE), "") ->  | K25: =IF($C25<=$B$16,VLOOKUP(A25&$B$12, localcont!$A$10:$X$1764, 14, FALSE),"") -> 
A26: =IF($C26<=$B$16,VLOOKUP(E26,leas!D12:G451,4,FALSE),"") ->  | B26: 60007 | C26: 7 | G26: =IF($C26<=$B$16,VLOOKUP(A26&$B$12, localcont!A16:X1770, 18, FALSE), "") ->  | H26: =IF($C26<=$B$16,VLOOKUP(A26&$B$12, localcont!$A$10:$X$1764, 23, FALSE), "") ->  | J26: =IF($C26<=$B$16,VLOOKUP(A26&$B$12, localcont!$A$10:$X$1764, 15, FALSE), "") ->  | K26: =IF($C26<=$B$16,VLOOKUP(A26&$B$12, localcont!$A$10:$X$1764, 14, FALSE),"") -> 
A27: =IF($C27<=$B$16,VLOOKUP(E27,leas!D13:G452,4,FALSE),"") ->  | B27: 60008 | C27: 8 | G27: =IF($C27<=$B$16,VLOOKUP(A27&$B$12, localcont!A17:X1771, 18, FALSE), "") ->  | H27: =IF($C27<=$B$16,VLOOKUP(A27&$B$12, localcont!$A$10:$X$1764, 23, FALSE), "") ->  | J27: =IF($C27<=$B$16,VLOOKUP(A27&$B$12, localcont!$A$10:$X$1764, 15, FALSE), "") ->  | K27: =IF($C27<=$B$16,VLOOKUP(A27&$B$12, localcont!$A$10:$X$1764, 14, FALSE),"") -> 
A28: =IF($C28<=$B$16,VLOOKUP(E28,leas!D14:G453,4,FALSE),"") ->  | B28: 60009 | C28: 9 | G28: =IF($C28<=$B$16,VLOOKUP(A28&$B$12, localcont!A18:X1772, 18, FALSE), "") ->  | H28: =IF($C28<=$B$16,VLOOKUP(A28&$B$12, localcont!$A$10:$X$1764, 23, FALSE), "") ->  | J28: =IF($C28<=$B$16,VLOOKUP(A28&$B$12, localcont!$A$10:$X$1764, 15, FALSE), "") ->  | K28: =IF($C28<=$B$16,VLOOKUP(A28&$B$12, localcont!$A$10:$X$1764, 14, FALSE),"") -> 
A29: =IF($C29<=$B$16,VLOOKUP(E29,leas!D15:G454,4,FALSE),"") ->  | B29: 60010 | C29: 10 | G29: =IF($C29<=$B$16,VLOOKUP(A29&$B$12, localcont!A19:X1773, 18, FALSE), "") ->  | H29: =IF($C29<=$B$16,VLOOKUP(A29&$B$12, localcont!$A$10:$X$1764, 23, FALSE), "") ->  | J29: =IF($C29<=$B$16,VLOOKUP(A29&$B$12, localcont!$A$10:$X$1764, 15, FALSE), "") ->  | K29: =IF($C29<=$B$16,VLOOKUP(A29&$B$12, localcont!$A$10:$X$1764, 14, FALSE),"") -> 
A30: =IF($C30<=$B$16,VLOOKUP(E30,leas!D16:G455,4,FALSE),"") ->  | B30: 60011 | C30: 11 | G30: =IF($C30<=$B$16,VLOOKUP(A30&$B$12, localcont!A20:X1774, 18, FALSE), "") ->  | H30: =IF($C30<=$B$16,VLOOKUP(A30&$B$12, localcont!$A$10:$X$1764, 23, FALSE), "") ->  | J30: =IF($C30<=$B$16,VLOOKUP(A30&$B$12, localcont!$A$10:$X$1764, 15, FALSE), "") ->  | K30: =IF($C30<=$B$16,VLOOKUP(A30&$B$12, localcont!$A$10:$X$1764, 14, FALSE),"") -> 
A31: =IF($C31<=$B$16,VLOOKUP(E31,leas!D17:G456,4,FALSE),"") ->  | B31: 60012 | C31: 12 | G31: =IF($C31<=$B$16,VLOOKUP(A31&$B$12, localcont!A21:X1775, 18, FALSE), "") ->  | H31: =IF($C31<=$B$16,VLOOKUP(A31&$B$12, localcont!$A$10:$X$1764, 23, FALSE), "") ->  | J31: =IF($C31<=$B$16,VLOOKUP(A31&$B$12, localcont!$A$10:$X$1764, 15, FALSE), "") ->  | K31: =IF($C31<=$B$16,VLOOKUP(A31&$B$12, localcont!$A$10:$X$1764, 14, FALSE),"") -> 
A32: =IF($C32<=$B$16,VLOOKUP(E32,leas!D18:G457,4,FALSE),"") ->  | B32: 60013 | C32: 13 | G32: =IF($C32<=$B$16,VLOOKUP(A32&$B$12, localcont!A22:X1776, 18, FALSE), "") ->  | H32: =IF($C32<=$B$16,VLOOKUP(A32&$B$12, localcont!$A$10:$X$1764, 23, FALSE), "") ->  | J32: =IF($C32<=$B$16,VLOOKUP(A32&$B$12, localcont!$A$10:$X$1764, 15, FALSE), "") ->  | K32: =IF($C32<=$B$16,VLOOKUP(A32&$B$12, localcont!$A$10:$X$1764, 14, FALSE),"") -> 
A33: =IF($C33<=$B$16,VLOOKUP(E33,leas!D19:G458,4,FALSE),"") ->  | B33: 60014 | C33: 14 | G33: =IF($C33<=$B$16,VLOOKUP(A33&$B$12, localcont!A23:X1777, 18, FALSE), "") ->  | H33: =IF($C33<=$B$16,VLOOKUP(A33&$B$12, localcont!$A$10:$X$1764, 23, FALSE), "") ->  | J33: =IF($C33<=$B$16,VLOOKUP(A33&$B$12, localcont!$A$10:$X$1764, 15, FALSE), "") ->  | K33: =IF($C33<=$B$16,VLOOKUP(A33&$B$12, localcont!$A$10:$X$1764, 14, FALSE),"") -> 
A34: =IF($C34<=$B$16,VLOOKUP(E34,leas!D20:G459,4,FALSE),"") ->  | B34: 60015 | C34: 15 | G34: =IF($C34<=$B$16,VLOOKUP(A34&$B$12, localcont!A24:X1778, 18, FALSE), "") ->  | H34: =IF($C34<=$B$16,VLOOKUP(A34&$B$12, localcont!$A$10:$X$1764, 23, FALSE), "") ->  | J34: =IF($C34<=$B$16,VLOOKUP(A34&$B$12, localcont!$A$10:$X$1764, 15, FALSE), "") ->  | K34: =IF($C34<=$B$16,VLOOKUP(A34&$B$12, localcont!$A$10:$X$1764, 14, FALSE),"") -> 
A35: =IF($C35<=$B$16,VLOOKUP(E35,leas!D21:G460,4,FALSE),"") ->  | B35: 60016 | C35: 16 | G35: =IF($C35<=$B$16,VLOOKUP(A35&$B$12, localcont!A25:X1779, 18, FALSE), "") ->  | H35: =IF($C35<=$B$16,VLOOKUP(A35&$B$12, localcont!$A$10:$X$1764, 23, FALSE), "") ->  | J35: =IF($C35<=$B$16,VLOOKUP(A35&$B$12, localcont!$A$10:$X$1764, 15, FALSE), "") ->  | K35: =IF($C35<=$B$16,VLOOKUP(A35&$B$12, localcont!$A$10:$X$1764, 14, FALSE),"") -> 
A36: =IF($C36<=$B$16,VLOOKUP(E36,leas!D22:G461,4,FALSE),"") ->  | B36: 60017 | C36: 17 | G36: =IF($C36<=$B$16,VLOOKUP(A36&$B$12, localcont!A26:X1780, 18, FALSE), "") ->  | H36: =IF($C36<=$B$16,VLOOKUP(A36&$B$12, localcont!$A$10:$X$1764, 23, FALSE), "") ->  | J36: =IF($C36<=$B$16,VLOOKUP(A36&$B$12, localcont!$A$10:$X$1764, 15, FALSE), "") ->  | K36: =IF($C36<=$B$16,VLOOKUP(A36&$B$12, localcont!$A$10:$X$1764, 14, FALSE),"") -> 
A37: =IF($C37<=$B$16,VLOOKUP(E37,leas!D23:G462,4,FALSE),"") ->  | B37: 60018 | C37: 18 | G37: =IF($C37<=$B$16,VLOOKUP(A37&$B$12, localcont!A27:X1781, 18, FALSE), "") ->  | H37: =IF($C37<=$B$16,VLOOKUP(A37&$B$12, localcont!$A$10:$X$1764, 23, FALSE), "") ->  | J37: =IF($C37<=$B$16,VLOOKUP(A37&$B$12, localcont!$A$10:$X$1764, 15, FALSE), "") ->  | K37: =IF($C37<=$B$16,VLOOKUP(A37&$B$12, localcont!$A$10:$X$1764, 14, FALSE),"") -> 
A38: =IF($C38<=$B$16,VLOOKUP(E38,leas!D24:G463,4,FALSE),"") ->  | B38: 60019 | C38: 19 | G38: =IF($C38<=$B$16,VLOOKUP(A38&$B$12, localcont!A28:X1782, 18, FALSE), "") ->  | H38: =IF($C38<=$B$16,VLOOKUP(A38&$B$12, localcont!$A$10:$X$1764, 23, FALSE), "") ->  | J38: =IF($C38<=$B$16,VLOOKUP(A38&$B$12, localcont!$A$10:$X$1764, 15, FALSE), "") ->  | K38: =IF($C38<=$B$16,VLOOKUP(A38&$B$12, localcont!$A$10:$X$1764, 14, FALSE),"") -> 
A39: =IF($C39<=$B$16,VLOOKUP(E39,leas!D25:G464,4,FALSE),"") ->  | B39: 60020 | C39: 20 | G39: =IF($C39<=$B$16,VLOOKUP(A39&$B$12, localcont!A29:X1783, 18, FALSE), "") ->  | H39: =IF($C39<=$B$16,VLOOKUP(A39&$B$12, localcont!$A$10:$X$1764, 23, FALSE), "") ->  | J39: =IF($C39<=$B$16,VLOOKUP(A39&$B$12, localcont!$A$10:$X$1764, 15, FALSE), "") ->  | K39: =IF($C39<=$B$16,VLOOKUP(A39&$B$12, localcont!$A$10:$X$1764, 14, FALSE),"") -> 
A40: =IF($C40<=$B$16,VLOOKUP(E40,leas!D26:G465,4,FALSE),"") ->  | B40: 60021 | C40: 21 | G40: =IF($C40<=$B$16,VLOOKUP(A40&$B$12, localcont!A30:X1784, 18, FALSE), "") ->  | H40: =IF($C40<=$B$16,VLOOKUP(A40&$B$12, localcont!$A$10:$X$1764, 23, FALSE), "") ->  | J40: =IF($C40<=$B$16,VLOOKUP(A40&$B$12, localcont!$A$10:$X$1764, 15, FALSE), "") ->  | K40: =IF($C40<=$B$16,VLOOKUP(A40&$B$12, localcont!$A$10:$X$1764, 14, FALSE),"") -> 
A41: =IF($C41<=$B$16,VLOOKUP(E41,leas!D27:G466,4,FALSE),"") ->  | B41: 60022 | C41: 22 | G41: =IF($C41<=$B$16,VLOOKUP(A41&$B$12, localcont!A31:X1785, 18, FALSE), "") ->  | H41: =IF($C41<=$B$16,VLOOKUP(A41&$B$12, localcont!$A$10:$X$1764, 23, FALSE), "") ->  | J41: =IF($C41<=$B$16,VLOOKUP(A41&$B$12, localcont!$A$10:$X$1764, 15, FALSE), "") ->  | K41: =IF($C41<=$B$16,VLOOKUP(A41&$B$12, localcont!$A$10:$X$1764, 14, FALSE),"") -> 
A42: =IF($C42<=$B$16,VLOOKUP(E42,leas!D28:G467,4,FALSE),"") ->  | B42: 60023 | C42: 23 | G42: =IF($C42<=$B$16,VLOOKUP(A42&$B$12, localcont!A32:X1786, 18, FALSE), "") ->  | H42: =IF($C42<=$B$16,VLOOKUP(A42&$B$12, localcont!$A$10:$X$1764, 23, FALSE), "") ->  | J42: =IF($C42<=$B$16,VLOOKUP(A42&$B$12, localcont!$A$10:$X$1764, 15, FALSE), "") ->  | K42: =IF($C42<=$B$16,VLOOKUP(A42&$B$12, localcont!$A$10:$X$1764, 14, FALSE),"") -> 
A43: =IF($C43<=$B$16,VLOOKUP(E43,leas!D29:G468,4,FALSE),"") ->  | B43: 60024 | C43: 24 | G43: =IF($C43<=$B$16,VLOOKUP(A43&$B$12, localcont!A33:X1787, 18, FALSE), "") ->  | H43: =IF($C43<=$B$16,VLOOKUP(A43&$B$12, localcont!$A$10:$X$1764, 23, FALSE), "") ->  | J43: =IF($C43<=$B$16,VLOOKUP(A43&$B$12, localcont!$A$10:$X$1764, 15, FALSE), "") ->  | K43: =IF($C43<=$B$16,VLOOKUP(A43&$B$12, localcont!$A$10:$X$1764, 14, FALSE),"") -> 
A44: =IF($C44<=$B$16,VLOOKUP(E44,leas!D30:G469,4,FALSE),"") ->  | B44: 60025 | C44: 25 | G44: =IF($C44<=$B$16,VLOOKUP(A44&$B$12, localcont!A34:X1788, 18, FALSE), "") ->  | H44: =IF($C44<=$B$16,VLOOKUP(A44&$B$12, localcont!$A$10:$X$1764, 23, FALSE), "") ->  | J44: =IF($C44<=$B$16,VLOOKUP(A44&$B$12, localcont!$A$10:$X$1764, 15, FALSE), "") ->  | K44: =IF($C44<=$B$16,VLOOKUP(A44&$B$12, localcont!$A$10:$X$1764, 14, FALSE),"") -> 
A45: =IF($C45<=$B$16,VLOOKUP(E45,leas!D31:G470,4,FALSE),"") ->  | B45: 60026 | C45: 26 | G45: =IF($C45<=$B$16,VLOOKUP(A45&$B$12, localcont!A35:X1789, 18, FALSE), "") ->  | H45: =IF($C45<=$B$16,VLOOKUP(A45&$B$12, localcont!$A$10:$X$1764, 23, FALSE), "") ->  | J45: =IF($C45<=$B$16,VLOOKUP(A45&$B$12, localcont!$A$10:$X$1764, 15, FALSE), "") ->  | K45: =IF($C45<=$B$16,VLOOKUP(A45&$B$12, localcont!$A$10:$X$1764, 14, FALSE),"") -> 
A46: =IF($C46<=$B$16,VLOOKUP(E46,leas!D32:G471,4,FALSE),"") ->  | B46: 60027 | C46: 27 | G46: =IF($C46<=$B$16,VLOOKUP(A46&$B$12, localcont!A36:X1790, 18, FALSE), "") ->  | H46: =IF($C46<=$B$16,VLOOKUP(A46&$B$12, localcont!$A$10:$X$1764, 23, FALSE), "") ->  | J46: =IF($C46<=$B$16,VLOOKUP(A46&$B$12, localcont!$A$10:$X$1764, 15, FALSE), "") ->  | K46: =IF($C46<=$B$16,VLOOKUP(A46&$B$12, localcont!$A$10:$X$1764, 14, FALSE),"") -> 
A47: =IF($C47<=$B$16,VLOOKUP(E47,leas!D33:G472,4,FALSE),"") ->  | B47: 60028 | C47: 28 | G47: =IF($C47<=$B$16,VLOOKUP(A47&$B$12, localcont!A37:X1791, 18, FALSE), "") ->  | H47: =IF($C47<=$B$16,VLOOKUP(A47&$B$12, localcont!$A$10:$X$1764, 23, FALSE), "") ->  | J47: =IF($C47<=$B$16,VLOOKUP(A47&$B$12, localcont!$A$10:$X$1764, 15, FALSE), "") ->  | K47: =IF($C47<=$B$16,VLOOKUP(A47&$B$12, localcont!$A$10:$X$1764, 14, FALSE),"") -> 
A48: =IF($C48<=$B$16,VLOOKUP(E48,leas!D34:G473,4,FALSE),"") ->  | B48: 60029 | C48: 29 | G48: =IF($C48<=$B$16,VLOOKUP(A48&$B$12, localcont!A38:X1792, 18, FALSE), "") ->  | H48: =IF($C48<=$B$16,VLOOKUP(A48&$B$12, localcont!$A$10:$X$1764, 23, FALSE), "") ->  | J48: =IF($C48<=$B$16,VLOOKUP(A48&$B$12, localcont!$A$10:$X$1764, 15, FALSE), "") ->  | K48: =IF($C48<=$B$16,VLOOKUP(A48&$B$12, localcont!$A$10:$X$1764, 14, FALSE),"") -> 
A49: =IF($C49<=$B$16,VLOOKUP(E49,leas!D35:G474,4,FALSE),"") ->  | B49: 60030 | C49: 30 | G49: =IF($C49<=$B$16,VLOOKUP(A49&$B$12, localcont!A39:X1793, 18, FALSE), "") ->  | H49: =IF($C49<=$B$16,VLOOKUP(A49&$B$12, localcont!$A$10:$X$1764, 23, FALSE), "") ->  | J49: =IF($C49<=$B$16,VLOOKUP(A49&$B$12, localcont!$A$10:$X$1764, 15, FALSE), "") ->  | K49: =IF($C49<=$B$16,VLOOKUP(A49&$B$12, localcont!$A$10:$X$1764, 14, FALSE),"") -> 
A50: =IF($C50<=$B$16,VLOOKUP(E50,leas!D36:G475,4,FALSE),"") ->  | B50: 60031 | C50: 31 | G50: =IF($C50<=$B$16,VLOOKUP(A50&$B$12, localcont!A40:X1794, 18, FALSE), "") ->  | H50: =IF($C50<=$B$16,VLOOKUP(A50&$B$12, localcont!$A$10:$X$1764, 23, FALSE), "") ->  | J50: =IF($C50<=$B$16,VLOOKUP(A50&$B$12, localcont!$A$10:$X$1764, 15, FALSE), "") ->  | K50: =IF($C50<=$B$16,VLOOKUP(A50&$B$12, localcont!$A$10:$X$1764, 14, FALSE),"") -> 
A51: =IF($C51<=$B$16,VLOOKUP(E51,leas!D37:G476,4,FALSE),"") ->  | B51: 60032 | C51: 32 | G51: =IF($C51<=$B$16,VLOOKUP(A51&$B$12, localcont!A41:X1795, 18, FALSE), "") ->  | H51: =IF($C51<=$B$16,VLOOKUP(A51&$B$12, localcont!$A$10:$X$1764, 23, FALSE), "") ->  | J51: =IF($C51<=$B$16,VLOOKUP(A51&$B$12, localcont!$A$10:$X$1764, 15, FALSE), "") ->  | K51: =IF($C51<=$B$16,VLOOKUP(A51&$B$12, localcont!$A$10:$X$1764, 14, FALSE),"") -> 
A52: =IF($C52<=$B$16,VLOOKUP(E52,leas!D38:G477,4,FALSE),"") ->  | B52: 60033 | C52: 33 | F52: =IF($C52<=$B$16, VLOOKUP($B52, regdetail, 6), " ") ->  | G52: =IF($C52<=$B$16,VLOOKUP(A52&$B$12, localcont!A42:X1796, 18, FALSE), "") ->  | H52: =IF($C52<=$B$16,VLOOKUP(A52&$B$12, localcont!$A$10:$X$1764, 23, FALSE), "") ->  | J52: =IF($C52<=$B$16,VLOOKUP(A52&$B$12, localcont!$A$10:$X$1764, 15, FALSE), "") ->  | K52: =IF($C52<=$B$16,VLOOKUP(A52&$B$12, localcont!$A$10:$X$1764, 14, FALSE),"") -> 
A53: =IF($C53<=$B$16,VLOOKUP(E53,leas!D39:G478,4,FALSE),"") ->  | B53: 60034 | C53: 34 | G53: =IF($C53<=$B$16,VLOOKUP(A53&$B$12, localcont!A43:X1797, 18, FALSE), "") ->  | H53: =IF($C53<=$B$16,VLOOKUP(A53&$B$12, localcont!$A$10:$X$1764, 23, FALSE), "") ->  | J53: =IF($C53<=$B$16,VLOOKUP(A53&$B$12, localcont!$A$10:$X$1764, 15, FALSE), "") ->  | K53: =IF($C53<=$B$16,VLOOKUP(A53&$B$12, localcont!$A$10:$X$1764, 14, FALSE),"") -> 
A54: =IF($C54<=$B$16,VLOOKUP(E54,leas!D40:G479,4,FALSE),"") ->  | B54: 60035 | C54: 35 | G54: =IF($C54<=$B$16,VLOOKUP(A54&$B$12, localcont!A44:X1798, 18, FALSE), "") ->  | H54: =IF($C54<=$B$16,VLOOKUP(A54&$B$12, localcont!$A$10:$X$1764, 23, FALSE), "") ->  | J54: =IF($C54<=$B$16,VLOOKUP(A54&$B$12, localcont!$A$10:$X$1764, 15, FALSE), "") ->  | K54: =IF($C54<=$B$16,VLOOKUP(A54&$B$12, localcont!$A$10:$X$1764, 14, FALSE),"") -> 
A55: =IF($C55<=$B$16,VLOOKUP(E55,leas!D41:G480,4,FALSE),"") ->  | B55: 60036 | C55: 36 | G55: =IF($C55<=$B$16,VLOOKUP(A55&$B$12, localcont!A45:X1799, 18, FALSE), "") ->  | H55: =IF($C55<=$B$16,VLOOKUP(A55&$B$12, localcont!$A$10:$X$1764, 23, FALSE), "") ->  | J55: =IF($C55<=$B$16,VLOOKUP(A55&$B$12, localcont!$A$10:$X$1764, 15, FALSE), "") ->  | K55: =IF($C55<=$B$16,VLOOKUP(A55&$B$12, localcont!$A$10:$X$1764, 14, FALSE),"") -> 
A56: =IF($C56<=$B$16,VLOOKUP(E56,leas!D42:G481,4,FALSE),"") ->  | B56: 60037 | C56: 37 | G56: =IF($C56<=$B$16,VLOOKUP(A56&$B$12, localcont!A46:X1800, 18, FALSE), "") ->  | H56: =IF($C56<=$B$16,VLOOKUP(A56&$B$12, localcont!$A$10:$X$1764, 23, FALSE), "") ->  | J56: =IF($C56<=$B$16,VLOOKUP(A56&$B$12, localcont!$A$10:$X$1764, 15, FALSE), "") ->  | K56: =IF($C56<=$B$16,VLOOKUP(A56&$B$12, localcont!$A$10:$X$1764, 14, FALSE),"") -> 
A57: =IF($C57<=$B$16,VLOOKUP(E57,leas!D43:G482,4,FALSE),"") ->  | B57: 60038 | C57: 38 | G57: =IF($C57<=$B$16,VLOOKUP(A57&$B$12, localcont!A47:X1801, 18, FALSE), "") ->  | H57: =IF($C57<=$B$16,VLOOKUP(A57&$B$12, localcont!$A$10:$X$1764, 23, FALSE), "") ->  | J57: =IF($C57<=$B$16,VLOOKUP(A57&$B$12, localcont!$A$10:$X$1764, 15, FALSE), "") ->  | K57: =IF($C57<=$B$16,VLOOKUP(A57&$B$12, localcont!$A$10:$X$1764, 14, FALSE),"") -> 
A58: =IF($C58<=$B$16,VLOOKUP(E58,leas!D44:G483,4,FALSE),"") ->  | B58: 60039 | C58: 39 | G58: =IF($C58<=$B$16,VLOOKUP(A58&$B$12, localcont!A48:X1802, 18, FALSE), "") ->  | H58: =IF($C58<=$B$16,VLOOKUP(A58&$B$12, localcont!$A$10:$X$1764, 23, FALSE), "") ->  | J58: =IF($C58<=$B$16,VLOOKUP(A58&$B$12, localcont!$A$10:$X$1764, 15, FALSE), "") ->  | K58: =IF($C58<=$B$16,VLOOKUP(A58&$B$12, localcont!$A$10:$X$1764, 14, FALSE),"") -> 
A59: =IF($C59<=$B$16,VLOOKUP(E59,leas!D45:G484,4,FALSE),"") ->  | B59: 60040 | C59: 40 | G59: =IF($C59<=$B$16,VLOOKUP(A59&$B$12, localcont!A49:X1803, 18, FALSE), "") ->  | H59: =IF($C59<=$B$16,VLOOKUP(A59&$B$12, localcont!$A$10:$X$1764, 23, FALSE), "") ->  | J59: =IF($C59<=$B$16,VLOOKUP(A59&$B$12, localcont!$A$10:$X$1764, 15, FALSE), "") ->  | K59: =IF($C59<=$B$16,VLOOKUP(A59&$B$12, localcont!$A$10:$X$1764, 14, FALSE),"") -> 
A60: =IF($C60<=$B$16,VLOOKUP(E60,leas!D46:G485,4,FALSE),"") ->  | B60: 60041 | C60: 41 | G60: =IF($C60<=$B$16,VLOOKUP(A60&$B$12, localcont!A50:X1804, 18, FALSE), "") ->  | H60: =IF($C60<=$B$16,VLOOKUP(A60&$B$12, localcont!$A$10:$X$1764, 23, FALSE), "") ->  | J60: =IF($C60<=$B$16,VLOOKUP(A60&$B$12, localcont!$A$10:$X$1764, 15, FALSE), "") ->  | K60: =IF($C60<=$B$16,VLOOKUP(A60&$B$12, localcont!$A$10:$X$1764, 14, FALSE),"") -> 
A61: =IF($C61<=$B$16,VLOOKUP(E61,leas!D47:G486,4,FALSE),"") ->  | B61: 60042 | C61: 42 | G61: =IF($C61<=$B$16,VLOOKUP(A61&$B$12, localcont!A51:X1805, 18, FALSE), "") ->  | H61: =IF($C61<=$B$16,VLOOKUP(A61&$B$12, localcont!$A$10:$X$1764, 23, FALSE), "") ->  | J61: =IF($C61<=$B$16,VLOOKUP(A61&$B$12, localcont!$A$10:$X$1764, 15, FALSE), "") ->  | K61: =IF($C61<=$B$16,VLOOKUP(A61&$B$12, localcont!$A$10:$X$1764, 14, FALSE),"") -> 
A62: =IF($C62<=$B$16,VLOOKUP(E62,leas!D48:G487,4,FALSE),"") ->  | B62: 60043 | C62: 43 | G62: =IF($C62<=$B$16,VLOOKUP(A62&$B$12, localcont!A52:X1806, 18, FALSE), "") ->  | H62: =IF($C62<=$B$16,VLOOKUP(A62&$B$12, localcont!$A$10:$X$1764, 23, FALSE), "") ->  | J62: =IF($C62<=$B$16,VLOOKUP(A62&$B$12, localcont!$A$10:$X$1764, 15, FALSE), "") ->  | K62: =IF($C62<=$B$16,VLOOKUP(A62&$B$12, localcont!$A$10:$X$1764, 14, FALSE),"") -> 
A63: =IF($C63<=$B$16,VLOOKUP(E63,leas!D49:G488,4,FALSE),"") ->  | B63: 60044 | C63: 44 | G63: =IF($C63<=$B$16,VLOOKUP(A63&$B$12, localcont!A53:X1807, 18, FALSE), "") ->  | H63: =IF($C63<=$B$16,VLOOKUP(A63&$B$12, localcont!$A$10:$X$1764, 23, FALSE), "") ->  | J63: =IF($C63<=$B$16,VLOOKUP(A63&$B$12, localcont!$A$10:$X$1764, 15, FALSE), "") ->  | K63: =IF($C63<=$B$16,VLOOKUP(A63&$B$12, localcont!$A$10:$X$1764, 14, FALSE),"") ->  | P63: =IF($C63>$B$16,"",O63*$P$13) -> 
A64: =IF($C64<=$B$16,VLOOKUP(E64,leas!D50:G489,4,FALSE),"") ->  | B64: 60045 | C64: 45 | G64: =IF($C64<=$B$16,VLOOKUP(A64&$B$12, localcont!A54:X1808, 18, FALSE), "") ->  | H64: =IF($C64<=$B$16,VLOOKUP(A64&$B$12, localcont!$A$10:$X$1764, 23, FALSE), "") ->  | J64: =IF($C64<=$B$16,VLOOKUP(A64&$B$12, localcont!$A$10:$X$1764, 15, FALSE), "") ->  | K64: =IF($C64<=$B$16,VLOOKUP(A64&$B$12, localcont!$A$10:$X$1764, 14, FALSE),"") -> 
A65: =IF($C65<=$B$16,VLOOKUP(E65,leas!D51:G490,4,FALSE),"") ->  | B65: 60046 | C65: 46 | G65: =IF($C65<=$B$16,VLOOKUP(A65&$B$12, localcont!A55:X1809, 18, FALSE), "") ->  | H65: =IF($C65<=$B$16,VLOOKUP(A65&$B$12, localcont!$A$10:$X$1764, 23, FALSE), "") ->  | J65: =IF($C65<=$B$16,VLOOKUP(A65&$B$12, localcont!$A$10:$X$1764, 15, FALSE), "") ->  | K65: =IF($C65<=$B$16,VLOOKUP(A65&$B$12, localcont!$A$10:$X$1764, 14, FALSE),"") -> 
A66: =IF($C66<=$B$16,VLOOKUP(E66,leas!D52:G491,4,FALSE),"") ->  | B66: 60047 | C66: 47 | G66: =IF($C66<=$B$16,VLOOKUP(A66&$B$12, localcont!A56:X1810, 18, FALSE), "") ->  | H66: =IF($C66<=$B$16,VLOOKUP(A66&$B$12, localcont!$A$10:$X$1764, 23, FALSE), "") ->  | J66: =IF($C66<=$B$16,VLOOKUP(A66&$B$12, localcont!$A$10:$X$1764, 15, FALSE), "") ->  | K66: =IF($C66<=$B$16,VLOOKUP(A66&$B$12, localcont!$A$10:$X$1764, 14, FALSE),"") -> 
A67: =IF($C67<=$B$16,VLOOKUP(E67,leas!D53:G492,4,FALSE),"") ->  | B67: 60048 | C67: 48 | G67: =IF($C67<=$B$16,VLOOKUP(A67&$B$12, localcont!A57:X1811, 18, FALSE), "") ->  | H67: =IF($C67<=$B$16,VLOOKUP(A67&$B$12, localcont!$A$10:$X$1764, 23, FALSE), "") ->  | J67: =IF($C67<=$B$16,VLOOKUP(A67&$B$12, localcont!$A$10:$X$1764, 15, FALSE), "") ->  | K67: =IF($C67<=$B$16,VLOOKUP(A67&$B$12, localcont!$A$10:$X$1764, 14, FALSE),"") -> 
A68: =IF($C68<=$B$16,VLOOKUP(E68,leas!D54:G493,4,FALSE),"") ->  | B68: 60049 | C68: 49 | G68: =IF($C68<=$B$16,VLOOKUP(A68&$B$12, localcont!A58:X1812, 18, FALSE), "") ->  | H68: =IF($C68<=$B$16,VLOOKUP(A68&$B$12, localcont!$A$10:$X$1764, 23, FALSE), "") ->  | J68: =IF($C68<=$B$16,VLOOKUP(A68&$B$12, localcont!$A$10:$X$1764, 15, FALSE), "") ->  | K68: =IF($C68<=$B$16,VLOOKUP(A68&$B$12, localcont!$A$10:$X$1764, 14, FALSE),"") -> 

Sheet Comparison to FY22
B1: Return to Index | P1: More about the data
A2: Massachusetts Department of Elementary and Secondary Education
A3: =CYr&" Chapter 70 Comparison to "&PYr -> FY23 Chapter 70 Comparison to FY22
C7: =PYr -> FY22 | D7: =CYr -> FY23 | F7: =PYr -> FY22 | G7: =CYr -> FY23 | I7: =PYr -> FY22 | J7: =CYr -> FY23 | L7: =PYr -> FY22 | M7: =CYr -> FY23
B8: Operating | C8: Foundation | D8: Foundation | F8: Foundation | G8: Foundation | I8: Minimum | J8: Minimum | L8: Chapter 70 | M8: Chapter 70
A9: LEA | B9: District name | C9: Enrollment | D9: Enrollment | E9: change | F9: Budget | G9: Budget | H9: change per pupil | I9: Contribution | J9: Contribution | K9: change per pupil | L9: aid | M9: aid | N9: change in aid | O9: change in aid per pupil | P9: % change in aid
A10: 1 | B10: Abington | C10: =VLOOKUP(A10,aidcalc,14,FALSE) -> 2193 | D10: =VLOOKUP(A10,aidcalc,15,FALSE) -> 2238 | E10: =D10-C10 -> 45 | F10: =VLOOKUP(A10,aidcalc,4,FALSE) -> 26529795.66 | G10: =VLOOKUP(A10,aidcalc,9,FALSE) -> 29563170.92 | H10: =(G10-F10)/$D10 -> 1355.395557 | I10: =VLOOKUP(A10,aidcalc,5,FALSE) -> 15771170 | J10: =VLOOKUP(A10,aidcalc,10,FALSE) -> 16599047 | K10: =(J10-I10)/$D10 -> 369.9182306 | L10: =VLOOKUP(A10,aidcalc,6,FALSE) -> 10858340 | M10: =VLOOKUP(A10,aidcalc,25,FALSE) -> 12964124 | N10: =M10-L10 -> 2105784 | O10: =(M10-L10)/$D10 -> 940.922252 | P10: =ROUND(IF(F10>0,(M10-L10)/L10,100),2) -> 0.19
A11: 3 | B11: Acushnet | C11: 1207 | D11: 1192 | E11: =D11-C11 -> -15 | F11: 13489100.06 | G11: 14410940.64 | H11: 773.3561913 | I11: 7882117 | J11: 8355453 | K11: =(J11-I11)/$D11 -> 397.0939597 | L11: 6397702 | M11: 6433462 | N11: =M11-L11 -> 35760 | O11: =(M11-L11)/$D11 -> 30 | P11: 0.01
A12: 5 | B12: Agawam | C12: 3516 | D12: 3420 | E12: -96 | F12: 42850725.39 | G12: 46476254.92 | H12: 1060.096354 | I12: 23421246 | J12: 24515018 | K12: 319.8163743 | L12: 19949538 | M12: 21961237 | N12: 2011699 | O12: 588.2160819 | P12: 0.1
A13: 7 | B13: Amesbury | C13: 1930 | D13: 1878 | E13: -52 | F13: 22473928.55 | G13: 23505262.73 | H13: 549.16623 | I13: 16512866 | J13: 17438478 | K13: 492.8711395 | L13: 9248787 | M13: 9305127 | N13: 56340 | O13: 30 | P13: 0.01
A14: 8 | B14: Amherst | C14: 1045 | D14: 1065 | E14: 20 | F14: 12765297.7 | G14: 13429756.49 | H14: 623.9049671 | I14: 9889673 | J14: 10461831 | K14: 537.2375587 | L14: 6153573 | M14: 6185523 | N14: 31950 | O14: 30 | P14: 0.01
A15: 9 | B15: Andover | C15: 5628 | D15: 5500 | E15: -128 | F15: 64739542.48 | G15: 67357496.13 | H15: 475.9915727 | I15: 53410123 | J15: 55569934 | K15: 392.6929091 | L15: 11837131 | M15: 12002131 | N15: 165000 | O15: 30 | P15: 0.01
A16: 10 | B16: Arlington | C16: 5836 | D16: 5910 | E16: 74 | F16: 64412505.94 | G16: 69496899.57 | H16: 860.3034921 | I16: 51220285 | J16: 53603535 | K16: 403.2571912 | L16: 14741108 | M16: 15893365 | N16: 1152257 | O16: 194.9673435 | P16: 0.08
A17: 14 | B17: Ashland | C17: 2694 | D17: 2814 | E17: 120 | F17: 30147061.93 | G17: 33942250.53 | H17: 1348.681095 | I17: 22838677 | J17: 24208528 | K17: 486.7985075 | L17: 8018443 | M17: 9733723 | N17: 1715280 | O17: 609.5522388 | P17: 0.21
A18: 16 | B18: Attleboro | C18: 6188 | D18: 6237 | E18: 49 | F18: 80741145.67 | G18: 89310929.61 | H18: 1374.023399 | I18: 39217459 | J18: 41515915 | K18: 368.5194805 | L18: 41523687 | M18: 47795015 | N18: 6271328 | O18: 1005.503928 | P18: 0.15
A19: 17 | B19: Auburn | C19: 2421 | D19: 2425 | E19: 4 | F19: 27367440.74 | G19: 30252650.17 | H19: 1189.777085 | I19: 15568309 | J19: 16217482 | K19: 267.7002062 | L19: 12284561 | M19: 14035168 | N19: 1750607 | O19: 721.8997938 | P19: 0.14
A20: 18 | B20: Avon | C20: 560 | D20: 563 | E20: 3 | F20: 7016240.13 | G20: 8289241.66 | H20: 2261.103961 | I20: 4689958 | J20: 5081884 | K20: 696.1385435 | L20: 2465569 | M20: 3207358 | N20: 741789 | O20: =(M20-L20)/$D20 -> 1317.564831 | P20: 0.3
A21: 20 | B21: Barnstable | C21: 5147 | D21: 5193 | E21: 46 | F21: 65238260.34 | G21: 75594779.84 | H21: 1994.323031 | I21: 53821564 | J21: 56888584 | K21: 590.6065858 | L21: 13165466 | M21: 18706196 | N21: 5540730 | O21: 1066.961294 | P21: 0.42
A22: 23 | B22: Bedford | C22: 2649 | D22: 2624 | E22: -25 | F22: 30729462.66 | G22: 32246555.76 | H22: 578.1604786 | I22: 25351806 | J22: 26379003 | K22: 391.4622713 | L22: 5674637 | M22: 5867553 | N22: 192916 | O22: 73.51981707 | P22: 0.03
A23: 24 | B23: Belchertown | C23: 2204 | D23: 2177 | E23: -27 | F23: 24800115.19 | G23: 26384198.33 | H23: 727.6449885 | I23: 12857028 | J23: 13099002 | K23: 111.1502067 | L23: 13950266 | M23: 14015576 | N23: 65310 | O23: 30 | P23: 0
A24: 25 | B24: Bellingham | C24: 2184 | D24: 2158 | E24: -26 | F24: 24805882.76 | G24: 27015991.39 | H24: 1024.146724 | I24: 17397231 | J24: 18432465 | K24: 479.7191844 | L24: 8707945 | M24: 8772685 | N24: 64740 | O24: 30 | P24: 0.01
A25: 26 | B25: Belmont | C25: 4534 | D25: 4449 | E25: -85 | F25: 50694465.25 | G25: 53256083.38 | H25: 575.7739118 | I25: 40824828 | J25: 43686648 | K25: 643.2501686 | L25: 9891949 | M25: 10025419 | N25: 133470 | O25: 30 | P25: 0.01
A26: 27 | B26: Berkley | C26: 733 | D26: 725 | E26: -8 | F26: 7950531.78 | G26: 8601441.5 | H26: 897.8065103 | I26: 4249272 | J26: 4571797 | K26: 444.862069 | L26: 4025438 | M26: 4047188 | N26: 21750 | O26: 30 | P26: 0.01
A27: 30 | B27: Beverly | C27: 4613 | D27: 4595 | E27: -18 | F27: 53925726.19 | G27: 58610573.33 | H27: 1019.55324 | I27: 43334812 | J27: 45452132 | K27: 460.7878128 | L27: 10590914 | M27: 13158441 | N27: 2567527 | O27: 558.7653972 | P27: 0.24
A28: 31 | B28: Billerica | C28: 4694 | D28: 4792 | E28: 98 | F28: 52245953.96 | G28: 57705837.69 | H28: 1139.374736 | I28: 43102912 | J28: 46197969 | K28: 645.8800083 | L28: 19489674 | M28: 19633434 | N28: 143760 | O28: 30 | P28: 0.01
A29: 35 | B29: Boston | C29: 60704 | D29: 58339 | E29: -2365 | F29: 978880394.5 | G29: 1012695286 | H29: 579.6275477 | I29: 788497356 | J29: 827212576 | K29: 663.6250193 | L29: 223736165 | M29: 225486335 | N29: 1750170 | O29: 30 | P29: 0.01
A30: 36 | B30: Bourne | C30: 1789 | D30: 1717 | E30: -72 | F30: 20951766.19 | G30: 21855345.04 | H30: 526.2544263 | I30: 17285207 | J30: 17827720 | K30: 315.9656377 | L30: 5268883 | M30: 5320393 | N30: 51510 | O30: 30 | P30: 0.01
A31: 38 | B31: Boxford | C31: 673 | D31: 729 | E31: 56 | F31: 7077684.452 | G31: 8106140.946 | H31: 1410.777084 | I31: 5839090 | J31: 6300062 | K31: 632.3347051 | L31: 1768093 | M31: 1806079 | N31: 37986 | O31: 52.10699588 | P31: 0.02
A32: 40 | B32: Braintree | C32: 5383 | D32: 5273 | E32: -110 | F32: 63352380.46 | G32: 68308994.31 | H32: 939.9988327 | I32: 47033101 | J32: 48941926 | K32: 361.9998104 | L32: 18459141 | M32: 19367068 | N32: 907927 | O32: 172.1841456 | P32: 0.05
A33: 41 | B33: Brewster | C33: 431 | D33: 440 | E33: 9 | F33: 4895214.06 | G33: 5580574.66 | H33: 1557.637727 | I33: 4038551 | J33: 4228204 | K33: 431.0295455 | L33: 1024909 | M33: 1352371 | N33: 327462 | O33: 744.2318182 | P33: 0.32
A34: 43 | B34: Brimfield | C34: 269 | D34: 256 | E34: -13 | F34: 2957057.94 | G34: 3134102.29 | H34: 691.5794922 | I34: 1755767 | J34: 1768013 | K34: 47.8359375 | L34: 1373076 | M34: 1380756 | N34: 7680 | O34: 30 | P34: 0.01
A35: 44 | B35: Brockton | C35: 17092 | D35: 16975 | E35: -117 | F35: 261944926.6 | G35: 276250953.1 | H35: 842.7703411 | I35: 49559396 | J35: 52190600 | K35: 155.0046539 | L35: 212385531 | M35: 224060353 | N35: 11674822 | O35: 687.7656554 | P35: 0.05
A36: 45 | B36: Brookfield | C36: 230 | D36: 228 | E36: -2 | F36: 2739833.11 | G36: 2950079.41 | H36: 922.1328947 | I36: 1154807 | J36: 1240313 | K36: 375.0263158 | L36: 1707403 | M36: 1714243 | N36: 6840 | O36: 30 | P36: 0
A37: 46 | B37: Brookline | C37: 6858 | D37: 6799 | E37: -59 | F37: 77422819.85 | G37: 82255132.52 | H37: 710.7387369 | I37: 63873826 | J37: 67860485 | K37: 586.3596117 | L37: 15212527 | M37: 15416497 | N37: 203970 | O37: 30 | P37: 0.01
A38: 48 | B38: Burlington | C38: 3420 | D38: 3470 | E38: 50 | F38: 40093789.19 | G38: 44168133.06 | H38: 1174.162499 | I38: 33077377 | J38: 35018289 | K38: 559.340634 | L38: 7104731 | M38: 9149844 | N38: 2045113 | O38: 589.3697406 | P38: 0.29
A39: 49 | B39: Cambridge | C39: 7160 | D39: 7074 | E39: -86 | F39: 100848386.9 | G39: 105936291.7 | H39: 719.2401415 | I39: 83199919 | J39: 87397441 | K39: 593.3731976 | L39: 17648468 | M39: 18538851 | N39: 890383 | O39: 125.8669777 | P39: 0.05
A40: 50 | B40: Canton | C40: 3234 | D40: 3287 | E40: 53 | F40: 37413396.48 | G40: 40961226.36 | H40: 1079.351956 | I40: 30866052 | J40: 33070790 | K40: 670.7447521 | L40: 6613135 | M40: 7890436 | N40: 1277301 | O40: 388.591725 | P40: 0.19
A41: 51 | B41: Carlisle | C41: 556 | D41: 580 | E41: 24 | F41: 5777297.333 | G41: 6420143.446 | H41: 1108.355368 | I41: 4766270 | J41: 5066173 | K41: 517.0741379 | L41: 1028823 | M41: 1353970 | N41: 325147 | O41: 560.5982759 | P41: 0.32
A42: 52 | B42: Carver | C42: 1501 | D42: 1513 | E42: 12 | F42: 17600656.4 | G42: 19740695.12 | H42: 1414.434054 | I42: 9595425 | J42: 10252128 | K42: 434.0403173 | L42: 10053629 | M42: 10099019 | N42: 45390 | O42: 30 | P42: 0
A43: 56 | B43: Chelmsford | C43: 4956 | D43: 5047 | E43: 91 | F43: 54364865.71 | G43: 59337599.05 | H43: 985.2849891 | I43: 44851014 | J43: 47375444 | K43: 500.1842679 | L43: 11348108 | M43: 11962155 | N43: 614047 | O43: 121.665742 | P43: 0.05
A44: 57 | B44: Chelsea | C44: 7097 | D44: 7089 | E44: -8 | F44: 114106347.7 | G44: 125093687.6 | H44: 1549.913946 | I44: 19018231 | J44: 20484593 | K44: 206.8503315 | L44: 95092112 | M44: 104609095 | N44: 9516983 | O44: 1342.500071 | P44: 0.1
A45: 61 | B45: Chicopee | C45: 7269 | D45: 7202 | E45: -67 | F45: 103803922 | G45: 112893440.5 | H45: 1262.082538 | I45: 31307943 | J45: 32109426 | K45: 111.2861705 | L45: 72495979 | M45: 80784014 | N45: 8288035 | O45: 1150.796307 | P45: 0.11
A46: 63 | B46: Clarksburg | C46: 180 | D46: 196 | E46: 16 | F46: 2139256.18 | G46: 2565630.8 | H46: 2175.380714 | I46: 735842 | J46: 761205 | K46: 129.4030612 | L46: 1805335 | M46: 1811215 | N46: 5880 | O46: 30 | P46: 0
A47: 64 | B47: Clinton | C47: 2050 | D47: 2064 | E47: 14 | F47: 26864608.99 | G47: 29918746 | H47: 1479.717544 | I47: 11925947 | J47: 12528207 | K47: 291.7926357 | L47: 14938662 | M47: 17390539 | N47: 2451877 | O47: 1187.924903 | P47: 0.16
A48: 65 | B48: Cohasset | C48: 1419 | D48: 1381 | E48: -38 | F48: 15385213.72 | G48: 15911489.33 | H48: 381.0829868 | I48: 12692802 | J48: 13126979 | K48: 314.3931933 | L48: 2790862 | M48: 2832292 | N48: 41430 | O48: 30 | P48: 0.01
A49: 67 | B49: Concord | C49: 1998 | D49: 1977 | E49: -21 | F49: 21236752.31 | G49: 22336390.43 | H49: 556.2155368 | I49: 17520320 | J49: 18427522 | K49: 458.8780981 | L49: 3797771 | M49: 3908868 | N49: 111097 | O49: 56.1947395 | P49: 0.03
A50: 68 | B50: Conway | C50: 78 | D50: 78 | E50: 0 | F50: 926021.78 | G50: 1051296.66 | H50: 1606.088205 | I50: 763968 | J50: 810426 | K50: 595.6153846 | L50: 628804 | M50: 631144 | N50: 2340 | O50: 30 | P50: 0
A51: 71 | B51: Danvers | C51: 3384 | D51: 3300 | E51: -84 | F51: 37556776.83 | G51: 39586571.12 | H51: 615.0891788 | I51: 30917580 | J51: 31703302 | K51: 238.0975758 | L51: 7209712 | M51: 7883269 | N51: 673557 | O51: 204.1081818 | P51: 0.09
A52: 72 | B52: Dartmouth | C52: 3369 | D52: 3366 | E52: -3 | F52: 38413025.86 | G52: 42137530.87 | H52: 1106.507727 | I52: 31690747 | J52: 33036538 | K52: 399.8190731 | L52: 10049191 | M52: 10150171 | N52: 100980 | O52: 30 | P52: 0.01
A53: 73 | B53: Dedham | C53: 2586 | D53: 2566 | E53: -20 | F53: 30666508.9 | G53: 33049835.11 | H53: 928.8099038 | I53: 25299870 | J53: 26263407 | K53: 375.5015588 | L53: 6143940 | M53: 6786428 | N53: 642488 | O53: 250.3850351 | P53: 0.1
A54: 74 | B54: Deerfield | C54: 293 | D54: 284 | E54: -9 | F54: 3195342.38 | G54: 3310653.24 | H54: 406.0241549 | I54: 2636157 | J54: 2731289 | K54: 334.971831 | L54: 1123153 | M54: 1131673 | N54: 8520 | O54: 30 | P54: 0.01
A55: 77 | B55: Douglas | C55: 1106 | D55: 1114 | E55: 8 | F55: 12319421.25 | G55: 13450769.33 | H55: 1015.572783 | I55: 7492002 | J55: 7945377 | K55: 406.9793537 | L55: 8792765 | M55: 8826185 | N55: 33420 | O55: 30 | P55: 0
A56: 78 | B56: Dover | C56: 476 | D56: 485 | E56: 9 | F56: 4983017.631 | G56: 5377259.147 | H56: 812.8691048 | I56: 4110989 | J56: 4436239 | K56: 670.6185567 | L56: 886342 | M56: 941020 | N56: 54678 | O56: 112.7381443 | P56: 0.06
A57: 79 | B57: Dracut | C57: 3982 | D57: 3936 | E57: -46 | F57: 46058563.06 | G57: 50418700.75 | H57: 1107.758559 | I57: 25045152 | J57: 26100541 | K57: 268.1374492 | L57: 21013411 | M57: 24318160 | N57: 3304749 | O57: 839.621189 | P57: 0.16
A58: 82 | B58: Duxbury | C58: 2730 | D58: 2738 | E58: 8 | F58: 29901986.56 | G58: 31970862.73 | H58: 755.6158425 | I58: 24669139 | J58: 25660838 | K58: 362.1983199 | L58: 5463948 | M58: 6310025 | N58: 846077 | O58: 309.0127831 | P58: 0.15
A59: 83 | B59: East Bridgewater | C59: 2067 | D59: 2074 | E59: 7 | F59: 23394636.07 | G59: 25682682.97 | H59: 1103.20487 | I59: 12898727 | J59: 13482733 | K59: 281.584378 | L59: 11057135 | M59: 12199950 | N59: 1142815 | O59: 551.0197686 | P59: 0.1
A60: 85 | B60: Eastham | C60: 196 | D60: 199 | E60: 3 | F60: 2320433.89 | G60: 2709776.23 | H60: 1956.494171 | I60: 1914358 | J60: 2235566 | K60: 1614.110553 | L60: 406076 | M60: 474210 | N60: 68134 | O60: 342.3819095 | P60: 0.17
A61: 86 | B61: Easthampton | C61: 1630 | D61: 1608 | E61: -22 | F61: 19817458.09 | G61: 21391869.32 | H61: 979.1114614 | I61: 12976004 | J61: 13077217 | K61: 62.94340796 | L61: 8078592 | M61: 8314652 | N61: 236060 | O61: 146.8034826 | P61: 0.03
A62: 87 | B62: East Longmeadow | C62: 2457 | D62: 2535 | E62: 78 | F62: 27993088.18 | G62: 31009727.38 | H62: 1189.99574 | I62: 17190078 | J62: 17979103 | K62: 311.2524655 | L62: 12175958 | M62: 13030624 | N62: 854666 | O62: 337.1463511 | P62: 0.07
A63: 88 | B63: Easton | C63: 3373 | D63: 3345 | E63: -28 | F63: 37338104.88 | G63: 39647570.75 | H63: 690.4232795 | I63: 30163362 | J63: 31564199 | K63: 418.7853513 | L63: 10249641 | M63: 10349991 | N63: 100350 | O63: 30 | P63: 0.01
A64: 89 | B64: Edgartown | C64: 428 | D64: 425 | E64: -3 | F64: 5243884.84 | G64: 5932989.49 | H64: 1621.422706 | I64: 4326205 | J64: 4894716 | K64: 1337.672941 | L64: 917680 | M64: 1038273 | N64: 120593 | O64: 283.7482353 | P64: 0.13
A65: 91 | B65: Erving | C65: 207 | D65: 205 | E65: -2 | F65: 2355746.09 | G65: 2504088.01 | H65: 723.619122 | I65: 1943490 | J65: 2013666 | K65: 342.3219512 | L65: 477715 | M65: 490422 | N65: 12707 | O65: 61.98536585 | P65: 0.03
A66: 93 | B66: Everett | C66: 7505 | D66: 7437 | E66: -68 | F66: 120819748.3 | G66: 131079661.9 | H66: 1379.576931 | I66: 36483827 | J66: 38446657 | K66: 263.927659 | L66: 84335921 | M66: 92633005 | N66: 8297084 | O66: 1115.649321 | P66: 0.1
A67: 94 | B67: Fairhaven | C67: 1727 | D67: 1679 | E67: -48 | F67: 20710203.66 | G67: 22300570.94 | H67: 947.2110066 | I67: 12632417 | J67: 13273418 | K67: 381.7754616 | L67: 8343040 | M67: 9027153 | N67: 684113 | O67: 407.4526504 | P67: 0.08
A68: 95 | B68: Fall River | C68: 11894 | D68: 12103 | E68: 209 | F68: 179465809.7 | G68: 204753290.1 | H68: 2089.356392 | I68: 34286248 | J68: 36332032 | K68: 169.0311493 | L68: 145182843 | M68: 168421258 | N68: 23238415 | O68: 1920.054119 | P68: 0.16
A69: 96 | B69: Falmouth | C69: 3037 | D69: 3025 | E69: -12 | F69: 36995294.28 | G69: 41087216.11 | H69: 1352.701431 | I69: 30521118 | J69: 32002344 | K69: =(J69-I69)/$D69 -> 489.6614876 | L69: 6871209 | M69: 9084872 | N69: =M69-L69 -> 2213663 | O69: =(M69-L69)/$D69 -> 731.7894215 | P69: 0.32
A70: 97 | B70: Fitchburg | C70: 5644 | D70: 5658 | E70: 14 | F70: 80948312.82 | G70: 88839002.54 | H70: 1394.607586 | I70: 19699066 | J70: 20577723 | K70: 155.2946271 | L70: 61251183 | M70: 68261280 | N70: 7010097 | O70: 1238.970838 | P70: 0.11
A71: 98 | B71: Florida | C71: 58 | D71: 64 | E71: 6 | F71: 710252.54 | G71: 969371.98 | H71: 4048.74125 | I71: 432738 | J71: 458631 | K71: 404.578125 | L71: 552457 | M71: 554377 | N71: 1920 | O71: 30 | P71: 0
A72: 99 | B72: Foxborough | C72: 2543 | D72: 2543 | E72: 0 | F72: 29685008.98 | G72: 32116850.1 | H72: 956.2882865 | I72: 24490132 | J72: 25779824 | K72: 507.1537554 | L72: 9123240 | M72: 9199530 | N72: 76290 | O72: 30 | P72: 0.01
A73: 100 | B73: Framingham | C73: 9303 | D73: 9344 | E73: 41 | F73: 124104569.5 | G73: 139318256.6 | H73: 1628.177134 | I73: 67201559 | J73: 70464780 | K73: 349.2316995 | L73: 57034315 | M73: 68853477 | N73: 11819162 | O73: 1264.893193 | P73: 0.21
A74: 101 | B74: Franklin | C74: =VLOOKUP(A74,aidcalc,14,FALSE) -> 5292 | D74: =VLOOKUP(A74,aidcalc,15,FALSE) -> 5180 | E74: -112 | F74: =VLOOKUP(A74,aidcalc,4,FALSE) -> 59769256.12 | G74: =VLOOKUP(A74,aidcalc,9,FALSE) -> 62458712.61 | H74: =(G74-F74)/$D74 -> 519.2000951 | I74: =VLOOKUP(A74,aidcalc,5,FALSE) -> 42443297 | J74: =VLOOKUP(A74,aidcalc,10,FALSE) -> 44800360 | K74: 455.0314672 | L74: =VLOOKUP(A74,aidcalc,6,FALSE) -> 28574921 | M74: =VLOOKUP(A74,aidcalc,25,FALSE) -> 28730321 | N74: 155400 | O74: 30 | P74: =ROUND(IF(F74>0,(M74-L74)/L74,100),2) -> 0.01
A75: 103 | B75: Gardner | C75: 2285 | D75: 2284 | E75: =D75-C75 -> -1 | F75: 30713287.02 | G75: 34029130.22 | H75: 1451.770228 | I75: 10332365 | J75: 10721731 | K75: 170.4754816 | L75: 21072010 | M75: 23307399 | N75: 2235389 | O75: 978.716725 | P75: 0.11
A76: 105 | B76: Georgetown | C76: 1239 | D76: 1247 | E76: 8 | F76: 13268519.02 | G76: 14264533.8 | H76: 798.7287731 | I76: 10680486 | J76: 11007817 | K76: 262.4947875 | L76: 5564938 | M76: 5602348 | N76: 37410 | O76: 30 | P76: 0.01
A77: 107 | B77: Gloucester | C77: 3017 | D77: 3051 | E77: 34 | F77: 39342679.29 | G77: 43648880.14 | H77: 1411.406375 | I77: 32457710 | J77: 33989778 | K77: 502.1527368 | L77: 6884969 | M77: 9659102 | N77: 2774133 | O77: 909.2536873 | P77: 0.4
A78: 110 | B78: Grafton | C78: 3021 | D78: 3053 | E78: 32 | F78: 33113667.03 | G78: 36001737.56 | H78: 945.9779004 | I78: 22380816 | J78: 23384218 | K78: 328.6609892 | L78: 11350399 | M78: 12617520 | N78: 1267121 | O78: 415.0412709 | P78: 0.11
A79: 111 | B79: Granby | C79: 685 | D79: 663 | E79: -22 | F79: 8293230.86 | G79: 8631463.39 | H79: 510.1546456 | I79: 5148277 | J79: 5431578 | K79: 427.3016591 | L79: 4685330 | M79: 4705220 | N79: 19890 | O79: 30 | P79: 0
A80: 114 | B80: Greenfield | C80: 1859 | D80: 1848 | E80: -11 | F80: 23851070.39 | G80: 26326536.47 | H80: 1339.537922 | I80: 10181012 | J80: 10621969 | K80: 238.6130952 | L80: 13958091 | M80: 15704567 | N80: 1746476 | O80: 945.0627706 | P80: 0.13
A81: 117 | B81: Hadley | C81: 498 | D81: 473 | E81: -25 | F81: 5857373.94 | G81: 6025430.87 | H81: 355.3000634 | I81: 4832334 | J81: 4970980 | K81: 293.1205074 | L81: 1294360 | M81: 1308550 | N81: 14190 | O81: 30 | P81: 0.01
A82: 118 | B82: Halifax | C82: 615 | D82: 604 | E82: -11 | F82: 6881455.874 | G82: 7179616.249 | H82: 493.6430046 | I82: 3833817 | J82: 4006503 | K82: 285.9039735 | L82: 3081842 | M82: 3173113 | N82: 91271 | O82: 151.1109272 | P82: 0.03
A83: 121 | B83: Hancock | C83: 81 | D83: 81 | E83: 0 | F83: 936904.26 | G83: 1024022.37 | H83: 1075.532222 | I83: 689423 | J83: 729685 | K83: 497.0617284 | L83: 247481 | M83: 294337 | N83: 46856 | O83: 578.4691358 | P83: 0.19
A84: 122 | B84: Hanover | C84: 2548 | D84: 2528 | E84: -20 | F84: 27986422.45 | G84: 29637166.85 | H84: 652.9843384 | I84: 21593458 | J84: 22439160 | K84: 334.534019 | L84: 7100319 | M84: 7309583 | N84: 209264 | O84: 82.77848101 | P84: 0.03
A85: 125 | B85: Harvard | C85: 876 | D85: 873 | E85: -3 | F85: 9395298.26 | G85: 9947885.43 | H85: 632.9749943 | I85: 7751121 | J85: 8018632 | K85: 306.4272623 | L85: 2008951 | M85: 2035141 | N85: 26190 | O85: 30 | P85: 0.01
A86: 127 | B86: Hatfield | C86: 334 | D86: 331 | E86: -3 | F86: 3877179.38 | G86: 4125023.47 | H86: 748.7736858 | I86: 3198673 | J86: 3287596 | K86: 268.6495468 | L86: 856276 | M86: 866206 | N86: 9930 | O86: 30 | P86: 0.01
A87: 128 | B87: Haverhill | C87: 8276 | D87: 8252 | E87: -24 | F87: 109839437.8 | G87: 121331843.4 | H87: 1392.681248 | I87: 44857002 | J87: 47425533 | K87: 311.2616335 | L87: 64982436 | M87: 73906310 | N87: 8923874 | O87: 1081.419535 | P87: 0.14
A88: 131 | B88: Hingham | C88: 3947 | D88: 3879 | E88: -68 | F88: 43233894.31 | G88: 45163141.52 | H88: 497.3568461 | I88: 35667963 | J88: 37259592 | K88: 410.3194122 | L88: 8074033 | M88: 8190403 | N88: 116370 | O88: 30 | P88: 0.01
A89: 133 | B89: Holbrook | C89: 1315 | D89: 1338 | E89: 23 | F89: 17262299.15 | G89: 18684757.82 | H89: 1063.123076 | I89: 8486011 | J89: 8938395 | K89: 338.1046338 | L89: 8776288 | M89: 9746363 | N89: 970075 | O89: 725.0186846 | P89: 0.11
A90: 135 | B90: Holland | C90: 152 | D90: 171 | E90: 19 | F90: 1813558.83 | G90: 2386918.74 | H90: 3352.98193 | I90: 1163643 | J90: 1401973 | K90: 1393.74269 | L90: 938238 | M90: 984946 | N90: 46708 | O90: 273.1461988 | P90: 0.05
A91: 136 | B91: Holliston | C91: 2604 | D91: 2724 | E91: 120 | F91: 28327730.34 | G91: 31404798.24 | H91: 1129.613768 | I91: 21443054 | J91: 22733659 | K91: 473.7903818 | L91: 8014336 | M91: 8671139 | N91: 656803 | O91: 241.1171072 | P91: 0.08
A92: 137 | B92: Holyoke | C92: 6159 | D92: 6033 | E92: -126 | F92: 94346220.06 | G92: 101613348.8 | H92: 1204.563033 | I92: 11493463 | J92: 11842864 | K92: 57.91496768 | L92: 82853878 | M92: 89770485 | N92: 6916607 | O92: 1146.462291 | P92: 0.08
A93: 138 | B93: Hopedale | C93: 914 | D93: 899 | E93: -15 | F93: 10312156.29 | G93: 11008174.74 | H93: 774.2140695 | I93: 6099344 | J93: 6377665 | K93: 309.5895439 | L93: 6114810 | M93: 6141780 | N93: 26970 | O93: 30 | P93: 0
A94: 139 | B94: Hopkinton | C94: 3935 | D94: 3996 | E94: 61 | F94: 43582814.8 | G94: 46722628.01 | H94: 785.7390415 | I94: 35955822 | J94: 37984044 | K94: 507.5630631 | L94: 8050421 | M94: 8738584 | N94: 688163 | O94: 172.212963 | P94: 0.09
A95: 141 | B95: Hudson | C95: 2512 | D95: 2432 | E95: -80 | F95: 30183664.78 | G95: 31921911.97 | H95: 714.7397992 | I95: 18931449 | J95: 20140158 | K95: 497.0020559 | L95: 12095806 | M95: 12168766 | N95: 72960 | O95: 30 | P95: 0.01
A96: 142 | B96: Hull | C96: 837 | D96: 821 | E96: -16 | F96: 10312532.87 | G96: 10651125.81 | H96: 412.4152764 | I96: 8507840 | J96: 8780091 | K96: 331.6090134 | L96: 3899576 | M96: 3924206 | N96: 24630 | O96: 30 | P96: 0.01
A97: 144 | B97: Ipswich | C97: 1585 | D97: 1602 | E97: 17 | F97: 18360232.91 | G97: 19884295.04 | H97: 951.3496436 | I97: 15147192 | J97: 15849509 | K97: 438.4001248 | L97: 3379890 | M97: 4034786 | N97: 654896 | O97: 408.7990012 | P97: 0.19
A98: 145 | B98: Kingston | C98: 1076 | D98: 1094 | E98: 18 | F98: 11891965.33 | G98: 13087068.68 | H98: 1092.416229 | I98: 7846238 | J98: 8280400 | K98: 396.857404 | L98: 4404865 | M98: 4806669 | N98: 401804 | O98: 367.2797075 | P98: 0.09
A99: 149 | B99: Lawrence | C99: 14746 | D99: 14593 | E99: -153 | F99: 234592260.9 | G99: 253714474.6 | H99: 1310.368926 | I99: 12048747 | J99: 13007684 | K99: 65.71212225 | L99: 222543514 | M99: 240706791 | N99: 18163277 | O99: 1244.656822 | P99: 0.08
A100: 150 | B100: Lee | C100: 579 | D100: 560 | E100: -19 | F100: 7363633.63 | G100: 7917418.48 | H100: 988.9015179 | I100: 6074998 | J100: 6383000 | K100: 550.0035714 | L100: 2102439 | M100: 2119239 | N100: 16800 | O100: 30 | P100: 0.01
A101: 151 | B101: Leicester | C101: 1458 | D101: 1465 | E101: 7 | F101: 17918102.01 | G101: 19402050.66 | H101: 1012.934232 | I101: 8874997 | J101: 9299222 | K101: 289.5733788 | L101: 9846237 | M101: 10102829 | N101: 256592 | O101: 175.1481229 | P101: 0.03
A102: 152 | B102: Lenox | C102: 496 | D102: 475 | E102: -21 | F102: 5879254.1 | G102: 6111653.49 | H102: 489.2618737 | I102: 4784639 | J102: 5042114 | K102: 542.0526316 | L102: 1287405 | M102: 1301655 | N102: 14250 | O102: 30 | P102: 0.01
A103: 153 | B103: Leominster | C103: 5990 | D103: 5976 | E103: -14 | F103: 81402160.15 | G103: 91159936.34 | H103: 1632.827341 | I103: 32019531 | J103: 33607699 | K103: 265.7576975 | L103: 49388806 | M103: 57552237 | N103: 8163431 | O103: 1366.035977 | P103: 0.17
A104: 154 | B104: Leverett | C104: 105 | D104: 112 | E104: 7 | F104: 1142444.52 | G104: 1361700.11 | H104: 1957.639196 | I104: 942517 | J104: 970792 | K104: 252.4553571 | L104: 298661 | M104: 390908 | N104: 92247 | O104: 823.6339286 | P104: 0.31
A105: 155 | B105: Lexington | C105: 6982 | D105: 6850 | E105: -132 | F105: 80618068.69 | G105: 84119411.74 | H105: 511.1449704 | I105: 66509907 | J105: 69398514 | K105: 421.6944526 | L105: 14647494 | M105: 14852994 | N105: 205500 | O105: 30 | P105: 0.01
A106: 157 | B106: Lincoln | C106: 578 | D106: 607 | E106: 29 | F106: 6357796.133 | G106: 7110979.027 | H106: 1240.82849 | I106: 5245182 | J106: 5866558 | K106: 1023.68369 | L106: 1191509 | M106: 1244421 | N106: 52912 | O106: 87.16968699 | P106: 0.04
A107: 158 | B107: Littleton | C107: 1515 | D107: 1624 | E107: 109 | F107: 16227167.91 | G107: 18465845.97 | H107: 1378.496339 | I107: 13387414 | J107: 14142192 | K107: 464.7647783 | L107: 4085358 | M107: 4323654 | N107: 238296 | O107: 146.7339901 | P107: 0.06
A108: 159 | B108: Longmeadow | C108: 2705 | D108: 2742 | E108: 37 | F108: 29129978.33 | G108: 31528951.4 | H108: 874.8990044 | I108: 24032232 | J108: 25041585 | K108: 368.1083151 | L108: 5750432 | M108: 6487366 | N108: 736934 | O108: 268.757841 | P108: 0.13
A109: 160 | B109: Lowell | C109: 16047 | D109: 16103 | E109: 56 | F109: 232660515.4 | G109: 257876444.8 | H109: 1565.915008 | I109: 54112190 | J109: 56906426 | K109: 173.5226976 | L109: 178553488 | M109: 200970019 | N109: 22416531 | O109: 1392.071726 | P109: 0.13
A110: 161 | B110: Ludlow | C110: 2381 | D110: 2311 | E110: -70 | F110: 28842661.47 | G110: 30691074.19 | H110: 799.8324189 | I110: 16677575 | J110: 17421395 | K110: 321.8606664 | L110: 13867413 | M110: 13936743 | N110: 69330 | O110: 30 | P110: 0
A111: 162 | B111: Lunenburg | C111: 1656 | D111: 1671 | E111: 15 | F111: 18408485.4 | G111: 20056630.42 | H111: 986.3225733 | I111: 10908378 | J111: 11334402 | K111: 254.951526 | L111: 7823618 | M111: 8722228 | N111: 898610 | O111: 537.7678037 | P111: 0.11
A112: 163 | B112: Lynn | C112: 17156 | D112: 17808 | E112: 652 | F112: 268344427.4 | G112: 299740597.4 | H112: 1763.037396 | I112: 55110068 | J112: 57821484 | K112: 152.2583109 | L112: 213234359 | M112: 241919113 | N112: 28684754 | O112: 1610.779088 | P112: 0.13
A113: 164 | B113: Lynnfield | C113: 2175 | D113: 2177 | E113: 2 | F113: 23928671.95 | G113: 25488528.22 | H113: 716.5164322 | I113: 19741154 | J113: 20492517 | K113: 345.1368856 | L113: 4469881 | M113: 4996011 | N113: 526130 | O113: 241.6766192 | P113: 0.12
A114: 165 | B114: Malden | C114: 6921 | D114: 6803 | E114: -118 | F114: 97816216.36 | G114: 105452144.2 | H114: 1122.435379 | I114: 47782256 | J114: 51377517 | K114: 528.4816993 | L114: 51413853 | M114: 54074627 | N114: 2660774 | O114: 391.1177422 | P114: 0.05
A115: 167 | B115: Mansfield | C115: 3599 | D115: 3529 | E115: -70 | F115: 41585192 | G115: 43764978.67 | H115: 617.678286 | I115: 29922569 | J115: 31365406 | K115: 408.851516 | L115: 19070309 | M115: 19176179 | N115: 105870 | O115: 30 | P115: 0.01
A116: 168 | B116: Marblehead | C116: 2772 | D116: 2659 | E116: -113 | F116: 30235711.09 | G116: 30912361.05 | H116: 254.4753516 | I116: 24944462 | J116: 25502698 | K116: 209.9420835 | L116: 6035307 | M116: 6115077 | N116: 79770 | O116: 30 | P116: 0.01
A117: 169 | B117: Marion | C117: 403 | D117: 409 | E117: 6 | F117: 4374312.45 | G117: 4816493.63 | H117: 1081.127579 | I117: 3608808 | J117: 3774727 | K117: 405.6699267 | L117: 872434 | M117: 1041767 | N117: 169333 | O117: 414.0171149 | P117: 0.19
A118: 170 | B118: Marlborough | C118: 5207 | D118: 5218 | E118: 11 | F118: 68784010.92 | G118: 77315386.54 | H118: 1634.989579 | I118: 38142644 | J118: 39639041 | K118: 286.7759678 | L118: 31188884 | M118: 37676346 | N118: 6487462 | O118: 1243.285167 | P118: 0.21
A119: 171 | B119: Marshfield | C119: 3791 | D119: 3794 | E119: 3 | F119: 43275872.18 | G119: 47025005.91 | H119: 988.1744154 | I119: 35702595 | J119: 37291361 | K119: 418.7575119 | L119: 14778583 | M119: 14892403 | N119: 113820 | O119: 30 | P119: 0.01
A120: 172 | B120: Mashpee | C120: 1510 | D120: 1458 | E120: -52 | F120: 18231111.67 | G120: 19613343.37 | H120: 948.032716 | I120: 15040667 | J120: 15743229 | K120: 481.866941 | L120: 4685466 | M120: 4729206 | N120: 43740 | O120: 30 | P120: 0.01
A121: 173 | B121: Mattapoisett | C121: 396 | D121: 424 | E121: 28 | F121: 4252682.29 | G121: 4913934.44 | H121: 1559.556958 | I121: 3508463 | J121: 3933553 | K121: 1002.570755 | L121: 851365 | M121: 980381 | N121: 129016 | O121: 304.2830189 | P121: 0.15
A122: 174 | B122: Maynard | C122: 1256 | D122: 1239 | E122: -17 | F122: 14868952.43 | G122: 16124411.02 | H122: 1013.28377 | I122: 10603032 | J122: 11396750 | K122: 640.6117837 | L122: 5480621 | M122: 5517791 | N122: 37170 | O122: 30 | P122: 0.01
A123: 175 | B123: Medfield | C123: 2433 | D123: 2429 | E123: -4 | F123: 26424181.49 | G123: 28101468.77 | H123: 690.5258456 | I123: 21799950 | J123: 22588503 | K123: 324.6410045 | L123: 6361734 | M123: 6434604 | N123: 72870 | O123: 30 | P123: 0.01
A124: 176 | B124: Medford | C124: 4414 | D124: 4455 | E124: 41 | F124: 59164566.02 | G124: 64950374.2 | H124: 1298.722376 | I124: 48810767 | J124: 51012133 | K124: 494.1337823 | L124: 12275726 | M124: 13938241 | N124: 1662515 | O124: 373.1795735 | P124: 0.14
A125: 177 | B125: Medway | C125: 2089 | D125: 2121 | E125: 32 | F125: 23134189.31 | G125: 25231553.77 | H125: 988.8564165 | I125: 17421552 | J125: 18439545 | K125: 479.9589816 | L125: 10564089 | M125: 10627719 | N125: 63630 | O125: 30 | P125: 0.01
A126: 178 | B126: Melrose | C126: 3914 | D126: 3972 | E126: 58 | F126: 44344391.46 | G126: 47377571.27 | H126: 763.6404371 | I126: 36147679 | J126: 37697349 | K126: 390.1485398 | L126: 8631916 | M126: 9680222 | N126: 1048306 | O126: 263.9239678 | P126: 0.12
A127: 181 | B127: Methuen | C127: 6767 | D127: 6737 | E127: -30 | F127: 89379134.69 | G127: 99305682 | H127: 1473.437333 | I127: 40893031 | J127: 42704657 | K127: 268.9069319 | L127: 48647173 | M127: 56601025 | N127: 7953852 | O127: 1180.622235 | P127: 0.16
A128: 182 | B128: Middleborough | C128: 3021 | D128: 3113 | E128: 92 | F128: 35767383 | G128: 40901731.94 | H128: 1649.325069 | I128: 19089621 | J128: 20691229 | K128: =(J128-I128)/$D128 -> 514.4902024 | L128: 18069239 | M128: 20210503 | N128: =M128-L128 -> 2141264 | O128: =(M128-L128)/$D128 -> 687.8458079 | P128: 0.12
A129: 184 | B129: Middleton | C129: 658 | D129: 685 | E129: 27 | F129: 6927207.154 | G129: 7809075.674 | H129: 1287.399299 | I129: 5714946 | J129: 6381487 | K129: 973.0525547 | L129: 1685891 | M129: 1706441 | N129: 20550 | O129: 30 | P129: 0.01
A130: 185 | B130: Milford | C130: 4422 | D130: 4521 | E130: 99 | F130: 58526188.08 | G130: 66524190.05 | H130: 1769.078072 | I130: 26079517 | J130: 27110718 | K130: 228.0913515 | L130: 32446671 | M130: 39413472 | N130: 6966801 | O130: 1540.986729 | P130: 0.21
A131: 186 | B131: Millbury | C131: 1633 | D131: 1618 | E131: -15 | F131: 19104092.83 | G131: 20670955.99 | H131: 968.3950309 | I131: 12049555 | J131: 12891181 | K131: 520.1644005 | L131: 7927312 | M131: 7975852 | N131: 48540 | O131: 30 | P131: 0.01
A132: 187 | B132: Millis | C132: 1051 | D132: 1064 | E132: 13 | F132: 11844886.36 | G132: 12954292.11 | H132: 1042.674576 | I132: 9095464 | J132: 9957083 | K132: 809.7922932 | L132: 4862842 | M132: 4894762 | N132: 31920 | O132: 30 | P132: 0.01
A133: 189 | B133: Milton | C133: 4340 | D133: 4316 | E133: -24 | F133: 48097215.82 | G133: 51259127.09 | H133: 732.6022396 | I133: 38757408 | J133: 40535520 | K133: 411.9814643 | L133: 9697475 | M133: 10723607 | N133: 1026132 | O133: 237.7506951 | P133: 0.11
A134: 191 | B134: Monson | C134: 883 | D134: 852 | E134: -31 | F134: 10403183.45 | G134: 11078294.98 | H134: 792.3844249 | I134: 6007448 | J134: 6264895 | K134: 302.1678404 | L134: 7567565 | M134: 7593125 | N134: 25560 | O134: 30 | P134: 0
A135: 196 | B135: Nahant | C135: 263 | D135: 252 | E135: -11 | F135: 2845521.76 | G135: 2856293.17 | H135: 42.74369048 | I135: 2347555 | J135: 2356441 | K135: 35.26190476 | L135: 531403 | M135: 538963 | N135: 7560 | O135: 30 | P135: 0.01
A136: 197 | B136: Nantucket | C136: 1663 | D136: 1668 | E136: 5 | F136: 20100924.6 | G136: 22613557.84 | H136: 1506.374844 | I136: 16583263 | J136: 18656185 | K136: 1242.758993 | L136: 3650139 | M136: 3957373 | N136: 307234 | O136: 184.1930456 | P136: 0.08
A137: 198 | B137: Natick | C137: 5270 | D137: 5284 | E137: 14 | F137: 57529966.22 | G137: 61356636.24 | H137: 724.1994746 | I137: 47462222 | J137: 49137791 | K137: 317.1023846 | L137: 10362782 | M137: 12218845 | N137: 1856063 | O137: 351.2609765 | P137: 0.18
A138: 199 | B138: Needham | C138: =VLOOKUP(A138,aidcalc,14,FALSE) -> 5561 | D138: =VLOOKUP(A138,aidcalc,15,FALSE) -> 5565 | E138: 4 | F138: =VLOOKUP(A138,aidcalc,4,FALSE) -> 62757965.94 | G138: =VLOOKUP(A138,aidcalc,9,FALSE) -> 66681599.62 | H138: =(G138-F138)/$D138 -> 705.0554689 | I138: =VLOOKUP(A138,aidcalc,5,FALSE) -> 51775322 | J138: =VLOOKUP(A138,aidcalc,10,FALSE) -> 54310286 | K138: 455.5191375 | L138: =VLOOKUP(A138,aidcalc,6,FALSE) -> 11192613 | M138: =VLOOKUP(A138,aidcalc,25,FALSE) -> 12371314 | N138: 1178701 | O138: 211.8061096 | P138: =ROUND(IF(F138>0,(M138-L138)/L138,100),2) -> 0.11
A139: 201 | B139: New Bedford | C139: 14010 | D139: 14011 | E139: =D139-C139 -> 1 | F139: 206188927.6 | G139: 233389315.1 | H139: 1941.359469 | I139: 32442344 | J139: 34303277 | K139: 132.8194276 | L139: 173746584 | M139: 199086038 | N139: 25339454 | O139: 1808.540004 | P139: 0.15
A140: 204 | B140: Newburyport | C140: 2211 | D140: 2195 | E140: -16 | F140: 24047193.3 | G140: 25407534.99 | H140: 619.7456446 | I140: 19838934 | J140: 20726102 | K140: 404.1767654 | L140: 4302202 | M140: 4681433 | N140: 379231 | O140: 172.7703872 | P140: 0.09
A141: 207 | B141: Newton | C141: 12113 | D141: 12007 | E141: -106 | F141: 140792530 | G141: 148413207.2 | H141: 634.6861933 | I141: 116153837 | J141: 122440896 | K141: 523.6161406 | L141: 25492106 | M141: 25972311 | N141: 480205 | O141: 39.99375364 | P141: 0.02
A142: 208 | B142: Norfolk | C142: 968 | D142: 1023 | E142: 55 | F142: 10190816.71 | G142: 11453635.65 | H142: 1234.427117 | I142: 8337473 | J142: 9052188 | K142: 698.6461388 | L142: 3490425 | M142: 3521115 | N142: 30690 | O142: 30 | P142: 0.01
A143: 209 | B143: North Adams | C143: 1308 | D143: 1323 | E143: 15 | F143: 17897202.07 | G143: 20196370.64 | H143: 1737.844724 | I143: 5027520 | J143: 5276853 | K143: 188.4603175 | L143: 13848943 | M143: 14919518 | N143: 1070575 | O143: 809.2025699 | P143: 0.08
A144: 210 | B144: Northampton | C144: 2656 | D144: 2676 | E144: 20 | F144: 30678559 | G144: 33723796.18 | H144: 1137.981009 | I144: 25309811 | J144: 26638955 | K144: 496.690583 | L144: 7638049 | M144: 7718329 | N144: 80280 | O144: 30 | P144: 0.01
A145: 211 | B145: North Andover | C145: 4600 | D145: 4547 | E145: -53 | F145: 51229167.58 | G145: 54375769.08 | H145: 692.0170442 | I145: 42264063 | J145: 43673850 | K145: 310.0477238 | L145: 9298097 | M145: 10701919 | N145: 1403822 | O145: 308.7358698 | P145: 0.15
A146: 212 | B146: North Attleborough | C146: 4093 | D146: 4114 | E146: 21 | F146: 45683012.36 | G146: 49368540.36 | H146: 895.8502674 | I146: 29002278 | J146: 30579150 | K146: 383.2941176 | L146: 20804831 | M146: 20928251 | N146: 123420 | O146: 30 | P146: 0.01
A147: 213 | B147: Northborough | C147: 1567 | D147: 1590 | E147: 23 | F147: 16551243.65 | G147: 18027328.71 | H147: 928.3553836 | I147: 13451109 | J147: 14581324 | K147: 710.827044 | L147: 4040510 | M147: 4088210 | N147: 47700 | O147: 30 | P147: 0.01
A148: 214 | B148: Northbridge | C148: 2023 | D148: 2024 | E148: 1 | F148: 24066339.76 | G148: 26403426.61 | H148: 1154.687179 | I148: 12899827 | J148: 13630647 | K148: 361.0770751 | L148: 15664621 | M148: 15725341 | N148: 60720 | O148: 30 | P148: 0
A149: 215 | B149: North Brookfield | C149: 573 | D149: 585 | E149: 12 | F149: 6863578.77 | G149: 7789173.03 | H149: 1582.21241 | I149: 3115388 | J149: 3255249 | K149: 239.0786325 | L149: 4308028 | M149: 4533924 | N149: 225896 | O149: 386.1470085 | P149: 0.05
A150: 217 | B150: North Reading | C150: 2243 | D150: 2248 | E150: 5 | F150: 25122867.63 | G150: 27056349.75 | H150: 860.0899093 | I150: 20726365 | J150: 21810649 | K150: 482.3327402 | L150: 7221227 | M150: 7288667 | N150: 67440 | O150: 30 | P150: 0.01
A151: 218 | B151: Norton | C151: 2301 | D151: 2213 | E151: -88 | F151: 26330388.29 | G151: 27305331.41 | H151: 440.5526977 | I151: 18951479 | J151: 19965440 | K151: 458.1839132 | L151: 12896420 | M151: 12962810 | N151: 66390 | O151: 30 | P151: 0.01
A152: 219 | B152: Norwell | C152: 2138 | D152: 2119 | E152: -19 | F152: 23347458.35 | G152: 24690512.98 | H152: 633.8153059 | I152: 19261653 | J152: 19938599 | K152: 319.4648419 | L152: 4092385 | M152: 4751914 | N152: 659529 | O152: 311.2453988 | P152: 0.16
A153: 220 | B153: Norwood | C153: 3494 | D153: 3521 | E153: 27 | F153: 43678902.62 | G153: 48677498.67 | H153: 1419.652387 | I153: 34547211 | J153: 35990878 | K153: 410.0161886 | L153: 9271812 | M153: 12686621 | N153: 3414809 | O153: 969.8406703 | P153: 0.37
A154: 221 | B154: Oak Bluffs | C154: 438 | D154: 451 | E154: 13 | F154: 5250477.4 | G154: 6081567.23 | H154: 1842.771242 | I154: 4061903 | J154: 4486599 | K154: 941.6762749 | L154: 1190134 | M154: 1594968 | N154: 404834 | O154: 897.6363636 | P154: 0.34
A155: 223 | B155: Orange | C155: 532 | D155: 590 | E155: 58 | F155: 6806427.04 | G155: 8547480.97 | H155: 2950.938864 | I155: 1964703 | J155: 2251919 | K155: 486.8067797 | L155: 5448006 | M155: 6295562 | N155: 847556 | O155: 1436.535593 | P155: 0.16
A156: 224 | B156: Orleans | C156: 183 | D156: 169 | E156: -14 | F156: 2121258.23 | G156: 2265527.71 | H156: 853.6655621 | I156: 1750038 | J156: 1869061 | K156: 704.2781065 | L156: 435474 | M156: 440544 | N156: 5070 | O156: 30 | P156: 0.01
A157: 226 | B157: Oxford | C157: 1563 | D157: 1571 | E157: 8 | F157: 18679880.2 | G157: 21026624.1 | H157: 1493.789879 | I157: 10080418 | J157: 10588629 | K157: 323.495226 | L157: 10613784 | M157: 10660914 | N157: 47130 | O157: 30 | P157: 0
A158: 227 | B158: Palmer | C158: 1318 | D158: 1297 | E158: -21 | F158: 16709438.48 | G158: 18251116.6 | H158: 1188.649283 | I158: 6791117 | J158: 7077995 | K158: 221.1858134 | L158: 10955180 | M158: 11173122 | N158: 217942 | O158: 168.0354665 | P158: 0.02
A159: 229 | B159: Peabody | C159: 5877 | D159: 5940 | E159: 63 | F159: 74033830.66 | G159: 83523634.24 | H159: 1597.61003 | I159: 50930549 | J159: 52837629 | K159: 321.0572391 | L159: 23103282 | M159: 30686005 | N159: 7582723 | O159: 1276.552694 | P159: 0.33
A160: 230 | B160: Pelham | C160: 70 | D160: 65 | E160: -5 | F160: 782638.47 | G160: 789892.4 | H160: 111.5989231 | I160: 645677 | J160: 635687 | K160: -153.6923077 | L160: 240583 | M160: 242533 | N160: 1950 | O160: 30 | P160: 0.01
A161: 231 | B161: Pembroke | C161: 2740 | D161: 2700 | E161: -40 | F161: 31570380.37 | G161: 33225728.81 | H161: 613.0920155 | I161: 21759351 | J161: 22712411 | K161: 352.9851852 | L161: 13690952 | M161: 13771952 | N161: 81000 | O161: 30 | P161: 0.01
A162: 234 | B162: Petersham | C162: 67 | D162: 65 | E162: -2 | F162: 859319.13 | G162: 934128.69 | H162: 1150.916308 | I162: 588398 | J162: 553478 | K162: -537.2307692 | L162: 437533 | M162: 439483 | N162: 1950 | O162: 30 | P162: 0
A163: 236 | B163: Pittsfield | C163: 5707 | D163: 5618 | E163: -89 | F163: 79110404.66 | G163: 84729484.75 | H163: 1000.192255 | I163: 29449820 | J163: 30474674 | K163: 182.4232823 | L163: 49660585 | M163: 54254811 | N163: 4594226 | O163: 817.7689569 | P163: 0.09
A164: 238 | B164: Plainville | C164: 658 | D164: 670 | E164: 12 | F164: 7127762.91 | G164: 8036459.79 | H164: 1356.264 | I164: 5273871 | J164: 5785122 | K164: 763.061194 | L164: 2947541 | M164: 2967641 | N164: 20100 | O164: 30 | P164: 0.01
A165: 239 | B165: Plymouth | C165: 7708 | D165: 7768 | E165: 60 | F165: 96767564.54 | G165: 104649211.5 | H165: 1014.63015 | I165: 74471293 | J165: 79081066 | K165: 593.4311277 | L165: 26600787 | M165: 26833827 | N165: 233040 | O165: 30 | P165: 0.01
A166: 240 | B166: Plympton | C166: 214 | D166: 248 | E166: 34 | F166: 2366031.939 | G166: 2979879.445 | H166: 2475.191556 | I166: 1783978 | J166: 2095520 | K166: 1256.217742 | L166: 746890 | M166: 884359 | N166: 137469 | O166: 554.3104839 | P166: 0.18
A167: 242 | B167: Provincetown | C167: 99 | D167: 97 | E167: -2 | F167: 1357829.12 | G167: 1535068 | H167: 1827.204948 | I167: 1120209 | J167: 1266431 | K167: 1507.443299 | L167: 293751 | M167: 296661 | N167: 2910 | O167: 30 | P167: 0.01
A168: 243 | B168: Quincy | C168: 9549 | D168: 9460 | E168: -89 | F168: 138447528 | G168: 146803428.4 | H168: 883.2875633 | I168: 106595521 | J168: 111395437 | K168: 507.3906977 | L168: 31872332 | M168: 35407991 | N168: 3535659 | O168: 373.7483087 | P168: 0.11
A169: 244 | B169: Randolph | C169: 3265 | D169: 3107 | E169: -158 | F169: 44771562.8 | G169: 47526055.61 | H169: 886.5441945 | I169: 24106610 | J169: 24874680 | K169: 247.2063083 | L169: 20667301 | M169: 22651376 | N169: 1984075 | O169: 638.5822337 | P169: 0.1
A170: 246 | B170: Reading | C170: 3835 | D170: 3699 | E170: -136 | F170: 42274011.34 | G170: 43201150.09 | H170: 250.6457845 | I170: 34876059 | J170: 35640949 | K170: 206.7829143 | L170: 10949859 | M170: 11060829 | N170: 110970 | O170: 30 | P170: 0.01
A171: 248 | B171: Revere | C171: 7766 | D171: 7735 | E171: -31 | F171: 119408964.5 | G171: 125462677.8 | H171: 782.6390855 | I171: 38458098 | J171: 41009518 | K171: 329.8539108 | L171: 80950866 | M171: 84453160 | N171: 3502294 | O171: 452.7852618 | P171: 0.04
A172: 249 | B172: Richmond | C172: 112 | D172: 122 | E172: 10 | F172: 1294266.88 | G172: 1633317.15 | H172: 2779.100574 | I172: 1067770 | J172: 1118062 | K172: 412.2295082 | L172: 368009 | M172: 515255 | N172: 147246 | O172: 1206.934426 | P172: 0.4
A173: 250 | B173: Rochester | C173: 483 | D173: 522 | E173: 39 | F173: 5247585.08 | G173: 6070731.01 | H173: 1576.907912 | I173: 3517393 | J173: 3686389 | K173: 323.7471264 | L173: 2072039 | M173: 2384342 | N173: 312303 | O173: 598.2816092 | P173: 0.15
A174: 251 | B174: Rockland | C174: 2251 | D174: 2187 | E174: -64 | F174: 29636842.03 | G174: 31695075.43 | H174: 941.1218085 | I174: 14836781 | J174: 15340167 | K174: 230.171925 | L174: 14800061 | M174: 16354908 | N174: 1554847 | O174: 710.9497028 | P174: 0.11
A175: 252 | B175: Rockport | C175: 594 | D175: 593 | E175: -1 | F175: 6998375.141 | G175: 7658338.17 | H175: 1112.922476 | I175: 5773659 | J175: 6318129 | K175: 918.1618887 | L175: 1519946 | M175: 1537736 | N175: 17790 | O175: 30 | P175: 0.01
A176: 253 | B176: Rowe | C176: 43 | D176: 44 | E176: 1 | F176: 580639.88 | G176: 687426.26 | H176: 2426.963182 | I176: 479028 | J176: 567127 | K176: 2002.25 | L176: 141065 | M176: 142385 | N176: 1320 | O176: 30 | P176: 0.01
A177: 258 | B177: Salem | C177: 4315 | D177: 4139 | E177: -176 | F177: 59973101.91 | G177: 62736825.24 | H177: 667.7273085 | I177: 36940239 | J177: 39750153 | K177: 678.8871708 | L177: 25936602 | M177: 26060772 | N177: 124170 | O177: 30 | P177: 0
A178: 261 | B178: Sandwich | C178: 2480 | D178: 2422 | E178: -58 | F178: 27638904.29 | G178: 29279714.52 | H178: 677.4608712 | I178: 22802096 | J178: 23596865 | K178: 328.1457473 | L178: 7226188 | M178: 7298848 | N178: 72660 | O178: 30 | P178: 0.01
A179: 262 | B179: Saugus | C179: 2612 | D179: 2744 | E179: 132 | F179: 31864908.98 | G179: 37560632.35 | H179: 2075.700937 | I179: 26288549 | J179: 28130603 | K179: 671.3024781 | L179: 6349172 | M179: 9430029 | N179: 3080857 | O179: 1122.761297 | P179: 0.49
A180: 263 | B180: Savoy | C180: 45 | D180: 45 | E180: 0 | F180: 542332.33 | G180: 652497.03 | H180: 2448.104444 | I180: 447424 | J180: 427939 | K180: -433 | L180: 517199 | M180: 518549 | N180: 1350 | O180: 30 | P180: 0
A181: 264 | B181: Scituate | C181: 2790 | D181: 2787 | E181: -3 | F181: 30894315.61 | G181: 32814594.94 | H181: 689.0130345 | I181: 25487810 | J181: 26600278 | K181: 399.163258 | L181: 6114553 | M181: 6214317 | N181: 99764 | O181: 35.79619663 | P181: 0.02
A182: 265 | B182: Seekonk | C182: 2048 | D182: 2087 | E182: 39 | F182: 22858887.2 | G182: 24525300.48 | H182: 798.4730618 | I182: 16514693 | J182: 17348780 | K182: 399.6583613 | L182: 6766703 | M182: 7176520 | N182: 409817 | O182: 196.3665549 | P182: 0.06
A183: 266 | B183: Sharon | C183: 3471 | D183: 3525 | E183: 54 | F183: 38638373.19 | G183: 42035594.01 | H183: 963.7505892 | I183: 31062235 | J183: 32315527 | K183: 355.5438298 | L183: 8528536 | M183: 9720067 | N183: 1191531 | O183: 338.0229787 | P183: 0.14
A184: 269 | B184: Sherborn | C184: 387 | D184: 401 | E184: 14 | F184: 4092250.435 | G184: 4431918.977 | H184: 847.053721 | I184: 3376106 | J184: 3656333 | K184: 698.8204489 | L184: 726817 | M184: 775586 | N184: 48769 | O184: 121.6184539 | P184: 0.07
A185: 271 | B185: Shrewsbury | C185: 6144 | D185: 6003 | E185: -141 | F185: 67854307.58 | G185: 70918716.62 | H185: 510.4796002 | I185: 52472153 | J185: 55216447 | K185: 457.1537565 | L185: 20252968 | M185: 20433058 | N185: 180090 | O185: 30 | P185: 0.01
A186: 272 | B186: Shutesbury | C186: 98 | D186: 100 | E186: 2 | F186: 1167665.85 | G186: 1228431.31 | H186: 607.6546 | I186: 713413 | J186: 719067 | K186: 56.54 | L186: 633326 | M186: 636326 | N186: 3000 | O186: 30 | P186: 0
A187: 273 | B187: Somerset | C187: 1642 | D187: 1688 | E187: 46 | F187: 17923179.72 | G187: 20421920.32 | H187: 1480.296564 | I187: 9348329 | J187: 10007089 | K187: 390.2606635 | L187: 9146162 | M187: 10414831 | N187: 1268669 | O187: 751.5811611 | P187: 0.14
A188: 274 | B188: Somerville | C188: 5049 | D188: 5011 | E188: -38 | F188: 77023976.66 | G188: 80143330.55 | H188: 622.5012741 | I188: 62371611 | J188: 66118248 | K188: 747.6824985 | L188: 20638388 | M188: 20788718 | N188: 150330 | O188: 30 | P188: 0.01
A189: 275 | B189: Southampton | C189: 448 | D189: 480 | E189: 32 | F189: 5095671.48 | G189: 5851647.49 | H189: 1574.950021 | I189: 3512848 | J189: 3885985 | K189: 777.36875 | L189: 2564926 | M189: 2579326 | N189: 14400 | O189: 30 | P189: 0.01
A190: 276 | B190: Southborough | C190: 1156 | D190: 1174 | E190: 18 | F190: 12226979.46 | G190: 13166912.13 | H190: 800.6240844 | I190: 10087258 | J190: 10631673 | K190: 463.7265758 | L190: 3020731 | M190: 3055951 | N190: 35220 | O190: 30 | P190: 0.01
A191: 277 | B191: Southbridge | C191: 2210 | D191: 2159 | E191: -51 | F191: 31977786.81 | G191: 34733982.75 | H191: 1276.607661 | I191: 8279716 | J191: 8618946 | K191: =(J191-I191)/$D191 -> 157.1236684 | L191: 23698071 | M191: 26115037 | N191: =M191-L191 -> 2416966 | O191: =(M191-L191)/$D191 -> 1119.48402 | P191: 0.1
A192: 278 | B192: South Hadley | C192: 1837 | D192: 1864 | E192: 27 | F192: 22281902.76 | G192: 24351460.98 | H192: 1110.278015 | I192: 14084456 | J192: 14674595 | K192: 316.598176 | L192: 8585949 | M192: 9676866 | N192: 1090917 | O192: 585.2559013 | P192: 0.13
A193: 281 | B193: Springfield | C193: 29144 | D193: 28613 | E193: -531 | F193: 446524568 | G193: 483882872.1 | H193: 1305.640935 | I193: 43175654 | J193: 44717025 | K193: 53.86960473 | L193: 403348914 | M193: 439165847 | N193: 35816933 | O193: 1251.771328 | P193: 0.09
A194: 284 | B194: Stoneham | C194: 2376 | D194: 2369 | E194: -7 | F194: 27721100.21 | G194: 29345841.39 | H194: 685.8341865 | I194: 22660313 | J194: 23608286 | K194: 400.1574504 | L194: 5337631 | M194: 5737555 | N194: 399924 | O194: 168.815534 | P194: 0.07
A195: 285 | B195: Stoughton | C195: 3540 | D195: 3607 | E195: 67 | F195: 44927626.42 | G195: 50610297.86 | H195: 1575.456457 | I195: 27845850 | J195: 29115684 | K195: 352.0471306 | L195: 17235177 | M195: 21494614 | N195: 4259437 | O195: 1180.880787 | P195: 0.25
A196: 287 | B196: Sturbridge | C196: 804 | D196: 846 | E196: 42 | F196: 8608625.43 | G196: 9620721.53 | H196: 1196.331087 | I196: 5070480 | J196: 5377239 | K196: 362.5992908 | L196: 3870754 | M196: 4243483 | N196: 372729 | O196: 440.5780142 | P196: 0.1
A197: 288 | B197: Sudbury | C197: 2524 | D197: 2491 | E197: -33 | F197: 25581450.37 | G197: 26839555.45 | H197: 505.0602492 | I197: 21104696 | J197: 21886829 | K197: 313.9835407 | L197: 5066238 | M197: 5140968 | N197: 74730 | O197: 30 | P197: 0.01
A198: 289 | B198: Sunderland | C198: 141 | D198: 161 | E198: 20 | F198: 1721299.1 | G198: 2091284.38 | H198: 2298.045217 | I198: 1420072 | J198: 1575365 | K198: 964.552795 | L198: 877068 | M198: 881898 | N198: 4830 | O198: 30 | P198: 0.01
A199: 290 | B199: Sutton | C199: 1257 | D199: 1236 | E199: -21 | F199: 13690363.95 | G199: 14448148.28 | H199: 613.0941181 | I199: 11091587 | J199: 11629509 | K199: 435.2119741 | L199: 5517525 | M199: 5554605 | N199: 37080 | O199: 30 | P199: 0.01
A200: 291 | B200: Swampscott | C200: 2086 | D200: 2029 | E200: -57 | F200: 23502231.44 | G200: 24578055.19 | H200: 530.2236323 | I200: 19389341 | J200: 20086942 | K200: 343.8151799 | L200: 4509966 | M200: 4570836 | N200: 60870 | O200: 30 | P200: 0.01
A201: 292 | B201: Swansea | C201: 2044 | D201: 2057 | E201: 13 | F201: 23940769.11 | G201: 25270425.83 | H201: 646.4057948 | I201: 14745527 | J201: 15443111 | K201: 339.1268838 | L201: 9195242 | M201: 9827315 | N201: 632073 | O201: 307.2790472 | P201: 0.07
A202: 293 | B202: Taunton | C202: =VLOOKUP(A202,aidcalc,14,FALSE) -> 7953 | D202: =VLOOKUP(A202,aidcalc,15,FALSE) -> 7940 | E202: -13 | F202: =VLOOKUP(A202,aidcalc,4,FALSE) -> 107043467.6 | G202: =VLOOKUP(A202,aidcalc,9,FALSE) -> 118729147.7 | H202: =(G202-F202)/$D202 -> 1471.74813 | I202: =VLOOKUP(A202,aidcalc,5,FALSE) -> 38153915 | J202: =VLOOKUP(A202,aidcalc,10,FALSE) -> 40100760 | K202: 245.1945844 | L202: =VLOOKUP(A202,aidcalc,6,FALSE) -> 68896940 | M202: =VLOOKUP(A202,aidcalc,25,FALSE) -> 78628388 | N202: 9731448 | O202: 1225.623174 | P202: =ROUND(IF(F202>0,(M202-L202)/L202,100),2) -> 0.14
A203: 295 | B203: Tewksbury | C203: 3256 | D203: 3228 | E203: =D203-C203 -> -28 | F203: 35982818.32 | G203: 38546581.1 | H203: 794.2263879 | I203: 29685825 | J203: 30874054 | K203: 368.1006815 | L203: 13423895 | M203: 13520735 | N203: 96840 | O203: 30 | P203: 0.01
... 129 more rows

Sheet Rates
A3: Massachusetts Department of Elementary and Secondary Education
A4: Office of School Finance
A6: ="Foundation Budget Rates Per Pupil, "& CYr &" Chapter 70" -> Foundation Budget Rates Per Pupil, FY23 Chapter 70
C8: Administration | D8: Instructional Leadership | E8: Classroom & Specialist Teachers | F8: Other Teaching Services | G8: Professional Development | H8: Instructional Materials, Equipment & Technology | I8: Guidance & Psychological Services | J8: Pupil Services | K8: Operations & Maintenance | L8: Employee Benefits/Fixed Charges | M8: Special Education Tuition | N8: Total, All Categories
A10: 1 | B10: Pre-school | C10: 211.81 | D10: 382.53 | E10: 1754.05 | F10: 449.86 | G10: 69.37 | H10: 253.87 | I10: 153.16 | J10: 50.76 | K10: 487.08 | L10: 651.59 | M10: 0 | N10: 4464.08
A11: 2 | B11: Kindergarten half-day | C11: 211.81 | D11: 382.53 | E11: 1754.05 | F11: 449.86 | G11: 69.37 | H11: 253.87 | I11: 153.16 | J11: 50.76 | K11: 487.08 | L11: 651.59 | M11: 0 | N11: 4464.08
A12: 3 | B12: Kindergarten full-day | C12: 423.61 | D12: 765.08 | E12: 3508.1 | F12: 899.76 | G12: 138.81 | H12: 507.76 | I12: 306.35 | J12: 101.56 | K12: 974.15 | L12: 1303.16 | M12: 0 | N12: 8928.34
A13: 4 | B13: Elementary | C13: 423.61 | D13: 765.08 | E13: 3508.05 | F13: 899.76 | G13: 138.83 | H13: 507.76 | I13: 306.35 | J13: 152.32 | K13: 974.15 | L13: 1303.19 | M13: 0 | N13: 8979.1
A14: 5 | B14: Junior/Middle | C14: 423.61 | D14: 765.08 | E14: 3087.1 | F14: 647.69 | G14: 150.49 | H14: 507.76 | I14: 362.69 | J14: 248.81 | K14: 1056.1 | L14: 1369.51 | M14: 0 | N14: 8618.84
A15: 6 | B15: High School | C15: 423.61 | D15: 765.08 | E15: 4539.82 | F15: 539.2 | G15: 145.92 | H15: 812.4 | I15: 425.94 | J15: 573.75 | K15: 1024 | L15: 1226.16 | M15: 0 | N15: 10475.88
A16: 7 | B16: Vocational | C16: 423.61 | D16: 765.08 | E16: 7717.75 | F16: 539.2 | G16: 241.25 | H16: 1421.69 | I16: 425.94 | J16: 573.75 | K16: 1916.47 | L16: 1672.97 | M16: 0 | N16: 15697.71
A17: 8 | B17: Special Ed-in district | C17: 2923.61 | D17: 0 | E17: 9647.16 | F17: 9007.42 | G17: 465.37 | H17: 406.19 | I17: 0 | J17: 0 | K17: 3265.8 | L17: 3703.8 | M17: 0 | N17: 29419.35
A18: 9 | B18: Special Ed-tuitioned out | C18: 3262.78 | D18: 0 | E18: 0 | F18: 49.84 | G18: 0 | H18: 0 | I18: 0 | J18: 0 | K18: 0 | L18: 0 | M18: 30978.37 | N18: 34290.99
A19: 10 | B19: English learners PK-5 | C19: 101.16 | D19: 177.02 | E19: 1239.09 | F19: 177.02 | G19: 50.57 | H19: 126.43 | I19: 75.86 | J19: 25.3 | K19: 303.45 | L19: 278.17 | M19: 0 | N19: 2554.07
A20: 11 | B20: English learners 6-8 | C20: 106.77 | D20: 186.83 | E20: 1307.82 | F20: 186.83 | G20: 53.38 | H20: 133.45 | I20: 80.08 | J20: 26.69 | K20: 320.28 | L20: 293.59 | M20: 0 | N20: 2695.72
A21: 12 | B21: English learners high school/voc | C21: 99.63 | D21: 174.34 | E21: 1220.36 | F21: 174.34 | G21: 49.8 | H21: 124.52 | I21: 74.71 | J21: 24.91 | K21: 298.86 | L21: 273.96 | M21: 0 | N21: 2515.43
A22: 13 | B22: Low-income group 1 (0-5.99%) | C22: 53.94 | D22: 255.58 | E22: 2495 | F22: 0 | G22: 121.05 | H22: 18.55 | I22: 101.03 | J22: 524.98 | K22: 0 | L22: 403.58 | M22: 0 | N22: 3973.71
A23: 14 | B23: Low-income group 2 (6-11.99%) | C23: 55.43 | D23: 262.6 | E23: 2563.53 | F23: 0 | G23: 124.37 | H23: 19.06 | I23: 103.8 | J23: 539.4 | K23: 0 | L23: 414.67 | M23: 0 | N23: 4082.86
A24: 15 | B24: Low-income group 3 (12-17.99%) | C24: 56.9 | D24: 269.63 | E24: 2632.05 | F24: 0 | G24: 127.7 | H24: 19.58 | I24: 106.58 | J24: 553.82 | K24: 0 | L24: 425.76 | M24: 0 | N24: 4192.02
A25: 16 | B25: Low-income group 4 (18-23.99%) | C25: 58.39 | D25: 276.64 | E25: 2700.58 | F25: 0 | G25: 131.02 | H25: 20.08 | I25: 109.36 | J25: 568.24 | K25: 0 | L25: 436.84 | M25: 0 | N25: 4301.15
A26: 17 | B26: Low-income group 5 (24-29.99%) | C26: 59.87 | D26: 283.66 | E26: 2769.11 | F26: 0 | G26: 134.35 | H26: 20.59 | I26: 112.13 | J26: 582.66 | K26: 0 | L26: 447.93 | M26: 0 | N26: 4410.3
A27: 18 | B27: Low-income group 6 (30-35.99%) | C27: 65.09 | D27: 308.37 | E27: 3010.3 | F27: 0 | G27: 146.04 | H27: 22.39 | I27: 121.89 | J27: 633.4 | K27: 0 | L27: 486.94 | M27: 0 | N27: 4794.42
A28: 19 | B28: Low-income group 7 (36-41.99%) | C28: 68.64 | D28: 325.22 | E28: 3174.83 | F28: 0 | G28: 154.02 | H28: 23.61 | I28: 128.56 | J28: 668.03 | K28: 0 | L28: 513.55 | M28: 0 | N28: 5056.46
A29: 20 | B29: Low-income group 8 (42-47.99%) | C29: 72.2 | D29: 342.08 | E29: 3339.36 | F29: 0 | G29: 162.01 | H29: 24.84 | I29: 135.22 | J29: 702.64 | K29: 0 | L29: 540.16 | M29: 0 | N29: 5318.51
A30: 21 | B30: Low-income group 9 (48-53.99%) | C30: 75.76 | D30: 358.94 | E30: 3503.91 | F30: 0 | G30: 169.99 | H30: 26.06 | I30: 141.88 | J30: 737.27 | K30: 0 | L30: 566.78 | M30: 0 | N30: 5580.59
A31: 22 | B31: Low-income group 10 (54-69.99%) | C31: 79.31 | D31: 375.8 | E31: 3668.44 | F31: 0 | G31: 177.97 | H31: 27.28 | I31: 148.55 | J31: 771.89 | K31: 0 | L31: 593.4 | M31: 0 | N31: 5842.64
A32: 23 | B32: Low-income group 11 (70-79.99%) | C32: 83.62 | D32: 396.18 | E32: 3867.46 | F32: 0 | G32: 187.63 | H32: 28.76 | I32: 156.61 | J32: 813.77 | K32: 0 | L32: 625.59 | M32: 0 | N32: 6159.62
A33: 24 | B33: Low-income group 12 (80%+) | C33: 87.92 | D33: 416.57 | E33: 4066.47 | F33: 0 | G33: 197.28 | H33: 30.24 | I33: 164.67 | J33: 855.64 | K33: 0 | L33: 657.78 | M33: 0 | N33: 6476.57

Sheet Townwide Contributions
A1: 1 | C1: From DOR 3 | D1: 4 | E1: From DOR 5 | F1: 6 | G1: 7 | H1: 8 | I1: =H1+1 -> 9 | J1: =I1+1 -> 10 | K1: 11 | L1: 12 | M1: 13 | N1: c70fy22 14 | O1: From DOR 15 | P1: 16 | Q1: 17 | R1: 18 | S1: 19 | T1: 20 | U1: 21 | V1: 22 | W1: 23 | X1: 24 | Y1: 25 | Z1: 26 | AA1: 27 | AB1: 28 | AC1: 29 | AD1: 30 | AE1: 29
B2: Return to Index | C2: 1. Calculation of effort goal (target local share) | N2: 2. Calculation of annual increments toward goal (required local contribution) | AA2: Analysis of Gap Closing
B3: More about the data | S3: Increments | T3: Thresholds
D4: uniform property percentage | F4: uniform income percentage | N4: Updated 12/2/21 | O4: Updated 1/12/22 | S4: =parameters!C18 -> 0.01 | T4: =parameters!C16 -> 2.5 | V4: Effort Reduction | W4: OPTION TO ACTIVATE THIS INCREMENT
D5: =parameters!C29 -> 0.003623791355 | F5: =parameters!C30 -> 0.01524159425 | S5: =parameters!C19 -> 0.02 | T5: =parameters!C17 -> 7.5 | V5: =effortred -> 1 | W5: 1 | AG5: SUMMARY FOR EXPORT (reads from columns to the left)
C6: Updated 12/17/20 | E6: Updated 12/6/21 | J6: maximum | K6: target local | N6: required | Q6: preliminary | S6: percentage | T6: dollar
D7: local effort | F7: local effort | G7: combined | J7: local contribution | K7: contribution | L7: target | N7: local | P7: preliminary | Q7: contribution | R7: shortfall | S7: increment | T7: increment | V7: excess effort | X7: required | AA7: Before | AB7: After implementation | AI7: CEY% | AJ7: target
C8: total | D8: from property | E8: DOR total | F8: from income | G8: effort | H8: =CYr -> FY23 | I8: CEY % | J8: foundation pct= | K8: (lesser of max local | L8: local | N8: contribution | O8: mrgf | P8: contribution | Q8: percentage of | R8: from target | S8: toward | T8: toward | U8: excess | V8: times effort | W8: CEY% > 175% | X8: contribution | Y8: percentage | AA8: below effort | AB8: below effort | AC8: above effort | AD8: distance from | AI8: found | AJ8: local share | AK8: MRGF | AL8: RLC | AM8: distance from
A9: LEA | B9: Town | C9: EQV 2020 | D9: wealth | E9: income 2019 | F9: wealth | G9: yield | H9: foundation | I9: Found | J9: =maxloc -> 0.825 | K9: or effort yield) | L9: share | N9: FY22 | O9: FY23 | P9: =CYr -> FY23 | Q9: foundation | R9: local share | S9: target | T9: target | U9: effort | V9: reduction % | W9: increment | X9: =CYr -> FY23 | Y9: of foundation | AA9: shortfall | AB9: shortfall | AC9: excess | AD9: target | AG9: Town code | AH9: Town | AI9: =CYr -> FY23 | AJ9: =CYr -> FY23 | AK9: FY23 | AL9: =CYr -> FY23 | AM9: target
A10: 1 | B10: Abington | C10: 2379458500 | D10: =D$5*C10 -> 8622661.143 | E10: 645765000 | F10: =E10*F$5 -> 9842488.113 | G10: =ROUND(D10+F10,0) -> 18465149 | H10: =(SUMIF(town1755,A10,found1755)/2) -> 31456331.29 | I10: =G10/H10 -> 0.5870089817 | J10: =ROUND(H10*maxloc,0) -> 25951473 | K10: =MIN(G10,J10) -> 18465149 | L10: =IF(H10>0, ROUND((K10*100/H10), 2), 0) -> 58.7 | N10: 16734900 | O10: 0.0454 | P10: =ROUND(N10*(1+O10),0) -> 17494664 | Q10: =P10*100/H10 -> 55.6157164 | R10: =IF(L10>Q10,L10-Q10,0) -> 3.084283605 | S10: =IF(AND(R10>$T$4,R10<=$T$5),$S$4,IF(R10>$T$5,$S$5,0)) -> 0.01 | T10: =ROUND(S10*N10,0) -> 167349 | U10: =MAX(P10-K10,0) -> 0 | V10: =MAX(U10*(V$5),0) -> 0 | W10: =IF(AND(I10>1.75,$W$5=1),MAX(K10-(P10+T10),0),0) -> 0 | X10: =MIN(H10*parameters!C$22,ROUND(P10+T10-V10+W10,0)) -> 17662013 | Y10: =X10*100/H10 -> 56.14772058 | AA10: =IF(Q10<L10, P10-K10, 0) -> -970485 | AB10: =-1*MAX(K10-(P10+T10+W10),0) -> -803136 | AC10: =IF(Q10>L10, X10-K10,0) -> 0 | AD10: =Y10-L10 -> -2.552279416 | AG10: =TEXT(A10,"000") -> 001 | AH10: =B10 -> Abington | AI10: =I10 -> 0.5870089817 | AJ10: =L10 -> 58.7 | AK10: =O10 -> 0.0454 | AL10: =X10 -> 17662013 | AM10: =AD10 -> -2.552279416
A11: 2 | B11: Acton | C11: 4940912200 | D11: 17904834.92 | E11: 1733168000 | F11: =E11*F$5 -> 26416243.43 | G11: 44321078 | H11: =(SUMIF(town1755,A11,found1755)/2) -> 52863061.21 | I11: =G11/H11 -> 0.8384130049 | J11: 43612026 | K11: =MIN(G11,J11) -> 43612026 | L11: =IF(H11>0, ROUND((K11*100/H11), 2), 0) -> 82.5 | N11: 39951802 | O11: 0.0323 | P11: =ROUND(N11*(1+O11),0) -> 41242245 | Q11: =P11*100/H11 -> 78.01713343 | R11: =IF(L11>Q11,L11-Q11,0) -> 4.482866573 | S11: =IF(AND(R11>$T$4,R11<=$T$5),$S$4,IF(R11>$T$5,$S$5,0)) -> 0.01 | T11: =ROUND(S11*N11,0) -> 399518 | U11: =MAX(P11-K11,0) -> 0 | V11: 0 | W11: =IF(AND(I11>1.75,$W$5=1),MAX(K11-(P11+T11),0),0) -> 0 | X11: =MIN(H11*parameters!C$22,ROUND(P11+T11-V11+W11,0)) -> 41641763 | Y11: =X11*100/H11 -> 78.77289367 | AA11: =IF(Q11<L11, P11-K11, 0) -> -2369781 | AB11: =-1*MAX(K11-(P11+T11+W11),0) -> -1970263 | AC11: =IF(Q11>L11, X11-K11,0) -> 0 | AD11: =Y11-L11 -> -3.727106329 | AG11: =TEXT(A11,"000") -> 002 | AH11: =B11 -> Acton | AI11: =I11 -> 0.8384130049 | AJ11: 82.5 | AK11: =O11 -> 0.0323 | AL11: 41641763 | AM11: =AD11 -> -3.727106329
A12: 3 | B12: Acushnet | C12: 1346443900 | D12: 4879231.765 | E12: 376411000 | F12: =E12*F$5 -> 5737103.734 | G12: 10616335 | H12: 17464272.65 | I12: 0.6078887575 | J12: 14408025 | K12: 10616335 | L12: 60.79 | N12: 9467763 | O12: 0.0595 | P12: 10031095 | Q12: 57.43780576 | R12: 3.352194239 | S12: 0.01 | T12: 94678 | U12: 0 | V12: 0 | W12: 0 | X12: =MIN(H12*parameters!C$22,ROUND(P12+T12-V12+W12,0)) -> 10125773 | Y12: 57.97992968 | AA12: -585240 | AB12: -490562 | AC12: 0 | AD12: -2.810070316 | AG12: 003 | AH12: Acushnet | AI12: 0.6078887575 | AJ12: 60.79 | AK12: 0.0595 | AL12: 10125773 | AM12: -2.810070316
A13: 4 | B13: Adams | C13: 549332800 | D13: 1990667.452 | E13: 191139000 | F13: 2913263.084 | G13: 4903931 | H13: 14854624.1 | I13: 0.330128246 | J13: 12255065 | K13: 4903931 | L13: 33.01 | N13: 4522027 | O13: 0.0297 | P13: 4656331 | Q13: 31.34600356 | R13: 1.663996437 | S13: 0 | T13: 0 | U13: 0 | V13: 0 | W13: 0 | X13: =MIN(H13*parameters!C$22,ROUND(P13+T13-V13+W13,0)) -> 4656331 | Y13: 31.34600356 | AA13: -247600 | AB13: -247600 | AC13: 0 | AD13: -1.663996437 | AG13: 004 | AH13: Adams | AI13: 0.330128246 | AJ13: 33.01 | AK13: 0.0297 | AL13: 4656331 | AM13: -1.663996437
A14: 5 | B14: Agawam | C14: 3286756800 | D14: 11910520.88 | E14: 893064000 | F14: 13611719.13 | G14: 25522240 | H14: 46476254.92 | I14: 0.5491457959 | J14: 38342910 | K14: 25522240 | L14: 54.91 | N14: 23421246 | O14: 0.0467 | P14: 24515018 | Q14: 52.74740411 | R14: 2.162595885 | S14: 0 | T14: 0 | U14: 0 | V14: 0 | W14: 0 | X14: =MIN(H14*parameters!C$22,ROUND(P14+T14-V14+W14,0)) -> 24515018 | Y14: 52.74740411 | AA14: -1007222 | AB14: -1007222 | AC14: 0 | AD14: -2.162595885 | AG14: 005 | AH14: Agawam | AI14: 0.5491457959 | AJ14: 54.91 | AK14: 0.0467 | AL14: 24515018 | AM14: -2.162595885
A15: 6 | B15: Alford | C15: 279886100 | D15: 1014248.83 | E15: 16412000 | F15: 250145.0449 | G15: 1264394 | H15: 248350.6542 | I15: 5.091164363 | J15: 204889 | K15: 204889 | L15: 82.5 | N15: 200714 | O15: 0.0402 | P15: 208783 | Q15: 84.06782768 | R15: 0 | S15: 0 | T15: 0 | U15: 3894 | V15: 3894 | W15: 0 | X15: =MIN(H15*parameters!C$22,ROUND(P15+T15-V15+W15,0)) -> 204889 | Y15: 82.49988335 | AA15: 0 | AB15: 0 | AC15: 0 | AD15: -0.000116647701 | AG15: 006 | AH15: Alford | AI15: 5.091164363 | AJ15: 82.5 | AK15: 0.0402 | AL15: 204889 | AM15: -0.000116647701
A16: 7 | B16: Amesbury | C16: 2652855600 | D16: 9613395.19 | E16: 714427000 | F16: 10889006.46 | G16: 20502402 | H16: 25753425.66 | I16: 0.7961038766 | J16: 21246576 | K16: 20502402 | L16: 79.61 | N16: 17952065 | O16: 0.0543 | P16: 18926862 | Q16: 73.4925996 | R16: 6.117400401 | S16: 0.01 | T16: 179521 | U16: 0 | V16: 0 | W16: 0 | X16: =MIN(H16*parameters!C$22,ROUND(P16+T16-V16+W16,0)) -> 19106383 | Y16: 74.1896758 | AA16: -1575540 | AB16: -1396019 | AC16: 0 | AD16: -5.420324204 | AG16: 007 | AH16: Amesbury | AI16: 0.7961038766 | AJ16: 79.61 | AK16: 0.0543 | AL16: 19106383 | AM16: -5.420324204
A17: 8 | B17: Amherst | C17: 2727618700 | D17: 9884321.066 | E17: 763306000 | F17: 11634000.34 | G17: 21518321 | H17: 27318085.5 | I17: 0.7876950601 | J17: 22537421 | K17: 21518321 | L17: 78.77 | N17: 20364490 | O17: 0.045 | P17: 21280892 | Q17: 77.90037849 | R17: 0.8696215092 | S17: 0 | T17: 0 | U17: 0 | V17: 0 | W17: 0 | X17: =MIN(H17*parameters!C$22,ROUND(P17+T17-V17+W17,0)) -> 21280892 | Y17: 77.90037849 | AA17: -237429 | AB17: -237429 | AC17: 0 | AD17: -0.8696215092 | AG17: 008 | AH17: Amherst | AI17: 0.7876950601 | AJ17: 78.77 | AK17: 0.045 | AL17: 21280892 | AM17: -0.8696215092
A18: 9 | B18: Andover | C18: 9328654100 | D18: 33805096.08 | E18: 3191831000 | F18: 48648593.02 | G18: 82453689 | H18: 68577185.72 | I18: 1.202348684 | J18: 56576178 | K18: 56576178 | L18: 82.5 | N18: 54237614 | O18: 0.0451 | P18: 56683730 | Q18: 82.65683318 | R18: 0 | S18: 0 | T18: 0 | U18: 107552 | V18: 107552 | W18: 0 | X18: =MIN(H18*parameters!C$22,ROUND(P18+T18-V18+W18,0)) -> 56576178 | Y18: 82.49999968 | AA18: 0 | AB18: 0 | AC18: 0 | AD18: -3.204598187e-07 | AG18: 009 | AH18: Andover | AI18: 1.202348684 | AJ18: 82.5 | AK18: 0.0451 | AL18: 56576178 | AM18: -3.204598187e-07
A19: 10 | B19: Arlington | C19: 12795048700 | D19: 46366586.87 | E19: 3052960000 | F19: 46531977.59 | G19: 92898564 | H19: 73431127.58 | I19: 1.265111501 | J19: 60580680 | K19: 60580680 | L19: 82.5 | N19: 54007855 | O19: 0.0387 | P19: 56097959 | Q19: 76.39533921 | R19: 6.104660793 | S19: 0.01 | T19: 540079 | U19: 0 | V19: 0 | W19: 0 | X19: =MIN(H19*parameters!C$22,ROUND(P19+T19-V19+W19,0)) -> 56638038 | Y19: 77.13082975 | AA19: -4482721 | AB19: -3942642 | AC19: 0 | AD19: -5.369170248 | AG19: 010 | AH19: Arlington | AI19: 1.265111501 | AJ19: 82.5 | AK19: 0.0387 | AL19: 56638038 | AM19: -5.369170248
A20: 11 | B20: Ashburnham | C20: 795346900 | D20: 2882171.221 | E20: 228935000 | F20: 3489334.38 | G20: 6371506 | H20: 13821949.81 | I20: 0.4609701298 | J20: 11403109 | K20: 6371506 | L20: 46.1 | N20: 5672062 | O20: 0.0363 | P20: 5877958 | Q20: 42.52625772 | R20: 3.573742277 | S20: 0.01 | T20: 56721 | U20: 0 | V20: 0 | W20: 0 | X20: =MIN(H20*parameters!C$22,ROUND(P20+T20-V20+W20,0)) -> 5934679 | Y20: 42.93662674 | AA20: -493548 | AB20: -436827 | AC20: 0 | AD20: -3.163373257 | AG20: 011 | AH20: Ashburnham | AI20: 0.4609701298 | AJ20: 46.1 | AK20: 0.0363 | AL20: 5934679 | AM20: -3.163373257
A21: 12 | B21: Ashby | C21: 366133300 | D21: 1326790.687 | E21: 123259000 | F21: 1878663.666 | G21: 3205454 | H21: 5470455.03 | I21: 0.585957472 | J21: 4513125 | K21: 3205454 | L21: 58.6 | N21: 2702209 | O21: 0.0441 | P21: 2821376 | Q21: 51.5747956 | R21: 7.025204401 | S21: 0.01 | T21: 27022 | U21: 0 | V21: 0 | W21: 0 | X21: =MIN(H21*parameters!C$22,ROUND(P21+T21-V21+W21,0)) -> 2848398 | Y21: 52.06875816 | AA21: -384078 | AB21: -357056 | AC21: 0 | AD21: -6.531241836 | AG21: 012 | AH21: Ashby | AI21: 0.585957472 | AJ21: 58.6 | AK21: 0.0441 | AL21: 2848398 | AM21: -6.531241836
A22: 13 | B22: Ashfield | C22: 271206700 | D22: 982796.495 | E22: 47892000 | F22: 729950.4319 | G22: 1712747 | H22: 1924676.205 | I22: 0.889888385 | J22: 1587858 | K22: 1587858 | L22: 82.5 | N22: 1449249 | O22: 0.0314 | P22: 1494755 | Q22: 77.66267364 | R22: 4.83732636 | S22: 0.01 | T22: 14492 | U22: 0 | V22: 0 | W22: 0 | X22: =MIN(H22*parameters!C$22,ROUND(P22+T22-V22+W22,0)) -> 1509247 | Y22: 78.41563146 | AA22: -93103 | AB22: -78611 | AC22: 0 | AD22: -4.08436854 | AG22: 013 | AH22: Ashfield | AI22: 0.889888385 | AJ22: 82.5 | AK22: 0.0314 | AL22: 1509247 | AM22: -4.08436854
A23: 14 | B23: Ashland | C23: 3214888000 | D23: 11650083.34 | E23: 1000740000 | F23: 15252873.03 | G23: 26902956 | H23: 35124702.16 | I23: 0.7659269502 | J23: 28977879 | K23: 26902956 | L23: 76.59 | N23: 23806789 | O23: 0.0423 | P23: 24813816 | Q23: 70.64491504 | R23: 5.945084956 | S23: 0.01 | T23: 238068 | U23: 0 | V23: 0 | W23: 0 | X23: =MIN(H23*parameters!C$22,ROUND(P23+T23-V23+W23,0)) -> 25051884 | Y23: 71.32269446 | AA23: -2089140 | AB23: -1851072 | AC23: 0 | AD23: -5.267305543 | AG23: 014 | AH23: Ashland | AI23: 0.7659269502 | AJ23: 76.59 | AK23: 0.0423 | AL23: 25051884 | AM23: -5.267305543
A24: 15 | B24: Athol | C24: 880913600 | D24: 3192247.088 | E24: 263264000 | F24: 4012563.069 | G24: 7204810 | H24: 25508742.54 | I24: 0.2824447339 | J24: 21044713 | K24: 7204810 | L24: 28.24 | N24: 3586298 | O24: 0.0519 | P24: 3772427 | Q24: 14.78876112 | R24: 13.45123888 | S24: 0.02 | T24: 71726 | U24: 0 | V24: 0 | W24: 0 | X24: =MIN(H24*parameters!C$22,ROUND(P24+T24-V24+W24,0)) -> 3844153 | Y24: 15.06994315 | AA24: -3432383 | AB24: -3360657 | AC24: 0 | AD24: -13.17005685 | AG24: 015 | AH24: Athol | AI24: 0.2824447339 | AJ24: 28.24 | AK24: 0.0519 | AL24: 3844153 | AM24: -13.17005685
A25: 16 | B25: Attleboro | C25: 5286614900 | D25: 19157589.37 | E25: 1606767000 | F25: 24489690.67 | G25: 43647280 | H25: 89634479.84 | I25: 0.4869474345 | J25: 73948446 | K25: 43647280 | L25: 48.69 | N25: 39389597 | O25: 0.0478 | P25: 41272420 | Q25: 46.04524963 | R25: 2.644750369 | S25: 0.01 | T25: 393896 | U25: 0 | V25: 0 | W25: 0 | X25: =MIN(H25*parameters!C$22,ROUND(P25+T25-V25+W25,0)) -> 41666316 | Y25: 46.4846966 | AA25: -2374860 | AB25: -1980964 | AC25: 0 | AD25: -2.205303405 | AG25: 016 | AH25: Attleboro | AI25: 0.4869474345 | AJ25: 48.69 | AK25: 0.0478 | AL25: 41666316 | AM25: -2.205303405
A26: 17 | B26: Auburn | C26: 2423368200 | D26: 8781780.734 | E26: 651647000 | F26: 9932139.17 | G26: 18713920 | H26: 32499653.2 | I26: 0.5758190676 | J26: 26812214 | K26: 18713920 | L26: 57.58 | N26: 16573467 | O26: 0.0412 | P26: 17256294 | Q26: 53.09685582 | R26: 4.483144179 | S26: 0.01 | T26: 165735 | U26: 0 | V26: 0 | W26: 0 | X26: =MIN(H26*parameters!C$22,ROUND(P26+T26-V26+W26,0)) -> 17422029 | Y26: 53.60681511 | AA26: -1457626 | AB26: -1291891 | AC26: 0 | AD26: -3.973184891 | AG26: 017 | AH26: Auburn | AI26: 0.5758190676 | AJ26: 57.58 | AK26: 0.0412 | AL26: 17422029 | AM26: -3.973184891
A27: 18 | B27: Avon | C27: 912879000 | D27: 3308083.029 | E27: 174641000 | F27: 2661807.262 | G27: 5969890 | H27: 9392206.897 | I27: 0.6356216452 | J27: 7748571 | K27: 5969890 | L27: 63.56 | N27: 5499598 | O27: 0.037 | P27: 5703083 | Q27: 60.72143707 | R27: 2.838562932 | S27: 0.01 | T27: 54996 | U27: 0 | V27: 0 | W27: 0 | X27: =MIN(H27*parameters!C$22,ROUND(P27+T27-V27+W27,0)) -> 5758079 | Y27: 61.30698635 | AA27: -266807 | AB27: -211811 | AC27: 0 | AD27: -2.253013651 | AG27: 018 | AH27: Avon | AI27: 0.6356216452 | AJ27: 63.56 | AK27: 0.037 | AL27: 5758079 | AM27: -2.253013651
A28: 19 | B28: Ayer | C28: 1414841800 | D28: 5127091.484 | E28: 316196000 | F28: 4819331.136 | G28: 9946423 | H28: 13171323.71 | I28: 0.7551574331 | J28: 10866342 | K28: 9946423 | L28: 75.52 | N28: 8938701 | O28: 0.0542 | P28: 9423179 | Q28: 71.54314335 | R28: 3.976856648 | S28: 0.01 | T28: 89387 | U28: 0 | V28: 0 | W28: 0 | X28: =MIN(H28*parameters!C$22,ROUND(P28+T28-V28+W28,0)) -> 9512566 | Y28: 72.22179192 | AA28: -523244 | AB28: -433857 | AC28: 0 | AD28: -3.298208077 | AG28: 019 | AH28: Ayer | AI28: 0.7551574331 | AJ28: 75.52 | AK28: 0.0542 | AL28: 9512566 | AM28: -3.298208077
A29: 20 | B29: Barnstable | C29: 16031008100 | D29: 58093028.57 | E29: 2008186000 | F29: 30607956.2 | G29: 88700985 | H29: 79409572.62 | I29: 1.117006201 | J29: 65512897 | K29: 65512897 | L29: 82.5 | N29: 56462012 | O29: 0.0384 | P29: 58630153 | Q29: 73.83260112 | R29: 8.667398884 | S29: 0.02 | T29: 1129240 | U29: 0 | V29: 0 | W29: 0 | X29: =MIN(H29*parameters!C$22,ROUND(P29+T29-V29+W29,0)) -> 59759393 | Y29: 75.2546463 | AA29: -6882744 | AB29: -5753504 | AC29: 0 | AD29: -7.245353704 | AG29: 020 | AH29: Barnstable | AI29: 1.117006201 | AJ29: 82.5 | AK29: 0.0384 | AL29: 59759393 | AM29: -7.245353704
A30: 21 | B30: Barre | C30: 507030500 | D30: 1837372.743 | E30: 155707000 | F30: 2373222.916 | G30: 4210596 | H30: 10815972.48 | I30: 0.3892942596 | J30: 8923177 | K30: 4210596 | L30: 38.93 | N30: 3779390 | O30: 0.0408 | P30: 3933589 | Q30: 36.36833401 | R30: 2.561665987 | S30: 0.01 | T30: 37794 | U30: 0 | V30: 0 | W30: 0 | X30: =MIN(H30*parameters!C$22,ROUND(P30+T30-V30+W30,0)) -> 3971383 | Y30: 36.71776168 | AA30: -277007 | AB30: -239213 | AC30: 0 | AD30: -2.212238322 | AG30: 021 | AH30: Barre | AI30: 0.3892942596 | AJ30: 38.93 | AK30: 0.0408 | AL30: 3971383 | AM30: -2.212238322
A31: 22 | B31: Becket | C31: 558339300 | D31: 2023305.129 | E31: 56000000 | F31: 853529.2781 | G31: 2876834 | H31: 2797852.84 | I31: 1.028229205 | J31: 2308229 | K31: 2308229 | L31: 82.5 | N31: 2027036 | O31: 0.0308 | P31: 2089469 | Q31: 74.68116157 | R31: 7.818838428 | S31: 0.02 | T31: 40541 | U31: 0 | V31: 0 | W31: 0 | X31: =MIN(H31*parameters!C$22,ROUND(P31+T31-V31+W31,0)) -> 2130010 | Y31: 76.13016559 | AA31: -218760 | AB31: -178219 | AC31: 0 | AD31: -6.369834412 | AG31: 022 | AH31: Becket | AI31: 1.028229205 | AJ31: 82.5 | AK31: 0.0308 | AL31: 2130010 | AM31: -6.369834412
A32: 23 | B32: Bedford | C32: 4399434500 | D32: 15942632.71 | E32: 1093494000 | F32: 16666591.87 | G32: 32609225 | H32: 32937938.19 | I32: 0.9900202256 | J32: 27173799 | K32: 27173799 | L32: 82.5 | N32: 25930692 | O32: 0.0391 | P32: 26944582 | Q32: 81.80409424 | R32: 0.6959057595 | S32: 0 | T32: 0 | U32: 0 | V32: 0 | W32: 0 | X32: =MIN(H32*parameters!C$22,ROUND(P32+T32-V32+W32,0)) -> 26944582 | Y32: 81.80409424 | AA32: -229217 | AB32: -229217 | AC32: 0 | AD32: -0.6959057595 | AG32: 023 | AH32: Bedford | AI32: 0.9900202256 | AJ32: 82.5 | AK32: 0.0391 | AL32: 26944582 | AM32: -0.6959057595
A33: 24 | B33: Belchertown | C33: 1706796100 | D33: 6185072.952 | E33: 565700000 | F33: 8622169.869 | G33: 14807243 | H33: 28423248.07 | I33: 0.5209553449 | J33: 23449180 | K33: 14807243 | L33: 52.1 | N33: 13673771 | O33: 0.032 | P33: 14111332 | Q33: 49.64714788 | R33: 2.452852117 | S33: 0 | T33: 0 | U33: 0 | V33: 0 | W33: 0 | X33: =MIN(H33*parameters!C$22,ROUND(P33+T33-V33+W33,0)) -> 14111332 | Y33: 49.64714788 | AA33: -695911 | AB33: -695911 | AC33: 0 | AD33: -2.452852117 | AG33: 024 | AH33: Belchertown | AI33: 0.5209553449 | AJ33: 52.1 | AK33: 0.032 | AL33: 14111332 | AM33: -2.452852117
A34: 25 | B34: Bellingham | C34: 2853759500 | D34: 10341429.01 | E34: 650983000 | F34: 9922018.751 | G34: 20263448 | H34: 28663688.21 | I34: 0.7069379157 | J34: 23647543 | K34: 20263448 | L34: 70.69 | N34: 18524823 | O34: 0.0457 | P34: 19371407 | Q34: 67.58169729 | R34: 3.108302707 | S34: 0.01 | T34: 185248 | U34: 0 | V34: 0 | W34: 0 | X34: =MIN(H34*parameters!C$22,ROUND(P34+T34-V34+W34,0)) -> 19556655 | Y34: 68.22797839 | AA34: -892041 | AB34: -706793 | AC34: 0 | AD34: -2.462021605 | AG34: 025 | AH34: Bellingham | AI34: 0.7069379157 | AJ34: 70.69 | AK34: 0.0457 | AL34: 19556655 | AM34: -2.462021605
A35: 26 | B35: Belmont | C35: 9840875900 | D35: 35661281.01 | E35: 2673968000 | F35: 40755535.3 | G35: =ROUND(D35+F35,0) -> 76416816 | H35: =(SUMIF(town1755,A35,found1755)/2) -> 53256083.38 | I35: 1.434893653 | J35: 43936269 | K35: 43936269 | L35: 82.5 | N35: 40824828 | O35: 0.0701 | P35: 43686648 | Q35: 82.03128211 | R35: =IF(L35>Q35,L35-Q35,0) -> 0.4687178872 | S35: =IF(AND(R35>$T$4,R35<=$T$5),$S$4,IF(R35>$T$5,$S$5,0)) -> 0 | T35: =ROUND(S35*N35,0) -> 0 | U35: 0 | V35: 0 | W35: 0 | X35: =MIN(H35*parameters!C$22,ROUND(P35+T35-V35+W35,0)) -> 43686648 | Y35: 82.03128211 | AA35: -249621 | AB35: -249621 | AC35: 0 | AD35: -0.4687178872 | AG35: 026 | AH35: Belmont | AI35: 1.434893653 | AJ35: 82.5 | AK35: 0.0701 | AL35: 43686648 | AM35: -0.4687178872
A36: 27 | B36: Berkley | C36: 971888500 | D36: 3521921.145 | E36: 283733000 | F36: 4324543.262 | G36: 7846464 | H36: 14040188.02 | I36: 0.5588574733 | J36: 11583155 | K36: 7846464 | L36: 55.89 | N36: 7062818 | O36: 0.0466 | P36: 7391945 | Q36: 52.64847587 | R36: 3.241524133 | S36: 0.01 | T36: 70628 | U36: 0 | V36: 0 | W36: 0 | X36: =MIN(H36*parameters!C$22,ROUND(P36+T36-V36+W36,0)) -> 7462573 | Y36: 53.15151756 | AA36: -454519 | AB36: -383891 | AC36: 0 | AD36: -2.738482437 | AG36: 027 | AH36: Berkley | AI36: 0.5588574733 | AJ36: 55.89 | AK36: 0.0466 | AL36: 7462573 | AM36: -2.738482437
A37: 28 | B37: Berlin | C37: 710453400 | D37: 2574534.889 | E37: 187295000 | F37: 2854674.396 | G37: 5429209 | H37: 5115803.16 | I37: 1.061262295 | J37: 4220538 | K37: 4220538 | L37: 82.5 | N37: 3480398 | O37: 0.0441 | P37: 3633884 | Q37: 71.0325219 | R37: 11.4674781 | S37: 0.02 | T37: 69608 | U37: 0 | V37: 0 | W37: 0 | X37: =MIN(H37*parameters!C$22,ROUND(P37+T37-V37+W37,0)) -> 3703492 | Y37: 72.39316847 | AA37: -586654 | AB37: -517046 | AC37: 0 | AD37: -10.10683153 | AG37: 028 | AH37: Berlin | AI37: 1.061262295 | AJ37: 82.5 | AK37: 0.0441 | AL37: 3703492 | AM37: -10.10683153
A38: 29 | B38: Bernardston | C38: 248325200 | D38: 899878.7131 | E38: 66410000 | F38: 1012194.274 | G38: 1912073 | H38: 3444844.622 | I38: 0.5550534814 | J38: 2841997 | K38: 1912073 | L38: 55.51 | N38: 1745963 | O38: 0.031 | P38: 1800088 | Q38: 52.2545484 | R38: 3.255451604 | S38: 0.01 | T38: 17460 | U38: 0 | V38: 0 | W38: 0 | X38: =MIN(H38*parameters!C$22,ROUND(P38+T38-V38+W38,0)) -> 1817548 | Y38: 52.76139274 | AA38: -111985 | AB38: -94525 | AC38: 0 | AD38: -2.748607263 | AG38: 029 | AH38: Bernardston | AI38: 0.5550534814 | AJ38: 55.51 | AK38: 0.031 | AL38: 1817548 | AM38: -2.748607263
A39: 30 | B39: Beverly | C39: 7994706700 | D39: 28971149.03 | E39: 2147810000 | F39: 32736048.55 | G39: 61707198 | H39: 61252986.66 | I39: 1.007415334 | J39: 50533714 | K39: 50533714 | L39: 82.5 | N39: 45024936 | O39: 0.045 | P39: 47051058 | Q39: 76.81430827 | R39: 5.685691731 | S39: 0.01 | T39: 450249 | U39: 0 | V39: 0 | W39: 0 | X39: =MIN(H39*parameters!C$22,ROUND(P39+T39-V39+W39,0)) -> 47501307 | Y39: 77.54937283 | AA39: -3482656 | AB39: -3032407 | AC39: 0 | AD39: -4.950627166 | AG39: 030 | AH39: Beverly | AI39: 1.007415334 | AJ39: 82.5 | AK39: 0.045 | AL39: 47501307 | AM39: -4.950627166
A40: 31 | B40: Billerica | C40: 7998669600 | D40: 28985509.75 | E40: 1792705000 | F40: 27323682.22 | G40: 56309192 | H40: 66548255.16 | I40: 0.8461407721 | J40: 54902311 | K40: 54902311 | L40: 82.5 | N40: 50261326 | O40: 0.05 | P40: 52774392 | Q40: 79.30244283 | R40: 3.197557172 | S40: 0.01 | T40: 502613 | U40: 0 | V40: 0 | W40: 0 | X40: =MIN(H40*parameters!C$22,ROUND(P40+T40-V40+W40,0)) -> 53277005 | Y40: 80.0577038 | AA40: -2127919 | AB40: -1625306 | AC40: 0 | AD40: -2.442296198 | AG40: 031 | AH40: Billerica | AI40: 0.8461407721 | AJ40: 82.5 | AK40: 0.05 | AL40: 53277005 | AM40: -2.442296198
A41: 32 | B41: Blackstone | C41: 1075325500 | D41: 3896755.251 | E41: 321491000 | F41: 4900035.378 | G41: 8796791 | H41: 17050407.21 | I41: 0.5159284992 | J41: 14066586 | K41: 8796791 | L41: 51.59 | N41: 7923545 | O41: 0.0416 | P41: 8253164 | Q41: 48.40449791 | R41: 3.185502089 | S41: 0.01 | T41: 79235 | U41: 0 | V41: 0 | W41: 0 | X41: =MIN(H41*parameters!C$22,ROUND(P41+T41-V41+W41,0)) -> 8332399 | Y41: 48.86920822 | AA41: -543627 | AB41: -464392 | AC41: 0 | AD41: -2.72079178 | AG41: 032 | AH41: Blackstone | AI41: 0.5159284992 | AJ41: 51.59 | AK41: 0.0416 | AL41: 8332399 | AM41: -2.72079178
A42: 33 | B42: Blandford | C42: 180760100 | D42: 655036.8878 | E42: 39447000 | F42: 601235.1685 | G42: 1256272 | H42: 1313504.037 | I42: 0.9564279703 | J42: 1083641 | K42: 1083641 | L42: 82.5 | N42: 1091435 | O42: 0.037 | P42: 1131818 | Q42: 86.16783567 | R42: 0 | S42: 0 | T42: 0 | U42: 48177 | V42: 48177 | W42: 0 | X42: =MIN(H42*parameters!C$22,ROUND(P42+T42-V42+W42,0)) -> 1083641 | Y42: 82.50001291 | AA42: 0 | AB42: 0 | AC42: 0 | AD42: 1.29083443e-05 | AG42: 033 | AH42: Blandford | AI42: 0.9564279703 | AJ42: 82.5 | AK42: 0.037 | AL42: 1083641 | AM42: 1.29083443e-05
A43: 34 | B43: Bolton | C43: 1191544800 | D43: 4317909.746 | E43: 452935000 | F43: 6903451.493 | G43: 11221361 | H43: 12690378 | I43: 0.8842416671 | J43: 10469562 | K43: 10469562 | L43: 82.5 | N43: 9634320 | O43: 0.0365 | P43: 9985973 | Q43: 78.68932666 | R43: 3.810673336 | S43: 0.01 | T43: 96343 | U43: 0 | V43: 0 | W43: 0 | X43: =MIN(H43*parameters!C$22,ROUND(P43+T43-V43+W43,0)) -> 10082316 | Y43: 79.44850815 | AA43: -483589 | AB43: -387246 | AC43: 0 | AD43: -3.051491852 | AG43: 034 | AH43: Bolton | AI43: 0.8842416671 | AJ43: 82.5 | AK43: 0.0365 | AL43: 10082316 | AM43: -3.051491852
A44: 35 | B44: Boston | C44: 203894526100 | D44: 738871221.1 | E44: 37186003000 | F44: 566773969.6 | G44: 1305645191 | H44: 1012695286 | I44: 1.289277445 | J44: 835473611 | K44: 835473611 | L44: 82.5 | N44: 788497356 | O44: 0.0491 | P44: 827212576 | Q44: 81.68425265 | R44: 0.8157473488 | S44: 0 | T44: 0 | U44: 0 | V44: 0 | W44: 0 | X44: =MIN(H44*parameters!C$22,ROUND(P44+T44-V44+W44,0)) -> 827212576 | Y44: 81.68425265 | AA44: -8261035 | AB44: -8261035 | AC44: 0 | AD44: -0.8157473488 | AG44: 035 | AH44: Boston | AI44: 1.289277445 | AJ44: 82.5 | AK44: 0.0491 | AL44: 827212576 | AM44: -0.8157473488
A45: 36 | B45: Bourne | C45: 5178654100 | D45: 18766361.96 | E45: 819472000 | F45: 12490059.73 | G45: 31256422 | H45: 25362480.91 | I45: 1.232388192 | J45: 20924047 | K45: 20924047 | L45: 82.5 | N45: 19929237 | O45: 0.0381 | P45: 20688541 | Q45: 81.5714404 | R45: 0.9285596005 | S45: 0 | T45: 0 | U45: 0 | V45: 0 | W45: 0 | X45: =MIN(H45*parameters!C$22,ROUND(P45+T45-V45+W45,0)) -> 20688541 | Y45: 81.5714404 | AA45: -235506 | AB45: -235506 | AC45: 0 | AD45: -0.9285596005 | AG45: 036 | AH45: Bourne | AI45: 1.232388192 | AJ45: 82.5 | AK45: 0.0381 | AL45: 20688541 | AM45: -0.9285596005
A46: 37 | B46: Boxborough | C46: 1245735100 | D46: 4514284.086 | E46: 364645000 | F46: 5557771.136 | G46: 10072055 | H46: 10069990.36 | I46: 1.000205029 | J46: 8307742 | K46: 8307742 | L46: 82.5 | N46: 7879848 | O46: 0.0325 | P46: 8135943 | Q46: 80.79395022 | R46: =IF(L46>Q46,L46-Q46,0) -> 1.706049783 | S46: 0 | T46: 0 | U46: 0 | V46: 0 | W46: 0 | X46: =MIN(H46*parameters!C$22,ROUND(P46+T46-V46+W46,0)) -> 8135943 | Y46: 80.79395022 | AA46: -171799 | AB46: -171799 | AC46: 0 | AD46: -1.706049783 | AG46: 037 | AH46: Boxborough | AI46: 1.000205029 | AJ46: 82.5 | AK46: 0.0325 | AL46: 8135943 | AM46: -1.706049783
A47: 38 | B47: Boxford | C47: 2027205500 | D47: 7346169.766 | E47: 907352000 | F47: 13829491.03 | G47: 21175661 | H47: 16256128.2 | I47: 1.302626353 | J47: 13411306 | K47: 13411306 | L47: 82.5 | N47: 12179892 | O47: 0.0273 | P47: 12512403 | Q47: 76.97037599 | R47: 5.529624011 | S47: 0.01 | T47: 121799 | U47: 0 | V47: 0 | W47: 0 | X47: =MIN(H47*parameters!C$22,ROUND(P47+T47-V47+W47,0)) -> 12634202 | Y47: 77.71962574 | AA47: -898903 | AB47: -777104 | AC47: 0 | AD47: -4.78037426 | AG47: 038 | AH47: Boxford | AI47: 1.302626353 | AJ47: 82.5 | AK47: 0.0273 | AL47: 12634202 | AM47: -4.78037426
A48: 39 | B48: Boylston | C48: 894665100 | D48: 3242079.655 | E48: 306364000 | F48: 4669475.782 | G48: 7911555 | H48: 7578514.347 | I48: 1.043945375 | J48: 6252274 | K48: 6252274 | L48: 82.5 | N48: 6005963 | O48: 0.052 | P48: 6318273 | Q48: 83.37086545 | R48: 0 | S48: 0 | T48: 0 | U48: 65999 | V48: 65999 | W48: 0 | X48: =MIN(H48*parameters!C$22,ROUND(P48+T48-V48+W48,0)) -> 6252274 | Y48: 82.49999556 | AA48: 0 | AB48: 0 | AC48: 0 | AD48: -4.441185325e-06 | AG48: 039 | AH48: Boylston | AI48: 1.043945375 | AJ48: 82.5 | AK48: 0.052 | AL48: 6252274 | AM48: -4.441185325e-06
A49: 40 | B49: Braintree | C49: 8213296300 | D49: 29763272.13 | E49: 1741785000 | F49: 26547580.25 | G49: 56310852 | H49: 71819129.09 | I49: 0.7840648128 | J49: 59250781 | K49: 56310852 | L49: 78.41 | N49: 49137569 | O49: 0.0272 | P49: 50474111 | Q49: 70.27948075 | R49: 8.130519252 | S49: 0.02 | T49: 982751 | U49: 0 | V49: 0 | W49: 0 | X49: =MIN(H49*parameters!C$22,ROUND(P49+T49-V49+W49,0)) -> 51456862 | Y49: 71.64785017 | AA49: -5836741 | AB49: -4853990 | AC49: 0 | AD49: -6.762149832 | AG49: 040 | AH49: Braintree | AI49: 0.7840648128 | AJ49: 78.41 | AK49: 0.0272 | AL49: 51456862 | AM49: -6.762149832
A50: 41 | B50: Brewster | C50: 4380442300 | D50: 15873808.94 | E50: 433996000 | F50: 6614790.939 | G50: 22488600 | H50: 14474906.07 | I50: 1.553626662 | J50: 11941798 | K50: 11941798 | L50: 82.5 | N50: 10358069 | O50: 0.0488 | P50: 10863543 | Q50: 75.05087041 | R50: 7.449129588 | S50: 0.01 | T50: 103581 | U50: 0 | V50: 0 | W50: 0 | X50: =MIN(H50*parameters!C$22,ROUND(P50+T50-V50+W50,0)) -> 10967124 | Y50: 75.76646055 | AA50: -1078255 | AB50: -974674 | AC50: 0 | AD50: -6.733539453 | AG50: 041 | AH50: Brewster | AI50: 1.553626662 | AJ50: 82.5 | AK50: 0.0488 | AL50: 10967124 | AM50: -6.733539453
A51: 42 | B51: Bridgewater | C51: 3400108700 | D51: 12321284.51 | E51: 977567000 | F51: 14899679.57 | G51: 27220964 | H51: 43597595.98 | I51: 0.6243684631 | J51: 35968017 | K51: 27220964 | L51: 62.44 | N51: 24335765 | O51: 0.0557 | P51: 25691267 | Q51: 58.9281735 | R51: 3.511826504 | S51: 0.01 | T51: 243358 | U51: 0 | V51: 0 | W51: 0 | X51: =MIN(H51*parameters!C$22,ROUND(P51+T51-V51+W51,0)) -> 25934625 | Y51: 59.48636482 | AA51: -1529697 | AB51: -1286339 | AC51: 0 | AD51: -2.953635176 | AG51: 042 | AH51: Bridgewater | AI51: 0.6243684631 | AJ51: 62.44 | AK51: 0.0557 | AL51: 25934625 | AM51: -2.953635176
A52: 43 | B52: Brimfield | C52: 466597600 | D52: 1690852.349 | E52: 150717000 | F52: 2297167.361 | G52: 3988020 | H52: 6595273.437 | I52: 0.6046784926 | J52: 5441101 | K52: 3988020 | L52: 60.47 | N52: 3596803 | O52: 0.0244 | P52: 3684565 | Q52: 55.86675117 | R52: 4.60324883 | S52: 0.01 | T52: 35968 | U52: 0 | V52: 0 | W52: 0 | X52: =MIN(H52*parameters!C$22,ROUND(P52+T52-V52+W52,0)) -> 3720533 | Y52: 56.41211142 | AA52: -303455 | AB52: -267487 | AC52: 0 | AD52: -4.057888575 | AG52: 043 | AH52: Brimfield | AI52: 0.6046784926 | AJ52: 60.47 | AK52: 0.0244 | AL52: 3720533 | AM52: -4.057888575
A53: 44 | B53: Brockton | C53: 8886561300 | D53: 32203044.02 | E53: 2294511000 | F53: 34972005.67 | G53: 67175050 | H53: 296126699.3 | I53: 0.2268456379 | J53: 244304527 | K53: 67175050 | L53: 22.68 | N53: 53240975 | O53: 0.0408 | P53: 55413207 | Q53: 18.7126683 | R53: 3.967331695 | S53: 0.01 | T53: 532410 | U53: 0 | V53: 0 | W53: 0 | X53: =MIN(H53*parameters!C$22,ROUND(P53+T53-V53+W53,0)) -> 55945617 | Y53: 18.89245959 | AA53: -11761843 | AB53: -11229433 | AC53: 0 | AD53: -3.78754041 | AG53: 044 | AH53: Brockton | AI53: 0.2268456379 | AJ53: 22.68 | AK53: 0.0408 | AL53: 55945617 | AM53: -3.78754041
A54: 45 | B54: Brookfield | C54: 312533400 | D54: 1132555.833 | E54: 102428000 | F54: 1561166.016 | G54: 2693722 | H54: 6059505.522 | I54: 0.4445448544 | J54: 4999092 | K54: 2693722 | L54: 44.45 | N54: 2450578 | O54: 0.0296 | P54: 2523115 | Q54: 41.63895867 | R54: 2.811041326 | S54: 0.01 | T54: 24506 | U54: 0 | V54: 0 | W54: 0 | X54: =MIN(H54*parameters!C$22,ROUND(P54+T54-V54+W54,0)) -> 2547621 | Y54: 42.04338111 | AA54: -170607 | AB54: -146101 | AC54: 0 | AD54: -2.406618888 | AG54: 045 | AH54: Brookfield | AI54: 0.4445448544 | AJ54: 44.45 | AK54: 0.0296 | AL54: 2547621 | AM54: -2.406618888
A55: 46 | B55: Brookline | C55: 28147948700 | D55: 102002293.2 | E55: 5258060000 | F55: 80141217.08 | G55: 182143510 | H55: 82275309.96 | I55: 2.21382952 | J55: 67877131 | K55: 67877131 | L55: 82.5 | N55: 63889132 | O55: 0.0462 | P55: 66840810 | Q55: 81.2404232 | R55: 1.259576805 | S55: 0 | T55: 0 | U55: 0 | V55: 0 | W55: 1036321 | X55: =MIN(H55*parameters!C$22,ROUND(P55+T55-V55+W55,0)) -> 67877131 | Y55: 82.50000034 | AA55: -1036321 | AB55: 0 | AC55: 0 | AD55: 3.401480058e-07 | AG55: 046 | AH55: Brookline | AI55: 2.21382952 | AJ55: 82.5 | AK55: 0.0462 | AL55: 67877131 | AM55: 3.401480058e-07
A56: 47 | B56: Buckland | C56: 236099700 | D56: 855576.0518 | E56: 44572050 | F56: 679349.1011 | G56: 1534925 | H56: 2809920.636 | I56: 0.5462520829 | J56: 2318185 | K56: 1534925 | L56: 54.63 | N56: 1394741 | O56: 0.0317 | P56: 1438954 | Q56: 51.20977375 | R56: 3.42022625 | S56: 0.01 | T56: 13947 | U56: 0 | V56: 0 | W56: 0 | X56: =MIN(H56*parameters!C$22,ROUND(P56+T56-V56+W56,0)) -> 1452901 | Y56: 51.70612229 | AA56: -95971 | AB56: -82024 | AC56: 0 | AD56: -2.923877712 | AG56: 047 | AH56: Buckland | AI56: 0.5462520829 | AJ56: 54.63 | AK56: 0.0317 | AL56: 1452901 | AM56: -2.923877712
A57: 48 | B57: Burlington | C57: 8100649200 | D57: 29355062.54 | E57: 1423904000 | F57: 21702567.02 | G57: 51057630 | H57: 46533388.76 | I57: 1.097225699 | J57: 38390046 | K57: 38390046 | L57: 82.5 | N57: 34983463 | O57: 0.0446 | P57: 36543725 | Q57: 78.53226677 | R57: 3.967733227 | S57: 0.01 | T57: 349835 | U57: 0 | V57: 0 | W57: 0 | X57: =MIN(H57*parameters!C$22,ROUND(P57+T57-V57+W57,0)) -> 36893560 | Y57: 79.28406029 | AA57: -1846321 | AB57: -1496486 | AC57: 0 | AD57: -3.21593971 | AG57: 048 | AH57: Burlington | AI57: 1.097225699 | AJ57: 82.5 | AK57: 0.0446 | AL57: 36893560 | AM57: -3.21593971
A58: 49 | B58: Cambridge | C58: 63505735500 | D58: 230131535.3 | E58: 8626740000 | F58: 131485270.8 | G58: 361616806 | H58: 105936291.7 | I58: 3.413530908 | J58: 87397441 | K58: 87397441 | L58: 82.5 | N58: 83199919 | O58: 0.0395 | P58: 86486316 | Q58: 81.63993151 | R58: 0.8600684866 | S58: 0 | T58: 0 | U58: 0 | V58: 0 | W58: 911125 | X58: =MIN(H58*parameters!C$22,ROUND(P58+T58-V58+W58,0)) -> 87397441 | Y58: 82.50000032 | AA58: -911125 | AB58: 0 | AC58: 0 | AD58: 3.201150349e-07 | AG58: 049 | AH58: Cambridge | AI58: 3.413530908 | AJ58: 82.5 | AK58: 0.0395 | AL58: 87397441 | AM58: 3.201150349e-07
A59: 50 | B59: Canton | C59: 5664784600 | D59: 20527997.46 | E59: 1466824000 | F59: 22356736.25 | G59: 42884734 | H59: 42696651.64 | I59: 1.004405085 | J59: 35224738 | K59: 35224738 | L59: 82.5 | N59: 32051992 | O59: 0.0655 | P59: 34151397 | Q59: 79.98612464 | R59: 2.513875357 | S59: 0.01 | T59: 320520 | U59: 0 | V59: 0 | W59: 0 | X59: =MIN(H59*parameters!C$22,ROUND(P59+T59-V59+W59,0)) -> 34471917 | Y59: 80.73681583 | AA59: -1073341 | AB59: -752821 | AC59: 0 | AD59: -1.763184173 | AG59: 050 | AH59: Canton | AI59: 1.004405085 | AJ59: 82.5 | AK59: 0.0655 | AL59: 34471917 | AM59: -1.763184173
A60: 51 | B60: Carlisle | C60: 1657167300 | D60: 6005228.536 | E60: 696005000 | F60: 10608225.81 | G60: 16613454 | H60: 10408147.05 | I60: 1.596197086 | J60: 8586721 | K60: 8586721 | L60: 82.5 | N60: 7867737 | O60: 0.0339 | P60: 8134453 | Q60: 78.15467018 | R60: 4.345329824 | S60: 0.01 | T60: 78677 | U60: 0 | V60: 0 | W60: 0 | X60: =MIN(H60*parameters!C$22,ROUND(P60+T60-V60+W60,0)) -> 8213130 | Y60: 78.91058763 | AA60: -452268 | AB60: -373591 | AC60: 0 | AD60: -3.589412372 | AG60: 051 | AH60: Carlisle | AI60: 1.596197086 | AJ60: 82.5 | AK60: 0.0339 | AL60: 8213130 | AM60: -3.589412372
A61: 52 | B61: Carver | C61: 1542843600 | D61: 5590943.3 | E61: 414530000 | F61: 6318098.066 | G61: 11909041 | H61: 21271913.74 | I61: 0.5598481241 | J61: 17549329 | K61: 11909041 | L61: 55.98 | N61: 10517280 | O61: 0.0404 | P61: 10942178 | Q61: 51.4395561 | R61: 4.540443898 | S61: 0.01 | T61: 105173 | U61: 0 | V61: 0 | W61: 0 | X61: =MIN(H61*parameters!C$22,ROUND(P61+T61-V61+W61,0)) -> 11047351 | Y61: 51.933978 | AA61: -966863 | AB61: -861690 | AC61: 0 | AD61: -4.046021999 | AG61: 052 | AH61: Carver | AI61: 0.5598481241 | AJ61: 55.98 | AK61: 0.0404 | AL61: 11047351 | AM61: -4.046021999
A62: 53 | B62: Charlemont | C62: 147289000 | D62: 533744.6049 | E62: 28506000 | F62: 434476.8858 | G62: 968221 | H62: 1917644.369 | I62: 0.5049012295 | J62: 1582057 | K62: 968221 | L62: 50.49 | N62: 883307 | O62: 0.0435 | P62: 921731 | Q62: 48.0657944 | R62: 2.424205598 | S62: 0 | T62: 0 | U62: 0 | V62: 0 | W62: 0 | X62: =MIN(H62*parameters!C$22,ROUND(P62+T62-V62+W62,0)) -> 921731 | Y62: 48.0657944 | AA62: -46490 | AB62: -46490 | AC62: 0 | AD62: -2.424205598 | AG62: 053 | AH62: Charlemont | AI62: 0.5049012295 | AJ62: 50.49 | AK62: 0.0435 | AL62: 921731 | AM62: -2.424205598
A63: 54 | B63: Charlton | C63: 1794497600 | D63: 6502884.89 | E63: 544329000 | F63: 8296441.758 | G63: 14799327 | H63: 26131112.14 | I63: 0.5663489147 | J63: 21558168 | K63: 14799327 | L63: 56.63 | N63: 13558786 | O63: 0.0168 | P63: 13786574 | Q63: 52.75923171 | R63: 3.870768294 | S63: 0.01 | T63: 135588 | U63: 0 | V63: 0 | W63: 0 | X63: =MIN(H63*parameters!C$22,ROUND(P63+T63-V63+W63,0)) -> 13922162 | Y63: 53.27810744 | AA63: -1012753 | AB63: -877165 | AC63: 0 | AD63: -3.35189256 | AG63: 054 | AH63: Charlton | AI63: 0.5663489147 | AJ63: 56.63 | AK63: 0.0168 | AL63: 13922162 | AM63: -3.35189256
A64: 55 | B64: Chatham | C64: 7904158600 | D64: 28643021.61 | E64: 462832000 | F64: 7054297.551 | G64: 35697319 | H64: 5447511.08 | I64: 6.552959411 | J64: 4494197 | K64: 4494197 | L64: 82.5 | N64: 4096330 | O64: 0.0696 | P64: 4381435 | Q64: 80.43003374 | R64: 2.069966256 | S64: 0 | T64: 0 | U64: 0 | V64: 0 | W64: 112762 | X64: =MIN(H64*parameters!C$22,ROUND(P64+T64-V64+W64,0)) -> 4494197 | Y64: 82.50000659 | AA64: -112762 | AB64: 0 | AC64: 0 | AD64: 6.587788533e-06 | AG64: 055 | AH64: Chatham | AI64: 6.552959411 | AJ64: 82.5 | AK64: 0.0696 | AL64: 4494197 | AM64: 6.587788533e-06
A65: 56 | B65: Chelmsford | C65: 6551073600 | D65: 23739723.88 | E65: 2065597000 | F65: 31482991.36 | G65: 55222715 | H65: 63260840.16 | I65: 0.872936794 | J65: 52190193 | K65: 52190193 | L65: 82.5 | N65: 47956494 | O65: 0.0432 | P65: 50028215 | Q65: 79.08243847 | R65: 3.417561525 | S65: 0.01 | T65: 479565 | U65: 0 | V65: 0 | W65: 0 | X65: =MIN(H65*parameters!C$22,ROUND(P65+T65-V65+W65,0)) -> 50507780 | Y65: 79.84051408 | AA65: -2161978 | AB65: -1682413 | AC65: 0 | AD65: -2.659485915 | AG65: 056 | AH65: Chelmsford | AI65: 0.872936794 | AJ65: 82.5 | AK65: 0.0432 | AL65: 50507780 | AM65: -2.659485915
A66: 57 | B66: Chelsea | C66: 4225152600 | D66: 15311071.47 | E66: 863146000 | F66: 13155721.11 | G66: 28466793 | H66: 130259004.8 | I66: 0.2185399239 | J66: 107463679 | K66: 28466793 | L66: 21.85 | N66: 19810936 | O66: 0.0667 | P66: 21132325 | Q66: 16.22331218 | R66: 5.626687815 | S66: 0.01 | T66: 198109 | U66: 0 | V66: 0 | W66: 0 | X66: =MIN(H66*parameters!C$22,ROUND(P66+T66-V66+W66,0)) -> 21330434 | Y66: 16.37540071 | AA66: -7334468 | AB66: -7136359 | AC66: 0 | AD66: -5.47459929 | AG66: 057 | AH66: Chelsea | AI66: 0.2185399239 | AJ66: 21.85 | AK66: 0.0667 | AL66: 21330434 | AM66: -5.47459929
A67: 58 | B67: Cheshire | C67: 327182900 | D67: 1185642.565 | E67: 100720000 | F67: 1535133.373 | G67: 2720776 | H67: 5129689.965 | I67: 0.530397747 | J67: 4231994 | K67: 2720776 | L67: 53.04 | N67: 2483908 | O67: 0.0301 | P67: 2558674 | Q67: 49.87970067 | R67: 3.160299325 | S67: 0.01 | T67: 24839 | U67: 0 | V67: 0 | W67: 0 | X67: =MIN(H67*parameters!C$22,ROUND(P67+T67-V67+W67,0)) -> 2583513 | Y67: 50.36392097 | AA67: -162102 | AB67: -137263 | AC67: 0 | AD67: -2.676079028 | AG67: 058 | AH67: Cheshire | AI67: 0.530397747 | AJ67: 53.04 | AK67: 0.0301 | AL67: 2583513 | AM67: -2.676079028
A68: 59 | B68: Chester | C68: 129904800 | D68: 470747.8912 | E68: 31514000 | F68: 480323.6013 | G68: 951071 | H68: 1778962.618 | I68: 0.5346211273 | J68: 1467644 | K68: 951071 | L68: 53.46 | N68: 898017 | O68: 0.0289 | P68: 923970 | Q68: 51.93869679 | R68: 1.521303206 | S68: 0 | T68: 0 | U68: 0 | V68: 0 | W68: 0 | X68: =MIN(H68*parameters!C$22,ROUND(P68+T68-V68+W68,0)) -> 923970 | Y68: 51.93869679 | AA68: -27101 | AB68: -27101 | AC68: 0 | AD68: -1.521303206 | AG68: 059 | AH68: Chester | AI68: 0.5346211273 | AJ68: 53.46 | AK68: 0.0289 | AL68: 923970 | AM68: -1.521303206
A69: 60 | B69: Chesterfield | C69: 165075500 | D69: 598199.1699 | E69: 37028000 | F69: 564365.752 | G69: 1162565 | H69: 1381496.653 | I69: 0.8415257451 | J69: 1139735 | K69: 1139735 | L69: 82.5 | N69: 943484 | O69: 0.0359 | P69: 977355 | Q69: 70.74609975 | R69: 11.75390025 | S69: 0.02 | T69: 18870 | U69: 0 | V69: 0 | W69: 0 | X69: =MIN(H69*parameters!C$22,ROUND(P69+T69-V69+W69,0)) -> 996225 | Y69: 72.11200969 | AA69: -162380 | AB69: -143510 | AC69: 0 | AD69: -10.38799031 | AG69: 060 | AH69: Chesterfield | AI69: 0.8415257451 | AJ69: 82.5 | AK69: 0.0359 | AL69: 996225 | AM69: -10.38799031
A70: 61 | B70: Chicopee | C70: 4282298400 | D70: 15518155.92 | E70: 1217103000 | F70: 18550590.09 | G70: 34068746 | H70: 112893440.5 | I70: 0.3017779054 | J70: 93137088 | K70: 34068746 | L70: 30.18 | N70: 31307943 | O70: 0.0256 | P70: 32109426 | Q70: 28.4422424 | R70: 1.737757596 | S70: 0 | T70: 0 | U70: 0 | V70: 0 | W70: 0 | X70: =MIN(H70*parameters!C$22,ROUND(P70+T70-V70+W70,0)) -> 32109426 | Y70: 28.4422424 | AA70: -1959320 | AB70: -1959320 | AC70: 0 | AD70: -1.737757596 | AG70: 061 | AH70: Chicopee | AI70: 0.3017779054 | AJ70: 30.18 | AK70: 0.0256 | AL70: 32109426 | AM70: -1.737757596
A71: 62 | B71: Chilmark | C71: 3657005200 | D71: 13252223.83 | E71: 84756000 | F71: 1291816.562 | G71: 14544040 | H71: 1494558.269 | I71: 9.731330188 | J71: 1233011 | K71: 1233011 | L71: 82.5 | N71: 1227166 | O71: 0.0594 | P71: 1300060 | Q71: 86.98623714 | R71: 0 | S71: 0 | T71: 0 | U71: 67049 | V71: 67049 | W71: 0 | X71: =MIN(H71*parameters!C$22,ROUND(P71+T71-V71+W71,0)) -> 1233011 | Y71: 82.50002865 | AA71: 0 | AB71: 0 | AC71: 0 | AD71: 2.864906345e-05 | AG71: 062 | AH71: Chilmark | AI71: 9.731330188 | AJ71: 82.5 | AK71: 0.0594 | AL71: 1233011 | AM71: 2.864906345e-05
A72: 63 | B72: Clarksburg | C72: 133566700 | D72: 484017.8528 | E72: 42428000 | F72: 646670.3609 | G72: 1130688 | H72: 3526096.812 | I72: 0.3206627782 | J72: 2909030 | K72: 1130688 | L72: 32.07 | N72: 1016388 | O72: 0.0293 | P72: 1046168 | Q72: 29.66929315 | R72: 2.400706846 | S72: 0 | T72: 0 | U72: 0 | V72: 0 | W72: 0 | X72: =MIN(H72*parameters!C$22,ROUND(P72+T72-V72+W72,0)) -> 1046168 | Y72: 29.66929315 | AA72: -84520 | AB72: -84520 | AC72: 0 | AD72: -2.400706846 | AG72: 063 | AH72: Clarksburg | AI72: 0.3206627782 | AJ72: 32.07 | AK72: 0.0293 | AL72: 1046168 | AM72: -2.400706846
A73: 64 | B73: Clinton | C73: 1653168200 | D73: 5990736.632 | E73: 473675000 | F73: 7219562.158 | G73: 13210299 | H73: 29918746 | I73: 0.4415391942 | J73: 24682965 | K73: 13210299 | L73: 44.15 | N73: 11925947 | O73: 0.0505 | P73: 12528207 | Q73: 41.87410462 | R73: 2.275895383 | S73: 0 | T73: 0 | U73: 0 | V73: 0 | W73: 0 | X73: =MIN(H73*parameters!C$22,ROUND(P73+T73-V73+W73,0)) -> 12528207 | Y73: 41.87410462 | AA73: -682092 | AB73: -682092 | AC73: 0 | AD73: -2.275895383 | AG73: 064 | AH73: Clinton | AI73: 0.4415391942 | AJ73: 44.15 | AK73: 0.0505 | AL73: 12528207 | AM73: -2.275895383
A74: 65 | B74: Cohasset | C74: 3240448100 | D74: 11742707.81 | E74: 1097715000 | F74: 16730926.63 | G74: 28473634 | H74: 16067626.27 | I74: 1.772112042 | J74: =ROUND(H74*maxloc,0) -> 13255792 | K74: 13255792 | L74: 82.5 | N74: 12799190 | O74: 0.039 | P74: 13298358 | Q74: 82.76491984 | R74: 0 | S74: 0 | T74: 0 | U74: 42566 | V74: =MAX(U74*(V$5),0) -> 42566 | W74: 0 | X74: =MIN(H74*parameters!C$22,ROUND(P74+T74-V74+W74,0)) -> 13255792 | Y74: 82.50000205 | AA74: 0 | AB74: 0 | AC74: 0 | AD74: 2.052112194e-06 | AG74: 065 | AH74: Cohasset | AI74: 1.772112042 | AJ74: =L74 -> 82.5 | AK74: 0.039 | AL74: =X74 -> 13255792 | AM74: 2.052112194e-06
A75: 66 | B75: Colrain | C75: 182644300 | D75: =D$5*C75 -> 661864.8354 | E75: 45888000 | F75: 699406.2771 | G75: =ROUND(D75+F75,0) -> 1361271 | H75: =(SUMIF(town1755,A75,found1755)/2) -> 2414306.847 | I75: =G75/H75 -> 0.5638351238 | J75: 1991803 | K75: =MIN(G75,J75) -> 1361271 | L75: =IF(H75>0, ROUND((K75*100/H75), 2), 0) -> 56.38 | N75: 1342655 | O75: 0.0335 | P75: =ROUND(N75*(1+O75),0) -> 1387634 | Q75: =P75*100/H75 -> 57.4754614 | R75: =IF(L75>Q75,L75-Q75,0) -> 0 | S75: =IF(AND(R75>$T$4,R75<=$T$5),$S$4,IF(R75>$T$5,$S$5,0)) -> 0 | T75: =ROUND(S75*N75,0) -> 0 | U75: =MAX(P75-K75,0) -> 26363 | V75: 26363 | W75: =IF(AND(I75>1.75,$W$5=1),MAX(K75-(P75+T75),0),0) -> 0 | X75: =MIN(H75*parameters!C$22,ROUND(P75+T75-V75+W75,0)) -> 1361271 | Y75: =X75*100/H75 -> 56.38351238 | AA75: =IF(Q75<L75, P75-K75, 0) -> 0 | AB75: =-1*MAX(K75-(P75+T75+W75),0) -> 0 | AC75: =IF(Q75>L75, X75-K75,0) -> 0 | AD75: =Y75-L75 -> 0.003512375841 | AG75: =TEXT(A75,"000") -> 066 | AH75: =B75 -> Colrain | AI75: =I75 -> 0.5638351238 | AJ75: 56.38 | AK75: =O75 -> 0.0335 | AL75: 1361271 | AM75: =AD75 -> 0.003512375841
A76: 67 | B76: Concord | C76: 7134203400 | D76: 25852864.61 | E76: 2815154000 | F76: =E76*F$5 -> 42907435.03 | G76: 68760300 | H76: 36567782.35 | I76: 1.880351927 | J76: 30168420 | K76: 30168420 | L76: 82.5 | N76: 28461760 | O76: 0.0288 | P76: 29281459 | Q76: 80.07447299 | R76: 2.425527007 | S76: 0 | T76: 0 | U76: 0 | V76: 0 | W76: 886961 | X76: =MIN(H76*parameters!C$22,ROUND(P76+T76-V76+W76,0)) -> 30168420 | Y76: 82.49999881 | AA76: -886961 | AB76: 0 | AC76: 0 | AD76: -1.194660285e-06 | AG76: 067 | AH76: Concord | AI76: 1.880351927 | AJ76: 82.5 | AK76: 0.0288 | AL76: 30168420 | AM76: -1.194660285e-06
A77: 68 | B77: Conway | C77: 272849200 | D77: 988748.5723 | E77: 65789000 | F77: 1002729.244 | G77: 1991478 | H77: 2517742.091 | I77: 0.7909777602 | J77: 2077137 | K77: 1991478 | L77: 79.1 | N77: 1834310 | O77: 0.0481 | P77: 1922540 | Q77: 76.35968779 | R77: 2.740312214 | S77: 0.01 | T77: 18343 | U77: 0 | V77: 0 | W77: 0 | X77: =MIN(H77*parameters!C$22,ROUND(P77+T77-V77+W77,0)) -> 1940883 | Y77: 77.08823739 | AA77: -68938 | AB77: -50595 | AC77: 0 | AD77: -2.011762612 | AG77: 068 | AH77: Conway | AI77: 0.7909777602 | AJ77: 79.1 | AK77: 0.0481 | AL77: 1940883 | AM77: -2.011762612
A78: 69 | B78: Cummington | C78: 136764000 | D78: 495604.2009 | E78: 25931000 | F78: 395229.7806 | G78: 890834 | H78: 869074.95 | I78: 1.025037024 | J78: 716987 | K78: 716987 | L78: 82.5 | N78: 602889 | O78: 0.0293 | P78: 620554 | Q78: 71.40396809 | R78: 11.09603191 | S78: 0.02 | T78: 12058 | U78: 0 | V78: 0 | W78: 0 | X78: =MIN(H78*parameters!C$22,ROUND(P78+T78-V78+W78,0)) -> 632612 | Y78: 72.79142035 | AA78: -96433 | AB78: -84375 | AC78: 0 | AD78: -9.708579654 | AG78: 069 | AH78: Cummington | AI78: 1.025037024 | AJ78: 82.5 | AK78: 0.0293 | AL78: 632612 | AM78: -9.708579654
A79: 70 | B79: Dalton | C79: 659304000 | D79: 2389180.136 | E79: 216785000 | F79: 3304149.01 | G79: 5693329 | H79: 11912857.96 | I79: 0.4779146212 | J79: 9828108 | K79: 5693329 | L79: 47.79 | N79: 5477419 | O79: 0.0311 | P79: 5647767 | Q79: 47.40900142 | R79: 0.3809985755 | S79: 0 | T79: 0 | U79: 0 | V79: 0 | W79: 0 | X79: =MIN(H79*parameters!C$22,ROUND(P79+T79-V79+W79,0)) -> 5647767 | Y79: 47.40900142 | AA79: -45562 | AB79: -45562 | AC79: 0 | AD79: -0.3809985755 | AG79: 070 | AH79: Dalton | AI79: 0.4779146212 | AJ79: 47.79 | AK79: 0.0311 | AL79: 5647767 | AM79: -0.3809985755
A80: 71 | B80: Danvers | C80: 5748464900 | D80: 20831237.41 | E80: 1359576000 | F80: 20722105.75 | G80: 41553343 | H80: 43885144.92 | I80: 0.9468658033 | J80: 36205245 | K80: 36205245 | L80: 82.5 | N80: 33947511 | O80: 0.0353 | P80: 35145858 | Q80: 80.0860019 | R80: 2.413998096 | S80: 0 | T80: 0 | U80: 0 | V80: 0 | W80: 0 | X80: =MIN(H80*parameters!C$22,ROUND(P80+T80-V80+W80,0)) -> 35145858 | Y80: 80.0860019 | AA80: -1059387 | AB80: -1059387 | AC80: 0 | AD80: -2.413998096 | AG80: 071 | AH80: Danvers | AI80: 0.9468658033 | AJ80: 82.5 | AK80: 0.0353 | AL80: 35145858 | AM80: -2.413998096
A81: 72 | B81: Dartmouth | C81: 6198070600 | D81: 22460514.66 | E81: 1413488000 | F81: 21543810.58 | G81: 44004325 | H81: 49751118.53 | I81: 0.8844891593 | J81: 41044673 | K81: 41044673 | L81: 82.5 | N81: 37116491 | O81: 0.0409 | P81: 38634555 | Q81: 77.65565106 | R81: 4.844348943 | S81: 0.01 | T81: 371165 | U81: 0 | V81: 0 | W81: 0 | X81: =MIN(H81*parameters!C$22,ROUND(P81+T81-V81+W81,0)) -> 39005720 | Y81: 78.40169458 | AA81: -2410118 | AB81: -2038953 | AC81: 0 | AD81: -4.098305415 | AG81: 072 | AH81: Dartmouth | AI81: 0.8844891593 | AJ81: 82.5 | AK81: 0.0409 | AL81: 39005720 | AM81: -4.098305415
A82: 73 | B82: Dedham | C82: 5863555800 | D82: 21248302.82 | E82: 1544132000 | F82: 23535033.42 | G82: 44783336 | H82: 35499233.22 | I82: 1.261529671 | J82: 29286867 | K82: 29286867 | L82: 82.5 | N82: 26938357 | O82: 0.0372 | P82: 27940464 | Q82: 78.70723243 | R82: 3.79276757 | S82: 0.01 | T82: 269384 | U82: 0 | V82: 0 | W82: 0 | X82: =MIN(H82*parameters!C$22,ROUND(P82+T82-V82+W82,0)) -> 28209848 | Y82: 79.46607699 | AA82: -1346403 | AB82: -1077019 | AC82: 0 | AD82: -3.033923011 | AG82: 073 | AH82: Dedham | AI82: 1.261529671 | AJ82: 82.5 | AK82: 0.0372 | AL82: 28209848 | AM82: -3.033923011
A83: 74 | B83: Deerfield | C83: 808941100 | D83: 2931433.765 | E83: 236065000 | F83: 3598006.947 | G83: 6529441 | H83: 6859243.23 | I83: 0.951918569 | J83: 5658876 | K83: 5658876 | L83: 82.5 | N83: 5530038 | O83: 0.041 | P83: 5756770 | Q83: 83.92718856 | R83: 0 | S83: 0 | T83: 0 | U83: 97894 | V83: 97894 | W83: 0 | X83: =MIN(H83*parameters!C$22,ROUND(P83+T83-V83+W83,0)) -> 5658876 | Y83: 82.50000488 | AA83: 0 | AB83: 0 | AC83: 0 | AD83: 4.882320425e-06 | AG83: 074 | AH83: Deerfield | AI83: 0.951918569 | AJ83: 82.5 | AK83: 0.041 | AL83: 5658876 | AM83: 4.882320425e-06
A84: 75 | B84: Dennis | C84: 7955584100 | D84: 28829376.89 | E84: 576790000 | F84: 8791199.149 | G84: 37620576 | H84: 15410568.25 | I84: 2.441219259 | J84: 12713719 | K84: 12713719 | L84: 82.5 | N84: 11267012 | O84: 0.0215 | P84: 11509253 | Q84: 74.68415708 | R84: 7.815842916 | S84: 0.02 | T84: 225340 | U84: 0 | V84: 0 | W84: 979126 | X84: =MIN(H84*parameters!C$22,ROUND(P84+T84-V84+W84,0)) -> 12713719 | Y84: 82.50000125 | AA84: -1204466 | AB84: 0 | AC84: 0 | AD84: 1.252998999e-06 | AG84: 075 | AH84: Dennis | AI84: 2.441219259 | AJ84: 82.5 | AK84: 0.0215 | AL84: 12713719 | AM84: 1.252998999e-06
A85: 76 | B85: Dighton | C85: 1162938400 | D85: 4214246.121 | E85: 302643000 | F85: 4612761.809 | G85: 8827008 | H85: 16361110.57 | I85: 0.5395115424 | J85: 13497916 | K85: 8827008 | L85: 53.95 | N85: 7943867 | O85: 0.0432 | P85: 8287042 | Q85: 50.6508526 | R85: 3.299147395 | S85: 0.01 | T85: 79439 | U85: 0 | V85: 0 | W85: 0 | X85: =MIN(H85*parameters!C$22,ROUND(P85+T85-V85+W85,0)) -> 8366481 | Y85: 51.1363881 | AA85: -539966 | AB85: -460527 | AC85: 0 | AD85: -2.813611895 | AG85: 076 | AH85: Dighton | AI85: 0.5395115424 | AJ85: 53.95 | AK85: 0.0432 | AL85: 8366481 | AM85: -2.813611895
A86: 77 | B86: Douglas | C86: 1154562000 | D86: 4183891.795 | E86: 360048000 | F86: 5487705.527 | G86: 9671597 | H86: 15555926.85 | I86: 0.6217306816 | J86: 12833640 | K86: 9671597 | L86: 62.17 | N86: 8743834 | O86: 0.0409 | P86: 9101457 | Q86: 58.50796992 | R86: 3.662030077 | S86: 0.01 | T86: 87438 | U86: 0 | V86: 0 | W86: 0 | X86: =MIN(H86*parameters!C$22,ROUND(P86+T86-V86+W86,0)) -> 9188895 | Y86: 59.07005794 | AA86: -570140 | AB86: -482702 | AC86: 0 | AD86: -3.099942065 | AG86: 077 | AH86: Douglas | AI86: 0.6217306816 | AJ86: 62.17 | AK86: 0.0409 | AL86: 9188895 | AM86: -3.099942065
A87: 78 | B87: Dover | C87: 2831290600 | D87: 10260006.4 | E87: 1455913000 | F87: 22190435.21 | G87: 32450442 | H87: 13366707.46 | I87: 2.427706455 | J87: 11027534 | K87: 11027534 | L87: 82.5 | N87: 10510219 | O87: 0.038 | P87: 10909607 | Q87: 81.61775836 | R87: 0.8822416357 | S87: 0 | T87: 0 | U87: 0 | V87: 0 | W87: 117927 | X87: =MIN(H87*parameters!C$22,ROUND(P87+T87-V87+W87,0)) -> 11027534 | Y87: 82.50000255 | AA87: -117927 | AB87: 0 | AC87: 0 | AD87: 2.554322123e-06 | AG87: 078 | AH87: Dover | AI87: 2.427706455 | AJ87: 82.5 | AK87: 0.038 | AL87: 11027534 | AM87: 2.554322123e-06
A88: 79 | B88: Dracut | C88: 4153988500 | D88: 15053187.62 | E88: 1183256000 | F88: 18034707.85 | G88: 33087895 | H88: 59905788.48 | I88: 0.5523321842 | J88: 49422275 | K88: 33087895 | L88: 55.23 | N88: 29659312 | O88: 0.0356 | P88: 30715184 | Q88: 51.27248097 | R88: 3.95751903 | S88: 0.01 | T88: 296593 | U88: 0 | V88: 0 | W88: 0 | X88: =MIN(H88*parameters!C$22,ROUND(P88+T88-V88+W88,0)) -> 31011777 | Y88: 51.76758004 | AA88: -2372711 | AB88: -2076118 | AC88: 0 | AD88: -3.462419963 | AG88: 079 | AH88: Dracut | AI88: 0.5523321842 | AJ88: 55.23 | AK88: 0.0356 | AL88: 31011777 | AM88: -3.462419963
A89: 80 | B89: Dudley | C89: 1146095200 | D89: 4153209.878 | E89: 352426000 | F89: 5371534.096 | G89: 9524744 | H89: 22607904.47 | I89: 0.4213014971 | J89: 18651521 | K89: 9524744 | L89: 42.13 | N89: 7721730 | O89: 0.0367 | P89: 8005117 | Q89: 35.40848737 | R89: 6.721512629 | S89: 0.01 | T89: 77217 | U89: 0 | V89: 0 | W89: 0 | X89: =MIN(H89*parameters!C$22,ROUND(P89+T89-V89+W89,0)) -> 8082334 | Y89: 35.75003605 | AA89: -1519627 | AB89: -1442410 | AC89: 0 | AD89: -6.379963946 | AG89: 080 | AH89: Dudley | AI89: 0.4213014971 | AJ89: 42.13 | AK89: 0.0367 | AL89: 8082334 | AM89: -6.379963946
A90: 81 | B90: Dunstable | C90: 606991900 | D90: 2199612 | E90: 225804000 | F90: 3441612.949 | G90: 5641225 | H90: 6180716.283 | I90: 0.9127137927 | J90: 5099091 | K90: 5099091 | L90: 82.5 | N90: 4802952 | O90: 0.0411 | P90: 5000353 | Q90: 80.90248397 | R90: 1.59751603 | S90: 0 | T90: 0 | U90: 0 | V90: 0 | W90: 0 | X90: =MIN(H90*parameters!C$22,ROUND(P90+T90-V90+W90,0)) -> 5000353 | Y90: 80.90248397 | AA90: -98738 | AB90: -98738 | AC90: 0 | AD90: -1.59751603 | AG90: 081 | AH90: Dunstable | AI90: 0.9127137927 | AJ90: 82.5 | AK90: 0.0411 | AL90: 5000353 | AM90: -1.59751603
A91: 82 | B91: Duxbury | C91: 4654728300 | D91: 16867764.17 | E91: 1831514000 | F91: 27915193.26 | G91: 44782957 | H91: 31970862.73 | I91: 1.400742838 | J91: 26375962 | K91: 26375962 | L91: 82.5 | N91: 24669139 | O91: 0.0302 | P91: 25414147 | Q91: 79.49158961 | R91: 3.008410386 | S91: 0.01 | T91: 246691 | U91: 0 | V91: 0 | W91: 0 | X91: =MIN(H91*parameters!C$22,ROUND(P91+T91-V91+W91,0)) -> 25660838 | Y91: 80.26320157 | AA91: -961815 | AB91: -715124 | AC91: 0 | AD91: -2.236798428 | AG91: 082 | AH91: Duxbury | AI91: 1.400742838 | AJ91: 82.5 | AK91: 0.0302 | AL91: 25660838 | AM91: -2.236798428
A92: 83 | B92: East Bridgewater | C92: 1926835300 | D92: 6982449.103 | E92: 545081000 | F92: 8307903.437 | G92: 15290353 | H92: 27534831.66 | I92: 0.5553094782 | J92: 22716236 | K92: 15290353 | L92: 55.53 | N92: 13853807 | O92: 0.0334 | P92: 14316524 | Q92: 51.99423108 | R92: 3.535768922 | S92: 0.01 | T92: 138538 | U92: 0 | V92: 0 | W92: 0 | X92: =MIN(H92*parameters!C$22,ROUND(P92+T92-V92+W92,0)) -> 14455062 | Y92: 52.49736835 | AA92: -973829 | AB92: -835291 | AC92: 0 | AD92: -3.032631653 | AG92: 083 | AH92: East Bridgewater | AI92: 0.5553094782 | AJ92: 55.53 | AK92: 0.0334 | AL92: 14455062 | AM92: -3.032631653
A93: 84 | B93: East Brookfield | C93: 278867500 | D93: 1010557.636 | E93: 77494000 | F93: 1181132.105 | G93: 2191690 | H93: 3864641.179 | I93: 0.5671134521 | J93: 3188329 | K93: 2191690 | L93: 56.71 | N93: 1907500 | O93: 0.0549 | P93: 2012222 | Q93: 52.06749882 | R93: 4.642501181 | S93: 0.01 | T93: 19075 | U93: 0 | V93: 0 | W93: 0 | X93: =MIN(H93*parameters!C$22,ROUND(P93+T93-V93+W93,0)) -> 2031297 | Y93: 52.56107634 | AA93: -179468 | AB93: -160393 | AC93: 0 | AD93: -4.148923663 | AG93: 084 | AH93: East Brookfield | AI93: 0.5671134521 | AJ93: 56.71 | AK93: 0.0549 | AL93: 2031297 | AM93: -4.148923663
A94: 85 | B94: Eastham | C94: 3250149400 | D94: 11777863.3 | E94: 217839000 | F94: 3320213.65 | G94: 15098077 | H94: 6265107.445 | I94: 2.40986721 | J94: 5168714 | K94: 5168714 | L94: 82.5 | N94: 4613857 | O94: 0.0368 | P94: 4783647 | Q94: 76.35379029 | R94: 6.146209709 | S94: 0.01 | T94: 46139 | U94: 0 | V94: 0 | W94: 338928 | X94: =MIN(H94*parameters!C$22,ROUND(P94+T94-V94+W94,0)) -> 5168714 | Y94: 82.50000571 | AA94: -385067 | AB94: 0 | AC94: 0 | AD94: 5.713537604e-06 | AG94: 085 | AH94: Eastham | AI94: 2.40986721 | AJ94: 82.5 | AK94: 0.0368 | AL94: 5168714 | AM94: 5.713537604e-06
A95: 86 | B95: Easthampton | C95: 1773024900 | D95: 6425072.305 | E95: 523032000 | F95: 7971841.525 | G95: 14396914 | H95: 21391869.32 | I95: 0.6730086924 | J95: 17648292 | K95: 14396914 | L95: 67.3 | N95: 12976004 | O95: -0.0022 | P95: 12947457 | Q95: 60.52513133 | R95: 6.774868669 | S95: 0.01 | T95: 129760 | U95: 0 | V95: 0 | W95: 0 | X95: =MIN(H95*parameters!C$22,ROUND(P95+T95-V95+W95,0)) -> 13077217 | Y95: 61.13171694 | AA95: -1449457 | AB95: -1319697 | AC95: 0 | AD95: -6.168283064 | AG95: 086 | AH95: Easthampton | AI95: 0.6730086924 | AJ95: 67.3 | AK95: -0.0022 | AL95: 13077217 | AM95: -6.168283064
A96: 87 | B96: East Longmeadow | C96: 2143969100 | D96: 7769296.691 | E96: 732957000 | F96: 11171433.2 | G96: 18940730 | H96: 31009727.38 | I96: 0.6107996297 | J96: 25583025 | K96: 18940730 | L96: 61.08 | N96: 17190078 | O96: 0.0359 | P96: 17807202 | Q96: 57.42456805 | R96: 3.655431955 | S96: 0.01 | T96: 171901 | U96: 0 | V96: 0 | W96: 0 | X96: =MIN(H96*parameters!C$22,ROUND(P96+T96-V96+W96,0)) -> 17979103 | Y96: 57.97891345 | AA96: -1133528 | AB96: -961627 | AC96: 0 | AD96: -3.101086546 | AG96: 087 | AH96: East Longmeadow | AI96: 0.6107996297 | AJ96: 61.08 | AK96: 0.0359 | AL96: 17979103 | AM96: -3.101086546
A97: 88 | B97: Easton | C97: 4091504700 | D97: 14826759.36 | E97: 1341245000 | F97: 20442712.08 | G97: 35269471 | H97: 41613030.43 | I97: 0.8475583402 | J97: 34330750 | K97: 34330750 | L97: 82.5 | N97: 31599522 | O97: 0.0384 | P97: 32812944 | Q97: 78.85257012 | R97: 3.647429876 | S97: 0.01 | T97: 315995 | U97: 0 | V97: 0 | W97: 0 | X97: =MIN(H97*parameters!C$22,ROUND(P97+T97-V97+W97,0)) -> 33128939 | Y97: 79.61193563 | AA97: -1517806 | AB97: -1201811 | AC97: 0 | AD97: -2.888064367 | AG97: 088 | AH97: Easton | AI97: 0.8475583402 | AJ97: 82.5 | AK97: 0.0384 | AL97: 33128939 | AM97: -2.888064367
A98: 89 | B98: Edgartown | C98: 10127877000 | D98: 36701313.12 | E98: 354791000 | F98: 5407580.466 | G98: 42108894 | H98: 8848053.406 | I98: 4.759113906 | J98: 7299644 | K98: 7299644 | L98: 82.5 | N98: 6822131 | O98: 0.0495 | P98: 7159826 | Q98: 80.91978734 | R98: 1.580212656 | S98: 0 | T98: 0 | U98: 0 | V98: 0 | W98: 139818 | X98: =MIN(H98*parameters!C$22,ROUND(P98+T98-V98+W98,0)) -> 7299644 | Y98: 82.49999933 | AA98: -139818 | AB98: 0 | AC98: 0 | AD98: -6.747151104e-07 | AG98: 089 | AH98: Edgartown | AI98: 4.759113906 | AJ98: 82.5 | AK98: 0.0495 | AL98: 7299644 | AM98: -6.747151104e-07
A99: 90 | B99: Egremont | C99: 461457900 | D99: 1672227.149 | E99: 39762000 | F99: 606036.2707 | G99: 2278263 | H99: 1189468.922 | I99: 1.915361517 | J99: 981312 | K99: 981312 | L99: 82.5 | N99: 812414 | O99: 0.0372 | P99: 842636 | Q99: 70.84136324 | R99: 11.65863676 | S99: 0.02 | T99: 16248 | U99: 0 | V99: 0 | W99: 122428 | X99: =MIN(H99*parameters!C$22,ROUND(P99+T99-V99+W99,0)) -> 981312 | Y99: 82.50001169 | AA99: -138676 | AB99: 0 | AC99: 0 | AD99: 1.1686742e-05 | AG99: 090 | AH99: Egremont | AI99: 1.915361517 | AJ99: 82.5 | AK99: 0.0372 | AL99: 981312 | AM99: 1.1686742e-05
A100: 91 | B100: Erving | C100: 956478200 | D100: 3466077.433 | E100: 43553000 | F100: 663817.1545 | G100: 4129895 | H100: 3065892.653 | I100: 1.34704488 | J100: 2529361 | K100: 2529361 | L100: 82.5 | N100: 2365613 | O100: 0.0322 | P100: 2441786 | Q100: 79.64355823 | R100: 2.85644177 | S100: 0.01 | T100: 23656 | U100: 0 | V100: 0 | W100: 0 | X100: =MIN(H100*parameters!C$22,ROUND(P100+T100-V100+W100,0)) -> 2465442 | Y100: 80.41514428 | AA100: -87575 | AB100: -63919 | AC100: 0 | AD100: -2.08485572 | AG100: 091 | AH100: Erving | AI100: 1.34704488 | AJ100: 82.5 | AK100: 0.0322 | AL100: 2465442 | AM100: -2.08485572
A101: 92 | B101: Essex | C101: 944642600 | D101: 3423187.688 | E101: 258565000 | F101: 3940942.818 | G101: 7364131 | H101: 6424677.948 | I101: 1.146225703 | J101: 5300359 | K101: 5300359 | L101: 82.5 | N101: 4755043 | O101: 0.0276 | P101: 4886282 | Q101: 76.05489395 | R101: 6.445106046 | S101: 0.01 | T101: 47550 | U101: 0 | V101: 0 | W101: 0 | X101: =MIN(H101*parameters!C$22,ROUND(P101+T101-V101+W101,0)) -> 4933832 | Y101: 76.79500887 | AA101: -414077 | AB101: -366527 | AC101: 0 | AD101: -5.704991126 | AG101: 092 | AH101: Essex | AI101: 1.146225703 | AJ101: 82.5 | AK101: 0.0276 | AL101: 4933832 | AM101: -5.704991126
A102: 93 | B102: Everett | C102: 7029819300 | D102: 25474598.41 | E102: 1119184000 | F102: 17058148.42 | G102: 42532747 | H102: 131079661.9 | I102: 0.3244801397 | J102: 108140721 | K102: 42532747 | L102: 32.45 | N102: 36483827 | O102: 0.0438 | P102: 38081819 | Q102: 29.05242389 | R102: 3.397576115 | S102: 0.01 | T102: 364838 | U102: 0 | V102: 0 | W102: 0 | X102: =MIN(H102*parameters!C$22,ROUND(P102+T102-V102+W102,0)) -> 38446657 | Y102: 29.33075692 | AA102: -4450928 | AB102: -4086090 | AC102: 0 | AD102: -3.119243081 | AG102: 093 | AH102: Everett | AI102: 0.3244801397 | AJ102: 32.45 | AK102: 0.0438 | AL102: 38446657 | AM102: -3.119243081
A103: 94 | B103: Fairhaven | C103: 2482405500 | D103: 8995719.591 | E103: 519080000 | F103: 7911606.745 | G103: 16907326 | H103: 26208335.91 | I103: 0.6451125345 | J103: 21621877 | K103: 16907326 | L103: 64.51 | N103: 14904778 | O103: 0.0366 | P103: 15450293 | Q103: 58.9518276 | R103: 5.5581724 | S103: 0.01 | T103: 149048 | U103: 0 | V103: 0 | W103: 0 | X103: =MIN(H103*parameters!C$22,ROUND(P103+T103-V103+W103,0)) -> 15599341 | Y103: 59.52053215 | AA103: -1457033 | AB103: -1307985 | AC103: 0 | AD103: -4.989467846 | AG103: 094 | AH103: Fairhaven | AI103: 0.6451125345 | AJ103: 64.51 | AK103: 0.0366 | AL103: 15599341 | AM103: -4.989467846
A104: 95 | B104: Fall River | C104: 6253556700 | D104: 22661584.71 | E104: 1754923000 | F104: 26747824.31 | G104: 49409409 | H104: 226925530.9 | I104: 0.2177340241 | J104: 187213563 | K104: 49409409 | L104: 21.77 | N104: 38469800 | O104: 0.0367 | P104: 39881642 | Q104: 17.57477083 | R104: 4.195229173 | S104: 0.01 | T104: 384698 | U104: 0 | V104: 0 | W104: 0 | X104: =MIN(H104*parameters!C$22,ROUND(P104+T104-V104+W104,0)) -> 40266340 | Y104: 17.74429693 | AA104: -9527767 | AB104: -9143069 | AC104: 0 | AD104: -4.025703074 | AG104: 095 | AH104: Fall River | AI104: 0.2177340241 | AJ104: 21.77 | AK104: 0.0367 | AL104: 40266340 | AM104: -4.025703074
A105: 96 | B105: Falmouth | C105: 13186717700 | D105: 47785913.61 | E105: 1530740000 | F105: 23330917.99 | G105: 71116832 | H105: 44888246.05 | I105: 1.58430855 | J105: 37032803 | K105: 37032803 | L105: 82.5 | N105: 33209461 | O105: 0.0428 | P105: 34630826 | Q105: 77.14898453 | R105: 5.351015469 | S105: 0.01 | T105: 332095 | U105: 0 | V105: 0 | W105: 0 | X105: =MIN(H105*parameters!C$22,ROUND(P105+T105-V105+W105,0)) -> 34962921 | Y105: 77.88881072 | AA105: -2401977 | AB105: -2069882 | AC105: 0 | AD105: -4.61118928 | AG105: 096 | AH105: Falmouth | AI105: 1.58430855 | AJ105: 82.5 | AK105: 0.0428 | AL105: 34962921 | AM105: -4.61118928
A106: 97 | B106: Fitchburg | C106: 3008407300 | D106: 10901840.37 | E106: 910150000 | F106: 13872137.01 | G106: 24773977 | H106: 95985022.92 | I106: 0.2581025273 | J106: 79187644 | K106: 24773977 | L106: 25.81 | N106: 21355250 | O106: 0.0311 | P106: 22019398 | Q106: 22.94045189 | R106: 2.869548115 | S106: 0.01 | T106: 213553 | U106: 0 | V106: 0 | W106: 0 | X106: =MIN(H106*parameters!C$22,ROUND(P106+T106-V106+W106,0)) -> 22232951 | Y106: 23.16293764 | AA106: -2754579 | AB106: -2541026 | AC106: 0 | AD106: -2.647062363 | AG106: 097 | AH106: Fitchburg | AI106: 0.2581025273 | AJ106: 25.81 | AK106: 0.0311 | AL106: 22232951 | AM106: -2.647062363
A107: 98 | B107: Florida | C107: 182043400 | D107: 659687.2992 | E107: 14511000 | F107: 221170.7742 | G107: 880858 | H107: 1509634.112 | I107: 0.5834910547 | J107: 1245448 | K107: 880858 | L107: 58.35 | N107: 681203 | O107: 0.0285 | P107: 700617 | Q107: 46.40972237 | R107: 11.94027763 | S107: 0.02 | T107: 13624 | U107: 0 | V107: 0 | W107: 0 | X107: =MIN(H107*parameters!C$22,ROUND(P107+T107-V107+W107,0)) -> 714241 | Y107: 47.3121927 | AA107: -180241 | AB107: -166617 | AC107: 0 | AD107: -11.0378073 | AG107: 098 | AH107: Florida | AI107: 0.5834910547 | AJ107: 58.35 | AK107: 0.0285 | AL107: 714241 | AM107: -11.0378073
A108: 99 | B108: Foxborough | C108: 3632254300 | D108: 13162531.73 | E108: 993227000 | F108: 15138362.93 | G108: 28300895 | H108: 33414766.84 | I108: 0.8469577278 | J108: 27567183 | K108: 27567183 | L108: 82.5 | N108: 25435417 | O108: 0.0445 | P108: 26567293 | Q108: 79.50764141 | R108: 2.992358592 | S108: 0.01 | T108: 254354 | U108: 0 | V108: 0 | W108: 0 | X108: =MIN(H108*parameters!C$22,ROUND(P108+T108-V108+W108,0)) -> 26821647 | Y108: 80.26884379 | AA108: -999890 | AB108: -745536 | AC108: 0 | AD108: -2.231156213 | AG108: 099 | AH108: Foxborough | AI108: 0.8469577278 | AJ108: 82.5 | AK108: 0.0445 | AL108: 26821647 | AM108: -2.231156213
A109: 100 | B109: Framingham | C109: 11101738800 | D109: 40230385.09 | E109: 2776859000 | F109: 42323758.17 | G109: 82554143 | H109: 153163690.2 | I109: 0.5389929094 | J109: 126360044 | K109: 82554143 | L109: 53.9 | N109: 73813780 | O109: 0.0395 | P109: 76729424 | Q109: 50.09635371 | R109: 3.803646293 | S109: 0.01 | T109: 738138 | U109: 0 | V109: 0 | W109: 0 | X109: =MIN(H109*parameters!C$22,ROUND(P109+T109-V109+W109,0)) -> 77467562 | Y109: 50.57828124 | AA109: -5824719 | AB109: -5086581 | AC109: 0 | AD109: -3.321718756 | AG109: 100 | AH109: Framingham | AI109: 0.5389929094 | AJ109: 53.9 | AK109: 0.0395 | AL109: 77467562 | AM109: -3.321718756
A110: 101 | B110: Franklin | C110: 6057291000 | D110: 21950358.76 | E110: 1811756000 | F110: 27614049.84 | G110: 49564409 | H110: 65822268.35 | I110: 0.7530036603 | J110: 54303371 | K110: 49564409 | L110: 75.3 | N110: 44764359 | O110: 0.0447 | P110: 46765326 | Q110: 71.04787965 | R110: 4.252120351 | S110: 0.01 | T110: 447644 | U110: 0 | V110: 0 | W110: 0 | X110: =MIN(H110*parameters!C$22,ROUND(P110+T110-V110+W110,0)) -> 47212970 | Y110: 71.72795952 | AA110: -2799083 | AB110: -2351439 | AC110: 0 | AD110: -3.572040476 | AG110: 101 | AH110: Franklin | AI110: 0.7530036603 | AJ110: 75.3 | AK110: 0.0447 | AL110: 47212970 | AM110: -3.572040476
A111: 102 | B111: Freetown | C111: 1612258700 | D111: 5842489.14 | E111: 364015000 | F111: 5548168.932 | G111: 11390658 | H111: 15897569.71 | I111: 0.7165031014 | J111: 13115495 | K111: 11390658 | L111: 71.65 | N111: 10323067 | O111: 0.0607 | P111: 10949677 | Q111: 68.87642074 | R111: 2.773579256 | S111: 0.01 | T111: 103231 | U111: 0 | V111: 0 | W111: 0 | X111: =MIN(H111*parameters!C$22,ROUND(P111+T111-V111+W111,0)) -> 11052908 | Y111: 69.52577157 | AA111: -440981 | AB111: -337750 | AC111: 0 | AD111: -2.124228431 | AG111: 102 | AH111: Freetown | AI111: 0.7165031014 | AJ111: 71.65 | AK111: 0.0607 | AL111: 11052908 | AM111: -2.124228431
A112: 103 | B112: Gardner | C112: 1481985500 | D112: 5370406.244 | E112: 469806000 | F112: 7160592.429 | G112: 12530999 | H112: 37402051.84 | I112: 0.3350350685 | J112: 30856693 | K112: 12530999 | L112: 33.5 | N112: 11393653 | O112: 0.0343 | P112: 11784455 | Q112: 31.5075094 | R112: 1.992490597 | S112: 0 | T112: 0 | U112: 0 | V112: 0 | W112: 0 | X112: =MIN(H112*parameters!C$22,ROUND(P112+T112-V112+W112,0)) -> 11784455 | Y112: 31.5075094 | AA112: -746544 | AB112: -746544 | AC112: 0 | AD112: -1.992490597 | AG112: 103 | AH112: Gardner | AI112: 0.3350350685 | AJ112: 33.5 | AK112: 0.0343 | AL112: 11784455 | AM112: -1.992490597
A113: 104 | B113: Aquinnah | C113: 810687000 | D113: 2937760.542 | E113: 12927000 | F113: 197028.0889 | G113: 3134789 | H113: 787582.304 | I113: 3.980268455 | J113: 649755 | K113: 649755 | L113: 82.5 | N113: 634127 | O113: 0.0285 | P113: 652200 | Q113: 82.81039286 | R113: 0 | S113: 0 | T113: 0 | U113: 2445 | V113: 2445 | W113: 0 | X113: =MIN(H113*parameters!C$22,ROUND(P113+T113-V113+W113,0)) -> 649755 | Y113: 82.49994911 | AA113: 0 | AB113: 0 | AC113: 0 | AD113: -5.088862666e-05 | AG113: 104 | AH113: Aquinnah | AI113: 3.980268455 | AJ113: 82.5 | AK113: 0.0285 | AL113: 649755 | AM113: -5.088862666e-05
A114: 105 | B114: Georgetown | C114: 1425622900 | D114: 5166159.941 | E114: 448136000 | F114: 6830307.082 | G114: 11996467 | H114: 15124700.48 | I114: 0.7931705499 | J114: 12477878 | K114: 11996467 | L114: 79.32 | N114: 11260588 | O114: 0.0265 | P114: 11558994 | Q114: 76.42461424 | R114: 2.895385761 | S114: 0.01 | T114: 112606 | U114: 0 | V114: 0 | W114: 0 | X114: =MIN(H114*parameters!C$22,ROUND(P114+T114-V114+W114,0)) -> 11671600 | Y114: 77.16913146 | AA114: -437473 | AB114: -324867 | AC114: 0 | AD114: -2.150868539 | AG114: 105 | AH114: Georgetown | AI114: 0.7931705499 | AJ114: 79.32 | AK114: 0.0265 | AL114: 11671600 | AM114: -2.150868539
A115: 106 | B115: Gill | C115: 173933200 | D115: 630297.6266 | E115: 39605000 | F115: 603643.3404 | G115: 1233941 | H115: 2046909.945 | I115: 0.602831113 | J115: 1688701 | K115: 1233941 | L115: 60.28 | N115: 1129740 | O115: 0.0303 | P115: 1163971 | Q115: 56.86478798 | R115: 3.415212025 | S115: 0.01 | T115: 11297 | U115: 0 | V115: 0 | W115: 0 | X115: =MIN(H115*parameters!C$22,ROUND(P115+T115-V115+W115,0)) -> 1175268 | Y115: 57.41669306 | AA115: -69970 | AB115: -58673 | AC115: 0 | AD115: -2.863306943 | AG115: 106 | AH115: Gill | AI115: 0.602831113 | AJ115: 60.28 | AK115: 0.0303 | AL115: 1175268 | AM115: -2.863306943
A116: 107 | B116: Gloucester | C116: 7571872500 | D116: 27438886.11 | E116: 1223353000 | F116: 18645850.05 | G116: 46084736 | H116: 45491126.06 | I116: 1.013048917 | J116: 37530179 | K116: 37530179 | L116: 82.5 | N116: 33908636 | O116: 0.0347 | P116: 35085266 | Q116: 77.12551665 | R116: 5.374483351 | S116: 0.01 | T116: 339086 | U116: 0 | V116: 0 | W116: 0 | X116: =MIN(H116*parameters!C$22,ROUND(P116+T116-V116+W116,0)) -> 35424352 | Y116: 77.87090598 | AA116: -2444913 | AB116: -2105827 | AC116: 0 | AD116: -4.62909402 | AG116: 107 | AH116: Gloucester | AI116: 1.013048917 | AJ116: 82.5 | AK116: 0.0347 | AL116: 35424352 | AM116: -4.62909402
A117: 108 | B117: Goshen | C117: 173818900 | D117: 629883.4272 | E117: 15756000 | F117: 240146.559 | G117: 870030 | H117: 1433292.001 | I117: 0.6070151785 | J117: 1182466 | K117: 870030 | L117: 60.7 | N117: 786062 | O117: 0.0323 | P117: 811452 | Q117: 56.61456279 | R117: 4.085437208 | S117: 0.01 | T117: 7861 | U117: 0 | V117: 0 | W117: 0 | X117: =MIN(H117*parameters!C$22,ROUND(P117+T117-V117+W117,0)) -> 819313 | Y117: 57.16302047 | AA117: -58578 | AB117: -50717 | AC117: 0 | AD117: -3.536979532 | AG117: 108 | AH117: Goshen | AI117: 0.6070151785 | AJ117: 60.7 | AK117: 0.0323 | AL117: 819313 | AM117: -3.536979532
A118: 109 | B118: Gosnold | C118: 229578500 | D118: 831944.5837 | E118: 879000 | F118: 13397.36135 | G118: 845342 | H118: 8618.84 | I118: 98.0807162 | J118: 7111 | K118: 7111 | L118: 82.51 | N118: 34444 | O118: 0.0392 | P118: 35794 | Q118: 415.2995067 | R118: 0 | S118: 0 | T118: 0 | U118: 28683 | V118: 28683 | W118: 0 | X118: =MIN(H118*parameters!C$22,ROUND(P118+T118-V118+W118,0)) -> 7111 | Y118: 82.50530234 | AA118: 0 | AB118: 0 | AC118: 0 | AD118: -0.00469766233 | AG118: 109 | AH118: Gosnold | AI118: 98.0807162 | AJ118: 82.51 | AK118: 0.0392 | AL118: 7111 | AM118: -0.00469766233
A119: 110 | B119: Grafton | C119: 2853771800 | D119: 10341473.58 | E119: 1013829000 | F119: 15452370.26 | G119: 25793844 | H119: 37571685.54 | I119: 0.6865234719 | J119: 30996641 | K119: 25793844 | L119: 68.65 | N119: 23144866 | O119: 0.0444 | P119: 24172498 | Q119: 64.33700712 | R119: 4.312992879 | S119: 0.01 | T119: 231449 | U119: 0 | V119: 0 | W119: 0 | X119: =MIN(H119*parameters!C$22,ROUND(P119+T119-V119+W119,0)) -> 24403947 | Y119: 64.95302686 | AA119: -1621346 | AB119: -1389897 | AC119: 0 | AD119: -3.696973137 | AG119: 110 | AH119: Grafton | AI119: 0.6865234719 | AJ119: 68.65 | AK119: 0.0444 | AL119: 24403947 | AM119: -3.696973137
A120: 111 | B120: Granby | C120: 698314800 | D120: 2530547.135 | E120: 219903000 | F120: 3351672.301 | G120: 5882219 | H120: 8928412.381 | I120: 0.6588202638 | J120: 7365940 | K120: 5882219 | L120: 65.88 | N120: 5381133 | O120: 0.0341 | P120: 5564630 | Q120: 62.32496622 | R120: 3.555033782 | S120: 0.01 | T120: 53811 | U120: 0 | V120: 0 | W120: 0 | X120: =MIN(H120*parameters!C$22,ROUND(P120+T120-V120+W120,0)) -> 5618441 | Y120: 62.92766015 | AA120: -317589 | AB120: -263778 | AC120: 0 | AD120: -2.952339846 | AG120: 111 | AH120: Granby | AI120: 0.6588202638 | AJ120: 65.88 | AK120: 0.0341 | AL120: 5618441 | AM120: -2.952339846
A121: 112 | B121: Granville | C121: 210428400 | D121: 762548.6168 | E121: 55406000 | F121: 844475.7712 | G121: 1607024 | H121: 2134237.707 | I121: 0.7529732958 | J121: 1760746 | K121: 1607024 | L121: 75.3 | N121: 1476110 | O121: 0.0443 | P121: 1541502 | Q121: 72.2272873 | R121: 3.072712698 | S121: 0.01 | T121: 14761 | U121: 0 | V121: 0 | W121: 0 | X121: =MIN(H121*parameters!C$22,ROUND(P121+T121-V121+W121,0)) -> 1556263 | Y121: 72.91891598 | AA121: -65522 | AB121: -50761 | AC121: 0 | AD121: -2.381084022 | AG121: 112 | AH121: Granville | AI121: 0.7529732958 | AJ121: 75.3 | AK121: 0.0443 | AL121: 1556263 | AM121: -2.381084022
A122: 113 | B122: Great Barrington | C122: 1600428300 | D122: 5799618.238 | E122: 348192000 | F122: 5307001.186 | G122: 11106619 | H122: 9869535.088 | I122: 1.125343686 | J122: 8142366 | K122: 8142366 | L122: 82.5 | N122: 7334795 | O122: 0.0393 | P122: 7623052 | Q122: 77.23820759 | R122: 5.261792407 | S122: 0.01 | T122: 73348 | U122: 0 | V122: 0 | W122: 0 | X122: =MIN(H122*parameters!C$22,ROUND(P122+T122-V122+W122,0)) -> 7696400 | Y122: 77.98138343 | AA122: -519314 | AB122: -445966 | AC122: 0 | AD122: -4.51861657 | AG122: 113 | AH122: Great Barrington | AI122: 1.125343686 | AJ122: 82.5 | AK122: 0.0393 | AL122: 7696400 | AM122: -4.51861657
A123: 114 | B123: Greenfield | C123: 1635101600 | D123: 5925267.043 | E123: 418675000 | F123: 6381274.474 | G123: 12306542 | H123: 28774399.56 | I123: 0.4276906622 | J123: 23738880 | K123: 12306542 | L123: 42.77 | N123: 11175980 | O123: 0.0288 | P123: 11497848 | Q123: 39.95860271 | R123: 2.811397292 | S123: 0.01 | T123: 111760 | U123: 0 | V123: 0 | W123: 0 | X123: =MIN(H123*parameters!C$22,ROUND(P123+T123-V123+W123,0)) -> 11609608 | Y123: 40.34700351 | AA123: -808694 | AB123: -696934 | AC123: 0 | AD123: -2.422996485 | AG123: 114 | AH123: Greenfield | AI123: 0.4276906622 | AJ123: 42.77 | AK123: 0.0288 | AL123: 11609608 | AM123: -2.422996485
A124: 115 | B124: Groton | C124: 2033204400 | D124: 7367908.528 | E124: 780657000 | F124: 11898457.24 | G124: 19266366 | H124: 20991011.51 | I124: 0.9178388563 | J124: 17317584 | K124: 17317584 | L124: 82.5 | N124: 15894235 | O124: 0.0433 | P124: 16582455 | Q124: 78.99788435 | R124: 3.502115649 | S124: 0.01 | T124: 158942 | U124: 0 | V124: 0 | W124: 0 | X124: =MIN(H124*parameters!C$22,ROUND(P124+T124-V124+W124,0)) -> 16741397 | Y124: 79.75507511 | AA124: -735129 | AB124: -576187 | AC124: 0 | AD124: -2.744924887 | AG124: 115 | AH124: Groton | AI124: 0.9178388563 | AJ124: 82.5 | AK124: 0.0433 | AL124: 16741397 | AM124: -2.744924887
A125: 116 | B125: Groveland | C125: 1116385500 | D125: 4045548.124 | E125: 294671000 | F125: 4491255.82 | G125: 8536804 | H125: 10984515.43 | I125: 0.7771670998 | J125: 9062225 | K125: 8536804 | L125: 77.72 | N125: 7720478 | O125: 0.0387 | P125: 8019260 | Q125: 73.0051321 | R125: 4.714867903 | S125: 0.01 | T125: 77205 | U125: 0 | V125: 0 | W125: 0 | X125: =MIN(H125*parameters!C$22,ROUND(P125+T125-V125+W125,0)) -> 8096465 | Y125: 73.70798513 | AA125: -517544 | AB125: -440339 | AC125: 0 | AD125: -4.012014869 | AG125: 116 | AH125: Groveland | AI125: 0.7771670998 | AJ125: 77.72 | AK125: 0.0387 | AL125: 8096465 | AM125: -4.012014869
A126: 117 | B126: Hadley | C126: 1106994300 | D126: 4011516.375 | E126: 189557000 | F126: 2889150.882 | G126: 6900667 | H126: 6025430.87 | I126: 1.14525702 | J126: 4970980 | K126: 4970980 | L126: 82.5 | N126: 4832334 | O126: 0.0527 | P126: 5086998 | Q126: 84.4254645 | R126: 0 | S126: 0 | T126: 0 | U126: 116018 | V126: 116018 | W126: 0 | X126: =MIN(H126*parameters!C$22,ROUND(P126+T126-V126+W126,0)) -> 4970980 | Y126: 82.49999224 | AA126: 0 | AB126: 0 | AC126: 0 | AD126: -7.762930323e-06 | AG126: 117 | AH126: Hadley | AI126: 1.14525702 | AJ126: 82.5 | AK126: 0.0527 | AL126: 4970980 | AM126: -7.762930323e-06
A127: 118 | B127: Halifax | C127: 1059770900 | D127: 3840388.626 | E127: 337544000 | F127: 5144708.69 | G127: 8985097 | H127: 14155454.01 | I127: 0.63474453 | J127: 11678250 | K127: 8985097 | L127: 63.47 | N127: 7483222 | O127: 0.0356 | P127: 7749625 | Q127: 54.74656621 | R127: 8.723433789 | S127: 0.02 | T127: 149664 | U127: 0 | V127: 0 | W127: 0 | X127: =MIN(H127*parameters!C$22,ROUND(P127+T127-V127+W127,0)) -> 7899289 | Y127: 55.8038548 | AA127: -1235472 | AB127: -1085808 | AC127: 0 | AD127: -7.666145199 | AG127: 118 | AH127: Halifax | AI127: 0.63474453 | AJ127: 63.47 | AK127: 0.0356 | AL127: 7899289 | AM127: -7.666145199
A128: 119 | B128: Hamilton | C128: 1756199200 | D128: 6364099.479 | E128: 602577000 | F128: 9184234.14 | G128: 15548334 | H128: 13025019.18 | I128: 1.1937283 | J128: 10745641 | K128: 10745641 | L128: 82.5 | N128: 9918380 | O128: 0.0367 | P128: 10282385 | Q128: 78.94333866 | R128: 3.55666134 | S128: 0.01 | T128: 99184 | U128: 0 | V128: 0 | W128: 0 | X128: =MIN(H128*parameters!C$22,ROUND(P128+T128-V128+W128,0)) -> 10381569 | Y128: 79.70482698 | AA128: -463256 | AB128: -364072 | AC128: 0 | AD128: -2.795173018 | AG128: 119 | AH128: Hamilton | AI128: 1.1937283 | AJ128: 82.5 | AK128: 0.0367 | AL128: 10381569 | AM128: -2.795173018
A129: 120 | B129: Hampden | C129: 662234900 | D129: 2399801.106 | E129: 229631000 | F129: 3499942.53 | G129: 5899744 | H129: 6915511.468 | I129: 0.8531175209 | J129: 5705297 | K129: 5705297 | L129: 82.5 | N129: 5212308 | O129: 0.0397 | P129: 5419237 | Q129: 78.36350246 | R129: 4.136497535 | S129: 0.01 | T129: 52123 | U129: 0 | V129: 0 | W129: 0 | X129: =MIN(H129*parameters!C$22,ROUND(P129+T129-V129+W129,0)) -> 5471360 | Y129: 79.11721389 | AA129: -286060 | AB129: -233937 | AC129: 0 | AD129: -3.382786111 | AG129: 120 | AH129: Hampden | AI129: 0.8531175209 | AJ129: 82.5 | AK129: 0.0397 | AL129: 5471360 | AM129: -3.382786111
A130: 121 | B130: Hancock | C130: 322918000 | D130: 1170187.457 | E130: 11350000 | F130: 172992.0948 | G130: 1343180 | H130: 1024022.37 | I130: 1.311670564 | J130: 844818 | K130: 844818 | L130: 82.5 | N130: 689423 | O130: 0.0384 | P130: 715897 | Q130: 69.91028917 | R130: 12.58971083 | S130: 0.02 | T130: 13788 | U130: 0 | V130: 0 | W130: 0 | X130: =MIN(H130*parameters!C$22,ROUND(P130+T130-V130+W130,0)) -> 729685 | Y130: 71.25674413 | AA130: -128921 | AB130: -115133 | AC130: 0 | AD130: -11.24325587 | AG130: 121 | AH130: Hancock | AI130: 1.311670564 | AJ130: 82.5 | AK130: 0.0384 | AL130: 729685 | AM130: -11.24325587
A131: 122 | B131: Hanover | C131: 3073778500 | D131: 11138731.96 | E131: 850059000 | F131: 12956254.37 | G131: 24094986 | H131: 30827711.01 | I131: 0.7816015271 | J131: 25432862 | K131: 24094986 | L131: 78.16 | N131: 22318374 | O131: 0.0358 | P131: 23117372 | Q131: 74.98893445 | R131: 3.17106555 | S131: 0.01 | T131: 223184 | U131: 0 | V131: 0 | W131: 0 | X131: =MIN(H131*parameters!C$22,ROUND(P131+T131-V131+W131,0)) -> 23340556 | Y131: 75.71290646 | AA131: -977614 | AB131: -754430 | AC131: 0 | AD131: -2.447093537 | AG131: 122 | AH131: Hanover | AI131: 0.7816015271 | AJ131: 78.16 | AK131: 0.0358 | AL131: 23340556 | AM131: -2.447093537
A132: 123 | B132: Hanson | C132: 1526710200 | D132: 5532479.225 | E132: 422602000 | F132: 6441128.214 | G132: 11973607 | H132: 18458832.25 | I132: 0.6486654647 | J132: 15228537 | K132: 11973607 | L132: 64.87 | N132: 10616672 | O132: 0.0389 | P132: 11029661 | Q132: 59.75275602 | R132: 5.117243975 | S132: 0.01 | T132: 106167 | U132: 0 | V132: 0 | W132: 0 | X132: =MIN(H132*parameters!C$22,ROUND(P132+T132-V132+W132,0)) -> 11135828 | Y132: 60.32791158 | AA132: -943946 | AB132: -837779 | AC132: 0 | AD132: -4.542088415 | AG132: 123 | AH132: Hanson | AI132: 0.6486654647 | AJ132: 64.87 | AK132: 0.0389 | AL132: 11135828 | AM132: -4.542088415
A133: 124 | B133: Hardwick | C133: 270761600 | D133: 981183.5454 | E133: 66384000 | F133: 1011797.993 | G133: 1992982 | H133: 4813670.832 | I133: 0.4140254017 | J133: 3971278 | K133: 1992982 | L133: 41.4 | N133: 1707721 | O133: 0.0644 | P133: 1817698 | Q133: 37.76116114 | R133: 3.638838856 | S133: 0.01 | T133: 17077 | U133: 0 | V133: 0 | W133: 0 | X133: =MIN(H133*parameters!C$22,ROUND(P133+T133-V133+W133,0)) -> 1834775 | Y133: 38.11592159 | AA133: -175284 | AB133: -158207 | AC133: 0 | AD133: -3.284078412 | AG133: 124 | AH133: Hardwick | AI133: 0.4140254017 | AJ133: 41.4 | AK133: 0.0644 | AL133: 1834775 | AM133: -3.284078412
A134: 125 | B134: Harvard | C134: 1320082000 | D134: 4783701.74 | E134: 483840000 | F134: 7374492.963 | G134: 12158195 | H134: 10100333.86 | I134: 1.203741892 | J134: 8332775 | K134: 8332775 | L134: 82.5 | N134: 7809607 | O134: 0.0325 | P134: 8063419 | Q134: 79.83319272 | R134: 2.666807276 | S134: 0.01 | T134: 78096 | U134: 0 | V134: 0 | W134: 0 | X134: =MIN(H134*parameters!C$22,ROUND(P134+T134-V134+W134,0)) -> 8141515 | Y134: 80.60639489 | AA134: -269356 | AB134: -191260 | AC134: 0 | AD134: -1.893605112 | AG134: 125 | AH134: Harvard | AI134: 1.203741892 | AJ134: 82.5 | AK134: 0.0325 | AL134: 8141515 | AM134: -1.893605112
A135: 126 | B135: Harwich | C135: 6396397000 | D135: 23179208.15 | E135: 560400000 | F135: 8541389.419 | G135: 31720598 | H135: 18288111.13 | I135: 1.73449285 | J135: 15087692 | K135: 15087692 | L135: 82.5 | N135: 14051975 | O135: 0.0536 | P135: 14805161 | Q135: 80.95511282 | R135: 1.544887184 | S135: 0 | T135: 0 | U135: 0 | V135: 0 | W135: 0 | X135: =MIN(H135*parameters!C$22,ROUND(P135+T135-V135+W135,0)) -> 14805161 | Y135: 80.95511282 | AA135: -282531 | AB135: -282531 | AC135: 0 | AD135: -1.544887184 | AG135: 126 | AH135: Harwich | AI135: 1.73449285 | AJ135: 82.5 | AK135: 0.0536 | AL135: 14805161 | AM135: -1.544887184
A136: 127 | B136: Hatfield | C136: 610123900 | D136: 2210961.714 | E136: 133900000 | F136: 2040849.47 | G136: 4251811 | H136: 4125023.47 | I136: 1.030736196 | J136: 3403144 | K136: 3403144 | L136: 82.5 | N136: 3198673 | O136: 0.0178 | P136: 3255609 | Q136: 78.9234055 | R136: 3.576594505 | S136: 0.01 | T136: 31987 | U136: 0 | V136: 0 | W136: 0 | X136: =MIN(H136*parameters!C$22,ROUND(P136+T136-V136+W136,0)) -> 3287596 | Y136: 79.69884351 | AA136: -147535 | AB136: -115548 | AC136: 0 | AD136: -2.801156493 | AG136: 127 | AH136: Hatfield | AI136: 1.030736196 | AJ136: 82.5 | AK136: 0.0178 | AL136: 3287596 | AM136: -2.801156493
A137: 128 | B137: Haverhill | C137: 7590825800 | D137: 27507568.91 | E137: 2048798000 | F137: 31226947.82 | G137: 58734517 | H137: 138398332.4 | I137: 0.4243874618 | J137: 114178624 | K137: 58734517 | L137: 42.44 | N137: 51422424 | O137: 0.042 | P137: 53582166 | Q137: 38.71590435 | R137: 3.724095646 | S137: 0.01 | T137: 514224 | U137: 0 | V137: 0 | W137: 0 | X137: =MIN(H137*parameters!C$22,ROUND(P137+T137-V137+W137,0)) -> 54096390 | Y137: 39.08745796 | AA137: -5152351 | AB137: -4638127 | AC137: 0 | AD137: -3.352542036 | AG137: 128 | AH137: Haverhill | AI137: 0.4243874618 | AJ137: 42.44 | AK137: 0.042 | AL137: 54096390 | AM137: -3.352542036
A138: 129 | B138: Hawley | C138: 51879800 | D138: 188001.5708 | E138: 7067000 | F138: 107712.3466 | G138: 295714 | H138: 352260.7055 | I138: 0.8394748417 | J138: =ROUND(H138*maxloc,0) -> 290615 | K138: 290615 | L138: 82.5 | N138: 279224 | O138: 0.0322 | P138: 288215 | Q138: 81.81866313 | R138: 0.6813368677 | S138: 0 | T138: 0 | U138: 0 | V138: =MAX(U138*(V$5),0) -> 0 | W138: 0 | X138: =MIN(H138*parameters!C$22,ROUND(P138+T138-V138+W138,0)) -> 288215 | Y138: 81.81866313 | AA138: -2400 | AB138: -2400 | AC138: 0 | AD138: -0.6813368677 | AG138: 129 | AH138: Hawley | AI138: 0.8394748417 | AJ138: =L138 -> 82.5 | AK138: 0.0322 | AL138: =X138 -> 288215 | AM138: -0.6813368677
A139: 130 | B139: Heath | C139: 96423600 | D139: =D$5*C139 -> 349419.0081 | E139: 9390000 | F139: 143118.57 | G139: =ROUND(D139+F139,0) -> 492538 | H139: =(SUMIF(town1755,A139,found1755)/2) -> 1212402.507 | I139: =G139/H139 -> 0.4062495724 | J139: 1000232 | K139: =MIN(G139,J139) -> 492538 | L139: =IF(H139>0, ROUND((K139*100/H139), 2), 0) -> 40.62 | N139: 453916 | O139: 0.0359 | P139: =ROUND(N139*(1+O139),0) -> 470212 | Q139: =P139*100/H139 -> 38.78348959 | R139: =IF(L139>Q139,L139-Q139,0) -> 1.836510414 | S139: =IF(AND(R139>$T$4,R139<=$T$5),$S$4,IF(R139>$T$5,$S$5,0)) -> 0 | T139: =ROUND(S139*N139,0) -> 0 | U139: =MAX(P139-K139,0) -> 0 | V139: 0 | W139: =IF(AND(I139>1.75,$W$5=1),MAX(K139-(P139+T139),0),0) -> 0 | X139: =MIN(H139*parameters!C$22,ROUND(P139+T139-V139+W139,0)) -> 470212 | Y139: =X139*100/H139 -> 38.78348959 | AA139: =IF(Q139<L139, P139-K139, 0) -> -22326 | AB139: =-1*MAX(K139-(P139+T139+W139),0) -> -22326 | AC139: =IF(Q139>L139, X139-K139,0) -> 0 | AD139: =Y139-L139 -> -1.836510414 | AG139: =TEXT(A139,"000") -> 130 | AH139: =B139 -> Heath | AI139: =I139 -> 0.4062495724 | AJ139: 40.62 | AK139: =O139 -> 0.0359 | AL139: 470212 | AM139: =AD139 -> -1.836510414
A140: 131 | B140: Hingham | C140: 7942260800 | D140: 28781096.03 | E140: 3107735000 | F140: =E140*F$5 -> 47366835.91 | G140: 76147932 | H140: 45163141.52 | I140: 1.686063667 | J140: 37259592 | K140: 37259592 | L140: 82.5 | N140: 35667963 | O140: 0.048 | P140: 37380025 | Q140: 82.76666269 | R140: 0 | S140: 0 | T140: 0 | U140: 120433 | V140: 120433 | W140: 0 | X140: =MIN(H140*parameters!C$22,ROUND(P140+T140-V140+W140,0)) -> 37259592 | Y140: 82.50000054 | AA140: 0 | AB140: 0 | AC140: 0 | AD140: 5.448746236e-07 | AG140: 131 | AH140: Hingham | AI140: 1.686063667 | AJ140: 82.5 | AK140: 0.048 | AL140: 37259592 | AM140: 5.448746236e-07
A141: 132 | B141: Hinsdale | C141: 323523800 | D141: 1172382.75 | E141: 73337000 | F141: 1117772.798 | G141: 2290156 | H141: 2534348.93 | I141: 0.9036466814 | J141: 2090838 | K141: 2090838 | L141: 82.5 | N141: 1879620 | O141: 0.037 | P141: 1949166 | Q141: 76.90993047 | R141: 5.590069528 | S141: 0.01 | T141: 18796 | U141: 0 | V141: 0 | W141: 0 | X141: =MIN(H141*parameters!C$22,ROUND(P141+T141-V141+W141,0)) -> 1967962 | Y141: 77.65158052 | AA141: -141672 | AB141: -122876 | AC141: 0 | AD141: -4.848419482 | AG141: 132 | AH141: Hinsdale | AI141: 0.9036466814 | AJ141: 82.5 | AK141: 0.037 | AL141: 1967962 | AM141: -4.848419482
A142: 133 | B142: Holbrook | C142: 1455967400 | D142: 5276122.078 | E142: 372777000 | F142: 5681715.781 | G142: 10957838 | H142: 21054784.51 | I142: 0.5204440822 | J142: 17370197 | K142: 10957838 | L142: 52.04 | N142: 9603515 | O142: 0.0388 | P142: 9976131 | Q142: 47.38177679 | R142: 4.658223214 | S142: 0.01 | T142: 96035 | U142: 0 | V142: 0 | W142: 0 | X142: =MIN(H142*parameters!C$22,ROUND(P142+T142-V142+W142,0)) -> 10072166 | Y142: 47.83789639 | AA142: -981707 | AB142: -885672 | AC142: 0 | AD142: -4.202103608 | AG142: 133 | AH142: Holbrook | AI142: 0.5204440822 | AJ142: 52.04 | AK142: 0.0388 | AL142: 10072166 | AM142: -4.202103608
A143: 134 | B143: Holden | C143: 2669892800 | D143: 9675134.448 | E143: 913423000 | F143: 13922022.75 | G143: 23597157 | H143: 39786196.41 | I143: 0.5930990929 | J143: 32823612 | K143: 23597157 | L143: 59.31 | N143: 21561325 | O143: 0.0368 | P143: 22354782 | Q143: 56.18728106 | R143: 3.122718938 | S143: 0.01 | T143: 215613 | U143: 0 | V143: 0 | W143: 0 | X143: =MIN(H143*parameters!C$22,ROUND(P143+T143-V143+W143,0)) -> 22570395 | Y143: 56.72921022 | AA143: -1242375 | AB143: -1026762 | AC143: 0 | AD143: -2.580789778 | AG143: 134 | AH143: Holden | AI143: 0.5930990929 | AJ143: 59.31 | AK143: 0.0368 | AL143: 22570395 | AM143: -2.580789778
